Workbook

Sheet Cover
B2: TRMbd_BP2026.xlsm
B3: Home / Contents
B5: Purpose of this Workbook:
B6: This workbook computes TRM billing determinants used for rate making and as a data feed to Contracts and Billing. Input data is provided from the RAM Data Inputs workbook, with outputs to RAM presented in the "RAM Export" sheet. All user modification should be done in the RAM inputs sheet; inputs to the TRM billing determinants are entered as values in this workbook, with no modification to assumptions; that is, settings in this workbook should not be altered. Annual Billing Determinants for Composite, Nonslice and Tier 2 customer charges and included on the TOCA sheet. Subsequent sheets compute Load Shaping and Demand charges by customer for the two-year rate period. This model is fundamentally 2-year monthly/diurnal, but can be accessed iteratively through use of macros for extended forecasts at the user's discretion.
B8: Legend:
B10: Tab Colors | G10: Font Colors | K10: Hyperlink Types
B12: Blue Tab | D12: Cover Sheet | G12: Blue Font | H12: Constant Values | K12: Cover Hyperlink | M12: Cover Page
B13: Green Tab | D13: Table of Contents | G13: Black Font | H13: Calculated Values | K13: TOC Hyperlink | M13: TOC
B14: Grey Tabs | D14: Base Case Sheets | G14: Plum Font | H14: Hyperlinks | K14: Sheet Top Hyperlink | M14: é
B15: Rose Tabs | D15: Assumption Sheets | G15: Red Font | H15: Errors
B16: Tan Tabs | D16: Output Sheets | G16: Black/Yellow | H16: Work in Progress
B17: Teal Tabs | D17: Lookup Sheets | G17: Black/Gold | H17: Modifiable Assumptions
B18: Reb Tabs | D18: Log/Error Sheet | G18: White/Grey | H18: Locked Data
B19: Blue Tabs | D19: Spreadsheet Input
B20: Black Tabs | D20: Locked Data Sheet

Sheet TOC
B1: Table of Contents
A2: TOC
B3: Cover Sheet
B5: Section & Sheet Titles | M5: Page | N5: Input
B7: 1 | C7: Initialize Assumptions | M7: 3
B8: 2 | C8: Slice Shaping for Block Purchase Assumptions | M8: 4
B9: 3 | C9: Slice - Load Following Assumption - LDD BD | M9: 5
B10: 4 | C10: Total Retail Load | M10: 6
B11: 5 | C11: Customer System Peak (includes Above HWM Load) | M11: 7
B12: 6 | C12: Customer Demand Quantity | M12: 8
B13: 7 | C13: New Large Single Load by customer | M13: 9
B14: 8 | C14: Existing Resources by Customer ID | M14: 10
B15: 9 | C15: Existing Resources by Customer ID (SNEERS, CORs, Green Exception) | M15: 11
... 18 more rows

Sheet Init
B1: Initiation Sheet
A2: TOC
B3: Input Parameters | E3: Monthly Hours | M3: Annual Hours | Q3: Preference Customer Parameters | CH3: 9 | CI3: =+CH3+1 -> 10 | CJ3: =+CI3+1 -> 11 | CK3: =+CJ3+1 -> 12 | CL3: 13 | CM3: 14 | CN3: 15 | CO3: 16 | CP3: 17 | CQ3: 18 | CR3: 19 | CS3: =+CR3+1 -> 20 | CT3: =+CS3+1 -> 21 | CU3: =+CT3+1 -> 22 | CV3: =+CU3+1 -> 23 | CW3: =+CV3+1 -> 24 | CX3: =+CW3+1 -> 25 | CY3: =+CX3+1 -> 26 | DB3: 22 | DC3: =+DB3+1 -> 23 | DD3: 24 | DE3: 25 | DF3: 26 | DG3: 27 | DH3: 28 | DI3: =+DH3+1 -> 29 | DJ3: =+DI3+1 -> 30 | DK3: =+DJ3+1 -> 31 | DL3: =+DK3+1 -> 32 | DM3: =+DL3+1 -> 33 | DN3: =+DM3+1 -> 34 | DO3: =+DN3+1 -> 35 | DP3: =+DO3+1 -> 36 | DQ3: =+DP3+1 -> 37 | DR3: =+DQ3+1 -> 38 | DS3: =+DR3+1 -> 39 | DV3: 35 | DW3: =+DV3+1 -> 36 | DX3: =+DW3+1 -> 37 | DY3: 38 | DZ3: 39 | EA3: 40 | EB3: 41 | EC3: 42 | ED3: 43 | EE3: 44 | EF3: 45 | EG3: =+EF3+1 -> 46 | EH3: =+EG3+1 -> 47 | EI3: =+EH3+1 -> 48 | EJ3: =+EI3+1 -> 49 | EK3: =+EJ3+1 -> 50 | EL3: =+EK3+1 -> 51 | EM3: =+EL3+1 -> 52
E4: FiscalID | F4: Cal Date | G4: HLH | H4: LLH | I4: Total | J4: HLH% | K4: LLH% | M4: year | N4: days | O4: hours | Q4: BESID | R4: AccountName | S4: Slice Block or Block | T4: PNGC | U4: Initial CHWM | V4: RHWM Aug 2016 | W4: RHWM Aug 2018 | X4: RHWM Aug 2020 | Y4: RHWM Aug 2022 | Z4: RHWM Aug 2024 | AA4: RHWM Aug 2026 | AB4: RHWM Aug 2028 | AC4: RHWM Aug 2030 | AD4: RHWM Aug 2032 | AE4: RHWM Aug 2034 | AF4: Initial Slice% | AG4: 60-40 | AH4: RHWM 2016 | AI4: RHWM 2018 | AJ4: RHWM 2020 | AK4: RHWM 2022 | AL4: RHWM 2024 | AM4: RHWM 2026 | AN4: RHWM 2028 | AO4: RHWM 2030 | AP4: RHWM 2032 | AQ4: RHWM 2034 | AR4: TRL - NLSL - Existing Resource 2016 | AS4: TRL - NLSL - Existing Resource 2017 | AT4: TRL - NLSL - Existing Resource 2018 | AU4: TRL - NLSL - Existing Resource 2019 | AV4: TRL - NLSL - Existing Resource 2020 | AW4: TRL - NLSL - Existing Resource 2021 | AX4: TRL - NLSL - Existing Resource 2022 | AY4: TRL - NLSL - Existing Resource 2023 | AZ4: TRL - NLSL - Existing Resource 2024 | BA4: TRL - NLSL - Existing Resource 2025 | BB4: TRL - NLSL - Existing Resource 2026 | BC4: TRL - NLSL - Existing Resource 2027 | BD4: TRL - NLSL - Existing Resource 2028 | BE4: TRL - NLSL - Existing Resource 2029 | BF4: TRL - NLSL - Existing Resource 2030 | BG4: TRL - NLSL - Existing Resource 2031 | BH4: TRL - NLSL - Existing Resource 2032 | BI4: TRL - NLSL - Existing Resource 2033 | BJ4: TRL - NLSL - Existing Resource 2034 | BK4: TRL - NLSL - Existing Resource 2035 | BL4: Above RHWM 2016 | BM4: Above RHWM 2017 | BN4: Above RHWM 2018 | BO4: Above RHWM 2019 | BP4: Above RHWM 2020 | BQ4: Above RHWM 2021 | BR4: Above RHWM 2022 | BS4: Above RHWM 2023 | BT4: Above RHWM 2024 | BU4: Above RHWM 2025 | BV4: Above RHWM 2026 | BW4: Above RHWM 2027 | BX4: Above RHWM 2028 | BY4: Above RHWM 2029 | BZ4: Above RHWM 2030 | CA4: Above RHWM 2031 | CB4: Above RHWM 2032 | CC4: Above RHWM 2033 | CD4: Above RHWM 2034 | CE4: Above RHWM 2035 | CF4: Election 2016 | CG4: Election 2017 | CH4: Election 2018 | CI4: Election 2019 | CJ4: Election 2020 | CK4: Election 2021 | CL4: Election 2022 | CM4: Election 2023 | CN4: Election 2024 | CO4: Election 2025 | CP4: Election 2026 | CQ4: Election 2027 | CR4: Election 2028 | CS4: Election 2029 | CT4: Election 2030 | CU4: Election 2031 | CV4: Election 2032 | CW4: Election 2033 | CX4: Election 2034 | CY4: Election 2035 | CZ4: Amount 2016 | DA4: Amount 2017 | DB4: Amount 2018 | DC4: Amount 2019 | DD4: Amount 2020 | DE4: Amount 2021 | DF4: Amount 2022 | DG4: Amount 2023 | DH4: Amount 2024 | DI4: Amount 2025 | DJ4: Amount 2026 | DK4: Amount 2027 | DL4: Amount 2028 | DM4: Amount 2029 | DN4: Amount 2030 | DO4: Amount 2031 | DP4: Amount 2032 | DQ4: Amount 2033 | DR4: Amount 2034 | DS4: Amount 2035 | DT4: Type 2016 | DU4: Type 2017 | DV4: Type 2018 | DW4: Type 2019 | DX4: Type 2020 | DY4: Type 2021 | DZ4: Type 2022 | EA4: Type 2023 | EB4: Type 2024 | EC4: Type 2025 | ED4: Type 2026 | EE4: Type 2027 | EF4: Type 2028 | EG4: Type 2029 | EH4: Type 2030 | EI4: Type 2031 | EJ4: Type 2032 | EK4: Type 2033 | EL4: Type 2034 | EM4: Type 2035 | EN4: Vintage 2014 for 2016 | EO4: Vintage 2014 for 2017 | EP4: Vintage 2014 for 2018 | EQ4: Vintage 2014 for 2019 | ER4: Vintage 2016 for 2016 | ES4: Vintage 2016 for 2017 | ET4: Vintage 2016 for 2018 | EU4: Vintage 2016 for 2019 | EV4: Total Vintage 2016 | EW4: Total Vintage 2017 | EX4: Total Vintage 2018 | EY4: Total Vintage 2019 | EZ4: Total Vintage 2020 | FA4: Total Vintage 2021 | FB4: Total Vintage 2022 | FC4: Total Vintage 2023 | FD4: Total Vintage 2024 | FE4: Total Vintage 2025 | FF4: Total Vintage 2026 | FG4: Total Vintage 2027 | FH4: Total Vintage 2028 | FI4: Total Vintage 2029 | FJ4: Total Vintage 2030 | FK4: Total Vintage 2031 | FL4: Total Vintage 2032 | FM4: Total Vintage 2033 | FN4: Total Vintage 2034 | FO4: Total Vintage 2035 | FP4: Rounddown | FQ4: Eligible LDD | FR4: IRD Loads | FS4: T1 Percentage 2016 | FT4: T1 Percentage 2017 | FU4: T1 Percentage 2018 | FV4: T1 Percentage 2019 | FW4: T1 Percentage 2020 | FX4: T1 Percentage 2021 | FY4: T1 Percentage 2022 | FZ4: T1 Percentage 2023 | GA4: T1 Percentage 2024 | GB4: T1 Percentage 2025 | GC4: T1 Percentage 2026 | GD4: T1 Percentage 2027 | GE4: T1 Percentage 2028 | GF4: T1 Percentage 2029 | GG4: T1 Percentage 2030 | GH4: T1 Percentage 2031 | GI4: T1 Percentage 2032 | GJ4: T1 Percentage 2033 | GK4: T1 Percentage 2034 | GL4: T1 Percentage 2035
E5: 2015_1 | F5: 2014-10-01 | G5: 432 | H5: 312 | I5: 744 | J5: 0.5806451613 | K5: 0.4193548387 | M5: 2009 | N5: 365 | O5: 8760 | Q5: 10015 | R5: Asotin County PUD #1 | S5: 0 | T5: 0 | U5: 0.582 | V5: 0 | W5: 0 | X5: 0 | Y5: 0 | Z5: 0 | AA5: 0 | AB5: 0 | AC5: 0 | AD5: 0 | AE5: 0 | AF5: 0 | AG5: 0 | AH5: 0.568 | AI5: 0.564 | AJ5: 0.57 | AK5: 0.547 | AL5: 0.573 | AM5: 0.577 | AN5: 0 | AO5: 0 | AP5: 0 | AQ5: 0 | AR5: 0.591 | AS5: 0.597 | AT5: 0.618 | AU5: 0.621 | AV5: 0.667 | AW5: 0.67 | AX5: 0.63 | AY5: 0.634 | AZ5: 0.582 | BA5: 0.583 | BB5: 0.761 | BC5: 0.761 | BD5: 0.76 | BE5: 0 | BF5: 0 | BG5: 0 | BH5: 0 | BI5: 0 | BJ5: 0 | BK5: 0 | BL5: 0.023 | BM5: 0.029 | BN5: 0.054 | BO5: 0.057 | BP5: 0.097 | BQ5: 0.1 | BR5: 0.083 | BS5: 0.087 | BT5: 0.009 | BU5: 0.01 | BV5: 0.184 | BW5: 0.184 | BX5: 0.183 | BY5: 0 | BZ5: 0 | CA5: 0 | CB5: 0 | CC5: 0 | CD5: 0 | CE5: 0 | CF5: 1 | CG5: 1 | CH5: 1 | CI5: 1 | CJ5: 1 | CK5: 1 | CL5: 1 | CM5: 1 | CN5: 1 | CO5: 1 | CP5: 1 | CQ5: 1 | CR5: 1 | CS5: =+CR5 -> 1 | CT5: =+CS5 -> 1 | CU5: 1 | CV5: 1 | CW5: 1 | CX5: 1 | CY5: 1 | CZ5: 0 | DA5: 0 | DB5: 0 | DC5: 0 | DD5: 0 | DE5: 0 | DF5: 0 | DG5: 0 | DH5: 0 | DI5: 0 | DJ5: 0 | DK5: 0 | DL5: 0 | DM5: =+DL5 -> 0 | DN5: =+DM5 -> 0 | DO5: 0 | DP5: 0 | DQ5: 0 | DR5: 0 | DS5: 0 | DT5: LGR | DU5: LGR | DV5: LGR | DW5: LGR | DX5: LGR | DY5: LGR | DZ5: LGR | EA5: LGR | EB5: LGR | EC5: LGR | ED5: LGR | EE5: LGR | EF5: LGR | EG5: =+EF5 -> LGR | EH5: LGR | EI5: LGR | EJ5: LGR | EK5: LGR | EL5: =+EK5 -> LGR | EM5: =+EL5 -> LGR | EN5: 0 | EO5: 0 | EP5: 0 | EQ5: 0 | ER5: 0 | ES5: 0 | ET5: 0 | EU5: 0 | EV5: =+EN5+ER5 -> 0 | EW5: =+EO5+ES5 -> 0 | EX5: =+EP5+ET5 -> 0 | EY5: =+EQ5+EU5 -> 0 | EZ5: 0 | FA5: 0 | FB5: 0 | FC5: 0 | FD5: 0 | FE5: 0 | FF5: 0 | FG5: 0 | FH5: 0 | FI5: 0 | FJ5: 0 | FK5: 0 | FL5: 0 | FM5: 0 | FN5: 0 | FO5: 0 | FP5: 0 | FQ5: 0 | FR5: 0 | FS5: 0.9609300997 | FT5: 0.9511712639 | FU5: 0.9124943288 | FV5: 0.9080861436 | FW5: 0.8541048324 | FX5: 0.8502804824 | FY5: 0.8682418267 | FZ5: 0.8627639603 | GA5: 0.9842592809 | GB5: 0.9825710146 | GC5: 0.7586013435 | GD5: 0.7586013435 | GE5: 0.7595995032 | GF5: 0 | GG5: 0 | GH5: 0 | GI5: 0 | GJ5: 0 | GK5: 0 | GL5: 0
E6: 2015_2 | F6: 2014-11-01 | G6: 384 | H6: 337 | I6: 721 | J6: 0.53259362 | K6: 0.46740638 | M6: 2010 | N6: 365 | O6: 8760 | Q6: 10024 | R6: Benton County PUD #1 | S6: 0 | T6: 0 | U6: 203.92 | V6: 0 | W6: 0 | X6: 0 | Y6: 0 | Z6: 0 | AA6: 0 | AB6: 0 | AC6: 0 | AD6: 0 | AE6: 0 | AF6: 0 | AG6: 0 | AH6: 199.617 | AI6: 198.049 | AJ6: 200.214 | AK6: 192.001 | AL6: 200.923 | AM6: 202.081 | AN6: 0 | AO6: 0 | AP6: 0 | AQ6: 0 | AR6: 204.386 | AS6: 206.55 | AT6: 209.206 | AU6: 209.939 | AV6: 205.669 | AW6: 206.52 | AX6: 209.048 | AY6: 209.063 | AZ6: 211.167 | BA6: 212.387 | BB6: 212.747 | BC6: 213.645 | BD6: 213.821 | BE6: 0 | BF6: 0 | BG6: 0 | BH6: 0 | BI6: 0 | BJ6: 0 | BK6: 0 | BL6: 4.769 | BM6: 6.933 | BN6: 10.857 | BO6: 11.59 | BP6: 5.455 | BQ6: 6.306 | BR6: 17.047 | BS6: 17.062 | BT6: 10.244 | BU6: 11.464 | BV6: 10.666 | BW6: 11.564 | BX6: 11.74 | BY6: 0 | BZ6: 0 | CA6: 0 | CB6: 0 | CC6: 0 | CD6: 0 | CE6: 0 | CF6: 4 | CG6: 4 | CH6: 4 | CI6: 4 | CJ6: 4 | CK6: 4 | CL6: 4 | CM6: 4 | CN6: 3 | CO6: 3 | CP6: 3 | CQ6: 3 | CR6: 3 | CS6: =+CR6 -> 3 | CT6: 3 | CU6: 3 | CV6: 3 | CW6: 3 | CX6: 3 | CY6: 3 | CZ6: 0 | DA6: 0 | DB6: 0 | DC6: 0 | DD6: 0 | DE6: 0 | DF6: 0 | DG6: 0 | DH6: 0 | DI6: 0 | DJ6: 0 | DK6: 0 | DL6: 0 | DM6: =+DL6 -> 0 | DN6: 0 | DO6: 0 | DP6: 0 | DQ6: 0 | DR6: 0 | DS6: 0 | DT6: 0 | DU6: 0 | DV6: 0 | DW6: 0 | DX6: 0 | DY6: 0 | DZ6: 0 | EA6: 0 | EB6: STR | EC6: STR | ED6: STR | EE6: STR | EF6: STR | EG6: =+EF6 -> STR | EH6: STR | EI6: STR | EJ6: STR | EK6: STR | EL6: STR | EM6: STR | EN6: 0 | EO6: 0 | EP6: 0 | EQ6: 0 | ER6: 0 | ES6: 0 | ET6: 0 | EU6: 0 | EV6: 0 | EW6: 0 | EX6: 0 | EY6: 0 | EZ6: 0 | FA6: 0 | FB6: 0 | FC6: 0 | FD6: 0 | FE6: 0 | FF6: 0 | FG6: 0 | FH6: 0 | FI6: 0 | FJ6: 0 | FK6: 0 | FL6: 0 | FM6: 0 | FN6: 0 | FO6: 0 | FP6: 0 | FQ6: 0 | FR6: 312239.2 | FS6: 0.9767722178 | FT6: 0.9665810551 | FU6: 0.9483306064 | FV6: 0.9450339502 | FW6: 0.9735948822 | FX6: 0.9696009233 | FY6: 0.9171911079 | FZ6: 0.9171255887 | GA6: 0.9516989326 | GB6: 0.9462559333 | GC6: 0.9500818806 | GD6: 0.946105568 | GE6: 0.9453298893 | GF6: 0 | GG6: 0 | GH6: 0 | GI6: 0 | GJ6: 0 | GK6: 0 | GL6: 0
B7: Loss Percent Assumption | C7: 0.0321 | E7: 2015_3 | F7: 2014-12-01 | G7: 416 | H7: 328 | I7: 744 | J7: 0.5591397849 | K7: 0.4408602151 | M7: 2011 | N7: 365 | O7: 8760 | Q7: 10025 | R7: Benton REA | S7: 0 | T7: 0 | U7: 60.549 | V7: 0 | W7: 0 | X7: 0 | Y7: 0 | Z7: 0 | AA7: 0 | AB7: 0 | AC7: 0 | AD7: 0 | AE7: 0 | AF7: 0 | AG7: 0 | AH7: 66.081 | AI7: 58.702 | AJ7: 59.343 | AK7: 56.909 | AL7: 59.659 | AM7: 60.003 | AN7: 0 | AO7: 0 | AP7: 0 | AQ7: 0 | AR7: 69.528 | AS7: 70.504 | AT7: 64.711 | AU7: 65.775 | AV7: 66.508 | AW7: 67.372 | AX7: 66.666 | AY7: 67.355 | AZ7: 64.824 | BA7: 65.037 | BB7: 74.805 | BC7: 75.47 | BD7: 75.931 | BE7: 0 | BF7: 0 | BG7: 0 | BH7: 0 | BI7: 0 | BJ7: 0 | BK7: 0 | BL7: 3.447 | BM7: 4.423 | BN7: 7.579 | BO7: 8.643 | BP7: 7.165 | BQ7: 8.029 | BR7: 9.757 | BS7: 10.446 | BT7: 5.165 | BU7: 5.378 | BV7: 14.802 | BW7: 15.467 | BX7: 15.928 | BY7: 0 | BZ7: 0 | CA7: 0 | CB7: 0 | CC7: 0 | CD7: 0 | CE7: 0 | CF7: 3 | CG7: 3 | CH7: 3 | CI7: 3 | CJ7: 1 | CK7: 1 | CL7: 1 | CM7: 1 | CN7: 1 | CO7: 1 | CP7: 1 | CQ7: 1 | CR7: 1 | CS7: =+CR7 -> 1 | CT7: 1 | CU7: 1 | CV7: 1 | CW7: 1 | CX7: 1 | CY7: 1 | CZ7: 10 | DA7: 11 | DB7: 12 | DC7: 14 | DD7: 0 | DE7: 0 | DF7: 0 | DG7: 0 | DH7: 0 | DI7: 0 | DJ7: 0 | DK7: 0 | DL7: 0 | DM7: =+DL7 -> 0 | DN7: 0 | DO7: 0 | DP7: 0 | DQ7: 0 | DR7: 0 | DS7: 0 | DT7: LGR | DU7: LGR | DV7: LGR | DW7: LGR | DX7: STR | DY7: STR | DZ7: STR | EA7: STR | EB7: STR | EC7: STR | ED7: STR | EE7: STR | EF7: STR | EG7: =+EF7 -> STR | EH7: STR | EI7: STR | EJ7: STR | EK7: STR | EL7: STR | EM7: STR | EN7: 0 | EO7: 0 | EP7: 0 | EQ7: 0 | ER7: 0 | ES7: 0 | ET7: 0 | EU7: 0 | EV7: 0 | EW7: 0 | EX7: 0 | EY7: 0 | EZ7: 0 | FA7: 0 | FB7: 0 | FC7: 0 | FD7: 0 | FE7: 0 | FF7: 0 | FG7: 0 | FH7: 0 | FI7: 0 | FJ7: 0 | FK7: 0 | FL7: 0 | FM7: 0 | FN7: 0 | FO7: 0 | FP7: 1 | FQ7: 0.055 | FR7: 82900.857 | FS7: 0.9504215223 | FT7: 0.9372695023 | FU7: 0.8965214833 | FV7: 0.88368387 | FW7: 0.8922697627 | FX7: 0.8808270109 | FY7: 0.8536399489 | FZ7: 0.8449077401 | GA7: 0.9203273448 | GB7: 0.9173132186 | GC7: 0.8021281595 | GD7: 0.7950602487 | GE7: 0.7902331982 | GF7: 0 | GG7: 0 | GH7: 0 | GI7: 0 | GJ7: 0 | GK7: 0 | GL7: 0
E8: 2015_4 | F8: 2015-01-01 | G8: 416 | H8: 328 | I8: 744 | J8: 0.5591397849 | K8: 0.4408602151 | M8: 2012 | N8: 366 | O8: 8784 | Q8: 10027 | R8: Big Bend Elec Coop | S8: 0 | T8: 0 | U8: 62.107 | V8: 0 | W8: 0 | X8: 0 | Y8: 0 | Z8: 0 | AA8: 0 | AB8: 0 | AC8: 0 | AD8: 0 | AE8: 0 | AF8: 0 | AG8: 0 | AH8: 60.597 | AI8: 60.212 | AJ8: 60.87 | AK8: 58.373 | AL8: 61.194 | AM8: 61.547 | AN8: 0 | AO8: 0 | AP8: 0 | AQ8: 0 | AR8: 60.704 | AS8: 61.23 | AT8: 63.741 | AU8: 64.451 | AV8: 65.199 | AW8: 65.771 | AX8: 66.27 | AY8: 66.586 | AZ8: 67.791 | BA8: 68.216 | BB8: 72.558 | BC8: 73.884 | BD8: 75.005 | BE8: 0 | BF8: 0 | BG8: 0 | BH8: 0 | BI8: 0 | BJ8: 0 | BK8: 0 | BL8: 0.107 | BM8: 0.633 | BN8: 3.529 | BO8: 4.239 | BP8: 4.329 | BQ8: 4.901 | BR8: 7.897 | BS8: 8.213 | BT8: 6.597 | BU8: 7.022 | BV8: 11.011 | BW8: 12.337 | BX8: 13.458 | BY8: 0 | BZ8: 0 | CA8: 0 | CB8: 0 | CC8: 0 | CD8: 0 | CE8: 0 | CF8: 3 | CG8: 3 | CH8: 3 | CI8: 3 | CJ8: 3 | CK8: 3 | CL8: 3 | CM8: 3 | CN8: 3 | CO8: 3 | CP8: 3 | CQ8: 3 | CR8: 3 | CS8: =+CR8 -> 3 | CT8: 3 | CU8: 3 | CV8: 3 | CW8: 3 | CX8: 3 | CY8: 3 | CZ8: 4.52 | DA8: 5.57 | DB8: 6.45 | DC8: 7.35 | DD8: 24 | DE8: 25 | DF8: 25 | DG8: 26 | DH8: 27 | DI8: 0 | DJ8: 0 | DK8: 0 | DL8: 0 | DM8: =+DL8 -> 0 | DN8: 0 | DO8: 0 | DP8: 0 | DQ8: 0 | DR8: 0 | DS8: 0 | DT8: STR | DU8: STR | DV8: STR | DW8: STR | DX8: STR | DY8: STR | DZ8: STR | EA8: STR | EB8: STR | EC8: STR | ED8: STR | EE8: STR | EF8: STR | EG8: =+EF8 -> STR | EH8: STR | EI8: STR | EJ8: STR | EK8: STR | EL8: STR | EM8: STR | EN8: 1 | EO8: 1 | EP8: 1 | EQ8: 1 | ER8: 0 | ES8: 0 | ET8: 0 | EU8: 0 | EV8: 1 | EW8: 1 | EX8: 1 | EY8: 1 | EZ8: 0 | FA8: 0 | FB8: 0 | FC8: 0 | FD8: 0 | FE8: 0 | FF8: 0 | FG8: 0 | FH8: 0 | FI8: 0 | FJ8: 0 | FK8: 0 | FL8: 0 | FM8: 0 | FN8: 0 | FO8: 0 | FP8: 1 | FQ8: 0.07 | FR8: 209669.54 | FS8: 0.9982323218 | FT8: 0.9896615614 | FU8: 0.9446324159 | FV8: 0.9342262311 | FW8: 0.93360644 | FX8: 0.9254870123 | FY8: 0.8808396752 | FZ8: 0.8766594371 | GA8: 0.9026886904 | GB8: 0.8970647504 | GC8: 0.848241141 | GD8: 0.833017713 | GE8: 0.8205677049 | GF8: 0 | GG8: 0 | GH8: 0 | GI8: 0 | GJ8: 0 | GK8: 0 | GL8: 0
B9: Base Year | C9: 2026 | E9: 2015_5 | F9: 2015-02-01 | G9: 384 | H9: 288 | I9: 672 | J9: 0.5714285714 | K9: 0.4285714286 | M9: 2013 | N9: 365 | O9: 8760 | Q9: 10029 | R9: Blachly Lane Elec Coop | S9: 0 | T9: 1 | U9: 17.879 | V9: 0 | W9: 0 | X9: 0 | Y9: 0 | Z9: 0 | AA9: 0 | AB9: 0 | AC9: 0 | AD9: 0 | AE9: 0 | AF9: 0 | AG9: 0 | AH9: 17.444 | AI9: 17.333 | AJ9: 17.523 | AK9: 16.804 | AL9: 17.616 | AM9: 17.718 | AN9: 0 | AO9: 0 | AP9: 0 | AQ9: 0 | AR9: 19.667 | AS9: 19.874 | AT9: 20.024 | AU9: 20.024 | AV9: 21.166 | AW9: 21.178 | AX9: 21.914 | AY9: 22.349 | AZ9: 21.679 | BA9: 21.674 | BB9: 23.213 | BC9: 24.409 | BD9: 24.669 | BE9: 0 | BF9: 0 | BG9: 0 | BH9: 0 | BI9: 0 | BJ9: 0 | BK9: 0 | BL9: 2.223 | BM9: 2.43 | BN9: 2.691 | BO9: 2.691 | BP9: 3.643 | BQ9: 3.655 | BR9: 5.11 | BS9: 5.545 | BT9: 4.063 | BU9: 4.058 | BV9: 5.495 | BW9: 6.691 | BX9: 6.951 | BY9: 0 | BZ9: 0 | CA9: 0 | CB9: 0 | CC9: 0 | CD9: 0 | CE9: 0 | CF9: 6 | CG9: 6 | CH9: 6 | CI9: 6 | CJ9: 6 | CK9: 6 | CL9: 6 | CM9: 6 | CN9: 6 | CO9: 6 | CP9: 6 | CQ9: 6 | CR9: 6 | CS9: =+CR9 -> 6 | CT9: 6 | CU9: 6 | CV9: 6 | CW9: 6 | CX9: 6 | CY9: 6 | CZ9: 0 | DA9: 0 | DB9: 0 | DC9: 0 | DD9: 0 | DE9: 0 | DF9: 0 | DG9: 0 | DH9: 0 | DI9: 0 | DJ9: 0 | DK9: 0 | DL9: 0 | DM9: =+DL9 -> 0 | DN9: 0 | DO9: 0 | DP9: 0 | DQ9: 0 | DR9: 0 | DS9: 0 | DT9: STR | DU9: STR | DV9: STR | DW9: STR | DX9: STR | DY9: STR | DZ9: STR | EA9: STR | EB9: STR | EC9: STR | ED9: STR | EE9: STR | EF9: STR | EG9: =+EF9 -> STR | EH9: STR | EI9: STR | EJ9: STR | EK9: STR | EL9: STR | EM9: STR | EN9: 0 | EO9: 0 | EP9: 0 | EQ9: 0 | ER9: 0 | ES9: 0 | ET9: 0 | EU9: 0 | EV9: 0 | EW9: 0 | EX9: 0 | EY9: 0 | EZ9: 0 | FA9: 0 | FB9: 0 | FC9: 0 | FD9: 0 | FE9: 0 | FF9: 0 | FG9: 0 | FH9: 0 | FI9: 0 | FJ9: 0 | FK9: 0 | FL9: 0 | FM9: 0 | FN9: 0 | FO9: 0 | FP9: 1 | FQ9: 0.065 | FR9: 0 | FS9: 0.8869483627 | FT9: 0.8777277374 | FU9: 0.865608602 | FV9: 0.865608602 | FW9: 0.8278675793 | FX9: 0.8273984882 | FY9: 0.7668087764 | FZ9: 0.7518836425 | GA9: 0.8125850966 | GB9: 0.8127725528 | GC9: 0.7632668995 | GD9: 0.7258681035 | GE9: 0.718217785 | GF9: 0 | GG9: 0 | GH9: 0 | GI9: 0 | GJ9: 0 | GK9: 0 | GL9: 0
E10: 2015_6 | F10: 2015-03-01 | G10: 416 | H10: 327 | I10: 743 | J10: 0.5598923284 | K10: 0.4401076716 | M10: 2014 | N10: 365 | O10: 8760 | Q10: 10044 | R10: Canby, City of | S10: 0 | T10: 0 | U10: 20.612 | V10: 0 | W10: 0 | X10: 0 | Y10: 0 | Z10: 0 | AA10: 0 | AB10: 0 | AC10: 0 | AD10: 0 | AE10: 0 | AF10: 0 | AG10: 0 | AH10: 20.111 | AI10: 19.983 | AJ10: 20.202 | AK10: 19.373 | AL10: 20.309 | AM10: 20.426 | AN10: 0 | AO10: 0 | AP10: 0 | AQ10: 0 | AR10: 21.792 | AS10: 21.96 | AT10: 20.635 | AU10: 20.731 | AV10: 20.77 | AW10: 20.893 | AX10: 21.998 | AY10: 22.09 | AZ10: 23.851 | BA10: 24.05 | BB10: 22.338 | BC10: 22.45 | BD10: 22.556 | BE10: 0 | BF10: 0 | BG10: 0 | BH10: 0 | BI10: 0 | BJ10: 0 | BK10: 0 | BL10: 1.681 | BM10: 1.849 | BN10: 0.652 | BO10: 0.748 | BP10: 0.568 | BQ10: 0.691 | BR10: 2.625 | BS10: 2.717 | BT10: 3.542 | BU10: 3.741 | BV10: 1.912 | BW10: 2.024 | BX10: 2.13 | BY10: 0 | BZ10: 0 | CA10: 0 | CB10: 0 | CC10: 0 | CD10: 0 | CE10: 0 | CF10: 1 | CG10: 1 | CH10: 1 | CI10: 1 | CJ10: 1 | CK10: 1 | CL10: 1 | CM10: 1 | CN10: 1 | CO10: 1 | CP10: 1 | CQ10: 1 | CR10: 1 | CS10: =+CR10 -> 1 | CT10: 1 | CU10: 1 | CV10: 1 | CW10: 1 | CX10: 1 | CY10: 1 | CZ10: 0 | DA10: 0 | DB10: 0 | DC10: 0 | DD10: 0 | DE10: 0 | DF10: 0 | DG10: 0 | DH10: 0 | DI10: 0 | DJ10: 0 | DK10: 0 | DL10: 0 | DM10: =+DL10 -> 0 | DN10: 0 | DO10: 0 | DP10: 0 | DQ10: 0 | DR10: 0 | DS10: 0 | DT10: STR | DU10: STR | DV10: STR | DW10: STR | DX10: STR | DY10: STR | DZ10: STR | EA10: STR | EB10: STR | EC10: STR | ED10: STR | EE10: STR | EF10: STR | EG10: =+EF10 -> STR | EH10: STR | EI10: STR | EJ10: STR | EK10: STR | EL10: STR | EM10: STR | EN10: 0 | EO10: 0 | EP10: 0 | EQ10: 0 | ER10: 0 | ES10: 0 | ET10: 0 | EU10: 0 | EV10: 0 | EW10: 0 | EX10: 0 | EY10: 0 | EZ10: 0 | FA10: 0 | FB10: 0 | FC10: 0 | FD10: 0 | FE10: 0 | FF10: 0 | FG10: 0 | FH10: 0 | FI10: 0 | FJ10: 0 | FK10: 0 | FL10: 0 | FM10: 0 | FN10: 0 | FO10: 0 | FP10: 0 | FQ10: 0 | FR10: 0 | FS10: 0.9228727893 | FT10: 0.9158119221 | FU10: 0.9684080388 | FV10: 0.9639235869 | FW10: 0.9726429495 | FX10: 0.966916865 | FY10: 0.8806752818 | FZ10: 0.8770074626 | GA10: 0.851506997 | GB10: 0.8444612634 | GC10: 0.9143944353 | GD10: 0.9098326457 | GE10: 0.9055569647 | GF10: 0 | GG10: 0 | GH10: 0 | GI10: 0 | GJ10: 0 | GK10: 0 | GL10: 0
B11: Base Month | C11: 10 | E11: 2015_7 | F11: 2015-04-01 | G11: 416 | H11: 304 | I11: 720 | J11: 0.5777777778 | K11: 0.4222222222 | M11: 2015 | N11: 365 | O11: 8760 | Q11: 10046 | R11: Central Electric Coop | S11: 0 | T11: 1 | U11: 83.072 | V11: 0 | W11: 0 | X11: 0 | Y11: 0 | Z11: 0 | AA11: 0 | AB11: 0 | AC11: 0 | AD11: 0 | AE11: 0 | AF11: 0 | AG11: 0 | AH11: 81.052 | AI11: 80.537 | AJ11: 81.418 | AK11: 78.078 | AL11: 81.851 | AM11: 82.323 | AN11: 0 | AO11: 0 | AP11: 0 | AQ11: 0 | AR11: 82.298 | AS11: 82.947 | AT11: 82.607 | AU11: 82.967 | AV11: 90.594 | AW11: 92.031 | AX11: 95.832 | AY11: 97.424 | AZ11: 98.879 | BA11: 100.606 | BB11: 102.441 | BC11: 103.89 | BD11: 105.331 | BE11: 0 | BF11: 0 | BG11: 0 | BH11: 0 | BI11: 0 | BJ11: 0 | BK11: 0 | BL11: 1.246 | BM11: 1.895 | BN11: 2.07 | BO11: 2.43 | BP11: 9.176 | BQ11: 10.613 | BR11: 17.754 | BS11: 19.346 | BT11: 17.028 | BU11: 18.755 | BV11: 20.118 | BW11: 21.567 | BX11: 23.008 | BY11: 0 | BZ11: 0 | CA11: 0 | CB11: 0 | CC11: 0 | CD11: 0 | CE11: 0 | CF11: 6 | CG11: 6 | CH11: 6 | CI11: 6 | CJ11: 6 | CK11: 6 | CL11: 6 | CM11: 6 | CN11: 6 | CO11: 6 | CP11: 6 | CQ11: 6 | CR11: 6 | CS11: =+CR11 -> 6 | CT11: 6 | CU11: 6 | CV11: 6 | CW11: 6 | CX11: 6 | CY11: 6 | CZ11: 0 | DA11: 0 | DB11: 0 | DC11: 0 | DD11: 0 | DE11: 0 | DF11: 0 | DG11: 0 | DH11: 0 | DI11: 0 | DJ11: 0 | DK11: 0 | DL11: 0 | DM11: =+DL11 -> 0 | DN11: 0 | DO11: 0 | DP11: 0 | DQ11: 0 | DR11: 0 | DS11: 0 | DT11: STR | DU11: STR | DV11: STR | DW11: STR | DX11: STR | DY11: STR | DZ11: STR | EA11: STR | EB11: STR | EC11: STR | ED11: STR | EE11: STR | EF11: STR | EG11: =+EF11 -> STR | EH11: STR | EI11: STR | EJ11: STR | EK11: STR | EL11: STR | EM11: STR | EN11: 0 | EO11: 0 | EP11: 0 | EQ11: 0 | ER11: 0 | ES11: 0 | ET11: 0 | EU11: 0 | EV11: 0 | EW11: 0 | EX11: 0 | EY11: 0 | EZ11: 0 | FA11: 0 | FB11: 0 | FC11: 0 | FD11: 0 | FE11: 0 | FF11: 0 | FG11: 0 | FH11: 0 | FI11: 0 | FJ11: 0 | FK11: 0 | FL11: 0 | FM11: 0 | FN11: 0 | FO11: 0 | FP11: 1 | FQ11: 0.065 | FR11: 41085.457 | FS11: 0.9848639457 | FT11: 0.9771570969 | FU11: 0.9749451694 | FV11: 0.9707148096 | FW11: 0.8987163475 | FX11: 0.8846835174 | FY11: 0.8147358814 | FZ11: 0.8014223291 | GA11: 0.8277893178 | GB11: 0.8135795077 | GC11: 0.8036130506 | GD11: 0.7924047023 | GE11: 0.7815640649 | GF11: 0 | GG11: 0 | GH11: 0 | GI11: 0 | GJ11: 0 | GK11: 0 | GL11: 0
C12: =DATE((C9-1),C11,1) -> 2025-10-01 | E12: 2015_8 | F12: 2015-05-01 | G12: 400 | H12: 344 | I12: 744 | J12: 0.5376344086 | K12: 0.4623655914 | M12: 2016 | N12: 366 | O12: 8784 | Q12: 10047 | R12: Central Lincoln PUD | S12: 0 | T12: 0 | U12: 159.01 | V12: 0 | W12: 0 | X12: 0 | Y12: 0 | Z12: 0 | AA12: 0 | AB12: 0 | AC12: 0 | AD12: 0 | AE12: 0 | AF12: 0 | AG12: 0 | AH12: 155.144 | AI12: 154.158 | AJ12: 155.843 | AK12: 149.45 | AL12: 156.673 | AM12: 157.576 | AN12: 0 | AO12: 0 | AP12: 0 | AQ12: 0 | AR12: 153.104 | AS12: 153.501 | AT12: 152.864 | AU12: 153.239 | AV12: 154.201 | AW12: 154.536 | AX12: 153.656 | AY12: 154.036 | AZ12: 152.313 | BA12: 152.465 | BB12: 151.52 | BC12: 151.672 | BD12: 151.976 | BE12: 0 | BF12: 0 | BG12: 0 | BH12: 0 | BI12: 0 | BJ12: 0 | BK12: 0 | BL12: 0 | BM12: 0 | BN12: 0 | BO12: 0 | BP12: 0 | BQ12: 0 | BR12: 4.206 | BS12: 4.586 | BT12: 0 | BU12: 0 | BV12: 0 | BW12: 0 | BX12: 0 | BY12: 0 | BZ12: 0 | CA12: 0 | CB12: 0 | CC12: 0 | CD12: 0 | CE12: 0 | CF12: 3 | CG12: 3 | CH12: 3 | CI12: 3 | CJ12: 3 | CK12: 3 | CL12: 3 | CM12: 3 | CN12: 3 | CO12: 3 | CP12: 3 | CQ12: 3 | CR12: 3 | CS12: =+CR12 -> 3 | CT12: 3 | CU12: 3 | CV12: 3 | CW12: 3 | CX12: 3 | CY12: 3 | CZ12: 0 | DA12: 0 | DB12: 0 | DC12: 1 | DD12: 9 | DE12: 9 | DF12: 9 | DG12: 9 | DH12: 10 | DI12: 0 | DJ12: 0 | DK12: 0 | DL12: 0 | DM12: =+DL12 -> 0 | DN12: 0 | DO12: 0 | DP12: 0 | DQ12: 0 | DR12: 0 | DS12: 0 | DT12: STR | DU12: STR | DV12: STR | DW12: STR | DX12: STR | DY12: STR | DZ12: STR | EA12: STR | EB12: STR | EC12: STR | ED12: STR | EE12: STR | EF12: STR | EG12: =+EF12 -> STR | EH12: STR | EI12: STR | EJ12: STR | EK12: STR | EL12: STR | EM12: STR | EN12: 0 | EO12: 0 | EP12: 0 | EQ12: 0 | ER12: 0 | ES12: 0 | ET12: 0 | EU12: 0 | EV12: 0 | EW12: 0 | EX12: 0 | EY12: 0 | EZ12: 0 | FA12: 0 | FB12: 0 | FC12: 0 | FD12: 0 | FE12: 0 | FF12: 0 | FG12: 0 | FH12: 0 | FI12: 0 | FJ12: 0 | FK12: 0 | FL12: 0 | FM12: 0 | FN12: 0 | FO12: 0 | FP12: 1 | FQ12: 0 | FR12: 0 | FS12: 1 | FT12: 0.9999976626 | FU12: 0.9999980361 | FV12: 0.9999981824 | FW12: 0.9999979411 | FX12: 0.9999983935 | FY12: 0.972628249 | FZ12: 0.9702288181 | GA12: 0.9999999356 | GB12: 0.9999990328 | GC12: 1 | GD12: 1 | GE12: 0.99999945 | GF12: 0 | GG12: 0 | GH12: 0 | GI12: 0 | GJ12: 0 | GK12: 0 | GL12: 0
E13: 2015_9 | F13: 2015-06-01 | G13: 416 | H13: 304 | I13: 720 | J13: 0.5777777778 | K13: 0.4222222222 | M13: 2017 | N13: 365 | O13: 8760 | Q13: 10055 | R13: Albion, City of | S13: 0 | T13: 0 | U13: 0.404 | V13: 0 | W13: 0 | X13: 0 | Y13: 0 | Z13: 0 | AA13: 0 | AB13: 0 | AC13: 0 | AD13: 0 | AE13: 0 | AF13: 0 | AG13: 0 | AH13: 0.394 | AI13: 0.392 | AJ13: 0.396 | AK13: 0.38 | AL13: 0.398 | AM13: 0.4 | AN13: 0 | AO13: 0 | AP13: 0 | AQ13: 0 | AR13: 0.402 | AS13: 0.405 | AT13: 0.391 | AU13: 0.392 | AV13: 0.385 | AW13: 0.385 | AX13: 0.386 | AY13: 0.386 | AZ13: 0.391 | BA13: 0.39 | BB13: 0.466 | BC13: 0.469 | BD13: 0.471 | BE13: 0 | BF13: 0 | BG13: 0 | BH13: 0 | BI13: 0 | BJ13: 0 | BK13: 0 | BL13: 0.008 | BM13: 0.011 | BN13: 0 | BO13: 0 | BP13: 0 | BQ13: 0 | BR13: 0.006 | BS13: 0.006 | BT13: 0 | BU13: 0 | BV13: 0.066 | BW13: 0.069 | BX13: 0.071 | BY13: 0 | BZ13: 0 | CA13: 0 | CB13: 0 | CC13: 0 | CD13: 0 | CE13: 0 | CF13: 1 | CG13: 1 | CH13: 1 | CI13: 1 | CJ13: 1 | CK13: 1 | CL13: 1 | CM13: 1 | CN13: 1 | CO13: 1 | CP13: 1 | CQ13: 1 | CR13: 1 | CS13: =+CR13 -> 1 | CT13: 1 | CU13: 1 | CV13: 1 | CW13: 1 | CX13: 1 | CY13: 1 | CZ13: 0 | DA13: 0 | DB13: 0 | DC13: 0 | DD13: 0 | DE13: 0 | DF13: 0 | DG13: 0 | DH13: 0 | DI13: 0 | DJ13: 0 | DK13: 0 | DL13: 0 | DM13: =+DL13 -> 0 | DN13: 0 | DO13: 0 | DP13: 0 | DQ13: 0 | DR13: 0 | DS13: 0 | DT13: LGR | DU13: LGR | DV13: LGR | DW13: LGR | DX13: LGR | DY13: LGR | DZ13: LGR | EA13: LGR | EB13: LGR | EC13: LGR | ED13: LGR | EE13: LGR | EF13: LGR | EG13: =+EF13 -> LGR | EH13: LGR | EI13: LGR | EJ13: LGR | EK13: LGR | EL13: LGR | EM13: LGR | EN13: 0 | EO13: 0 | EP13: 0 | EQ13: 0 | ER13: 0 | ES13: 0 | ET13: 0 | EU13: 0 | EV13: 0 | EW13: 0 | EX13: 0 | EY13: 0 | EZ13: 0 | FA13: 0 | FB13: 0 | FC13: 0 | FD13: 0 | FE13: 0 | FF13: 0 | FG13: 0 | FH13: 0 | FI13: 0 | FJ13: 0 | FK13: 0 | FL13: 0 | FM13: 0 | FN13: 0 | FO13: 0 | FP13: 0 | FQ13: 0 | FR13: 0 | FS13: 0.9807334733 | FT13: 0.9734030706 | FU13: 0.999986777 | FV13: 0.9992074347 | FW13: 0.9998526171 | FX13: 0.9998526171 | FY13: 0.9842762891 | FZ13: 0.9842762891 | GA13: 1 | GB13: 0.9997378154 | GC13: 0.8589437288 | GD13: 0.8534494192 | GE13: 0.8498254301 | GF13: 0 | GG13: 0 | GH13: 0 | GI13: 0 | GJ13: 0 | GK13: 0 | GL13: 0
B14: RHWM Lock | C14: Yes | E14: 2015_10 | F14: 2015-07-01 | G14: 416 | H14: 328 | I14: 744 | J14: 0.5591397849 | K14: 0.4408602151 | M14: 2018 | N14: 365 | O14: 8760 | Q14: 10057 | R14: Ashland, City of | S14: 0 | T14: 0 | U14: 21.383 | V14: 0 | W14: 0 | X14: 0 | Y14: 0 | Z14: 0 | AA14: 0 | AB14: 0 | AC14: 0 | AD14: 0 | AE14: 0 | AF14: 0 | AG14: 0 | AH14: 20.863 | AI14: 20.731 | AJ14: 20.957 | AK14: 20.097 | AL14: 21.069 | AM14: 21.19 | AN14: 0 | AO14: 0 | AP14: 0 | AQ14: 0 | AR14: 20.876 | AS14: 20.984 | AT14: 20.832 | AU14: 20.878 | AV14: 19.991 | AW14: 19.984 | AX14: 19.976 | AY14: 19.976 | AZ14: 19.994 | BA14: 19.99 | BB14: 19.218 | BC14: 19.218 | BD14: 19.223 | BE14: 0 | BF14: 0 | BG14: 0 | BH14: 0 | BI14: 0 | BJ14: 0 | BK14: 0 | BL14: 0.013 | BM14: 0.121 | BN14: 0.101 | BO14: 0.147 | BP14: 0 | BQ14: 0 | BR14: 0 | BS14: 0 | BT14: 0 | BU14: 0 | BV14: 0 | BW14: 0 | BX14: 0 | BY14: 0 | BZ14: 0 | CA14: 0 | CB14: 0 | CC14: 0 | CD14: 0 | CE14: 0 | CF14: 1 | CG14: 1 | CH14: 1 | CI14: 1 | CJ14: 1 | CK14: 1 | CL14: 1 | CM14: 1 | CN14: 1 | CO14: 3 | CP14: 3 | CQ14: 3 | CR14: 3 | CS14: =+CR14 -> 3 | CT14: 3 | CU14: 3 | CV14: 3 | CW14: 3 | CX14: 3 | CY14: 3 | CZ14: 0 | DA14: 0 | DB14: 0 | DC14: 0 | DD14: 0 | DE14: 0 | DF14: 0 | DG14: 0 | DH14: 0 | DI14: 0 | DJ14: 0 | DK14: 0 | DL14: 0 | DM14: =+DL14 -> 0 | DN14: 0 | DO14: 0 | DP14: 0 | DQ14: 0 | DR14: 0 | DS14: 0 | DT14: STR | DU14: STR | DV14: STR | DW14: STR | DX14: STR | DY14: STR | DZ14: STR | EA14: STR | EB14: STR | EC14: STR | ED14: STR | EE14: STR | EF14: STR | EG14: =+EF14 -> STR | EH14: STR | EI14: STR | EJ14: STR | EK14: STR | EL14: STR | EM14: STR | EN14: 0 | EO14: 0 | EP14: 0 | EQ14: 0 | ER14: 0 | ES14: 0 | ET14: 0 | EU14: 0 | EV14: 0 | EW14: 0 | EX14: 0 | EY14: 0 | EZ14: 0 | FA14: 0 | FB14: 0 | FC14: 0 | FD14: 0 | FE14: 0 | FF14: 0 | FG14: 0 | FH14: 0 | FI14: 0 | FJ14: 0 | FK14: 0 | FL14: 0 | FM14: 0 | FN14: 0 | FO14: 0 | FP14: 0 | FQ14: 0 | FR14: 0 | FS14: 0.9993446014 | FT14: 0.9942772973 | FU14: 0.9951910336 | FV14: 0.993014822 | FW14: 1 | FX14: 1 | FY14: 0.9999999493 | FZ14: 0.9999999493 | GA14: 1 | GB14: 1 | GC14: 0.9999912268 | GD14: 0.9999912268 | GE14: 0.9999900262 | GF14: 0 | GG14: 0 | GH14: 0 | GI14: 0 | GJ14: 0 | GK14: 0 | GL14: 0
B15: VBARS Study ID | C15: 312 | E15: 2015_11 | F15: 2015-08-01 | G15: 416 | H15: 328 | I15: 744 | J15: 0.5591397849 | K15: 0.4408602151 | M15: 2019 | N15: 365 | O15: 8760 | Q15: 10059 | R15: Bandon, City of | S15: 0 | T15: 0 | U15: 7.753 | V15: 0 | W15: 0 | X15: 0 | Y15: 0 | Z15: 0 | AA15: 0 | AB15: 0 | AC15: 0 | AD15: 0 | AE15: 0 | AF15: 0 | AG15: 0 | AH15: 7.565 | AI15: 7.516 | AJ15: 7.599 | AK15: 7.287 | AL15: 7.639 | AM15: 7.683 | AN15: 0 | AO15: 0 | AP15: 0 | AQ15: 0 | AR15: 7.555 | AS15: 7.594 | AT15: 7.466 | AU15: 7.484 | AV15: 7.464 | AW15: 7.479 | AX15: 7.649 | AY15: 7.668 | AZ15: 7.604 | BA15: 7.599 | BB15: 7.735 | BC15: 7.735 | BD15: 7.735 | BE15: 0 | BF15: 0 | BG15: 0 | BH15: 0 | BI15: 0 | BJ15: 0 | BK15: 0 | BL15: 0 | BM15: 0.029 | BN15: 0 | BO15: 0 | BP15: 0 | BQ15: 0 | BR15: 0.362 | BS15: 0.381 | BT15: 0 | BU15: 0 | BV15: 0.052 | BW15: 0.052 | BX15: 0.052 | BY15: 0 | BZ15: 0 | CA15: 0 | CB15: 0 | CC15: 0 | CD15: 0 | CE15: 0 | CF15: 1 | CG15: 1 | CH15: 1 | CI15: 1 | CJ15: 1 | CK15: 1 | CL15: 1 | CM15: 1 | CN15: 1 | CO15: 1 | CP15: 1 | CQ15: 1 | CR15: 1 | CS15: =+CR15 -> 1 | CT15: 1 | CU15: 1 | CV15: 1 | CW15: 1 | CX15: 1 | CY15: 1 | CZ15: 0 | DA15: 0 | DB15: 0 | DC15: 0 | DD15: 0 | DE15: 0 | DF15: 0 | DG15: 0 | DH15: 0 | DI15: 0 | DJ15: 0 | DK15: 0 | DL15: 0 | DM15: =+DL15 -> 0 | DN15: 0 | DO15: 0 | DP15: 0 | DQ15: 0 | DR15: 0 | DS15: 0 | DT15: LGR | DU15: LGR | DV15: LGR | DW15: LGR | DX15: LGR | DY15: LGR | DZ15: LGR | EA15: LGR | EB15: LGR | EC15: LGR | ED15: LGR | EE15: LGR | EF15: LGR | EG15: =+EF15 -> LGR | EH15: LGR | EI15: LGR | EJ15: LGR | EK15: LGR | EL15: LGR | EM15: LGR | EN15: 0 | EO15: 0 | EP15: 0 | EQ15: 0 | ER15: 0 | ES15: 0 | ET15: 0 | EU15: 0 | EV15: 0 | EW15: 0 | EX15: 0 | EY15: 0 | EZ15: 0 | FA15: 0 | FB15: 0 | FC15: 0 | FD15: 0 | FE15: 0 | FF15: 0 | FG15: 0 | FH15: 0 | FI15: 0 | FJ15: 0 | FK15: 0 | FL15: 0 | FM15: 0 | FN15: 0 | FO15: 0 | FP15: 0 | FQ15: 0 | FR15: 0 | FS15: 1 | FT15: 0.996199407 | FU15: 0.9999610836 | FV15: 0.9999687399 | FW15: 1 | FX15: 0.9999997227 | FY15: 0.9526368846 | FZ15: 0.9502764124 | GA15: 0.9999621808 | GB15: 0.9999694785 | GC15: 0.9933151708 | GD15: 0.9933151708 | GE15: 0.9933151708 | GF15: 0 | GG15: 0 | GH15: 0 | GI15: 0 | GJ15: 0 | GK15: 0 | GL15: 0
... 18 more rows

Sheet EE
B1: Energy Efficiency Inputs | F1: USBR Loads | G1: *This percentage represents the USBR loads that showed up in the BOOM EE report but are not preference customers. This factor is used as an adjustment in the VBA script.
B2: Percent of Non-PNGC Reported EE Savings (Last 3 Years Average) | F2: =1-SUM($D$5:$D$200) -> 0.04597817485
B4: BESID | C4: AccountName | D4: Percent
B5: 10005 | C5: Alder Mutual | D5: 8.443792876e-06
B6: 10015 | C6: Asotin County PUD #1 | D6: 0
B7: 10024 | C7: Benton County PUD #1 | D7: 0.03655499999
B8: 10025 | C8: Benton REA | D8: 0.01243541461
B9: 10027 | C9: Big Bend Elec Coop | D9: 0.008130006523
B10: 10029 | C10: Blachly Lane Elec Coop | D10: 6.754420735e-06
B11: 10044 | C11: Canby, City of | D11: 0.001572403117
B12: 10046 | C12: Central Electric Coop | D12: 0
B13: 10047 | C13: Central Lincoln PUD | D13: 0.01596400583
B14: 10055 | C14: Albion, City of | D14: 2.185402188e-05
B15: 10057 | C15: Ashland, City of | D15: 0.001223760666
... 18 more rows

Sheet ShapingFactors
B1: Slice-Block Inputs
A2: TOC | D2: Monthly Block Shaping Factors
B3: BESID | C3: AccountName | D3: 10 | E3: 11 | F3: 12 | G3: 1 | H3: 2 | I3: 3 | J3: 4 | K3: 5 | L3: 6 | M3: 7 | N3: 8 | O3: 9
B4: 10170 | C4: Eugene Water & Electric Board | D4: 0.081 | E4: 0.077 | F4: 0.099 | G4: 0.105 | H4: 0.093 | I4: 0.092 | J4: 0.081 | K4: 0.066 | L4: 0.066 | M4: 0.081 | N4: 0.083 | O4: 0.076
B5: 10204 | C5: Idaho Falls Power | D5: 0.074 | E5: 0.085 | F5: 0.105 | G5: 0.108 | H5: 0.089 | I5: 0.083 | J5: 0.072 | K5: 0.079 | L5: 0.074 | M5: 0.083 | N5: 0.081 | O5: 0.067
B6: 10349 | C6: Seattle City Light | D6: 0.08 | E6: 0.127 | F6: 0.129 | G6: 0.14 | H6: 0.119 | I6: 0.126 | J6: 0.061 | K6: 0.02 | L6: 0 | M6: 0.048 | N6: 0.057 | O6: 0.093
B7: 10370 | C7: Tacoma Public Utilities | D7: 0.068 | E7: 0.088 | F7: 0.109 | G7: 0.103 | H7: 0.088 | I7: 0.101 | J7: 0.085 | K7: 0.076 | L7: 0.068 | M7: 0.073 | N7: 0.069 | O7: 0.072
B8: 10024 | C8: Benton County PUD #1 | D8: 0.065 | E8: 0.069 | F8: 0.081 | G8: 0.088 | H8: 0.066 | I8: 0.065 | J8: 0.07 | K8: 0.088 | L8: 0.103 | M8: 0.125 | N8: 0.108 | O8: 0.072
B9: 10103 | C9: Clark County PUD #1 | D9: 0.071 | E9: 0.095 | F9: 0.118 | G9: 0.12 | H9: 0.087 | I9: 0.081 | J9: 0.067 | K9: 0.094 | L9: 0.065 | M9: 0.071 | N9: 0.072 | O9: 0.059
B10: 10105 | C10: Clatskanie PUD | D10: 0.083 | E10: 0.083 | F10: 0.092 | G10: 0.09 | H10: 0.083 | I10: 0.091 | J10: 0.086 | K10: 0.067 | L10: 0.084 | M10: 0.08 | N10: 0.081 | O10: 0.08
B11: 10123 | C11: Cowlitz County PUD #1 | D11: 0.083 | E11: 0.086 | F11: 0.092 | G11: 0.091 | H11: 0.079 | I11: 0.084 | J11: 0.082 | K11: 0.081 | L11: 0.078 | M11: 0.082 | N11: 0.082 | O11: 0.08
B12: 10157 | C12: Emerald PUD | D12: 0.076 | E12: 0.093 | F12: 0.114 | G12: 0.105 | H12: 0.091 | I12: 0.087 | J12: 0.079 | K12: 0.071 | L12: 0.066 | M12: 0.076 | N12: 0.075 | O12: 0.067
B13: 10183 | C13: Franklin County PUD #1 | D13: 0.075 | E13: 0.071 | F13: 0.083 | G13: 0.089 | H13: 0.07 | I13: 0.069 | J13: 0.069 | K13: 0.079 | L13: 0.091 | M13: 0.112 | N13: 0.107 | O13: 0.085
B14: 10191 | C14: Grays Harbor PUD #1 | D14: 0.078 | E14: 0.093 | F14: 0.107 | G14: 0.107 | H14: 0.091 | I14: 0.09 | J14: 0.081 | K14: 0.075 | L14: 0.07 | M14: 0.07 | N14: 0.069 | O14: 0.069
B15: 10231 | C15: Klickitat County PUD #1 | D15: 0.08 | E15: 0.083 | F15: 0.104 | G15: 0.113 | H15: 0.087 | I15: 0.079 | J15: 0.074 | K15: 0.066 | L15: 0.062 | M15: 0.087 | N15: 0.088 | O15: 0.077
B16: 10237 | C16: Lewis County PUD #1 | D16: 0.08 | E16: 0.095 | F16: 0.115 | G16: 0.101 | H16: 0.089 | I16: 0.089 | J16: 0.084 | K16: 0.075 | L16: 0.068 | M16: 0.067 | N16: 0.068 | O16: 0.069
B17: 10286 | C17: Okanogan County PUD #1 | D17: 0.077 | E17: 0.086 | F17: 0.119 | G17: 0.131 | H17: 0.108 | I17: 0.107 | J17: 0.071 | K17: 0.055 | L17: 0.038 | M17: 0.08 | N17: 0.061 | O17: 0.067
B18: 10294 | C18: Pacific County PUD #2 | D18: 0.076 | E18: 0.098 | F18: 0.116 | G18: 0.117 | H18: 0.094 | I18: 0.094 | J18: 0.08 | K18: 0.071 | L18: 0.063 | M18: 0.063 | N18: 0.064 | O18: 0.064
B19: 10306 | C19: Pend Oreille County PUD #1 | D19: 0.034 | E19: 0.149 | F19: 0.135 | G19: 0.19 | H19: 0.168 | I19: 0.159 | J19: 0.01 | K19: 0 | L19: 0 | M19: 0.038 | N19: 0.039 | O19: 0.078
B20: 10354 | C20: Snohomish County PUD #1 | D20: 0.082 | E20: 0.092 | F20: 0.107 | G20: 0.105 | H20: 0.088 | I20: 0.089 | J20: 0.078 | K20: 0.074 | L20: 0.071 | M20: 0.071 | N20: 0.071 | O20: 0.072

Sheet I_TRL
B1: Total Retail Loads (MWh)
A2: TOC | D2: 2015-10-01 | E2: 2015-10-01 | F2: 2015-11-01 | G2: 2015-11-01 | H2: 2015-12-01 | I2: 2015-12-01 | J2: 2016-01-01 | K2: 2016-01-01 | L2: 2016-02-01 | M2: 2016-02-01 | N2: 2016-03-01 | O2: 2016-03-01 | P2: 2016-04-01 | Q2: 2016-04-01 | R2: 2016-05-01 | S2: 2016-05-01 | T2: 2016-06-01 | U2: 2016-06-01 | V2: 2016-07-01 | W2: 2016-07-01 | X2: 2016-08-01 | Y2: 2016-08-01 | Z2: 2016-09-01 | AA2: 2016-09-01 | AB2: 2016-10-01 | AC2: 2016-10-01 | AD2: 2016-11-01 | AE2: 2016-11-01 | AF2: 2016-12-01 | AG2: 2016-12-01 | AH2: 2017-01-01 | AI2: 2017-01-01 | AJ2: 2017-02-01 | AK2: 2017-02-01 | AL2: 2017-03-01 | AM2: 2017-03-01 | AN2: 2017-04-01 | AO2: 2017-04-01 | AP2: 2017-05-01 | AQ2: 2017-05-01 | AR2: 2017-06-01 | AS2: 2017-06-01 | AT2: 2017-07-01 | AU2: 2017-07-01 | AV2: 2017-08-01 | AW2: 2017-08-01 | AX2: 2017-09-01 | AY2: 2017-09-01 | AZ2: 2017-10-01 | BA2: 2017-10-01 | BB2: 2017-11-01 | BC2: 2017-11-01 | BD2: 2017-12-01 | BE2: 2017-12-01 | BF2: 2018-01-01 | BG2: 2018-01-01 | BH2: 2018-02-01 | BI2: 2018-02-01 | BJ2: 2018-03-01 | BK2: 2018-03-01 | BL2: 2018-04-01 | BM2: 2018-04-01 | BN2: 2018-05-01 | BO2: 2018-05-01 | BP2: 2018-06-01 | BQ2: 2018-06-01 | BR2: 2018-07-01 | BS2: 2018-07-01 | BT2: 2018-08-01 | BU2: 2018-08-01 | BV2: 2018-09-01 | BW2: 2018-09-01 | BX2: 2018-10-01 | BY2: 2018-10-01 | BZ2: 2018-11-01 | CA2: 2018-11-01 | CB2: 2018-12-01 | CC2: 2018-12-01 | CD2: 2019-01-01 | CE2: 2019-01-01 | CF2: 2019-02-01 | CG2: 2019-02-01 | CH2: 2019-03-01 | CI2: 2019-03-01 | CJ2: 2019-04-01 | CK2: 2019-04-01 | CL2: 2019-05-01 | CM2: 2019-05-01 | CN2: 2019-06-01 | CO2: 2019-06-01 | CP2: 2019-07-01 | CQ2: 2019-07-01 | CR2: 2019-08-01 | CS2: 2019-08-01 | CT2: 2019-09-01 | CU2: 2019-09-01 | CV2: 2019-10-01 | CW2: 2019-10-01 | CX2: 2019-11-01 | CY2: 2019-11-01 | CZ2: 2019-12-01 | DA2: 2019-12-01 | DB2: 2020-01-01 | DC2: 2020-01-01 | DD2: 2020-02-01 | DE2: 2020-02-01 | DF2: 2020-03-01 | DG2: 2020-03-01 | DH2: 2020-04-01 | DI2: 2020-04-01 | DJ2: 2020-05-01 | DK2: 2020-05-01 | DL2: 2020-06-01 | DM2: 2020-06-01 | DN2: 2020-07-01 | DO2: 2020-07-01 | DP2: 2020-08-01 | DQ2: 2020-08-01 | DR2: 2020-09-01 | DS2: 2020-09-01 | DT2: 2020-10-01 | DU2: 2020-10-01 | DV2: 2020-11-01 | DW2: 2020-11-01 | DX2: 2020-12-01 | DY2: 2020-12-01 | DZ2: 2021-01-01 | EA2: 2021-01-01 | EB2: 2021-02-01 | EC2: 2021-02-01 | ED2: 2021-03-01 | EE2: 2021-03-01 | EF2: 2021-04-01 | EG2: 2021-04-01 | EH2: 2021-05-01 | EI2: 2021-05-01 | EJ2: 2021-06-01 | EK2: 2021-06-01 | EL2: 2021-07-01 | EM2: 2021-07-01 | EN2: 2021-08-01 | EO2: 2021-08-01 | EP2: 2021-09-01 | EQ2: 2021-09-01 | ER2: 2021-10-01 | ES2: 2021-10-01 | ET2: 2021-11-01 | EU2: 2021-11-01 | EV2: 2021-12-01 | EW2: 2021-12-01 | EX2: 2022-01-01 | EY2: 2022-01-01 | EZ2: 2022-02-01 | FA2: 2022-02-01 | FB2: 2022-03-01 | FC2: 2022-03-01 | FD2: 2022-04-01 | FE2: 2022-04-01 | FF2: 2022-05-01 | FG2: 2022-05-01 | FH2: 2022-06-01 | FI2: 2022-06-01 | FJ2: 2022-07-01 | FK2: 2022-07-01 | FL2: 2022-08-01 | FM2: 2022-08-01 | FN2: 2022-09-01 | FO2: 2022-09-01 | FP2: 2022-10-01 | FQ2: 2022-10-01 | FR2: 2022-11-01 | FS2: 2022-11-01 | FT2: 2022-12-01 | FU2: 2022-12-01 | FV2: 2023-01-01 | FW2: 2023-01-01 | FX2: 2023-02-01 | FY2: 2023-02-01 | FZ2: 2023-03-01 | GA2: 2023-03-01 | GB2: 2023-04-01 | GC2: 2023-04-01 | GD2: 2023-05-01 | GE2: 2023-05-01 | GF2: 2023-06-01 | GG2: 2023-06-01 | GH2: 2023-07-01 | GI2: 2023-07-01 | GJ2: 2023-08-01 | GK2: 2023-08-01 | GL2: 2023-09-01 | GM2: 2023-09-01 | GN2: 2023-10-01 | GO2: 2023-10-01 | GP2: 2023-11-01 | GQ2: 2023-11-01 | GR2: 2023-12-01 | GS2: 2023-12-01 | GT2: 2024-01-01 | GU2: 2024-01-01 | GV2: 2024-02-01 | GW2: 2024-02-01 | GX2: 2024-03-01 | GY2: 2024-03-01 | GZ2: 2024-04-01 | HA2: 2024-04-01 | HB2: 2024-05-01 | HC2: 2024-05-01 | HD2: 2024-06-01 | HE2: 2024-06-01 | HF2: 2024-07-01 | HG2: 2024-07-01 | HH2: 2024-08-01 | HI2: 2024-08-01 | HJ2: 2024-09-01 | HK2: 2024-09-01 | HL2: 2024-10-01 | HM2: 2024-10-01 | HN2: 2024-11-01 | HO2: 2024-11-01 | HP2: 2024-12-01 | HQ2: 2024-12-01 | HR2: 2025-01-01 | HS2: 2025-01-01 | HT2: 2025-02-01 | HU2: 2025-02-01 | HV2: 2025-03-01 | HW2: 2025-03-01 | HX2: 2025-04-01 | HY2: 2025-04-01 | HZ2: 2025-05-01 | IA2: 2025-05-01 | IB2: 2025-06-01 | IC2: 2025-06-01 | ID2: 2025-07-01 | IE2: 2025-07-01 | IF2: 2025-08-01 | IG2: 2025-08-01 | IH2: 2025-09-01 | II2: 2025-09-01 | IJ2: 2025-10-01 | IK2: 2025-10-01 | IL2: 2025-11-01 | IM2: 2025-11-01 | IN2: 2025-12-01 | IO2: 2025-12-01 | IP2: 2026-01-01 | IQ2: 2026-01-01 | IR2: 2026-02-01 | IS2: 2026-02-01 | IT2: 2026-03-01 | IU2: 2026-03-01 | IV2: 2026-04-01 | IW2: 2026-04-01 | IX2: 2026-05-01 | IY2: 2026-05-01 | IZ2: 2026-06-01 | JA2: 2026-06-01 | JB2: 2026-07-01 | JC2: 2026-07-01 | JD2: 2026-08-01 | JE2: 2026-08-01 | JF2: 2026-09-01 | JG2: 2026-09-01 | JH2: 2026-10-01 | JI2: 2026-10-01 | JJ2: 2026-11-01 | JK2: 2026-11-01 | JL2: 2026-12-01 | JM2: 2026-12-01 | JN2: 2027-01-01 | JO2: 2027-01-01 | JP2: 2027-02-01 | JQ2: 2027-02-01 | JR2: 2027-03-01 | JS2: 2027-03-01 | JT2: 2027-04-01 | JU2: 2027-04-01 | JV2: 2027-05-01 | JW2: 2027-05-01 | JX2: 2027-06-01 | JY2: 2027-06-01 | JZ2: 2027-07-01 | KA2: 2027-07-01 | KB2: 2027-08-01 | KC2: 2027-08-01 | KD2: 2027-09-01 | KE2: 2027-09-01 | KF2: 2027-10-01 | KG2: 2027-10-01 | KH2: 2027-11-01 | KI2: 2027-11-01 | KJ2: 2027-12-01 | KK2: 2027-12-01 | KL2: 2028-01-01 | KM2: 2028-01-01 | KN2: 2028-02-01 | KO2: 2028-02-01 | KP2: 2028-03-01 | KQ2: 2028-03-01 | KR2: 2028-04-01 | KS2: 2028-04-01 | KT2: 2028-05-01 | KU2: 2028-05-01 | KV2: 2028-06-01 | KW2: 2028-06-01 | KX2: 2028-07-01 | KY2: 2028-07-01 | KZ2: 2028-08-01 | LA2: 2028-08-01 | LB2: 2028-09-01 | LC2: 2028-09-01 | LD2: 2028-10-01 | LE2: 2028-10-01 | LF2: 2028-11-01 | LG2: 2028-11-01 | LH2: 2028-12-01 | LI2: 2028-12-01 | LJ2: 2029-01-01 | LK2: 2029-01-01 | LL2: 2029-02-01 | LM2: 2029-02-01 | LN2: 2029-03-01 | LO2: 2029-03-01 | LP2: 2029-04-01 | LQ2: 2029-04-01 | LR2: 2029-05-01 | LS2: 2029-05-01 | LT2: 2029-06-01 | LU2: 2029-06-01 | LV2: 2029-07-01 | LW2: 2029-07-01 | LX2: 2029-08-01 | LY2: 2029-08-01 | LZ2: 2029-09-01 | MA2: 2029-09-01 | MB2: 2029-10-01 | MC2: 2029-10-01 | MD2: 2029-11-01 | ME2: 2029-11-01 | MF2: 2029-12-01 | MG2: 2029-12-01 | MH2: 2030-01-01 | MI2: 2030-01-01 | MJ2: 2030-02-01 | MK2: 2030-02-01 | ML2: 2030-03-01 | MM2: 2030-03-01 | MN2: 2030-04-01 | MO2: 2030-04-01 | MP2: 2030-05-01 | MQ2: 2030-05-01 | MR2: 2030-06-01 | MS2: 2030-06-01 | MT2: 2030-07-01 | MU2: 2030-07-01 | MV2: 2030-08-01 | MW2: 2030-08-01 | MX2: 2030-09-01 | MY2: 2030-09-01 | MZ2: 2030-10-01 | NA2: 2030-10-01 | NB2: 2030-11-01 | NC2: 2030-11-01 | ND2: 2030-12-01 | NE2: 2030-12-01 | NF2: 2031-01-01 | NG2: 2031-01-01 | NH2: 2031-02-01 | NI2: 2031-02-01 | NJ2: 2031-03-01 | NK2: 2031-03-01 | NL2: 2031-04-01 | NM2: 2031-04-01 | NN2: 2031-05-01 | NO2: 2031-05-01 | NP2: 2031-06-01 | NQ2: 2031-06-01 | NR2: 2031-07-01 | NS2: 2031-07-01 | NT2: 2031-08-01 | NU2: 2031-08-01 | NV2: 2031-09-01 | NW2: 2031-09-01 | NX2: =DATE(YEAR(NV2),MONTH(NV2)+1,1) -> 2031-10-01 | NY2: 2031-10-01 | NZ2: 2031-11-01 | OA2: 2031-11-01 | OB2: 2031-12-01 | OC2: 2031-12-01 | OD2: 2032-01-01 | OE2: 2032-01-01 | OF2: 2032-02-01 | OG2: 2032-02-01 | OH2: 2032-03-01 | OI2: 2032-03-01 | OJ2: 2032-04-01 | OK2: 2032-04-01 | OL2: 2032-05-01 | OM2: 2032-05-01 | ON2: 2032-06-01 | OO2: 2032-06-01 | OP2: 2032-07-01 | OQ2: 2032-07-01 | OR2: 2032-08-01 | OS2: 2032-08-01 | OT2: 2032-09-01 | OU2: 2032-09-01 | OV2: 2032-10-01 | OW2: 2032-10-01 | OX2: 2032-11-01 | OY2: 2032-11-01 | OZ2: 2032-12-01 | PA2: 2032-12-01 | PB2: 2033-01-01 | PC2: 2033-01-01 | PD2: 2033-02-01 | PE2: 2033-02-01 | PF2: 2033-03-01 | PG2: 2033-03-01 | PH2: 2033-04-01 | PI2: 2033-04-01 | PJ2: 2033-05-01 | PK2: 2033-05-01 | PL2: 2033-06-01 | PM2: 2033-06-01 | PN2: 2033-07-01 | PO2: 2033-07-01 | PP2: 2033-08-01 | PQ2: 2033-08-01 | PR2: 2033-09-01 | PS2: 2033-09-01 | PT2: 2033-10-01 | PU2: 2033-10-01 | PV2: 2033-11-01 | PW2: 2033-11-01 | PX2: 2033-12-01 | PY2: 2033-12-01 | PZ2: 2034-01-01 | QA2: 2034-01-01 | QB2: 2034-02-01 | QC2: 2034-02-01 | QD2: 2034-03-01 | QE2: 2034-03-01 | QF2: 2034-04-01 | QG2: 2034-04-01 | QH2: 2034-05-01 | QI2: 2034-05-01 | QJ2: 2034-06-01 | QK2: 2034-06-01 | QL2: 2034-07-01 | QM2: 2034-07-01 | QN2: 2034-08-01 | QO2: 2034-08-01 | QP2: 2034-09-01 | QQ2: 2034-09-01 | QR2: 2034-10-01 | QS2: 2034-10-01 | QT2: 2034-11-01 | QU2: 2034-11-01 | QV2: 2034-12-01 | QW2: 2034-12-01 | QX2: 2035-01-01 | QY2: 2035-01-01 | QZ2: 2035-02-01 | RA2: 2035-02-01 | RB2: 2035-03-01 | RC2: 2035-03-01 | RD2: 2035-04-01 | RE2: 2035-04-01 | RF2: 2035-05-01 | RG2: 2035-05-01 | RH2: 2035-06-01 | RI2: 2035-06-01 | RJ2: 2035-07-01 | RK2: 2035-07-01 | RL2: 2035-08-01 | RM2: 2035-08-01 | RN2: 2035-09-01 | RO2: 2035-09-01 | RQ2: 2016 | RR2: 2017 | RS2: 2018 | RT2: 2019 | RU2: 2020 | RV2: 2021 | RW2: 2022 | RX2: 2023 | RY2: 2024 | RZ2: 2025 | SA2: 2026 | SB2: 2027 | SC2: 2028 | SD2: 2029 | SE2: 2030 | SF2: 2031 | SG2: =SF2+1 -> 2032 | SH2: =SG2+1 -> 2033 | SI2: 2034 | SJ2: 2035
B3: BESID | C3: AccountName | D3: HLH | E3: LLH | F3: HLH | G3: LLH | H3: HLH | I3: LLH | J3: HLH | K3: LLH | L3: HLH | M3: LLH | N3: HLH | O3: LLH | P3: HLH | Q3: LLH | R3: HLH | S3: LLH | T3: HLH | U3: LLH | V3: HLH | W3: LLH | X3: HLH | Y3: LLH | Z3: HLH | AA3: LLH | AB3: HLH | AC3: LLH | AD3: HLH | AE3: LLH | AF3: HLH | AG3: LLH | AH3: HLH | AI3: LLH | AJ3: HLH | AK3: LLH | AL3: HLH | AM3: LLH | AN3: HLH | AO3: LLH | AP3: HLH | AQ3: LLH | AR3: HLH | AS3: LLH | AT3: HLH | AU3: LLH | AV3: HLH | AW3: LLH | AX3: HLH | AY3: LLH | AZ3: HLH | BA3: LLH | BB3: HLH | BC3: LLH | BD3: HLH | BE3: LLH | BF3: HLH | BG3: LLH | BH3: HLH | BI3: LLH | BJ3: HLH | BK3: LLH | BL3: HLH | BM3: LLH | BN3: HLH | BO3: LLH | BP3: HLH | BQ3: LLH | BR3: HLH | BS3: LLH | BT3: HLH | BU3: LLH | BV3: HLH | BW3: LLH | BX3: HLH | BY3: LLH | BZ3: HLH | CA3: LLH | CB3: HLH | CC3: LLH | CD3: HLH | CE3: LLH | CF3: HLH | CG3: LLH | CH3: HLH | CI3: LLH | CJ3: HLH | CK3: LLH | CL3: HLH | CM3: LLH | CN3: HLH | CO3: LLH | CP3: HLH | CQ3: LLH | CR3: HLH | CS3: LLH | CT3: HLH | CU3: LLH | CV3: HLH | CW3: LLH | CX3: HLH | CY3: LLH | CZ3: HLH | DA3: LLH | DB3: HLH | DC3: LLH | DD3: HLH | DE3: LLH | DF3: HLH | DG3: LLH | DH3: HLH | DI3: LLH | DJ3: HLH | DK3: LLH | DL3: HLH | DM3: LLH | DN3: HLH | DO3: LLH | DP3: HLH | DQ3: LLH | DR3: HLH | DS3: LLH | DT3: HLH | DU3: LLH | DV3: HLH | DW3: LLH | DX3: HLH | DY3: LLH | DZ3: HLH | EA3: LLH | EB3: HLH | EC3: LLH | ED3: HLH | EE3: LLH | EF3: HLH | EG3: LLH | EH3: HLH | EI3: LLH | EJ3: HLH | EK3: LLH | EL3: HLH | EM3: LLH | EN3: HLH | EO3: LLH | EP3: HLH | EQ3: LLH | ER3: HLH | ES3: LLH | ET3: HLH | EU3: LLH | EV3: HLH | EW3: LLH | EX3: HLH | EY3: LLH | EZ3: HLH | FA3: LLH | FB3: HLH | FC3: LLH | FD3: HLH | FE3: LLH | FF3: HLH | FG3: LLH | FH3: HLH | FI3: LLH | FJ3: HLH | FK3: LLH | FL3: HLH | FM3: LLH | FN3: HLH | FO3: LLH | FP3: HLH | FQ3: LLH | FR3: HLH | FS3: LLH | FT3: HLH | FU3: LLH | FV3: HLH | FW3: LLH | FX3: HLH | FY3: LLH | FZ3: HLH | GA3: LLH | GB3: HLH | GC3: LLH | GD3: HLH | GE3: LLH | GF3: HLH | GG3: LLH | GH3: HLH | GI3: LLH | GJ3: HLH | GK3: LLH | GL3: HLH | GM3: LLH | GN3: HLH | GO3: LLH | GP3: HLH | GQ3: LLH | GR3: HLH | GS3: LLH | GT3: HLH | GU3: LLH | GV3: HLH | GW3: LLH | GX3: HLH | GY3: LLH | GZ3: HLH | HA3: LLH | HB3: HLH | HC3: LLH | HD3: HLH | HE3: LLH | HF3: HLH | HG3: LLH | HH3: HLH | HI3: LLH | HJ3: HLH | HK3: LLH | HL3: HLH | HM3: LLH | HN3: HLH | HO3: LLH | HP3: HLH | HQ3: LLH | HR3: HLH | HS3: LLH | HT3: HLH | HU3: LLH | HV3: HLH | HW3: LLH | HX3: HLH | HY3: LLH | HZ3: HLH | IA3: LLH | IB3: HLH | IC3: LLH | ID3: HLH | IE3: LLH | IF3: HLH | IG3: LLH | IH3: HLH | II3: LLH | IJ3: HLH | IK3: LLH | IL3: HLH | IM3: LLH | IN3: HLH | IO3: LLH | IP3: HLH | IQ3: LLH | IR3: HLH | IS3: LLH | IT3: HLH | IU3: LLH | IV3: HLH | IW3: LLH | IX3: HLH | IY3: LLH | IZ3: HLH | JA3: LLH | JB3: HLH | JC3: LLH | JD3: HLH | JE3: LLH | JF3: HLH | JG3: LLH | JH3: HLH | JI3: LLH | JJ3: HLH | JK3: LLH | JL3: HLH | JM3: LLH | JN3: HLH | JO3: LLH | JP3: HLH | JQ3: LLH | JR3: HLH | JS3: LLH | JT3: HLH | JU3: LLH | JV3: HLH | JW3: LLH | JX3: HLH | JY3: LLH | JZ3: HLH | KA3: LLH | KB3: HLH | KC3: LLH | KD3: HLH | KE3: LLH | KF3: HLH | KG3: LLH | KH3: HLH | KI3: LLH | KJ3: HLH | KK3: LLH | KL3: HLH | KM3: LLH | KN3: HLH | KO3: LLH | KP3: HLH | KQ3: LLH | KR3: HLH | KS3: LLH | KT3: HLH | KU3: LLH | KV3: HLH | KW3: LLH | KX3: HLH | KY3: LLH | KZ3: HLH | LA3: LLH | LB3: HLH | LC3: LLH | LD3: HLH | LE3: LLH | LF3: HLH | LG3: LLH | LH3: HLH | LI3: LLH | LJ3: HLH | LK3: LLH | LL3: HLH | LM3: LLH | LN3: HLH | LO3: LLH | LP3: HLH | LQ3: LLH | LR3: HLH | LS3: LLH | LT3: HLH | LU3: LLH | LV3: HLH | LW3: LLH | LX3: HLH | LY3: LLH | LZ3: HLH | MA3: LLH | MB3: HLH | MC3: LLH | MD3: HLH | ME3: LLH | MF3: HLH | MG3: LLH | MH3: HLH | MI3: LLH | MJ3: HLH | MK3: LLH | ML3: HLH | MM3: LLH | MN3: HLH | MO3: LLH | MP3: HLH | MQ3: LLH | MR3: HLH | MS3: LLH | MT3: HLH | MU3: LLH | MV3: HLH | MW3: LLH | MX3: HLH | MY3: LLH | MZ3: HLH | NA3: LLH | NB3: HLH | NC3: LLH | ND3: HLH | NE3: LLH | NF3: HLH | NG3: LLH | NH3: HLH | NI3: LLH | NJ3: HLH | NK3: LLH | NL3: HLH | NM3: LLH | NN3: HLH | NO3: LLH | NP3: HLH | NQ3: LLH | NR3: HLH | NS3: LLH | NT3: HLH | NU3: LLH | NV3: HLH | NW3: LLH | NX3: HLH | NY3: LLH | NZ3: HLH | OA3: LLH | OB3: HLH | OC3: LLH | OD3: HLH | OE3: LLH | OF3: HLH | OG3: LLH | OH3: HLH | OI3: LLH | OJ3: HLH | OK3: LLH | OL3: HLH | OM3: LLH | ON3: HLH | OO3: LLH | OP3: HLH | OQ3: LLH | OR3: HLH | OS3: LLH | OT3: HLH | OU3: LLH | OV3: HLH | OW3: LLH | OX3: HLH | OY3: LLH | OZ3: HLH | PA3: LLH | PB3: HLH | PC3: LLH | PD3: HLH | PE3: LLH | PF3: HLH | PG3: LLH | PH3: HLH | PI3: LLH | PJ3: HLH | PK3: LLH | PL3: HLH | PM3: LLH | PN3: HLH | PO3: LLH | PP3: HLH | PQ3: LLH | PR3: HLH | PS3: LLH | PT3: HLH | PU3: LLH | PV3: HLH | PW3: LLH | PX3: HLH | PY3: LLH | PZ3: HLH | QA3: LLH | QB3: HLH | QC3: LLH | QD3: HLH | QE3: LLH | QF3: HLH | QG3: LLH | QH3: HLH | QI3: LLH | QJ3: HLH | QK3: LLH | QL3: HLH | QM3: LLH | QN3: HLH | QO3: LLH | QP3: HLH | QQ3: LLH | QR3: HLH | QS3: LLH | QT3: HLH | QU3: LLH | QV3: HLH | QW3: LLH | QX3: HLH | QY3: LLH | QZ3: HLH | RA3: LLH | RB3: HLH | RC3: LLH | RD3: HLH | RE3: LLH | RF3: HLH | RG3: LLH | RH3: HLH | RI3: LLH | RJ3: HLH | RK3: LLH | RL3: HLH | RM3: LLH | RN3: HLH | RO3: LLH
B4: 10015 | C4: Asotin County PUD #1 | D4: 158.885 | E4: 123.417 | F4: 100.217 | G4: 62.326 | H4: 89.961 | I4: 79.094 | J4: 103.249 | K4: 66.466 | L4: 99.565 | M4: 52.422 | N4: 113.772 | O4: 69.469 | P4: 154.892 | Q4: 99.356 | R4: 273.82 | S4: 232.806 | T4: 341.515 | U4: 284.089 | V4: 561.288 | W4: 486.719 | X4: 578.046 | Y4: 455.044 | Z4: 307.885 | AA4: 341.17 | AB4: 172.27 | AC4: 133.814 | AD4: 102.518 | AE4: 63.757 | AF4: 92.009 | AG4: 80.895 | AH4: 104.336 | AI4: 67.166 | AJ4: 100.624 | AK4: 52.979 | AL4: 110.394 | AM4: 67.407 | AN4: 148.752 | AO4: 95.417 | AP4: 285.888 | AQ4: 243.066 | AR4: 373.447 | AS4: 310.651 | AT4: 564.223 | AU4: 489.264 | AV4: 572.096 | AW4: 450.361 | AX4: 336.64 | AY4: 373.033 | AZ4: 183.658 | BA4: 149.874 | BB4: 91.794 | BC4: 69.553 | BD4: 93.705 | BE4: 75.12 | BF4: 114.116 | BG4: 65.23 | BH4: 98.208 | BI4: 53.588 | BJ4: 117.713 | BK4: 66.923 | BL4: 193.528 | BM4: 116.367 | BN4: 333.53 | BO4: 301.659 | BP4: 419.482 | BQ4: 375.444 | BR4: 593.344 | BS4: 508.135 | BT4: 546.458 | BU4: 459.45 | BV4: 312.637 | BW4: 338.989 | BX4: 186.781 | BY4: 152.423 | BZ4: 93.366 | CA4: 70.745 | CB4: 95.313 | CC4: 76.409 | CD4: 116.037 | CE4: 66.328 | CF4: 99.886 | CG4: 54.504 | CH4: 119.718 | CI4: 68.062 | CJ4: 196.796 | CK4: 118.332 | CL4: 339.196 | CM4: 306.783 | CN4: 426.622 | CO4: 381.834 | CP4: 603.42 | CQ4: 516.764 | CR4: 555.748 | CS4: 467.261 | CT4: 317.892 | CU4: 344.687 | CV4: 178.256 | CW4: 144.568 | CX4: 86.028 | CY4: 70.26 | CZ4: 90.56 | DA4: 72.869 | DB4: 106.746 | DC4: 66.779 | DD4: 91.007 | DE4: 54.8 | DF4: 111.991 | DG4: 65.138 | DH4: 182.541 | DI4: 114.543 | DJ4: 308.813 | DK4: 297.993 | DL4: 402.135 | DM4: 357.263 | DN4: 559.144 | DO4: 494.955 | DP4: 520.757 | DQ4: 441.094 | DR4: 300.222 | DS4: 326.646 | DT4: 179.433 | DU4: 145.522 | DV4: 86.587 | DW4: 70.717 | DX4: 91.14 | DY4: 73.336 | DZ4: 107.564 | EA4: 67.291 | EB4: 91.622 | EC4: 55.171 | ED4: 112.743 | EE4: 65.575 | EF4: 183.786 | EG4: 115.324 | EH4: 310.788 | EI4: 299.899 | EJ4: 404.693 | EK4: 359.535 | EL4: 562.809 | EM4: 498.199 | EN4: 524.122 | EO4: 443.944 | EP4: 302.386 | EQ4: 329 | ER4: 153.537 | ES4: 126.395 | ET4: 88.894 | EU4: 64.995 | EV4: 91.014 | EW4: 70.412 | EX4: 102.65 | EY4: 63.261 | EZ4: 79.611 | FA4: 60.773 | FB4: 105.019 | FC4: 62.116 | FD4: 159.479 | FE4: 101.58 | FF4: 262.877 | FG4: 247.764 | FH4: 388.938 | FI4: 337.909 | FJ4: 533.1 | FK4: 479.193 | FL4: 510.388 | FM4: 430.571 | FN4: 283.02 | FO4: 306.63 | FP4: 153.537 | FQ4: 126.395 | FR4: 88.894 | FS4: 64.995 | FT4: 91.014 | FU4: 70.412 | FV4: 102.65 | FW4: 63.261 | FX4: 79.611 | FY4: 60.773 | FZ4: 105.019 | GA4: 62.116 | GB4: 159.479 | GC4: 101.58 | GD4: 262.877 | GE4: 247.764 | GF4: 388.938 | GG4: 337.909 | GH4: 533.1 | GI4: 479.193 | GJ4: 510.388 | GK4: 430.571 | GL4: 283.02 | GM4: 306.63 | GN4: 153.537 | GO4: 126.395 | GP4: 88.894 | GQ4: 64.995 | GR4: 91.014 | GS4: 70.412 | GT4: 102.65 | GU4: 63.261 | GV4: 82.455 | GW4: 62.944 | GX4: 105.019 | GY4: 62.116 | GZ4: 159.479 | HA4: 101.58 | HB4: 262.877 | HC4: 247.764 | HD4: 388.938 | HE4: 337.909 | HF4: 533.1 | HG4: 479.193 | HH4: 510.388 | HI4: 430.571 | HJ4: 283.02 | HK4: 306.63 | HL4: 232.205 | HM4: 191.156 | HN4: 169.419 | HO4: 123.872 | HP4: 171.945 | HQ4: 133.024 | HR4: 191.46 | HS4: 117.994 | HT4: 153.704 | HU4: 117.335 | HV4: 195.078 | HW4: 115.383 | HX4: 240.922 | HY4: 153.456 | HZ4: 330.666 | IA4: 311.655 | IB4: 437.57 | IC4: 380.162 | ID4: 596.157 | IE4: 535.873 | IF4: 573.687 | IG4: 483.972 | IH4: 342.67 | II4: 371.256 | IJ4: 232.205 | IK4: 191.156 | IL4: 169.419 | IM4: 123.872 | IN4: 171.945 | IO4: 133.024 | IP4: 191.46 | IQ4: 117.994 | IR4: 153.704 | IS4: 117.335 | IT4: 195.078 | IU4: 115.383 | IV4: 240.922 | IW4: 153.456 | IX4: 330.666 | IY4: 311.655 | IZ4: 437.57 | JA4: 380.162 | JB4: 596.157 | JC4: 535.873 | JD4: 573.687 | JE4: 483.972 | JF4: 342.67 | JG4: 371.256 | JH4: 232.205 | JI4: 191.156 | JJ4: 169.419 | JK4: 123.872 | JL4: 171.945 | JM4: 133.024 | JN4: 191.46 | JO4: 117.994 | JP4: 153.704 | JQ4: 117.335 | JR4: 195.078 | JS4: 115.383 | JT4: 240.922 | JU4: 153.456 | JV4: 330.666 | JW4: 311.655 | JX4: 437.57 | JY4: 380.162 | JZ4: 596.157 | KA4: 535.873 | KB4: 573.687 | KC4: 483.972 | KD4: 342.67 | KE4: 371.256 | KF4: 232.205 | KG4: 191.156 | KH4: 169.419 | KI4: 123.872 | KJ4: 171.945 | KK4: 133.024 | KL4: 191.46 | KM4: 117.994 | KN4: 158.984 | KO4: 121.365 | KP4: 195.078 | KQ4: 115.383 | KR4: 240.922 | KS4: 153.456 | KT4: 330.666 | KU4: 311.655 | KV4: 437.57 | KW4: 380.162 | KX4: 596.157 | KY4: 535.873 | KZ4: 573.687 | LA4: 483.972 | LB4: 342.67 | LC4: 371.256 | LD4: 232.205 | LE4: 191.156 | LF4: 169.419 | LG4: 123.872 | LH4: 171.945 | LI4: 133.024 | LJ4: 191.46 | LK4: 117.994 | LL4: 153.704 | LM4: 117.335 | LN4: 195.078 | LO4: 115.383 | LP4: 240.922 | LQ4: 153.456 | LR4: 330.666 | LS4: 311.655 | LT4: 437.57 | LU4: 380.162 | LV4: 596.157 | LW4: 535.873 | LX4: 573.687 | LY4: 483.972 | LZ4: 342.67 | MA4: 371.256 | MB4: 232.205 | MC4: 191.156 | MD4: 169.419 | ME4: 123.872 | MF4: 171.945 | MG4: 133.024 | MH4: 191.46 | MI4: 117.994 | MJ4: 153.704 | MK4: 117.335 | ML4: 195.078 | MM4: 115.383 | MN4: 240.922 | MO4: 153.456 | MP4: 330.666 | MQ4: 311.655 | MR4: 437.57 | MS4: 380.162 | MT4: 596.157 | MU4: 535.873 | MV4: 573.687 | MW4: 483.972 | MX4: 342.67 | MY4: 371.256 | MZ4: 232.205 | NA4: 191.156 | NB4: 169.419 | NC4: 123.872 | ND4: 171.945 | NE4: 133.024 | NF4: 191.46 | NG4: 117.994 | NH4: 153.704 | NI4: 117.335 | NJ4: 195.078 | NK4: 115.383 | NL4: 240.922 | NM4: 153.456 | NN4: 330.666 | NO4: 311.655 | NP4: 437.57 | NQ4: 380.162 | NR4: 596.157 | NS4: 535.873 | NT4: 573.687 | NU4: 483.972 | NV4: 342.67 | NW4: 371.256 | NX4: 232.205 | NY4: 191.156 | NZ4: 169.419 | OA4: 123.872 | OB4: 171.945 | OC4: 133.024 | OD4: 191.46 | OE4: 117.994 | OF4: 158.984 | OG4: 121.365 | OH4: 195.078 | OI4: 115.383 | OJ4: 240.922 | OK4: 153.456 | OL4: 330.666 | OM4: 311.655 | ON4: 437.57 | OO4: 380.162 | OP4: 596.157 | OQ4: 535.873 | OR4: 573.687 | OS4: 483.972 | OT4: 342.67 | OU4: 371.256 | OV4: 232.205 | OW4: 191.156 | OX4: 169.419 | OY4: 123.872 | OZ4: 171.945 | PA4: 133.024 | PB4: 191.46 | PC4: 117.994 | PD4: 153.704 | PE4: 117.335 | PF4: 195.078 | PG4: 115.383 | PH4: 240.922 | PI4: 153.456 | PJ4: 330.666 | PK4: 311.655 | PL4: 437.57 | PM4: 380.162 | PN4: 596.157 | PO4: 535.873 | PP4: 573.687 | PQ4: 483.972 | PR4: 342.67 | PS4: 371.256 | PT4: 232.205 | PU4: 191.156 | PV4: 169.419 | PW4: 123.872 | PX4: 171.945 | PY4: 133.024 | PZ4: 191.46 | QA4: 117.994 | QB4: 153.704 | QC4: 117.335 | QD4: 195.078 | QE4: 115.383 | QF4: 240.922 | QG4: 153.456 | QH4: 330.666 | QI4: 311.655 | QJ4: 437.57 | QK4: 380.162 | QL4: 596.157 | QM4: 535.873 | QN4: 573.687 | QO4: 483.972 | QP4: 342.67 | QQ4: 371.256 | QR4: 232.205 | QS4: 191.156 | QT4: 169.419 | QU4: 123.872 | QV4: 171.945 | QW4: 133.024 | QX4: 191.46 | QY4: 117.994 | QZ4: 153.704 | RA4: 117.335 | RB4: 195.078 | RC4: 115.383 | RD4: 240.922 | RE4: 153.456 | RF4: 330.666 | RG4: 311.655 | RH4: 437.57 | RI4: 380.162 | RJ4: 596.157 | RK4: 535.873 | RL4: 573.687 | RM4: 483.972 | RN4: 342.67 | RO4: 371.256 | RQ4: =+SUM(D4:AA4) -> 5235.473 | RR4: =+SUM(AB4:AY4) -> 5391.007 | RS4: =+SUM(AZ4:BW4) -> 5678.505 | RT4: =+SUM(BX4:CU4) -> 5774.907 | RU4: =+SUM(CV4:DS4) -> 5445.108 | RV4: =+SUM(DT4:EQ4) -> 5481.186 | RW4: =+SUM(ER4:FO4) -> 5110.126 | RX4: =+SUM(FP4:GM4) -> 5110.126 | RY4: =+SUM(GN4:HK4) -> 5115.141 | RZ4: =+SUM(HL4:II4) -> 6670.621 | SA4: =+SUM(IJ4:JG4) -> 6670.621 | SB4: =+SUM(JH4:KE4) -> 6670.621 | SC4: =+SUM(KF4:LC4) -> 6679.931 | SD4: =+SUM(LD4:MA4) -> 6670.621 | SE4: =+SUM(MB4:MY4) -> 6670.621 | SF4: =+SUM(MZ4:NW4) -> 6670.621 | SG4: =+SUM(NX4:OU4) -> 6679.931 | SH4: =+SUM(OV4:PS4) -> 6670.621 | SI4: =+SUM(PT4:QQ4) -> 6670.621 | SJ4: =+SUM(QR4:RO4) -> 6670.621
B5: 10024 | C5: Benton County PUD #1 | D5: 72609.945 | E5: 43984.938 | F5: 71716.602 | G5: 51043.328 | H5: 91608.961 | I5: 65984.563 | J5: 86698.867 | K5: 62828.375 | L5: 70522.555 | M5: 47630.105 | N5: 73297.82 | O5: 47714.246 | P5: 77232.797 | Q5: 47207.531 | R5: 97686.75 | S5: 66967.156 | T5: 110656.219 | U5: 70497.375 | V5: 136540.297 | W5: 92112.398 | X5: 123164.805 | Y5: 74705.641 | Z5: 81168.203 | AA5: 52364.414 | AB5: 73736.148 | AC5: 44666.449 | AD5: 64744.391 | AE5: 46080.98 | AF5: 79217.398 | AG5: 57059.137 | AH5: 87501.523 | AI5: 63397.582 | AJ5: 78718.32 | AK5: 53165.301 | AL5: 74797.617 | AM5: 48690.629 | AN5: 83715.266 | AO5: 51169.625 | AP5: 95241.703 | AQ5: 65284.594 | AR5: 116283.359 | AS5: 74078.734 | AT5: 131957.203 | AU5: 88992.328 | AV5: 130424.359 | AW5: 79104.766 | AX5: 89995.047 | AY5: 58041.34 | AZ5: 73766.078 | BA5: 44684.578 | BB5: 64822.059 | BC5: 46136.273 | BD5: 79315.688 | BE5: 57125.789 | BF5: 87878.523 | BG5: 63659.508 | BH5: 79054.578 | BI5: 53388.039 | BJ5: 75136.789 | BK5: 48911.43 | BL5: 84013.328 | BM5: 51350.563 | BN5: 95499.422 | BO5: 65452.82 | BP5: 116513.086 | BQ5: 74225.063 | BR5: 132195 | BS5: 89140.539 | BT5: 130687.617 | BU5: 79264.422 | BV5: 90263.203 | BW5: 58214.238 | BX5: 74055.641 | BY5: 44859.988 | BZ5: 65125.246 | CA5: 46352.055 | CB5: 79670.859 | CC5: 57381.605 | CD5: 88283.281 | CE5: 63952.711 | CF5: 79419.828 | CG5: 53634.703 | CH5: 75512.336 | CI5: 49155.887 | CJ5: 84347.227 | CK5: 51554.637 | CL5: 95788.43 | CM5: 65650.898 | CN5: 116779.422 | CO5: 74394.734 | CP5: 132462.609 | CQ5: 89320.992 | CR5: 130988.883 | CS5: 79447.148 | CT5: 90567.758 | CU5: 58410.637 | CV5: 72397.75 | CW5: 43869.008 | CX5: 71024.617 | CY5: 50555.836 | CZ5: 91341.648 | DA5: 65792.102 | DB5: 87491.203 | DC5: 63390.156 | DD5: 72530.148 | DE5: 48985.914 | DF5: 70803.492 | DG5: 46091.695 | DH5: 76819.781 | DI5: 46954.922 | DJ5: 96111.844 | DK5: 65881.078 | DL5: 115202.148 | DM5: 73406.102 | DN5: 135540.453 | DO5: 91408.906 | DP5: 120963.148 | DQ5: 73385.898 | DR5: 76824.445 | DS5: 49567.563 | DT5: 72348.313 | DU5: 43839.047 | DV5: 70984.023 | DW5: 50526.93 | DX5: 91305.141 | DY5: 65765.797 | DZ5: 87527.641 | EA5: 63416.547 | EB5: 73278.977 | EC5: 49491.672 | ED5: 70809.469 | EE5: 46095.586 | EF5: 76831.102 | EG5: 46961.836 | EH5: 96237.117 | EI5: 65966.961 | EJ5: 115452.523 | EK5: 73565.633 | EL5: 136032.219 | EM5: 91740.547 | EN5: 121391.539 | EO5: 73645.805 | EP5: 76896.305 | EQ5: 49613.93 | ER5: 76456.023 | ES5: 46327.875 | ET5: 73041.203 | EU5: 51991.094 | EV5: 92563.891 | EW5: 66672.313 | EX5: 90704.43 | EY5: 65718.07 | EZ5: 73646.703 | FA5: 49739.898 | FB5: 71650.414 | FC5: 46642.883 | FD5: 80391.141 | FE5: 49137.656 | FF5: 97044.297 | FG5: 66520 | FH5: 118688.492 | FI5: 75627.414 | FJ5: 135120.375 | FK5: 91125.422 | FL5: 121308.047 | FM5: 73594.953 | FN5: 76343.367 | FO5: 49256.93 | FP5: 76542.578 | FQ5: 46380.32 | FR5: 72993.422 | FS5: 51957.078 | FT5: 92151.289 | FU5: 66375.117 | FV5: 90368.977 | FW5: 65475.023 | FX5: 73547.195 | FY5: 49672.703 | FZ5: 71760.719 | GA5: 46714.68 | GB5: 80558.344 | GC5: 49239.859 | GD5: 97199.391 | GE5: 66626.313 | GF5: 118827.008 | GG5: 75715.695 | GH5: 135205.422 | GI5: 91182.781 | GJ5: 121400.539 | GK5: 73651.055 | GL5: 76522.258 | GM5: 49372.344 | GN5: 74943.727 | GO5: 45411.516 | GP5: 69721.969 | GQ5: 49628.445 | GR5: 92794.141 | GS5: 66838.156 | GT5: 90293.898 | GU5: 65420.617 | GV5: 71104.703 | GW5: 48023.07 | GX5: 74919.906 | GY5: 48771.242 | GZ5: 74999.695 | HA5: 45842.227 | HB5: 93557.938 | HC5: 64130.25 | HD5: 116436.969 | HE5: 74192.781 | HF5: 133922.875 | HG5: 90317.828 | HH5: 119949.648 | HI5: 72770.836 | HJ5: 76564.281 | HK5: 49399.461 | HL5: 77155.078 | HM5: 48422.297 | HN5: 72306.656 | HO5: 52602.758 | HP5: 87364.602 | HQ5: 64295.883 | HR5: 83734.984 | HS5: 61065.891 | HT5: 77760.578 | HU5: 53871.906 | HV5: 76490.766 | HW5: 51057.445 | HX5: 78635.156 | HY5: 49269.156 | HZ5: 94943.133 | IA5: 66990.148 | IB5: 123452.219 | IC5: 76003.188 | ID5: 138492.469 | IE5: 93559.891 | IF5: 125988.703 | IG5: 75991.875 | IH5: 81378.328 | II5: 54353.719 | IJ5: 77412 | IK5: 48583.539 | IL5: 72480.281 | IM5: 52729.055 | IN5: 87229.523 | IO5: 64196.477 | IP5: 83873.383 | IQ5: 61166.82 | IR5: 78116.125 | IS5: 54118.234 | IT5: 76919.172 | IU5: 51343.398 | IV5: 79113.641 | IW5: 49568.945 | IX5: 95408.758 | IY5: 67318.68 | IZ5: 123931.438 | JA5: 76298.219 | JB5: 138940.5 | JC5: 93862.563 | JD5: 126417.711 | JE5: 76250.648 | JF5: 81797.727 | JG5: 54633.852 | JH5: 77872.188 | JI5: 48872.352 | JJ5: 72842.969 | JK5: 52992.906 | JL5: 87285.031 | JM5: 64237.328 | JN5: 83983.57 | JO5: 61247.18 | JP5: 78451.898 | JQ5: 54350.852 | JR5: 77332.883 | JS5: 51619.563 | JT5: 79582.82 | JU5: 49862.914 | JV5: 95889.148 | JW5: 67657.648 | JX5: 124459.898 | JY5: 76623.555 | JZ5: 139494.266 | KA5: 94236.656 | KB5: 126946.539 | KC5: 76569.617 | KD5: 82241.602 | KE5: 54930.32 | KF5: 78337.594 | KG5: 49164.438 | KH5: 73203.758 | KI5: 53255.383 | KJ5: 87329.242 | KK5: 64269.867 | KL5: 83791.711 | KM5: 61107.258 | KN5: 80575.688 | KO5: 55822.203 | KP5: 77405.961 | KQ5: 51668.336 | KR5: 79709.453 | KS5: 49942.25 | KT5: 96047.406 | KU5: 67769.313 | KV5: 124675.203 | KW5: 76756.094 | KX5: 139772.547 | KY5: 94424.641 | KZ5: 127172.672 | LA5: 76706 | LB5: 82356.383 | LC5: 55006.977 | LD5: 78439.945 | LE5: 49228.68 | LF5: 73235.227 | LG5: 53278.273 | LH5: 87060.031 | LI5: 64071.734 | LJ5: 83723.852 | LK5: 61057.773 | LL5: 78647.109 | LM5: 54486.094 | LN5: 77616.516 | LO5: 51808.883 | LP5: 79973.633 | LQ5: 50107.773 | LR5: 96342.523 | LS5: 67977.523 | LT5: 125028.156 | LU5: 76973.406 | LV5: 140189.672 | LW5: 94706.453 | LX5: 127550.992 | LY5: 76934.195 | LZ5: 82612.969 | MA5: 55178.344 | MB5: 78691.906 | MC5: 49386.813 | MD5: 73402.406 | ME5: 53399.898 | MF5: 86928.727 | MG5: 63975.102 | MH5: 83765.68 | MI5: 61088.273 | MJ5: 78907.367 | MK5: 54666.398 | ML5: 77944.469 | MM5: 52027.789 | MN5: 80355.547 | MO5: 50347.063 | MP5: 96761.523 | MQ5: 68273.164 | MR5: 125516.992 | MS5: 77274.352 | MT5: 140770.547 | MU5: 95098.859 | MV5: 128098.594 | MW5: 77264.484 | MX5: 83002.195 | MY5: 55438.32 | MZ5: 79080.711 | NA5: 49630.82 | NB5: 73703.813 | NC5: 53619.18 | ND5: 86970.508 | NE5: 64005.852 | NF5: 84085.852 | NG5: 61321.758 | NH5: 79386.398 | NI5: 54998.258 | NJ5: 78504.148 | NK5: 52401.375 | NL5: 80956.648 | NM5: 50723.68 | NN5: 97398.367 | NO5: 68722.523 | NP5: 126232.156 | NQ5: 77714.641 | NR5: 141606.75 | NS5: 95663.766 | NT5: 128907.742 | NU5: 77752.539 | NV5: 83608.93 | NW5: 55843.57 | NX5: 79696.469 | NY5: 50017.266 | NZ5: 74230.539 | OA5: 54002.367 | OB5: 87315.188 | OC5: 64259.531 | OD5: 84224.797 | OE5: 61423.109 | OF5: 81831.656 | OG5: 56692.328 | OH5: 78866.016 | OI5: 52642.922 | OJ5: 81357.656 | OK5: 50974.938 | OL5: 97840.773 | OM5: 69034.664 | ON5: 126752.273 | OO5: 78034.852 | OP5: 142279.391 | OQ5: 96118.172 | OR5: 129541.352 | OS5: 78134.711 | OT5: 84022.797 | OU5: 56120 | OV5: 80100.531 | OW5: 50270.859 | OX5: 74561.906 | OY5: 54243.438 | OZ5: 87447.883 | PA5: 64357.18 | PB5: 84723.273 | PC5: 61786.617 | PD5: 80277.219 | PE5: 55615.422 | PF5: 79520.18 | PG5: 53079.57 | PH5: 82033.336 | PI5: 51398.289 | PJ5: 98557.531 | PK5: 69540.406 | PL5: 127560.102 | PM5: 78532.18 | PN5: 143265.953 | PO5: 96784.656 | PP5: 130495.25 | PQ5: 78710.063 | PR5: 84706.32 | PS5: 56576.539 | PT5: 80786.031 | PU5: 50701.078 | PV5: 75168.352 | PW5: 54684.617 | PX5: 87941.18 | PY5: 64720.211 | PZ5: 84993.133 | QA5: 61983.414 | QB5: 80643.961 | QC5: 55869.492 | QD5: 79925.961 | QE5: 53350.43 | QF5: 82459.219 | QG5: 51665.125 | QH5: 99026.398 | QI5: 69871.227 | QJ5: 128111.742 | QK5: 78871.805 | QL5: 144000.297 | QM5: 97280.75 | QN5: 131181.766 | QO5: 79124.141 | QP5: 85138.719 | QQ5: 56865.344 | QR5: 81205.133 | QS5: 50964.102 | QT5: 75532.648 | QU5: 54949.641 | QV5: 88187.922 | QW5: 64901.813 | QX5: 85497.953 | QY5: 62351.578 | QZ5: 81238.258 | RA5: 56281.211 | RB5: 80589.25 | RC5: 53793.172 | RD5: 83143.867 | RE5: 52094.102 | RF5: 99746.25 | RG5: 70379.141 | RH5: 128913.906 | RI5: 79365.656 | RJ5: 144980.922 | RK5: 97943.219 | RL5: 132130.703 | RM5: 79696.516 | RN5: 85822.383 | RO5: 57321.961 | RQ5: 1815943.891 | RR5: 1836063.799 | RS5: 1840698.633 | RT5: 1847117.515 | RU5: 1806339.857 | RV5: 1809724.66 | RW5: 1839312.891 | RX5: 1839440.11 | RY5: 1809956.179 | RZ5: 1865186.829 | SA5: 1871710.689 | SB5: 1879583.703 | SC5: 1886270.378 | SD5: 1886229.756 | SE5: 1892386.468 | SF5: 1902839.985 | SG5: 1915413.767 | SH5: 1924144.703 | SI5: 1934364.393 | SJ5: 1947031.307
B6: 10025 | C6: Benton REA | D6: 29712.207 | E6: 19697.816 | F6: 25326.461 | G6: 19050.641 | H6: 27593.699 | I6: 22459.621 | J6: 28448.922 | K6: 20720.895 | L6: 24088.52 | M6: 16569.59 | N6: 22644.83 | O6: 16486.225 | P6: 25723.578 | Q6: 17148.938 | R6: 30686.449 | S6: 20992.164 | T6: 34903.113 | U6: 24497.34 | V6: 44305.18 | W6: 29579.305 | X6: 44576.93 | Y6: 28399.867 | Z6: 34342.484 | AA6: 26538.629 | AB6: 28380.9 | AC6: 18316.451 | AD6: 24845.463 | AE6: 18684.955 | AF6: 29097.768 | AG6: 23683.826 | AH6: 29932.113 | AI6: 21859.631 | AJ6: 24309.641 | AK6: 16738.188 | AL6: 22344.219 | AM6: 16267.812 | AN6: 27637.609 | AO6: 18236.697 | AP6: 32181.133 | AQ6: 22172.824 | AR6: 34073.883 | AS6: 24066.369 | AT6: 43806.156 | AU6: 29556.441 | AV6: 42547.344 | AW6: 27330.166 | AX6: 29679.924 | AY6: 22774.41 | AZ6: 27290.064 | BA6: 17363.023 | BB6: 23320.867 | BC6: 17558.045 | BD6: 27795.92 | BE6: 22610.156 | BF6: 27819.793 | BG6: 20321.115 | BH6: 22377.855 | BI6: 15409.19 | BJ6: 20855.035 | BK6: 15183.343 | BL6: 26145.738 | BM6: 17253.311 | BN6: 29335.139 | BO6: 20224.916 | BP6: 30359.283 | BQ6: 21441.775 | BR6: 39133.492 | BS6: 26403.957 | BT6: 36996.52 | BU6: 23765.334 | BV6: 24831.375 | BW6: 19020.588 | BX6: 27714.283 | BY6: 17636.805 | BZ6: 23691.293 | CA6: 17836.619 | CB6: 28232.539 | CC6: 22965.537 | CD6: 28261.256 | CE6: 20642.652 | CF6: 22735.688 | CG6: 15655.358 | CH6: 21180.813 | CI6: 15420.565 | CJ6: 26554.391 | CK6: 17522.658 | CL6: 29802.365 | CM6: 20544.689 | CN6: 30869.084 | CO6: 21801.975 | CP6: 39790.918 | CQ6: 26847.531 | CR6: 37634.656 | CS6: 24175.197 | CT6: 25263.678 | CU6: 19355.285 | CV6: 27630.699 | CW6: 17788.223 | CX6: 23726.443 | CY6: 17858.426 | CZ6: 27870.803 | DA6: 22788.582 | DB6: 28405.098 | DC6: 20714.57 | DD6: 23653.412 | DE6: 16304.315 | DF6: 21019.861 | DG6: 15311.217 | DH6: 25581.619 | DI6: 16914.469 | DJ6: 30121.365 | DK6: 20679.881 | DL6: 32117.367 | DM6: 22698.57 | DN6: 41937.902 | DO6: 28364.674 | DP6: 41202.578 | DQ6: 26489.078 | DR6: 29122.943 | DS6: 22536.26 | DT6: 28323.652 | DU6: 18266.527 | DV6: 24365.146 | DW6: 18356.65 | DX6: 28466.068 | DY6: 23393.684 | DZ6: 29080.574 | EA6: 21231.674 | EB6: 23603.494 | EC6: 16296.041 | ED6: 21627.182 | EE6: 15757.426 | EF6: 26181.729 | EG6: 17346.643 | EH6: 30730.326 | EI6: 21121.42 | EJ6: 32713.637 | EK6: 23124.07 | EL6: 42560.949 | EM6: 28816.611 | EN6: 41820.512 | EO6: 26895.938 | EP6: 29621.256 | EQ6: 22934.66 | ER6: 27591.42 | ES6: 17806.939 | ET6: 23445.393 | EU6: 17632.041 | EV6: 27469.689 | EW6: 22358.666 | EX6: 28434.082 | EY6: 20706.141 | EZ6: 22175.17 | FA6: 15258.787 | FB6: 22737.133 | FC6: 16559.074 | FD6: 23259.805 | FE6: 15290.281 | FF6: 30025.232 | FG6: 20529.295 | FH6: 33954.594 | FI6: 23935.639 | FJ6: 39573.855 | FK6: 26682.043 | FL6: 37355.801 | FM6: 23970.895 | FN6: 28390.693 | FO6: 21913.799 | FP6: 28061.531 | FQ6: 18088.965 | FR6: 23832.1 | FS6: 17919.908 | FT6: 27781.33 | FU6: 22608.826 | FV6: 28659.814 | FW6: 20870.557 | FX6: 22447.623 | FY6: 15446.217 | FZ6: 23039.689 | GA6: 16779.393 | GB6: 23602.096 | GC6: 15515.893 | GD6: 30431.785 | GE6: 20807.547 | GF6: 34393.523 | GG6: 24245.764 | GH6: 40052.801 | GI6: 27005.191 | GJ6: 37814.371 | GK6: 24265.43 | GL6: 28783.879 | GM6: 22218.211 | GN6: 26497.182 | GO6: 17704.635 | GP6: 22645.314 | GQ6: 17271.979 | GR6: 27037.705 | GS6: 20911.033 | GT6: 26669.256 | GU6: 20289.479 | GV6: 20754.172 | GW6: 15202.773 | GX6: 22229.912 | GY6: 15552.838 | GZ6: 22101.455 | HA6: 15022.721 | HB6: 28303.74 | HC6: 20343.244 | HD6: 33856.871 | HE6: 21814.664 | HF6: 37238.117 | HG6: 26393.172 | HH6: 36332.266 | HI6: 22518.68 | HJ6: 27914.09 | HK6: 20416.305 | HL6: 30945.502 | HM6: 20142.467 | HN6: 26623.748 | HO6: 20316.131 | HP6: 32697.43 | HQ6: 26162.285 | HR6: 32497.998 | HS6: 23962.26 | HT6: 24772.678 | HU6: 17687.971 | HV6: 25286.484 | HW6: 19071.848 | HX6: 28078.115 | HY6: 18830.521 | HZ6: 32358.189 | IA6: 22480.162 | IB6: 35829.238 | IC6: 24969.254 | ID6: 40908.129 | IE6: 27658.191 | IF6: 38649.625 | IG6: 26108.777 | IH6: 31422.01 | II6: 22088.451 | IJ6: 31190.311 | IK6: 20301.811 | IL6: 25604.018 | IM6: 21630.268 | IN6: 34155.219 | IO6: 24747.113 | IP6: 32682.537 | IQ6: 24098.33 | IR6: 25017.492 | IS6: 17862.773 | IT6: 25572.168 | IU6: 19287.316 | IV6: 28407.383 | IW6: 19051.344 | IX6: 31364.74 | IY6: 24077.65 | IZ6: 37743.141 | JA6: 23680.727 | JB6: 41328.426 | JC6: 27942.355 | JD6: 39055.016 | JE6: 26382.629 | JF6: 31775.127 | JG6: 22336.682 | JH6: 31555.865 | JI6: 20539.752 | JJ6: 25878.082 | JK6: 21861.801 | JL6: 34322.582 | JM6: 24868.375 | JN6: 31432.352 | JO6: 25588.477 | JP6: 25221.262 | JQ6: 18008.266 | JR6: 26925.463 | JS6: 18370.771 | JT6: 28707.582 | JU6: 19252.676 | JV6: 31689.814 | JW6: 24327.201 | JX6: 38122.07 | JY6: 23918.477 | JZ6: 41723.398 | KA6: 28209.398 | KB6: 39405.984 | KC6: 26619.719 | KD6: 32042.453 | KE6: 22524.598 | KF6: 30521.582 | KG6: 21976.703 | KH6: 27229.367 | KI6: 20778.27 | KJ6: 34326.609 | KK6: 24871.293 | KL6: 31602.023 | KM6: 25726.598 | KN6: 26333.881 | KO6: 18516.865 | KP6: 27158.785 | KQ6: 18529.961 | KR6: 27736.855 | KS6: 20634.801 | KT6: 33312.309 | KU6: 23143.016 | KV6: 38394.469 | KW6: 24089.387 | KX6: 40338.809 | KY6: 30149.816 | KZ6: 41352.926 | LA6: 25219.145 | LB6: 32319.422 | LC6: 22719.301 | LD6: 30803.074 | LE6: 22179.391 | LF6: 27464.127 | LG6: 20957.408 | LH6: 33018.82 | LI6: 26419.438 | LJ6: 33016.633 | LK6: 24344.672 | LL6: 25527.922 | LM6: 18227.223 | LN6: 27311.68 | LO6: 18634.281 | LP6: 27935.643 | LQ6: 20782.689 | LR6: 33571.316 | LS6: 23322.953 | LT6: 38706.883 | LU6: 24285.398 | LV6: 40682.016 | LW6: 30406.336 | LX6: 41708.375 | LY6: 25435.914 | LZ6: 31202.918 | MA6: 24313 | MB6: 32376.352 | MC6: 21073.809 | MD6: 27677.172 | ME6: 21119.98 | MF6: 33116.949 | MG6: 26497.957 | MH6: 33189.344 | MI6: 24472.02 | MJ6: 25753.824 | MK6: 18388.52 | ML6: 26461.77 | MM6: 19958.285 | MN6: 29481.494 | MO6: 19771.697 | MP6: 33935.094 | MQ6: 23575.68 | MR6: 37513.949 | MS6: 26143.316 | MT6: 42869.961 | MU6: 28984.594 | MV6: 42158.738 | MW6: 25710.574 | MX6: 31539.813 | MY6: 24575.508 | MZ6: 32727.615 | NA6: 21302.443 | NB6: 27948.072 | NC6: 21326.701 | ND6: 33277.879 | NE6: 26626.715 | NF6: 33385.004 | NG6: 24616.289 | NH6: 25985.848 | NI6: 18554.188 | NJ6: 26729.533 | NK6: 20160.236 | NL6: 29791.012 | NM6: 19979.273 | NN6: 34282.41 | NO6: 23816.973 | NP6: 37884.438 | NQ6: 26401.512 | NR6: 43301.094 | NS6: 29276.086 | NT6: 40902.813 | NU6: 27630.859 | NV6: 33255.164 | NW6: 23377.086 | NX6: 33016.641 | NY6: 21490.574 | NZ6: 26909.428 | OA6: 22733.076 | OB6: 34843.047 | OC6: 25245.48 | OD6: 33598.785 | OE6: 24773.922 | OF6: 25966.818 | OG6: 20310.092 | OH6: 28154.148 | OI6: 19209.078 | OJ6: 30094.051 | OK6: 20182.504 | OL6: 33187.25 | OM6: 25476.73 | ON6: 39866.324 | OO6: 25012.855 | OP6: 43723.262 | OQ6: 29561.512 | OR6: 41297.734 | OS6: 27897.641 | OT6: 33560.469 | OU6: 23591.703 | OV6: 31975.529 | OW6: 23023.604 | OX6: 28379.373 | OY6: 21655.818 | OZ6: 34966.473 | PA6: 25334.906 | PB6: 32334.105 | PC6: 26322.574 | PD6: 26421.189 | PE6: 18865.029 | PF6: 28386.375 | PG6: 19367.527 | PH6: 30355.24 | PI6: 20357.67 | PJ6: 33474.078 | PK6: 25696.918 | PL6: 40205.453 | PM6: 25225.629 | PN6: 42322.035 | PO6: 31632.105 | PP6: 43372.887 | PQ6: 26451.02 | PR6: 33850.07 | PS6: 23795.285 | PT6: 32248.975 | PU6: 23220.494 | PV6: 28596.43 | PW6: 21821.449 | PX6: 35101.801 | PY6: 25432.957 | PZ6: 32416.994 | QA6: 26390.053 | QB6: 26548.672 | QC6: 18956.051 | QD6: 28547.734 | QE6: 19477.617 | QF6: 29266.945 | QG6: 21773.109 | QH6: 35149.547 | QI6: 24419.398 | QJ6: 40481.559 | QK6: 25398.863 | QL6: 42643.82 | QM6: 31872.617 | QN6: 43700.656 | QO6: 26650.906 | QP6: 34088.988 | QQ6: 23963.234 | QR6: 32474.195 | QS6: 23382.66 | QT6: 28770.037 | QU6: 21953.928 | QV6: 33713.996 | QW6: 26975.672 | QX6: 34054.477 | QY6: 25109.922 | QZ6: 26788.27 | RA6: 19127.125 | RB6: 28838.586 | RC6: 19676.059 | RD6: 29578.932 | RE6: 22005.213 | RF6: 35519.789 | RG6: 24676.613 | RH6: 40897.426 | RI6: 25659.785 | RJ6: 43110.703 | RK6: 32221.578 | RL6: 44197.863 | RM6: 26954.137 | RN6: 33017.34 | RO6: 25726.781 | RQ6: 634493.404 | RR6: 628523.923 | RS6: 572815.834 | RT6: 582135.835 | RU6: 600838.355 | RV6: 612635.869 | RW6: 587056.467 | RX6: 594672.444 | RY6: 565021.603 | RZ6: 649547.464 | SA6: 655294.576 | SB6: 661116.418 | SC6: 666982.193 | SD6: 670258.11 | SE6: 676346.4 | SF6: 682539.243 | SG6: 689703.124 | SH6: 693770.892 | SI6: 698168.869 | SJ6: 704431.087
B7: 10027 | C7: Big Bend Elec Coop | D7: 21513.086 | E7: 14715.813 | F7: 13251.338 | G7: 9881.162 | H7: 15817.067 | I7: 11782.233 | J7: 15545.653 | K7: 11437.546 | L7: 12959.495 | M7: 9008.204 | N7: 12804.505 | O7: 8590.396 | P7: 22933.857 | Q7: 15721.443 | R7: 34279.961 | S7: 25465.738 | T7: 41382.516 | U7: 28182.281 | V7: 45614.664 | W7: 34317.938 | X7: 43359.336 | Y7: 29669.367 | Z7: 31536.848 | AA7: 23457.254 | AB7: 22829.391 | AC7: 15471.355 | AD7: 14325.249 | AE7: 10680.446 | AF7: 16843.117 | AG7: 12558.838 | AH7: 15295.813 | AI7: 11262.022 | AJ7: 13843.08 | AK7: 9639.91 | AL7: 14317.738 | AM7: 9469.305 | AN7: 24449.273 | AO7: 16639.887 | AP7: 37373.891 | AQ7: 27875.586 | AR7: 43250.137 | AS7: 29637.895 | AT7: 46985.773 | AU7: 35652.375 | AV7: 44403.324 | AW7: 30634.066 | AX7: 32947.977 | AY7: 24530.926 | AZ7: 22822.725 | BA7: 15467.501 | BB7: 14622.054 | BC7: 10901.735 | BD7: 17142.391 | BE7: 12777.66 | BF7: 15594.213 | BG7: 11481.727 | BH7: 14148.497 | BI7: 9852.593 | BJ7: 14629.589 | BK7: 9675.552 | BL7: 24353.107 | BM7: 16586.008 | BN7: 36964.844 | BO7: 27539.742 | BP7: 42581.688 | BQ7: 29201.025 | BR7: 46205.684 | BS7: 35037.563 | BT7: 43711.047 | BU7: 30185.223 | BV7: 32598.051 | BW7: 24294.336 | BX7: 23131.541 | BY7: 15676.786 | BZ7: 14918.863 | CA7: 11123.027 | CB7: 17439.23 | CC7: 12998.92 | CD7: 15892.603 | CE7: 11701.427 | CF7: 14453.914 | CG7: 10065.275 | CH7: 14941.44 | CI7: 9881.8 | CJ7: 24661.391 | CK7: 16795.822 | CL7: 37261.602 | CM7: 27761.086 | CN7: 42889.109 | CO7: 29411.697 | CP7: 46500.258 | CQ7: 35261.09 | CR7: 44017.641 | CS7: 30396.746 | CT7: 32895.035 | CU7: 24515.453 | CV7: 23787.539 | CW7: 16121.354 | CX7: 15625.582 | CY7: 11649.934 | CZ7: 18256.492 | DA7: 13608.094 | DB7: 17752.979 | DC7: 13071.188 | DD7: 15233.338 | DE7: 10608.043 | DF7: 15686.213 | DG7: 10374.371 | DH7: 25796 | DI7: 17568.025 | DJ7: 35417.461 | DK7: 26385.617 | DL7: 44227.086 | DM7: 30328.564 | DN7: 45728.102 | DO7: 34675.184 | DP7: 43835.719 | DQ7: 30271.238 | DR7: 32485.93 | DS7: 24210.859 | DT7: 23981.061 | DU7: 16252.505 | DV7: 15811.938 | DW7: 11788.874 | DX7: 18442.943 | DY7: 13747.072 | DZ7: 17940.973 | EA7: 13209.604 | EB7: 15158.565 | EC7: 10555.974 | ED7: 15882.019 | EE7: 10503.87 | EF7: 25989.258 | EG7: 17699.553 | EH7: 35603.215 | EI7: 26524.164 | EJ7: 44419.59 | EK7: 30460.482 | EL7: 45912.543 | EM7: 34815.133 | EN7: 44027.652 | EO7: 30403.648 | EP7: 32671.855 | EQ7: 24349.285 | ER7: 23616.064 | ES7: 16018.583 | ET7: 15556.135 | EU7: 11521.268 | EV7: 18588.633 | EW7: 13756.594 | EX7: 18472.557 | EY7: 13597.803 | EZ7: 15475.735 | FA7: 10807.876 | FB7: 14530.353 | FC7: 9735.968 | FD7: 19890.738 | FE7: 13263.612 | FF7: 37430.484 | FG7: 28198.912 | FH7: 49519.953 | FI7: 34259.688 | FJ7: 48666.66 | FK7: 36655.766 | FL7: 44233.012 | FM7: 29921.9 | FN7: 32366.777 | FO7: 24443.57 | FP7: 23753.238 | FQ7: 16111.62 | FR7: 15688.392 | FS7: 11619.22 | FT7: 18720.936 | FU7: 13854.504 | FV7: 18605.158 | FW7: 13695.412 | FX7: 15611.282 | FY7: 10902.538 | FZ7: 14668.199 | GA7: 9828.33 | GB7: 20028.867 | GC7: 13355.694 | GD7: 37561.746 | GE7: 28297.854 | GF7: 49656.047 | GG7: 34353.805 | GH7: 48797.945 | GI7: 36754.691 | GJ7: 44370.348 | GK7: 30014.768 | GL7: 32497.98 | GM7: 24542.578 | GN7: 24282.41 | GO7: 16542.656 | GP7: 16261.106 | GQ7: 12006.714 | GR7: 19270.881 | GS7: 14264.768 | GT7: 19144.5 | GU7: 14116.281 | GV7: 16574.203 | GW7: 11566.521 | GX7: 15247.51 | GY7: 10209.229 | GZ7: 20616.037 | HA7: 13728.731 | HB7: 38086.125 | HC7: 28733.686 | HD7: 50258.262 | HE7: 34711.801 | HF7: 49376.004 | HG7: 37136.844 | HH7: 44928.625 | HI7: 30416.701 | HJ7: 33068.781 | HK7: 24931.984 | HL7: 24236.949 | HM7: 16476.934 | HN7: 16035.613 | HO7: 11808.049 | HP7: 19033.77 | HQ7: 14088.918 | HR7: 18847.229 | HS7: 14009.01 | HT7: 15990.276 | HU7: 11146.649 | HV7: 15011.503 | HW7: 10013.165 | HX7: 20596.52 | HY7: 13753.195 | HZ7: 38305.164 | IA7: 28864.875 | IB7: 50865.816 | IC7: 34985.184 | ID7: 49758.219 | IE7: 37502.141 | IF7: 45337.586 | IG7: 30588.117 | IH7: 33270.055 | II7: 25002.457 | IJ7: 26980.105 | IK7: 18841.563 | IL7: 18639.848 | IM7: 14201.43 | IN7: 20641.404 | IO7: 15769.187 | IP7: 20433.041 | IQ7: 15645.315 | IR7: 16439.758 | IS7: 11923.08 | IT7: 17846.639 | IU7: 12421.387 | IV7: 26945.975 | IW7: 18452.26 | IX7: 40455.031 | IY7: 30910 | IZ7: 51130.242 | JA7: 35693.945 | JB7: 52239.949 | JC7: 39803.605 | JD7: 44310.625 | JE7: 30351.383 | JF7: 31244.938 | JG7: 24287.375 | JH7: 27478.604 | JI7: 19180.455 | JJ7: 18985.5 | JK7: 14455.957 | JL7: 21023.777 | JM7: 16052.22 | JN7: 20811.598 | JO7: 15926.091 | JP7: 16745.025 | JQ7: 12136.144 | JR7: 18178.275 | JS7: 12642.898 | JT7: 27443.734 | JU7: 18784.148 | JV7: 41199.449 | JW7: 31469.785 | JX7: 52069.867 | JY7: 36341.039 | JZ7: 53199.73 | KA7: 40525.926 | KB7: 45125.871 | KC7: 30900.59 | KD7: 31820.824 | KE7: 24726.34 | KF7: 27938.098 | KG7: 19492.832 | KH7: 19286.43 | KI7: 14677.551 | KJ7: 21361.801 | KK7: 16302.427 | KL7: 21145.607 | KM7: 16173.827 | KN7: 17383.869 | KO7: 12598.058 | KP7: 18459.084 | KQ7: 12830.461 | KR7: 27904.24 | KS7: 19091.193 | KT7: 41924.508 | KU7: 32015.023 | KV7: 53003.094 | KW7: 36983.711 | KX7: 54154.77 | KY7: 41244.684 | KZ7: 45923.301 | LA7: 31437.793 | LB7: 32368.588 | LC7: 25143.869 | LD7: 27979.303 | LE7: 19520.846 | LF7: 19217.365 | LG7: 14626.693 | LH7: 21370.643 | LI7: 16308.972 | LJ7: 21136.48 | LK7: 16167.056 | LL7: 16308.23 | LM7: 11831.28 | LN7: 18439.094 | LO7: 12817.109 | LP7: 27982.197 | LQ7: 19143.174 | LR7: 42045.352 | LS7: 32105.898 | LT7: 53163.531 | LU7: 37094.203 | LV7: 54315.484 | LW7: 41365.641 | LX7: 46100.094 | LY7: 31556.898 | LZ7: 32491.367 | MA7: 25237.457 | MB7: 28108.203 | MC7: 19608.477 | MD7: 19304.084 | ME7: 14690.549 | MF7: 21468.59 | MG7: 16381.474 | MH7: 21232.654 | MI7: 16238.39 | MJ7: 16381.54 | MK7: 11882.447 | ML7: 18521.982 | MM7: 12872.475 | MN7: 28111.426 | MO7: 19229.34 | MP7: 42241.066 | MQ7: 32253.066 | MR7: 53412.176 | MS7: 37265.441 | MT7: 54569.582 | MU7: 41556.863 | MV7: 46315.047 | MW7: 31701.695 | MX7: 32642.215 | MY7: 25352.441 | MZ7: 28237.697 | NA7: 19696.51 | NB7: 19391.178 | NC7: 14754.682 | ND7: 21566.473 | NE7: 16453.926 | NF7: 21329.779 | NG7: 16310.429 | NH7: 16455.168 | NI7: 11933.837 | NJ7: 18605.781 | NK7: 12928.443 | NL7: 28241.746 | NM7: 19316.23 | NN7: 42438.207 | NO7: 32401.316 | NP7: 53661.52 | NQ7: 37437.145 | NR7: 54824.289 | NS7: 41748.563 | NT7: 46531.445 | NU7: 31847.484 | NV7: 32794.23 | NW7: 25468.313 | NX7: 28368.314 | NY7: 19785.307 | NZ7: 19478.641 | OA7: 14819.086 | OB7: 21664.785 | OC7: 16526.699 | OD7: 21426.824 | OE7: 16382.407 | OF7: 17577.35 | OG7: 12733.101 | OH7: 18689.365 | OI7: 12984.273 | OJ7: 28372.176 | OK7: 19403.199 | OL7: 42635.766 | OM7: 32549.875 | ON7: 53911.984 | OO7: 37609.633 | OP7: 55080.234 | OQ7: 41941.18 | OR7: 46748.375 | OS7: 31993.617 | OT7: 32946.508 | OU7: 25584.383 | OV7: 28498.979 | OW7: 19874.135 | OX7: 19566.453 | OY7: 14883.75 | OZ7: 21764.047 | PA7: 16600.172 | PB7: 21524.27 | PC7: 16454.684 | PD7: 16603.84 | PE7: 12037.603 | PF7: 18773.857 | PG7: 13040.711 | PH7: 28503.203 | PI7: 19490.563 | PJ7: 42834.227 | PK7: 32699.117 | PL7: 54164.152 | PM7: 37783.301 | PN7: 55337.879 | PO7: 42135.082 | PP7: 46966.316 | PQ7: 32140.441 | PR7: 33099.469 | PS7: 25700.98 | PT7: 28630.248 | PU7: 19963.377 | PV7: 19654.654 | PW7: 14948.697 | PX7: 21863.229 | PY7: 16673.588 | PZ7: 21622.695 | QA7: 16527.684 | QB7: 16678.391 | QC7: 12089.638 | QD7: 18858.156 | QE7: 13097.014 | QF7: 28634.828 | QG7: 19578.324 | QH7: 43034.105 | QI7: 32849.418 | QJ7: 54416.992 | QK7: 37957.422 | QL7: 55596.211 | QM7: 42329.492 | QN7: 47185.309 | QO7: 32287.973 | QP7: 33253.594 | QQ7: 25818.457 | QR7: 28762.67 | QS7: 20053.4 | QT7: 19743.221 | QU7: 15013.912 | QV7: 21962.842 | QW7: 16747.322 | QX7: 21721.006 | QY7: 16600.6 | QZ7: 16753.248 | RA7: 12141.882 | RB7: 18943.363 | RC7: 13153.928 | RD7: 28767.547 | RE7: 19666.82 | RF7: 43234.434 | RG7: 33000.066 | RH7: 54670.996 | RI7: 38132.348 | RJ7: 55855.734 | RK7: 42524.813 | RL7: 47405.762 | RM7: 32436.48 | RN7: 33408 | RO7: 25936.156 | RQ7: 533227.701 | RR7: 560917.374 | RS7: 558374.555 | RT7: 564591.756 | RU7: 572704.912 | RV7: 576151.776 | RW7: 580528.641 | RX7: 583291.152 | RY7: 595480.36 | RZ7: 595527.394 | SA7: 635608.085 | SB7: 647223.847 | SC7: 658844.819 | SD7: 658324.367 | SE7: 661341.223 | SF7: 664374.391 | SG7: 669213.082 | SH7: 670477.231 | SI7: 673549.496 | SJ7: 676636.55
B8: 10029 | C8: Blachly Lane Elec Coop | D8: 8987.786 | E8: 4688.754 | F8: 9182.613 | G8: 5859.493 | H8: 10370.279 | I8: 6218.675 | J8: 10454.674 | K8: 6597.378 | L8: 9908.985 | M8: 5558.084 | N8: 9793.305 | O8: 5360.581 | P8: 9412.046 | Q8: 5154.786 | R8: 8243.752 | S8: 5013.926 | T8: 8700.613 | U8: 4557.468 | V8: 8227.113 | W8: 4861.131 | X8: 8870.017 | Y8: 4531.24 | Z8: 8177.497 | AA8: 4535.59 | AB8: 8912.844 | AC8: 5004.375 | AD8: 9779.031 | AE8: 5799.013 | AF8: 10480.322 | AG8: 6284.665 | AH8: 10425.88 | AI8: 6579.209 | AJ8: 9927.284 | AK8: 5630.463 | AL8: 9935.862 | AM8: 5438.612 | AN8: 9353.297 | AO8: 5521.052 | AP8: 8540.456 | AQ8: 4834.116 | AR8: 8687.688 | AS8: 4550.698 | AT8: 8351.894 | AU8: 4934.858 | AV8: 9029.969 | AW8: 4612.952 | AX8: 8228.624 | AY8: 4563.948 | AZ8: 8732.387 | BA8: 4908.583 | BB8: 9382.453 | BC8: 5556.914 | BD8: 9934.25 | BE8: 6396.465 | BF8: 10369.415 | BG8: 6094.255 | BH8: 9571.111 | BI8: 5429.097 | BJ8: 9952.958 | BK8: 5450.867 | BL8: 9097.54 | BM8: 5377.306 | BN8: 8306.649 | BO8: 4720.977 | BP8: 8460.266 | BQ8: 4452.161 | BR8: 8121.61 | BS8: 4804.461 | BT8: 9061.939 | BU8: 4646.96 | BV8: 7986.202 | BW8: 4783.687 | BX8: 8962.799 | BY8: 4678.17 | BZ8: 9382.453 | CA8: 5556.914 | CB8: 9934.25 | CC8: 6396.465 | CD8: 10369.415 | CE8: 6094.255 | CF8: 9571.111 | CG8: 5429.097 | CH8: 9692.42 | CI8: 5711.404 | CJ8: 9350.188 | CK8: 5124.659 | CL8: 8306.649 | CM8: 4720.977 | CN8: 8234.89 | CO8: 4677.537 | CP8: 8339.946 | CQ8: 4586.125 | CR8: 9061.939 | CS8: 4646.96 | CT8: 7986.202 | CU8: 4783.687 | CV8: 9836.74 | CW8: 5167.726 | CX8: 10091.908 | CY8: 6033.387 | CZ8: 11120.971 | DA8: 7186.165 | DB8: 11245.355 | DC8: 6675.118 | DD8: 10856.315 | DE8: 6126.806 | DF8: 10376.212 | DG8: 6147.777 | DH8: 10062.282 | DI8: 5561.245 | DJ8: 8812.032 | DK8: 5423.962 | DL8: 9464.813 | DM8: 5029.785 | DN8: 9314.549 | DO8: 5177.946 | DP8: 9553.773 | DQ8: 5296.109 | DR8: 8874.253 | DS8: 5002.121 | DT8: 9926.176 | DU8: 5221.073 | DV8: 9861.519 | DW8: 6329.415 | DX8: 11415.077 | DY8: 6892.059 | DZ8: 10956.24 | EA8: 6964.233 | EB8: 10451.225 | EC8: 5961.325 | ED8: 10641.45 | EE8: 5882.539 | EF8: 10062.282 | EG8: 5561.245 | EH8: 8812.032 | EI8: 5423.962 | EJ8: 9464.813 | EK8: 5029.785 | EL8: 9314.549 | EM8: 5177.946 | EN8: 9553.773 | EO8: 5296.109 | EP8: 8874.253 | EQ8: 5002.121 | ER8: 9364.296 | ES8: 5360.448 | ET8: 8900.123 | EU8: 5364.712 | EV8: 10530.587 | EW8: 6422.161 | EX8: 10911.128 | EY8: 6948.458 | EZ8: 9710.449 | FA8: 5578.943 | FB8: 10638.438 | FC8: 5824.798 | FD8: 9677.58 | FE8: 5251.539 | FF8: 8315.484 | FG8: 5128.628 | FH8: 8813.744 | FI8: 4704.797 | FJ8: 8614.854 | FK8: 5156.623 | FL8: 9207.836 | FM8: 4873.14 | FN8: 8297.97 | FO8: 4670.208 | FP8: 9364.296 | FQ8: 5360.448 | FR8: 8900.123 | FS8: 5364.712 | FT8: 10530.587 | FU8: 6422.161 | FV8: 10911.128 | FW8: 6948.458 | FX8: 9710.449 | FY8: 5578.943 | FZ8: 10638.438 | GA8: 5824.798 | GB8: 9396.667 | GC8: 5532.452 | GD8: 8560.294 | GE8: 4883.818 | GF8: 8813.744 | GG8: 4704.797 | GH8: 8614.854 | GI8: 5156.623 | GJ8: 9207.836 | GK8: 4873.14 | GL8: 8297.97 | GM8: 4670.208 | GN8: 9991.521 | GO8: 5695.811 | GP8: 9507.558 | GQ8: 5719.516 | GR8: 10837.093 | GS8: 7077.411 | GT8: 11866.858 | GU8: 6970.827 | GV8: 10751.012 | GW8: 6063.164 | GX8: 11036.403 | GY8: 6473.219 | GZ8: 10314.747 | HA8: 5584.672 | HB8: 9153.612 | HC8: 5219.337 | HD8: 9229.433 | HE8: 5302.847 | HF8: 9464.484 | HG8: 5231.133 | HH8: 9831.97 | HI8: 5197.569 | HJ8: 8664.693 | HK8: 5240.533 | HL8: 10378.625 | HM8: 5553.841 | HN8: 9567.989 | HO8: 5821.083 | HP8: 11199.507 | HQ8: 7356.871 | HR8: 12147.839 | HS8: 7170.861 | HT8: 10366.221 | HU8: 5995.7 | HV8: 10971.665 | HW8: 6570.016 | HX8: 10219.566 | HY8: 5675.454 | HZ8: 9263.147 | IA8: 5357.494 | IB8: 9308.684 | IC8: 5412.425 | ID8: 9519.685 | IE8: 5354.215 | IF8: 9678.5 | IG8: 5506.785 | IH8: 8937.972 | II8: 5078.172 | IJ8: 10379.005 | IK8: 5554.045 | IL8: 9301.77 | IM8: 6087.869 | IN8: 11511.356 | IO8: 7045.605 | IP8: 12926.451 | IQ8: 7633.938 | IR8: 11091.502 | IS8: 6392.307 | IT8: 11779.136 | IU8: 7002.936 | IV8: 10990.496 | IW8: 6106.488 | IX8: 9827.087 | IY8: 6035.609 | IZ8: 10354.154 | JA8: 5569.043 | JB8: 10315.478 | JC8: 5800.649 | JD8: 10501.102 | JE8: 5926.267 | JF8: 9720.76 | JG8: 5496.692 | JH8: 11193.243 | JI8: 5982.838 | JJ8: 10077.052 | JK8: 6519.176 | JL8: 12301.987 | JM8: 7500.202 | JN8: 13085.048 | JO8: 8245.433 | JP8: 11541.322 | JQ8: 6638.277 | JR8: 12574.796 | JS8: 6976.563 | JT8: 11468.622 | JU8: 6373.814 | JV8: 10329.063 | JW8: 6303.952 | JX8: 10844.189 | JY8: 5824.539 | JZ8: 10809.023 | KA8: 6077.526 | KB8: 11011.285 | KC8: 6186.42 | KD8: 10206.247 | KE8: 5756.252 | KF8: 11430.251 | KG8: 6516.014 | KH8: 10821.91 | KI8: 6518.754 | KJ8: 12789.756 | KK8: 7780.71 | KL8: 13086.374 | KM8: 8246.274 | KN8: 11945.681 | KO8: 6802.589 | KP8: 12576.188 | KQ8: 6977.337 | KR8: 11194.217 | KS8: 6650.318 | KT8: 10575.868 | KU8: 6059.314 | KV8: 10845.553 | KW8: 5825.274 | KX8: 10560.692 | KY8: 6328.027 | KZ8: 11267.613 | LA8: 5932.261 | LB8: 10207.585 | LC8: 5757.012 | LD8: 11428.876 | LE8: 6515.222 | LF8: 10820.604 | LG8: 6517.959 | LH8: 12476.914 | LI8: 8091.384 | LJ8: 13409.342 | LK8: 7921.139 | LL8: 11541.322 | LM8: 6638.277 | LN8: 12574.796 | LO8: 6976.563 | LP8: 11192.903 | LQ8: 6649.533 | LR8: 10574.493 | LS8: 6058.52 | LT8: 10844.189 | LU8: 5824.539 | LV8: 10559.341 | LW8: 6327.209 | LX8: 11266.194 | LY8: 5931.51 | LZ8: 9963.119 | MA8: 5999.38 | MB8: 11696.326 | MC8: 6247.771 | MD8: 10820.604 | ME8: 6517.959 | MF8: 12476.914 | MG8: 8091.384 | MH8: 13409.342 | MI8: 7921.139 | MJ8: 11541.322 | MK8: 6638.277 | ML8: 12279.936 | MM8: 7271.423 | MN8: 11468.622 | MO8: 6373.814 | MP8: 10574.493 | MQ8: 6058.52 | MR8: 10588.835 | MS8: 6079.893 | MT8: 10809.023 | MU8: 6077.526 | MV8: 11266.194 | MW8: 5931.51 | MX8: 9963.119 | MY8: 5999.38 | MZ8: 11696.326 | NA8: 6247.771 | NB8: 10820.604 | NC8: 6517.959 | ND8: 12476.914 | NE8: 8091.384 | NF8: 13409.342 | NG8: 7921.139 | NH8: 11541.322 | NI8: 6638.277 | NJ8: 12279.936 | NK8: 7271.423 | NL8: 11468.622 | NM8: 6373.814 | NN8: 10574.493 | NO8: 6058.52 | NP8: 10588.835 | NQ8: 6079.893 | NR8: 10809.023 | NS8: 6077.526 | NT8: 11011.285 | NU8: 6186.42 | NV8: 10206.247 | NW8: 5756.252 | NX8: 11697.739 | NY8: 6248.525 | NZ8: 10555.302 | OA8: 6785.363 | OB8: 12789.756 | OC8: 7780.71 | OD8: 13410.706 | OE8: 7921.942 | OF8: 11643.039 | OG8: 7105.231 | OH8: 12576.188 | OI8: 6977.337 | OJ8: 11469.971 | OK8: 6374.564 | OL8: 10330.4 | OM8: 6304.782 | ON8: 10845.553 | OO8: 5825.274 | OP8: 10810.411 | OQ8: 6078.308 | OR8: 11012.667 | OS8: 6187.207 | OT8: 10207.585 | OU8: 5757.012 | OV8: 11428.876 | OW8: 6515.222 | OX8: 10820.604 | OY8: 6517.959 | OZ8: 12788.412 | PA8: 7779.886 | PB8: 13085.048 | PC8: 8245.433 | PD8: 11541.322 | PE8: 6638.277 | PF8: 12574.796 | PG8: 6976.563 | PH8: 11468.622 | PI8: 6373.814 | PJ8: 10329.063 | PK8: 6303.952 | PL8: 10844.189 | PM8: 5824.539 | PN8: 10559.341 | PO8: 6327.209 | PP8: 11266.194 | PQ8: 5931.51 | PR8: 10206.247 | PS8: 5756.252 | PT8: 11428.876 | PU8: 6515.222 | PV8: 10820.604 | PW8: 6517.959 | PX8: 12788.412 | PY8: 7779.886 | PZ8: 13085.048 | QA8: 8245.433 | QB8: 11541.322 | QC8: 6638.277 | QD8: 12574.796 | QE8: 6976.563 | QF8: 11192.903 | QG8: 6649.533 | QH8: 10574.493 | QI8: 6058.52 | QJ8: 10844.189 | QK8: 5824.539 | QL8: 10559.341 | QM8: 6327.209 | QN8: 11266.194 | QO8: 5931.51 | QP8: 10206.247 | QQ8: 5756.252 | QR8: 11428.876 | QS8: 6515.222 | QT8: 10820.604 | QU8: 6517.959 | QV8: 12476.914 | QW8: 8091.384 | QX8: 13409.342 | QY8: 7921.139 | QZ8: 11541.322 | RA8: 6638.277 | RB8: 12574.796 | RC8: 6976.563 | RD8: 11192.903 | RE8: 6649.533 | RF8: 10574.493 | RG8: 6058.52 | RH8: 10844.189 | RI8: 5824.539 | RJ8: 10559.341 | RK8: 6327.209 | RL8: 11266.194 | RM8: 5931.51 | RN8: 9963.119 | RO8: 5999.38 | RQ8: 173265.786 | RR8: 175407.112 | RS8: 171598.513 | RT8: 171598.512 | RU8: 188437.35 | RV8: 188075.201 | RW8: 178266.944 | RX8: 178266.944 | RY8: 190425.423 | RZ8: 192412.317 | SA8: 203349.745 | SB8: 213826.869 | SC8: 216695.572 | SD8: 216103.328 | SE8: 216103.326 | SF8: 216103.327 | SG8: 216695.572 | SH8: 216103.33 | SI8: 216103.328 | SJ8: 216103.328
B9: 10044 | C9: Canby, City of | D9: 9530.083 | E9: 4919.665 | F9: 10323.782 | G9: 6602.677 | H9: 12154.946 | I9: 7105.22 | J9: 11332.89 | K9: 7166.81 | L9: 10521.146 | M9: 5682.753 | N9: 10158.859 | O9: 5328.671 | P9: 9463.064 | Q9: 5021.92 | R9: 8811.851 | S9: 5278.779 | T9: 9201.647 | U9: 4714.934 | V9: 9833.667 | W9: 5792.103 | X9: 10499.475 | Y9: 5216.49 | Z9: 8935.397 | AA9: 4954.072 | AB9: 8759.803 | AC9: 4973.744 | AD9: 10207.023 | AE9: 6042.545 | AF9: 11659.224 | AG9: 6869.756 | AH9: 10833.36 | AI9: 6951.744 | AJ9: 9816.252 | AK9: 5438.438 | AL9: 9701.263 | AM9: 5105.008 | AN9: 8712.765 | AO9: 5084.697 | AP9: 8598.546 | AQ9: 4776.362 | AR9: 8701.468 | AS9: 4524.643 | AT9: 9281.74 | AU9: 5638.121 | AV9: 9950.019 | AW9: 5058.24 | AX9: 8484.952 | AY9: 4717.734 | AZ9: 8756.853 | BA9: 4971.372 | BB9: 10209.616 | BC9: 6043.601 | BD9: 11274.307 | BE9: 7263.707 | BF9: 11218.042 | BG9: 6580.543 | BH9: 9830.698 | BI9: 5446.762 | BJ9: 9717.832 | BK9: 5113.482 | BL9: 8723.088 | BM9: 5092.771 | BN9: 8611.672 | BO9: 4782.032 | BP9: 8719.151 | BQ9: 4533.158 | BR9: 9296.766 | BS9: 5647.207 | BT9: 9965.48 | BU9: 5065.953 | BV9: 8211.381 | BW9: 5013.967 | BX9: 9107.053 | BY9: 4712.61 | BZ9: 10263.229 | CA9: 6075.375 | CB9: 11323.146 | CC9: 7294.989 | CD9: 11265.211 | CE9: 6608.471 | CF9: 9878.479 | CG9: 5473.211 | CH9: 9451.373 | CI9: 5453.802 | CJ9: 9072.976 | CK9: 4817.053 | CL9: 8659.143 | CM9: 4808.521 | CN9: 8476.777 | CO9: 4848.786 | CP9: 9659.086 | CQ9: 5358.114 | CR9: 10013.939 | CS9: 5090.615 | CT9: 8256.729 | CU9: 5041.577 | CV9: 9130.538 | CW9: 4725.213 | CX9: 10304.729 | CY9: 6100.029 | CZ9: 11357.404 | DA9: 7316.489 | DB9: 11300.285 | DC9: 6630.604 | DD9: 10163.474 | DE9: 5552.413 | DF9: 9486.163 | DG9: 5472.721 | DH9: 9118.656 | DI9: 4840.874 | DJ9: 8373.217 | DK9: 5092.556 | DL9: 8808.957 | DM9: 4580.14 | DN9: 9698.535 | DO9: 5380.829 | DP9: 9737.303 | DQ9: 5431.3 | DR9: 8588.777 | DS9: 4775.014 | DT9: 9192.267 | DU9: 4758.159 | DV9: 10001.327 | DW9: 6490.657 | DX9: 11801.466 | DY9: 6953.262 | DZ9: 10968.218 | EA9: 7037.662 | EB9: 9960.949 | EC9: 5518.688 | ED9: 9842.485 | EE9: 5179.19 | EF9: 9155.944 | EG9: 4860.785 | EH9: 8413.177 | EI9: 5116.864 | EJ9: 8851.048 | EK9: 4602.078 | EL9: 9739.605 | EM9: 5403.688 | EN9: 9778.262 | EO9: 5454.162 | EP9: 8629.624 | EQ9: 4797.787 | ER9: 9632.176 | ES9: 5640.131 | ET9: 10354.18 | EU9: 6341.374 | EV9: 11913.128 | EW9: 7174.902 | EX9: 11523.938 | EY9: 7579.709 | EZ9: 9915.72 | FA9: 5615.697 | FB9: 10530.874 | FC9: 5692.655 | FD9: 9658.257 | FE9: 5218.625 | FF9: 8460.366 | FG9: 5258.597 | FH9: 9385.653 | FI9: 5031.239 | FJ9: 9961.146 | FK9: 6178.536 | FL9: 10717.621 | FM9: 5609.156 | FN9: 8907.49 | FO9: 5170.499 | FP9: 9665.138 | FQ9: 5659.441 | FR9: 10416.269 | FS9: 6379.401 | FT9: 11984.6 | FU9: 7217.947 | FV9: 11593.067 | FW9: 7625.182 | FX9: 9975.184 | FY9: 5649.369 | FZ9: 10594.032 | GA9: 5726.793 | GB9: 9380.252 | GC9: 5585.838 | GD9: 8810.891 | GE9: 4990.316 | GF9: 9441.929 | GG9: 5061.407 | GH9: 10020.884 | GI9: 6215.587 | GJ9: 10781.903 | GK9: 5642.795 | GL9: 8960.898 | GM9: 5201.498 | GN9: 10456.862 | GO9: 6124.291 | GP9: 10676.819 | GQ9: 6537.007 | GR9: 12462.782 | GS9: 8190.686 | GT9: 12867.27 | GU9: 7794.74 | GV9: 11238.717 | GW9: 6305.138 | GX9: 11115.585 | GY9: 6650.214 | GZ9: 10603.74 | HA9: 5757.387 | HB9: 9795.228 | HC9: 5624.52 | HD9: 10039.406 | HE9: 5931.132 | HF9: 11367.804 | HG9: 6456.271 | HH9: 11750.44 | HI9: 6222.325 | HJ9: 9478.985 | HK9: 6057.799 | HL9: 9967.554 | HM9: 5358.878 | HN9: 9998.629 | HO9: 6215.761 | HP9: 11624.313 | HQ9: 7777.496 | HR9: 11841.159 | HS9: 7219.549 | HT9: 9993.771 | HU9: 5754.137 | HV9: 10358.316 | HW9: 6341.585 | HX9: 9667.718 | HY9: 5332.347 | HZ9: 9102.293 | IA9: 5226.32 | IB9: 9294.357 | IC9: 5603.427 | ID9: 10576.376 | IE9: 6106.902 | IF9: 10722.724 | IG9: 6308.711 | IH9: 8991.17 | II9: 5314.457 | IJ9: 10021.91 | IK9: 5388.103 | IL9: 9681.948 | IM9: 6613.334 | IN9: 12099.163 | IO9: 7386.225 | IP9: 11893.08 | IQ9: 7251.205 | IR9: 10041.679 | IS9: 5781.721 | IT9: 10410.158 | IU9: 6373.322 | IV9: 9719.846 | IW9: 5361.098 | IX9: 8841.209 | IY9: 5570.987 | IZ9: 9682.232 | JA9: 5296.435 | JB9: 10629.362 | JC9: 6137.497 | JD9: 10775.351 | JE9: 6339.674 | JF9: 9042.009 | JG9: 5344.506 | JH9: 10076.269 | JI9: 5417.327 | JJ9: 9730.01 | JK9: 6646.163 | JL9: 12151.062 | JM9: 7417.908 | JN9: 11525.84 | JO9: 7702.022 | JP9: 10089.585 | JQ9: 5809.305 | JR9: 10830.188 | JS9: 6036.87 | JT9: 9771.973 | JU9: 5389.851 | JV9: 8892.481 | JW9: 5603.296 | JX9: 9734.515 | JY9: 5325.036 | JZ9: 10682.351 | KA9: 6168.094 | KB9: 10827.976 | KC9: 6370.635 | KD9: 9092.849 | KE9: 5374.556 | KF9: 9791.049 | KG9: 5786.127 | KH9: 10148.274 | KI9: 6308.79 | KJ9: 12202.958 | KK9: 7449.589 | KL9: 11575.938 | KM9: 7735.5 | KN9: 10498.301 | KO9: 5958.305 | KP9: 10883.852 | KQ9: 6066.783 | KR9: 9480.741 | KS9: 5761.962 | KT9: 9261.58 | KU9: 5317.78 | KV9: 9786.797 | KW9: 5353.636 | KX9: 10366.184 | KY9: 6567.844 | KZ9: 11257.348 | LA9: 6024.853 | LB9: 9143.688 | LC9: 5404.605 | LD9: 9843.584 | LE9: 5817.175 | LF9: 10198.155 | LG9: 6339.798 | LH9: 11824.614 | LI9: 7911.512 | LJ9: 12048.841 | LK9: 7346.173 | LL9: 10185.4 | LM9: 5864.473 | LN9: 10937.517 | LO9: 6096.697 | LP9: 9531.046 | LQ9: 5792.537 | LR9: 9314.677 | LS9: 5348.266 | LT9: 9839.081 | LU9: 5382.235 | LV9: 10417.351 | LW9: 6600.262 | LX9: 11311.796 | LY9: 6053.993 | LZ9: 8864.985 | MA9: 5764.196 | MB9: 10239.341 | MC9: 5505 | MD9: 10248.038 | ME9: 6370.808 | MF9: 11874.69 | MG9: 7945.016 | MH9: 12100.761 | MI9: 7377.83 | MJ9: 10233.308 | MK9: 5892.056 | ML9: 10617.519 | MM9: 6500.272 | MN9: 9928.355 | MO9: 5476.105 | MP9: 9367.772 | MQ9: 5378.753 | MR9: 9546.663 | MS9: 5755.538 | MT9: 10841.315 | MU9: 6259.88 | MV9: 11366.244 | MW9: 6083.134 | MX9: 8914.002 | MY9: 5796.068 | MZ9: 10293.698 | NA9: 5534.224 | NB9: 10297.919 | NC9: 6401.818 | ND9: 11924.766 | NE9: 7978.52 | NF9: 12152.684 | NG9: 7409.485 | NH9: 10281.216 | NI9: 5919.64 | NJ9: 10669.357 | NK9: 6532.01 | NL9: 9980.483 | NM9: 5504.857 | NN9: 9420.868 | NO9: 5409.239 | NP9: 9597.124 | NQ9: 5785.96 | NR9: 10894.304 | NS9: 6290.476 | NT9: 11038.479 | NU9: 6494.486 | NV9: 9296.204 | NW9: 5494.754 | NX9: 10348.056 | NY9: 5563.449 | NZ9: 9970.32 | OA9: 6810.308 | OB9: 12410.548 | OC9: 7576.318 | OD9: 12204.602 | OE9: 7441.141 | OF9: 10307.038 | OG9: 6462.317 | OH9: 11098.509 | OI9: 6186.436 | OJ9: 10032.61 | OK9: 5533.609 | OL9: 9148.852 | OM9: 5764.837 | ON9: 9995.931 | OO9: 5468.036 | OP9: 10947.292 | OQ9: 6321.072 | OR9: 11091.106 | OS9: 6525.448 | OT9: 9347.043 | OU9: 5524.804 | OV9: 10053.727 | OW9: 5941.359 | OX9: 10397.683 | OY9: 6463.836 | OZ9: 12462.442 | PA9: 7608 | PB9: 11826.431 | PC9: 7902.889 | PD9: 10377.029 | PE9: 5974.807 | PF9: 11152.175 | PG9: 6216.349 | PH9: 10084.738 | PI9: 5562.36 | PJ9: 9200.125 | PK9: 5797.146 | PL9: 10048.214 | PM9: 5496.637 | PN9: 10622.013 | PO9: 6729.933 | PP9: 11529.59 | PQ9: 6170.555 | PR9: 9397.882 | PS9: 5554.854 | PT9: 10106.262 | PU9: 5972.406 | PV9: 10447.563 | PW9: 6494.846 | PX9: 12514.343 | PY9: 7639.681 | PZ9: 11876.529 | QA9: 7936.367 | QB9: 10424.937 | QC9: 6002.39 | QD9: 11205.838 | QE9: 6246.263 | QF9: 9782.573 | QG9: 5945.403 | QH9: 9580.154 | QI9: 5500.698 | QJ9: 10100.496 | QK9: 5525.237 | QL9: 10673.18 | QM9: 6762.351 | QN9: 11584.037 | QO9: 6199.696 | QP9: 9448.722 | QQ9: 5584.903 | QR9: 10158.799 | QS9: 6003.453 | QT9: 10497.445 | QU9: 6525.855 | QV9: 12125.066 | QW9: 8112.535 | QX9: 12360.364 | QY9: 7536.11 | QZ9: 10472.844 | RA9: 6029.975 | RB9: 11259.502 | RC9: 6276.176 | RD9: 9832.88 | RE9: 5975.976 | RF9: 9633.252 | RG9: 5531.184 | RH9: 10152.779 | RI9: 5553.838 | RJ9: 10724.346 | RK9: 6794.77 | RL9: 11638.484 | RM9: 6228.836 | RN9: 9159.086 | RO9: 5955.427 | RQ9: 188550.901 | RR9: 179887.447 | RS9: 180089.441 | RT9: 181010.265 | RU9: 181966.22 | RV9: 182507.354 | RW9: 191471.669 | RX9: 192580.621 | RY9: 209505.148 | RZ9: 194697.95 | SA9: 195682.054 | SB9: 196666.162 | SC9: 198132.484 | SD9: 198634.364 | SE9: 199618.468 | SF9: 200602.571 | SG9: 202079.682 | SH9: 202570.774 | SI9: 203554.875 | SJ9: 204538.982
B10: 10046 | C10: Central Electric Coop | D10: 29899.125 | E10: 18322.51 | F10: 37306.445 | G10: 26737.055 | H10: 47900.324 | I10: 33370.129 | J10: 42722.449 | K10: 31289.334 | L10: 37632.191 | M10: 25122.1 | N10: 34444.773 | O10: 22839.076 | P10: 31666.473 | Q10: 20331.674 | R10: 32630.199 | S10: 22901.002 | T10: 33622.547 | U10: 20905.438 | V10: 36966.012 | W10: 24541.545 | X10: 36670.406 | Y10: 22231.984 | Z10: 31710.783 | AA10: 21138.813 | AB10: 29944.375 | AC10: 18350.234 | AD10: 37279.078 | AE10: 26717.441 | AF10: 48188.047 | AG10: 33570.57 | AH10: 42363.648 | AI10: 31026.049 | AJ10: 36719.797 | AK10: 24513.008 | AL10: 34331.391 | AM10: 22763.957 | AN10: 31699.629 | AO10: 20275.137 | AP10: 32719.756 | AQ10: 22963.16 | AR10: 33598.109 | AS10: 20889.887 | AT10: 36884.895 | AU10: 24486.486 | AV10: 36377.383 | AW10: 22190.699 | AX10: 31574.275 | AY10: 21047.816 | AZ10: 30931.77 | BA10: 18955.326 | BB10: 38043.559 | BC10: 27265.566 | BD10: 49212.723 | BE10: 34284.422 | BF10: 43476.094 | BG10: 31841.299 | BH10: 37701.66 | BI10: 25168.469 | BJ10: 35367.816 | BK10: 23451.111 | BL10: 32823.176 | BM10: 20994.547 | BN10: 33682.273 | BO10: 23639.385 | BP10: 34869.328 | BQ10: 21680.646 | BR10: 37816.59 | BS10: 25106.098 | BT10: 37440.008 | BU10: 22839.316 | BV10: 32450.74 | BW10: 21632.074 | BX10: 31192.656 | BY10: 19115.199 | BZ10: 38288.676 | CA10: 27441.242 | CB10: 49460.738 | CC10: 34457.195 | CD10: 43718.992 | CE10: 32019.189 | CF10: 37953.969 | CG10: 25336.908 | CH10: 35620.813 | CI10: 23618.863 | CJ10: 33079.793 | CK10: 21158.686 | CL10: 33929.508 | CM10: 23812.906 | CN10: 35128.777 | CO10: 21841.967 | CP10: 38069.477 | CQ10: 25273.986 | CR10: 37701.352 | CS10: 22998.74 | CT10: 32703.209 | CU10: 21800.375 | CV10: 34054.18 | CW10: 20868.771 | CX10: 41200.273 | CY10: 29527.969 | CZ10: 52575.516 | DA10: 36627.129 | DB10: 47122.965 | DC10: 34512.219 | DD10: 42192.742 | DE10: 28166.586 | DF10: 38998.375 | DG10: 25858.4 | DH10: 36561.871 | DI10: 23385.908 | DJ10: 36918.641 | DK10: 25910.777 | DL10: 38777.141 | DM10: 24110.398 | DN10: 41155.543 | DO10: 27322.801 | DP10: 41739.012 | DQ10: 25461.807 | DR10: 35849.699 | DS10: 23897.867 | DT10: 34774.367 | DU10: 21310.107 | DV10: 41876.93 | DW10: 30012.922 | DX10: 53260.148 | DY10: 37104.094 | DZ10: 47793.496 | EA10: 35003.297 | EB10: 42180.902 | EC10: 28158.676 | ED10: 39696.781 | EE10: 26321.484 | EF10: 37270.27 | EG10: 23839.018 | EH10: 37601.152 | EI10: 26389.787 | EJ10: 39493.359 | EK10: 24555.719 | EL10: 41853.645 | EM10: 27786.262 | EN10: 42460.453 | EO10: 25901.908 | EP10: 36546.652 | EQ10: 24362.461 | ER10: 35607.613 | ES10: 21638.387 | ET10: 43213.512 | EU10: 29837.953 | EV10: 54220.992 | EW10: 37304.852 | EX10: 49551.91 | EY10: 34406.488 | EZ10: 43278.914 | FA10: 28222.156 | FB10: 40921.766 | FC10: 26258.006 | FD10: 38136.313 | FE10: 24134.484 | FF10: 38569.375 | FG10: 26583.084 | FH10: 40375.039 | FI10: 24835.592 | FJ10: 42681.855 | FK10: 28119.615 | FL10: 43556.707 | FM10: 25967.201 | FN10: 37223.574 | FO10: 24847.096 | FP10: 36330.09 | FQ10: 22077.434 | FR10: 43900.66 | FS10: 30312.412 | FT10: 54909.141 | FU10: 37778.313 | FV10: 50237.484 | FW10: 34882.523 | FX10: 43981.957 | FY10: 28680.609 | FZ10: 41629.277 | GA10: 26711.99 | GB10: 38847.648 | GC10: 24584.656 | GD10: 39256.98 | GE10: 27056.998 | GF10: 41094.207 | GG10: 25277.971 | GH10: 43382.098 | GI10: 28580.938 | GJ10: 44284.414 | GK10: 26401.037 | GL10: 37920.152 | GM10: 25312.066 | GN10: 37895.941 | GO10: 23028.98 | GP10: 39219.129 | GQ10: 27079.92 | GR10: 57053.949 | GS10: 39253.977 | GT10: 54134.895 | GU10: 37588.691 | GV10: 42988.406 | GW10: 28032.715 | GX10: 45353.672 | GY10: 29101.801 | GZ10: 41723.813 | HA10: 26404.832 | HB10: 37227.453 | HC10: 25658.191 | HD10: 38316.02 | HE10: 23569.045 | HF10: 42603.445 | HG10: 28067.951 | HH10: 43471.363 | HI10: 25916.32 | HJ10: 34327.273 | HK10: 22913.781 | HL10: 40733.703 | HM10: 24627.4 | HN10: 41762.34 | HO10: 29704.621 | HP10: 58986.668 | HQ10: 44739.52 | HR10: 57946.727 | HS10: 40855.426 | HT10: 44761.863 | HU10: 30190.893 | HV10: 46792.32 | HW10: 33723.656 | HX10: 43768.211 | HY10: 28014.27 | HZ10: 37552.711 | IA10: 25343.672 | IB10: 36810.129 | IC10: 24778.826 | ID10: 42124.621 | IE10: 26543.451 | IF10: 41303.652 | IG10: 26353.328 | IH10: 34108.863 | II10: 22812.021 | IJ10: 41432.762 | IK10: 25050.047 | IL10: 40512.941 | IM10: 32037.113 | IN10: 62257.723 | IO10: 42585.086 | IP10: 58600.129 | IQ10: 41316.109 | IR10: 45361.391 | IS10: 30595.258 | IT10: 47436.777 | IU10: 34188.109 | IV10: 44421.063 | IW10: 28432.131 | IX10: 36602.656 | IY10: 27397.656 | IZ10: 39075.051 | JA10: 23579.836 | JB10: 42798.805 | JC10: 26968.264 | JD10: 41973.059 | JE10: 26780.439 | JF10: 34743.301 | JG10: 23236.328 | JH10: 42113.035 | JI10: 25461.338 | JJ10: 41101.559 | JK10: 32502.586 | JL10: 62903.078 | JM10: 43026.512 | JN10: 56696.641 | JO10: 44303.961 | JP10: 45944.957 | JQ10: 30988.861 | JR10: 50146.344 | JS10: 32558.02 | JT10: 45056.625 | JU10: 28838.926 | JV10: 37217.316 | JW10: 27857.736 | JX10: 39722.285 | JY10: 23970.404 | JZ10: 43455.23 | KA10: 27381.891 | KB10: 42624.875 | KC10: 27196.322 | KD10: 35361.121 | KE10: 23649.527 | KF10: 41049.785 | KG10: 27587.629 | KH10: 43611.113 | KI10: 31019.607 | KJ10: 63531.637 | KK10: 43456.453 | KL10: 57289.547 | KM10: 44767.266 | KN10: 48484.305 | KO10: 32182.979 | KP10: 50783.949 | KQ10: 32971.98 | KR10: 43729.512 | KS10: 31181.494 | KT10: 39478.66 | KU10: 26643.465 | KV10: 40352.891 | KW10: 24350.947 | KX10: 42287.559 | KY10: 29592.186 | KZ10: 45041.695 | LA10: 25819.893 | LB10: 35963.156 | LC10: 24052.17 | LD10: 41669.355 | LE10: 28004.008 | LF10: 44195.758 | LG10: 31435.451 | LH10: 61428.305 | LI10: 46591.426 | LJ10: 60459.336 | LK10: 42626.949 | LL10: 47067.473 | LM10: 31745.975 | LN10: 51405.453 | LO10: 33375.504 | LP10: 44307.383 | LQ10: 31593.543 | LR10: 40088.113 | LS10: 27054.775 | LT10: 40967.68 | LU10: 24721.941 | LV10: 42885.613 | LW10: 30010.697 | LX10: 45686.484 | LY10: 26189.523 | LZ10: 34965.488 | MA10: 26029.508 | MB10: 44050.727 | MC10: 26632.854 | MD10: 44765.895 | ME10: 31840.98 | MF10: 62000.453 | MG10: 47025.379 | MH10: 61048.203 | MI10: 43042.125 | MJ10: 47607.895 | MK10: 32110.479 | ML10: 49852.008 | MM10: 35928.789 | MN10: 46868.133 | MO10: 29998.408 | MP10: 40682.641 | MQ10: 27456.014 | MR10: 39835.773 | MS10: 26815.549 | MT10: 45326.844 | MU10: 28561.23 | MV10: 46315.59 | MW10: 26550.15 | MX10: 35513.445 | MY10: 26437.426 | MZ10: 44665.035 | NA10: 27004.26 | NB10: 45322.246 | NC10: 32236.697 | ND10: 62558.781 | NE10: 47448.852 | NF10: 61622.875 | NG10: 43447.305 | NH10: 48135.32 | NI10: 32466.211 | NJ10: 50419.125 | NK10: 36337.512 | NL10: 47442.785 | NM10: 30366.219 | NN10: 41262.961 | NO10: 27847.66 | NP10: 40396.859 | NQ10: 27193.238 | NR10: 45920.758 | NS10: 28935.459 | NT10: 45073.395 | NU10: 28758.566 | NV10: 37682.199 | NW10: 25201.867 | NX10: 45264.797 | NY10: 27366.873 | NZ10: 43829.055 | OA10: 34659.457 | OB10: 65893.969 | OC10: 45072.332 | OD10: 62184.02 | OE10: 43842.941 | OF10: 48444.121 | OG10: 35929.266 | OH10: 53181.18 | OI10: 34528.41 | OJ10: 48004.016 | OK10: 30725.439 | OL10: 40068.215 | OM10: 29991.68 | ON10: 42724.738 | OO10: 25782.24 | OP10: 46500.844 | OQ10: 29300.986 | OR10: 45649.563 | OS10: 29126.186 | OT10: 38228.453 | OU10: 25567.197 | OV10: 44000.883 | OW10: 29570.922 | OX10: 46396.121 | OY10: 33000.52 | OZ10: 66450.148 | PA10: 45452.75 | PB10: 60042.938 | PC10: 46918.824 | PD10: 49153.59 | PE10: 33153.008 | PF10: 53745.77 | PG10: 34894.969 | PH10: 48552.406 | PI10: 31076.439 | PJ10: 40598.734 | PK10: 30388.777 | PL10: 43283.543 | PM10: 26119.447 | PN10: 45138.637 | PO10: 31587.326 | PP10: 48115.934 | PQ10: 27582.191 | PR10: 38762.324 | PS10: 25924.254 | PT10: 44550.438 | PU10: 29940.25 | PV10: 46914.816 | PW10: 33369.461 | PX10: 66993.773 | PY10: 45824.602 | PZ10: 60555.887 | QA10: 47319.652 | QB10: 49645.512 | QC10: 33484.805 | QD10: 54297.703 | QE10: 35253.328 | QF10: 46996.844 | QG10: 33511.277 | QH10: 42925.063 | QI10: 28969.381 | QJ10: 43829.895 | QK10: 26449.148 | QL10: 45670.242 | QM10: 31959.326 | QN10: 48689.215 | QO10: 27910.818 | QP10: 39284.387 | QQ10: 26273.41 | QR10: 45087.844 | QS10: 30301.416 | QT10: 47422.066 | QU10: 33730.25 | QV10: 64666.34 | QW10: 49047.371 | QX10: 63792.348 | QY10: 44976.895 | QZ10: 50126.648 | RA10: 33809.328 | RB10: 54837.555 | RC10: 35603.824 | RD10: 47498.91 | RE10: 33869.285 | RF10: 43454.723 | RG10: 29326.844 | RH10: 44364.348 | RI10: 26771.664 | RJ10: 46190.277 | RK10: 32323.244 | RL10: 49250.055 | RM10: 28232.316 | RN10: 38069.723 | RO10: 28340.41 | RQ10: 722902.387 | RR10: 720474.827 | RS10: 740673.996 | RT10: 745723.216 | RU10: 812796.59 | RV10: 825553.89 | RW10: 839492.484 | RX10: 853431.055 | RY10: 850931.563 | RZ10: 884338.892 | SA10: 897382.034 | SB10: 910079.15 | SC10: 925229.878 | SD10: 934505.741 | SE10: 946266.99 | SF10: 957746.185 | SG10: 971865.978 | SH10: 979910.455 | SI10: 990619.233 | SJ10: 1001093.684
B11: 10047 | C11: Central Lincoln PUD | D11: 67564.672 | E11: 42982.121 | F11: 68227.125 | G11: 53843.613 | H11: 78400.234 | I11: 53990.848 | J11: 76012.609 | K11: 58311.453 | L11: 70249.016 | M11: 46089.398 | N11: 72723.164 | O11: 46270.559 | P11: 64208.27 | Q11: 41973.508 | R11: 57868.273 | S11: 44872.426 | T11: 59238.773 | U11: 38906.59 | V11: 56734.945 | W11: 44253.605 | X11: 61178.293 | Y11: 39509.242 | Z11: 59213.953 | AA11: 42562.496 | AB11: 65509.203 | AC11: 45823.559 | AD11: 71679.711 | AE11: 51453.688 | AF11: 78463.281 | AG11: 54049.152 | AH11: 76263.43 | AI11: 58480.852 | AJ11: 66952.18 | AK11: 44518.594 | AL11: 72276.047 | AM11: 45993.426 | AN11: 59964.215 | AO11: 43161.66 | AP11: 59016.109 | AQ11: 41771.469 | AR11: 58852.164 | AS11: 38656.883 | AT11: 56042.566 | AU11: 43711.574 | AV11: 61276.109 | AW11: 39549.66 | AX11: 59546.172 | AY11: 42803.781 | AZ11: 65905.75 | BA11: 46101.008 | BB11: 72089 | BC11: 51747.641 | BD11: 75891.547 | BE11: 57347.461 | BF11: 79730.008 | BG11: 55746.238 | BH11: 67357.234 | BI11: 44787.781 | BJ11: 72698.5 | BK11: 46262.035 | BL11: 60344.191 | BM11: 43435.113 | BN11: 59395.559 | BO11: 42039.535 | BP11: 59238.078 | BQ11: 38910.27 | BR11: 56404.816 | BS11: 43994.184 | BT11: 61669.73 | BU11: 39803.52 | BV11: 57526.758 | BW11: 45474.281 | BX11: 68596.391 | BY11: 43683.758 | BZ11: 72265.133 | CA11: 51874.082 | CB11: 76077.094 | CC11: 57487.664 | CD11: 79924.922 | CE11: 55882.523 | CF11: 67521.508 | CG11: 44897.016 | CH11: 70185.445 | CI11: 49065.367 | CJ11: 62913.215 | CK11: 41118.828 | CL11: 59540.141 | CM11: 42141.863 | CN11: 57091.586 | CO11: 41295.602 | CP11: 58809.625 | CQ11: 41833.633 | CR11: 61819.754 | CS11: 39900.352 | CT11: 57666.703 | CU11: 45584.91 | CV11: 67900.281 | CW11: 43534.563 | CX11: 72108.844 | CY11: 52332.602 | CZ11: 75132.484 | DA11: 57653.418 | DB11: 77592.945 | DC11: 55390.742 | DD11: 68596.445 | DE11: 45336.281 | DF11: 68709.359 | DG11: 48479.484 | DH11: 62768.461 | DI11: 41544.996 | DJ11: 56743.348 | DK11: 44539.648 | DL11: 59019.992 | DM11: 39047.582 | DN11: 58569.016 | DO11: 41866.711 | DP11: 59113.59 | DQ11: 41997.148 | DR11: 59695.09 | DS11: 43233.48 | DT11: 68067.242 | DU11: 43641.625 | DV11: 69417.383 | DW11: 55330.395 | DX11: 78284.328 | DY11: 54828.762 | DZ11: 74812.891 | EA11: 58498.27 | EB11: 66049.797 | EC11: 44272.922 | ED11: 71499.984 | EE11: 45976.895 | EF11: 62922.473 | EG11: 41646.934 | EH11: 56882.496 | EI11: 44648.871 | EJ11: 59164.625 | EK11: 39143.273 | EL11: 58712.563 | EM11: 41969.324 | EN11: 59258.453 | EO11: 42100.07 | EP11: 59841.387 | EQ11: 43339.434 | ER11: 64525.313 | ES11: 45569.957 | ET11: 65538.305 | EU11: 47388.289 | EV11: 81221.016 | EW11: 57153.258 | EX11: 73935.281 | EY11: 57516.68 | EZ11: 64989.105 | FA11: 43667.758 | FB11: 72686.648 | FC11: 47009.176 | FD11: 67098.141 | FE11: 44533.004 | FF11: 53650.715 | FG11: 41884.594 | FH11: 56417.73 | FI11: 37281.777 | FJ11: 55050.125 | FK11: 43118.41 | FL11: 60581.262 | FM11: 39203.25 | FN11: 54512.363 | FO11: 39490.27 | FP11: 64629.445 | FQ11: 45643.496 | FR11: 65644.102 | FS11: 47464.777 | FT11: 81352.148 | FU11: 57245.52 | FV11: 74054.617 | FW11: 57609.508 | FX11: 65094.012 | FY11: 43738.246 | FZ11: 72803.977 | GA11: 47085.063 | GB11: 64629.789 | GC11: 47181.609 | GD11: 55871.355 | GE11: 39818.184 | GF11: 56508.773 | GG11: 37341.941 | GH11: 55138.957 | GI11: 43187.988 | GJ11: 60679.016 | GK11: 39266.508 | GL11: 54600.34 | GM11: 39554 | GN11: 65346.301 | GO11: 46127.539 | GP11: 66185.555 | GQ11: 48099.211 | GR11: 78777.031 | GS11: 60727.375 | GT11: 77755.07 | GU11: 55157.695 | GV11: 69574.039 | GW11: 46218.434 | GX11: 71821.664 | GY11: 51208.547 | GZ11: 67100.258 | HA11: 44832.91 | HB11: 57031.367 | HC11: 40734.07 | HD11: 54272.586 | HE11: 39515.922 | HF11: 58016.711 | HG11: 41565.656 | HH11: 61222.109 | HI11: 39726.738 | HJ11: 53948.281 | HK11: 42948.027 | HL11: 66888.773 | HM11: 43102.719 | HN11: 67997.328 | HO11: 49412.605 | HP11: 75775.852 | HQ11: 58530.109 | HR11: 77039.734 | HS11: 54834.543 | HT11: 67374.477 | HU11: 45450.051 | HV11: 71420.766 | HW11: 51042.5 | HX11: 65511.621 | HY11: 43819.102 | HZ11: 59743.035 | IA11: 42757.836 | IB11: 53647.074 | IC11: 39119.406 | ID11: 56534.41 | IE11: 40504.59 | IF11: 57813.973 | IG11: 41171.754 | IH11: 55985.719 | II11: 40506.508 | IJ11: 66956.336 | IK11: 43146.27 | IL11: 65361.246 | IM11: 52166.113 | IN11: 78849.398 | IO11: 55591.156 | IP11: 77116.891 | IQ11: 54889.469 | IR11: 67441.883 | IS11: 45495.527 | IT11: 71492.297 | IU11: 51093.613 | IV11: 65577.234 | IW11: 43862.992 | IX11: 57515.074 | IY11: 45088.371 | IZ11: 55840.273 | JA11: 37019.078 | JB11: 56591.012 | JC11: 40545.141 | JD11: 57871.859 | JE11: 41212.977 | JF11: 56041.723 | JG11: 40547.023 | JH11: 67023.977 | JI11: 43189.852 | JJ11: 65426.613 | JK11: 52218.289 | JL11: 78928.414 | JM11: 55646.867 | JN11: 74247.859 | JO11: 57890.73 | JP11: 67509.367 | JQ11: 45541.051 | JR11: 74303.594 | JS11: 48405.074 | JT11: 65642.93 | JU11: 43906.922 | JV11: 57572.633 | JW11: 45133.48 | JX11: 55896.18 | JY11: 37056.137 | JZ11: 56647.664 | KA11: 40585.734 | KB11: 57929.797 | KC11: 41254.242 | KD11: 56097.781 | KE11: 40587.586 | KF11: 64677.801 | KG11: 45725.926 | KH11: 68249.641 | KI11: 49595.965 | KJ11: 79063.336 | KK11: 55741.988 | KL11: 74374.711 | KM11: 57989.637 | KN11: 70433.914 | KO11: 46853.875 | KP11: 74430.508 | KQ11: 48487.766 | KR11: 63226.719 | KS11: 46510.305 | KT11: 59964.844 | KU11: 42916.59 | KV11: 55991.633 | KW11: 37119.422 | KX11: 54572.699 | KY11: 42826.758 | KZ11: 60244.016 | LA11: 39109.426 | LB11: 56193.504 | LC11: 40656.844 | LD11: 64827.691 | LE11: 45831.898 | LF11: 68406.25 | LG11: 49709.766 | LH11: 76232.461 | LI11: 58882.797 | LJ11: 77503.719 | LK11: 55164.797 | LL11: 67779.82 | LM11: 45723.496 | LN11: 74601.516 | LO11: 48599.168 | LP11: 63372.016 | LQ11: 46617.184 | LR11: 60102.52 | LS11: 43015.117 | LT11: 56120.25 | LU11: 37204.68 | LV11: 54698.063 | LW11: 42925.129 | LX11: 60382.402 | LY11: 39199.266 | LZ11: 54085.902 | MA11: 42986.727 | MB11: 67431.008 | MC11: 43452.137 | MD11: 68543.078 | ME11: 49809.199 | MF11: 76385.242 | MG11: 59000.816 | MH11: 77658.977 | MI11: 55275.301 | MJ11: 67915.461 | MK11: 45814.992 | ML11: 71994.734 | MM11: 51452.695 | MN11: 66038.211 | MO11: 44171.324 | MP11: 60222.805 | MQ11: 43101.211 | MR11: 54078.09 | MS11: 39433.699 | MT11: 56988.637 | MU11: 40830.027 | MV11: 60503.316 | MW11: 39277.762 | MX11: 54194.113 | MY11: 43072.727 | MZ11: 67567.227 | NA11: 43539.922 | NB11: 68680.18 | NC11: 49908.84 | ND11: 76538.344 | NE11: 59119.059 | NF11: 77814.547 | NG11: 55386.027 | NH11: 68051.367 | NI11: 45906.68 | NJ11: 72138.93 | NK11: 51555.746 | NL11: 66170.508 | NM11: 44259.813 | NN11: 60343.332 | NO11: 43187.469 | NP11: 54186.367 | NQ11: 39512.66 | NR11: 57102.75 | NS11: 40911.785 | NT11: 58395.207 | NU11: 41585.676 | NV11: 56548.063 | NW11: 40913.371 | NX11: 67683.648 | NY11: 43614.934 | NZ11: 66064.188 | OA11: 52727.148 | OB11: 79699.078 | OC11: 56190.215 | OD11: 77947.477 | OE11: 55480.656 | OF11: 68181.438 | OG11: 50047.996 | OH11: 75028.586 | OI11: 48877.371 | OJ11: 66283.555 | OK11: 44335.434 | OL11: 58133.98 | OM11: 45573.547 | ON11: 56441.426 | OO11: 37417.605 | OP11: 57200.27 | OQ11: 40981.652 | OR11: 58494.938 | OS11: 41656.699 | OT11: 56644.551 | OU11: 40983.184 | OV11: 65353.125 | OW11: 46203.375 | OX11: 68955.219 | OY11: 50108.695 | OZ11: 79882.32 | PA11: 56319.398 | PB11: 75144.727 | PC11: 58590.016 | PD11: 68323.992 | PE11: 46090.59 | PF11: 75200.969 | PG11: 48989.676 | PH11: 66435.875 | PI11: 44437.316 | PJ11: 58267.449 | PK11: 45678.176 | PL11: 56571.07 | PM11: 37503.547 | PN11: 55137.48 | PO11: 43269.969 | PP11: 60867.512 | PQ11: 39514.191 | PR11: 56774.555 | PS11: 41077.25 | PT11: 65485.145 | PU11: 46296.703 | PV11: 69093.148 | PW11: 50208.926 | PX11: 80042.414 | PY11: 56432.27 | PZ11: 75295.25 | QA11: 58707.383 | QB11: 68460.727 | QC11: 46182.813 | QD11: 75351.578 | QE11: 49087.785 | QF11: 64009.313 | QG11: 47085.984 | QH11: 60706.371 | QI11: 43447.293 | QJ11: 56684.336 | QK11: 37578.645 | QL11: 55247.887 | QM11: 43356.617 | QN11: 60989.391 | QO11: 39593.316 | QP11: 56888.145 | QQ11: 41159.43 | QR11: 65617.422 | QS11: 46390.227 | QT11: 69231.352 | QU11: 50309.363 | QV11: 77153.773 | QW11: 59594.434 | QX11: 78439.914 | QY11: 55831.145 | QZ11: 68597.711 | RA11: 46275.234 | RB11: 75502.492 | RC11: 49186.098 | RD11: 64137.535 | RE11: 47180.305 | RF11: 60827.867 | RG11: 43534.25 | RH11: 56797.832 | RI11: 37653.887 | RJ11: 55358.512 | RK11: 43443.43 | RL11: 61111.523 | RM11: 39672.598 | RN11: 54738.406 | RO11: 43505.332 | RQ11: 1345185.186 | RR11: 1335815.485 | RS11: 1343900.238 | RT11: 1347177.115 | RU11: 1340906.51 | RV11: 1340310.397 | RW11: 1314022.427 | RX11: 1316143.371 | RY11: 1337913.096 | RZ11: 1325984.485 | SA11: 1327312.956 | SB11: 1328642.773 | SC11: 1334957.828 | SD11: 1333972.635 | SE11: 1336645.562 | SF11: 1339323.87 | SG11: 1345689.576 | SH11: 1344696.492 | SI11: 1347390.87 | SJ11: 1350090.642
B12: 10055 | C12: Albion, City of | D12: 147.375 | E12: 94.445 | F12: 172.27 | G12: 144.254 | H12: 254.517 | I12: 188.465 | J12: 234.413 | K12: 197.44 | L12: 215.435 | M12: 153.795 | N12: 179.367 | O12: 123.916 | P12: 153.147 | Q12: 104.671 | R12: 127.728 | S12: 97.231 | T12: 130.618 | U12: 74.566 | V12: 143.087 | W12: 91.797 | X12: 142.385 | Y12: 74.614 | Z12: 122.074 | AA12: 77.466 | AB12: 140.766 | AC12: 98.826 | AD12: 179.94 | AE12: 137.538 | AF12: 254.113 | AG12: 189.091 | AH12: 234.262 | AI12: 197.57 | AJ12: 203.351 | AK12: 148.441 | AL12: 178.599 | AM12: 123.6 | AN12: 146.267 | AO12: 110.23 | AP12: 131.769 | AQ12: 91.439 | AR12: 129.745 | AS12: 73.818 | AT12: 140.873 | AU12: 90.661 | AV12: 142.533 | AW12: 74.883 | AX12: 122.859 | AY12: 78.26 | AZ12: 132.197 | BA12: 92.436 | BB12: 172.571 | BC12: 132.082 | BD12: 237.562 | BE12: 194.268 | BF12: 237.007 | BG12: 183.161 | BH12: 195.852 | BI12: 143.187 | BJ12: 170.621 | BK12: 117.917 | BL12: 138.23 | BM12: 104.257 | BN12: 123.073 | BO12: 85.575 | BP12: 121.277 | BQ12: 68.668 | BR12: 132.822 | BS12: 85.765 | BT12: 132.7 | BU12: 69.944 | BV12: 110.105 | BW12: 77.366 | BX12: 137.781 | BY12: 87.693 | BZ12: 173.047 | CA12: 132.447 | CB12: 238.025 | CC12: 194.647 | CD12: 237.482 | CE12: 183.527 | CF12: 196.337 | CG12: 143.542 | CH12: 164.579 | CI12: 124.8 | CJ12: 144.384 | CK12: 98.944 | CL12: 123.569 | CM12: 85.92 | CN12: 117.364 | CO12: 73.421 | CP12: 138.285 | CQ12: 81.143 | CR12: 133.251 | CS12: 70.234 | CT12: 110.598 | CU12: 77.713 | CV12: 142.06 | CW12: 90.913 | CX12: 179.221 | CY12: 137.338 | CZ12: 243.266 | DA12: 200.893 | DB12: 247.634 | DC12: 193.284 | DD12: 213.749 | DE12: 154.54 | DF12: 171.807 | DG12: 131.539 | DH12: 150.638 | DI12: 103.572 | DJ12: 121.062 | DK12: 93.282 | DL12: 125.508 | DM12: 71.429 | DN12: 141.099 | DO12: 82.776 | DP12: 130.282 | DQ12: 76.229 | DR12: 115.664 | DS12: 74.176 | DT12: 142.06 | DU12: 90.913 | DV12: 171.828 | DW12: 144.731 | DX12: 253.318 | DY12: 190.841 | DZ12: 237.656 | EA12: 203.262 | EB12: 205.15 | EC12: 150.44 | ED12: 178.681 | EE12: 124.665 | EF12: 150.638 | EG12: 103.572 | EH12: 121.062 | EI12: 93.282 | EJ12: 125.508 | EK12: 71.429 | EL12: 141.099 | EM12: 82.776 | EN12: 130.282 | EO12: 76.229 | EP12: 115.664 | EQ12: 74.176 | ER12: 150.502 | ES12: 106.838 | ET12: 164.839 | EU12: 127.281 | EV12: 258.32 | EW12: 195.017 | EX12: 236.124 | EY12: 201.777 | EZ12: 195.049 | FA12: 143.282 | FB12: 183.611 | FC12: 128.798 | FD12: 150.476 | FE12: 103.59 | FF12: 118.421 | FG12: 90.916 | FH12: 123.561 | FI12: 70.846 | FJ12: 134.754 | FK12: 87.22 | FL12: 134.981 | FM12: 71.929 | FN12: 113.804 | FO12: 73.567 | FP12: 150.502 | FQ12: 106.838 | FR12: 164.839 | FS12: 127.281 | FT12: 258.32 | FU12: 195.017 | FV12: 236.124 | FW12: 201.777 | FX12: 195.049 | FY12: 143.282 | FZ12: 183.611 | GA12: 128.798 | GB12: 144.623 | GC12: 109.443 | GD12: 123.088 | GE12: 86.249 | GF12: 123.561 | GG12: 70.846 | GH12: 134.754 | GI12: 87.22 | GJ12: 134.981 | GK12: 71.929 | GL12: 113.804 | GM12: 73.567 | GN12: 152.294 | GO12: 108.109 | GP12: 167.835 | GQ12: 129.594 | GR12: 250.248 | GS12: 206.806 | GT12: 248.468 | GU12: 194.031 | GV12: 206.45 | GW12: 149.555 | GX12: 178.899 | GY12: 137.512 | GZ12: 153.177 | HA12: 105.449 | HB12: 125.215 | HC12: 87.739 | HD12: 122.481 | HE12: 77.474 | HF12: 143.281 | HG12: 84.379 | HH12: 137.838 | HI12: 73.452 | HJ12: 111.376 | HK12: 79.226 | HL12: 189.572 | HM12: 122.768 | HN12: 198.657 | HO12: 153.517 | HP12: 278.67 | HQ12: 229.983 | HR12: 275.004 | HS12: 214.962 | HT12: 223.919 | HU12: 164.475 | HV12: 209.623 | HW12: 160.922 | HX12: 184.673 | HY12: 127.21 | HZ12: 157.512 | IA12: 110.437 | IB12: 153.935 | IC12: 99.419 | ID12: 179.008 | IE12: 105.527 | IF12: 168.058 | IG12: 98.529 | IH12: 151.157 | II12: 97.794 | IJ12: 190.852 | IK12: 123.597 | IL12: 191.869 | IM12: 162.345 | IN12: 290.92 | IO12: 219.843 | IP12: 276.188 | IQ12: 215.887 | IR12: 225.017 | IS12: 165.282 | IT12: 210.816 | IU12: 161.838 | IV12: 185.881 | IW12: 128.042 | IX12: 152.887 | IY12: 117.172 | IZ12: 160.907 | JA12: 94.488 | JB12: 180.335 | JC12: 106.309 | JD12: 169.388 | JE12: 99.309 | JF12: 152.397 | JG12: 98.596 | JH12: 192.132 | JI12: 124.426 | JJ12: 192.975 | JK12: 163.281 | JL12: 292.121 | JM12: 220.751 | JN12: 266.638 | JO12: 227.546 | JP12: 226.115 | JQ12: 166.089 | JR12: 220.16 | JS12: 154.603 | JT12: 187.09 | JU12: 128.875 | JV12: 154.081 | JW12: 118.087 | JX12: 162.193 | JY12: 95.243 | JZ12: 181.662 | KA12: 107.091 | KB12: 170.717 | KC12: 100.088 | KD12: 153.636 | KE12: 99.398 | KF12: 186.491 | KG12: 132.177 | KH12: 202.111 | KI12: 156.186 | KJ12: 293.322 | KK12: 221.659 | KL12: 267.776 | KM12: 228.517 | KN12: 233.662 | KO12: 169.314 | KP12: 221.399 | KQ12: 155.474 | KR12: 181.161 | KS12: 136.845 | KT12: 161.232 | KU12: 113.045 | KV12: 163.479 | KW12: 95.998 | KX12: 176.672 | KY12: 114.191 | KZ12: 177.974 | LA12: 94.94 | LB12: 154.875 | LC12: 100.2 | LD12: 187.725 | LE12: 133.052 | LF12: 203.262 | LG12: 157.076 | LH12: 283.293 | LI12: 233.798 | LJ12: 279.739 | LK12: 218.663 | LL12: 228.312 | LM12: 167.702 | LN12: 222.638 | LO12: 156.344 | LP12: 182.324 | LQ12: 137.723 | LR12: 162.472 | LS12: 113.914 | LT12: 164.765 | LU12: 96.753 | LV12: 177.953 | LW12: 115.019 | LX12: 179.35 | LY12: 95.674 | LZ12: 150.344 | MA12: 106.772 | MB12: 195.973 | MC12: 126.914 | MD12: 204.414 | ME12: 157.966 | MF12: 284.448 | MG12: 234.752 | MH12: 280.923 | MI12: 219.589 | MJ12: 229.41 | MK12: 168.509 | ML12: 215.589 | MM12: 165.502 | MN12: 190.716 | MO12: 131.373 | MP12: 163.712 | MQ12: 114.783 | MR12: 160.136 | MS12: 103.424 | MT12: 185.643 | MU12: 109.438 | MV12: 180.725 | MW12: 96.408 | MX12: 151.538 | MY12: 107.62 | MZ12: 197.253 | NA12: 127.743 | NB12: 205.565 | NC12: 158.855 | ND12: 285.604 | NE12: 235.705 | NF12: 282.107 | NG12: 220.514 | NH12: 230.509 | NI12: 169.316 | NJ12: 216.782 | NK12: 166.418 | NL12: 191.925 | NM12: 132.205 | NN12: 164.952 | NO12: 115.653 | NP12: 161.376 | NQ12: 104.225 | NR12: 186.97 | NS12: 110.22 | NT12: 176.036 | NU12: 103.206 | NV12: 158.594 | NW12: 102.605 | NX12: 198.533 | NY12: 128.572 | NZ12: 198.503 | OA12: 167.959 | OB12: 298.128 | OC12: 225.29 | OD12: 283.291 | OE12: 221.439 | OF12: 228.699 | OG12: 182.169 | OH12: 226.356 | OI12: 158.954 | OJ12: 193.133 | OK12: 133.038 | OL12: 160.051 | OM12: 122.663 | ON12: 168.623 | OO12: 99.019 | OP12: 188.297 | OQ12: 111.003 | OR12: 177.366 | OS12: 103.986 | OT12: 159.833 | OU12: 103.407 | OV12: 192.663 | OW12: 136.551 | OX12: 207.868 | OY12: 160.635 | OZ12: 299.329 | PA12: 226.198 | PB12: 273.466 | PC12: 233.373 | PD12: 232.705 | PE12: 170.929 | PF12: 227.595 | PG12: 159.824 | PH12: 194.342 | PI12: 133.87 | PJ12: 161.245 | PK12: 123.578 | PL12: 169.909 | PM12: 99.774 | PN12: 183.077 | PO12: 118.331 | PP12: 184.852 | PQ12: 98.609 | PR12: 161.072 | PS12: 104.209 | PT12: 193.897 | PU12: 137.426 | PV12: 209.019 | PW12: 161.525 | PX12: 300.531 | PY12: 227.106 | PZ12: 274.604 | QA12: 234.344 | QB12: 233.804 | QC12: 171.736 | QD12: 228.834 | QE12: 160.694 | QF12: 188.138 | QG12: 142.115 | QH12: 168.672 | QI12: 118.261 | QJ12: 171.195 | QK12: 100.529 | QL12: 184.359 | QM12: 119.16 | QN12: 186.227 | QO12: 99.343 | QP12: 162.312 | QQ12: 105.011 | QR12: 195.132 | QS12: 138.301 | QT12: 210.171 | QU12: 162.415 | QV12: 290.226 | QW12: 239.52 | QX12: 286.843 | QY12: 224.215 | QZ12: 234.902 | RA12: 172.543 | RB12: 230.073 | RC12: 161.565 | RD12: 189.301 | RE12: 142.993 | RF12: 169.912 | RG12: 119.13 | RH12: 172.481 | RI12: 101.285 | RJ12: 185.64 | RK12: 119.988 | RL12: 187.603 | RM12: 100.076 | RN12: 157.506 | RO12: 111.858 | RQ12: 3445.076 | RR12: 3419.434 | RS12: 3258.643 | RT12: 3268.733 | RU12: 3391.961 | RV12: 3379.262 | RW12: 3365.503 | RX12: 3365.503 | RY12: 3430.888 | RZ12: 4055.331 | SA12: 4080.165 | SB12: 4104.998 | SC12: 4138.7 | SD12: 4154.667 | SE12: 4179.505 | SF12: 4204.338 | SG12: 4238.312 | SH12: 4254.004 | SI12: 4278.842 | SJ12: 4303.679
B13: 10057 | C13: Ashland, City of | D13: 9275.919 | E13: 4835.144 | F13: 10026.972 | G13: 6746.062 | H13: 11502.778 | I13: 6930.567 | J13: 11288.175 | K13: 7518.079 | L13: 10300.496 | M13: 5821.833 | N13: 9863.293 | O13: 5376.762 | P13: 9263.47 | Q13: 5011.36 | R13: 8221.579 | S13: 5201.742 | T13: 8454.343 | U13: 4400.6 | V13: 9920.263 | W13: 5925.064 | X13: 10199.979 | Y13: 5050.73 | Z13: 7891.823 | AA13: 4459.587 | AB13: 8987.99 | AC13: 5192.559 | AD13: 10457.183 | AE13: 6352.214 | AF13: 11528.401 | AG13: 6942.749 | AH13: 11305.262 | AI13: 7535.154 | AJ13: 9927.731 | AK13: 5698.396 | AL13: 9884.841 | AM13: 5389.758 | AN13: 8933.663 | AO13: 5376.108 | AP13: 8552.345 | AQ13: 4920.277 | AR13: 8484.262 | AS13: 4413.106 | AT13: 9921.165 | AU13: 5930.956 | AV13: 10209.14 | AW13: 5049.664 | AX13: 7937.084 | AY13: 4486.918 | AZ13: 8616.324 | BA13: 4977.749 | BB13: 10111.185 | BC13: 6142.031 | BD13: 10712.182 | BE13: 7130.701 | BF13: 11379.161 | BG13: 6861.796 | BH13: 9667.987 | BI13: 5548.163 | BJ13: 9579.046 | BK13: 5222.771 | BL13: 8573.955 | BM13: 5159.592 | BN13: 8137.574 | BO13: 4680.977 | BP13: 8004.426 | BQ13: 4162.341 | BR13: 9565.919 | BS13: 5717.732 | BT13: 9811.252 | BU13: 4853.319 | BV13: 7265.506 | BW13: 4562.389 | BX13: 8939.39 | BY13: 4654.684 | BZ13: 10111.185 | CA13: 6142.031 | CB13: 10712.182 | CC13: 7130.701 | CD13: 11379.161 | CE13: 6861.796 | CF13: 9667.987 | CG13: 5548.163 | CH13: 9226.805 | CI13: 5575.012 | CJ13: 8911.215 | CK13: 4822.332 | CL13: 8137.574 | CM13: 4680.977 | CN13: 7705.642 | CO13: 4461.125 | CP13: 9929.138 | CQ13: 5354.514 | CR13: 9811.252 | CS13: 4853.319 | CT13: 7265.506 | CU13: 4562.389 | CV13: 8757.063 | CW13: 4559.748 | CX13: 10098.551 | CY13: 6134.359 | CZ13: 10750.429 | DA13: 7156.161 | DB13: 11374.332 | DC13: 6858.877 | DD13: 9924.726 | DE13: 5606.778 | DF13: 9234.012 | DG13: 5579.363 | DH13: 8846.936 | DI13: 4787.541 | DJ13: 7733.906 | DK13: 4922.57 | DL13: 8024.084 | DM13: 4172.559 | DN13: 9923.991 | DO13: 5351.732 | DP13: 9751.764 | DQ13: 5360.688 | DR13: 7639.472 | DS13: 4319.129 | DT13: 8757.063 | DU13: 4559.748 | DV13: 9700.468 | DW13: 6532.442 | DX13: 11175.981 | DY13: 6730.608 | DZ13: 10941.018 | EA13: 7292.191 | EB13: 9534.645 | EC13: 5471.636 | ED13: 9586.526 | EE13: 5226.849 | EF13: 8846.936 | EG13: 4787.541 | EH13: 7733.906 | EI13: 4922.57 | EJ13: 8024.084 | EK13: 4172.559 | EL13: 9923.991 | EM13: 5351.732 | EN13: 9751.764 | EO13: 5360.688 | EP13: 7639.472 | EQ13: 4319.129 | ER13: 8440.66 | ES13: 4876.266 | ET13: 10098.481 | EU13: 6134.316 | EV13: 11175.98 | EW13: 6730.607 | EX13: 10940.983 | EY13: 7292.169 | EZ13: 9534.637 | FA13: 5471.63 | FB13: 9586.534 | FC13: 5226.854 | FD13: 8847.056 | FE13: 4787.606 | FF13: 7734.449 | FG13: 4922.917 | FH13: 8028.38 | FI13: 4174.793 | FJ13: 9562.445 | FK13: 5715.648 | FL13: 10112.3 | FM13: 5002.225 | FN13: 7650.12 | FO13: 4325.148 | FP13: 8440.66 | FQ13: 4876.266 | FR13: 10098.481 | FS13: 6134.316 | FT13: 11175.98 | FU13: 6730.607 | FV13: 10940.983 | FW13: 7292.169 | FX13: 9534.637 | FY13: 5471.63 | FZ13: 9586.534 | GA13: 5226.854 | GB13: 8512.226 | GC13: 5122.437 | GD13: 8035.252 | GE13: 4622.113 | GF13: 8028.38 | GG13: 4174.793 | GH13: 9562.445 | GI13: 5715.648 | GJ13: 10112.3 | GK13: 5002.225 | GL13: 7650.12 | GM13: 4325.148 | GN13: 8271.977 | GO13: 4778.813 | GP13: 9248.331 | GQ13: 5617.894 | GR13: 11240.218 | GS13: 7482.194 | GT13: 11215.081 | GU13: 6762.845 | GV13: 9793.14 | GW13: 5532.442 | GX13: 9476.292 | GY13: 5725.754 | GZ13: 8518.747 | HA13: 4609.942 | HB13: 7865.33 | HC13: 4524.368 | HD13: 8034.873 | HE13: 4651.723 | HF13: 10127.19 | HG13: 5461.312 | HH13: 10294.019 | HI13: 5092.114 | HJ13: 7795.926 | HK13: 4895.455 | HL13: 8191.637 | HM13: 4452.819 | HN13: 8778.345 | HO13: 5556.374 | HP13: 10919.366 | HQ13: 7446.229 | HR13: 10937.567 | HS13: 6831.333 | HT13: 8981.153 | HU13: 5395.69 | HV13: 8887.946 | HW13: 5712.924 | HX13: 7807.56 | HY13: 4478.49 | HZ13: 7218.37 | IA13: 4380.966 | IB13: 7692.835 | IC13: 4609.909 | ID13: 9608.695 | IE13: 5334.429 | IF13: 9267.242 | IG13: 5282.927 | IH13: 7502.168 | II13: 4460.337 | IJ13: 8191.637 | IK13: 4452.819 | IL13: 8422.648 | IM13: 5912.07 | IN13: 11360.995 | IO13: 7004.601 | IP13: 10937.567 | IQ13: 6831.333 | IR13: 8981.153 | IS13: 5395.69 | IT13: 8887.946 | IU13: 5712.924 | IV13: 7807.56 | IW13: 4478.49 | IX13: 6939.446 | IY13: 4659.89 | IZ13: 7998.534 | JA13: 4304.21 | JB13: 9608.695 | JC13: 5334.429 | JD13: 9267.242 | JE13: 5282.927 | JF13: 7502.168 | JG13: 4460.337 | JH13: 8191.637 | JI13: 4452.819 | JJ13: 8422.648 | JK13: 5912.07 | JL13: 11360.995 | JM13: 7004.601 | JN13: 10510.287 | JO13: 7258.613 | JP13: 8981.153 | JQ13: 5395.69 | JR13: 9239.519 | JS13: 5361.352 | JT13: 7807.56 | JU13: 4478.49 | JV13: 6939.446 | JW13: 4659.89 | JX13: 7998.534 | JY13: 4304.21 | JZ13: 9608.695 | KA13: 5334.429 | KB13: 9267.242 | KC13: 5282.927 | KD13: 7502.168 | KE13: 4460.337 | KF13: 7887.583 | KG13: 4756.874 | KH13: 8778.345 | KI13: 5556.374 | KJ13: 11360.995 | KK13: 7004.601 | KL13: 10510.287 | KM13: 7258.613 | KN13: 9353.222 | KO13: 5531.724 | KP13: 9239.519 | KQ13: 5361.352 | KR13: 7502.275 | KS13: 4783.774 | KT13: 7218.37 | KU13: 4380.966 | KV13: 7998.534 | KW13: 4304.21 | KX13: 9249.365 | KY13: 5693.759 | KZ13: 9617.123 | LA13: 4933.046 | LB13: 7502.168 | LC13: 4460.337 | LD13: 7887.583 | LE13: 4756.874 | LF13: 8778.345 | LG13: 5556.374 | LH13: 10919.366 | LI13: 7446.229 | LJ13: 10937.567 | LK13: 6831.333 | LL13: 8981.153 | LM13: 5395.69 | LN13: 9239.519 | LO13: 5361.352 | LP13: 7502.275 | LQ13: 4783.774 | LR13: 7218.37 | LS13: 4380.966 | LT13: 7998.534 | LU13: 4304.21 | LV13: 9249.365 | LW13: 5693.759 | LX13: 9617.123 | LY13: 4933.046 | LZ13: 7204.923 | MA13: 4757.582 | MB13: 8191.637 | MC13: 4452.819 | MD13: 8778.345 | ME13: 5556.374 | MF13: 10919.366 | MG13: 7446.229 | MH13: 10937.567 | MI13: 6831.333 | MJ13: 8981.153 | MK13: 5395.69 | ML13: 8887.946 | MM13: 5712.924 | MN13: 7807.56 | MO13: 4478.49 | MP13: 7218.37 | MQ13: 4380.966 | MR13: 7692.835 | MS13: 4609.909 | MT13: 9608.695 | MU13: 5334.429 | MV13: 9617.123 | MW13: 4933.046 | MX13: 7204.923 | MY13: 4757.582 | MZ13: 8191.637 | NA13: 4452.819 | NB13: 8778.345 | NC13: 5556.374 | ND13: 10919.366 | NE13: 7446.229 | NF13: 10937.567 | NG13: 6831.333 | NH13: 8981.153 | NI13: 5395.69 | NJ13: 8887.946 | NK13: 5712.924 | NL13: 7807.56 | NM13: 4478.49 | NN13: 7218.37 | NO13: 4380.966 | NP13: 7692.835 | NQ13: 4609.909 | NR13: 9608.695 | NS13: 5334.429 | NT13: 9267.242 | NU13: 5282.927 | NV13: 7502.168 | NW13: 4460.337 | NX13: 8191.637 | NY13: 4452.819 | NZ13: 8422.648 | OA13: 5912.07 | OB13: 11360.995 | OC13: 7004.601 | OD13: 10937.567 | OE13: 6831.333 | OF13: 8970.605 | OG13: 5914.34 | OH13: 9239.519 | OI13: 5361.352 | OJ13: 7807.56 | OK13: 4478.49 | OL13: 6939.446 | OM13: 4659.89 | ON13: 7998.534 | OO13: 4304.21 | OP13: 9608.695 | OQ13: 5334.429 | OR13: 9267.242 | OS13: 5282.927 | OT13: 7502.168 | OU13: 4460.337 | OV13: 7887.583 | OW13: 4756.874 | OX13: 8778.345 | OY13: 5556.374 | OZ13: 11360.995 | PA13: 7004.601 | PB13: 10510.287 | PC13: 7258.613 | PD13: 8981.153 | PE13: 5395.69 | PF13: 9239.519 | PG13: 5361.352 | PH13: 7807.56 | PI13: 4478.49 | PJ13: 6939.446 | PK13: 4659.89 | PL13: 7998.534 | PM13: 4304.21 | PN13: 9249.365 | PO13: 5693.759 | PP13: 9617.123 | PQ13: 4933.046 | PR13: 7502.168 | PS13: 4460.337 | PT13: 7887.583 | PU13: 4756.874 | PV13: 8778.345 | PW13: 5556.374 | PX13: 11360.995 | PY13: 7004.601 | PZ13: 10510.287 | QA13: 7258.613 | QB13: 8981.153 | QC13: 5395.69 | QD13: 9239.519 | QE13: 5361.352 | QF13: 7502.275 | QG13: 4783.774 | QH13: 7218.37 | QI13: 4380.966 | QJ13: 7998.534 | QK13: 4304.21 | QL13: 9249.365 | QM13: 5693.759 | QN13: 9617.123 | QO13: 4933.046 | QP13: 7502.168 | QQ13: 4460.337 | QR13: 7887.583 | QS13: 4756.874 | QT13: 8778.345 | QU13: 5556.374 | QV13: 10919.366 | QW13: 7446.229 | QX13: 10937.567 | QY13: 6831.333 | QZ13: 8981.153 | RA13: 5395.69 | RB13: 9239.519 | RC13: 5361.352 | RD13: 7502.275 | RE13: 4783.774 | RF13: 7218.37 | RG13: 4380.966 | RH13: 7998.534 | RI13: 4304.21 | RJ13: 9249.365 | RK13: 5693.759 | RL13: 9617.123 | RM13: 4933.046 | RN13: 7204.923 | RO13: 4757.582 | RQ13: 183486.62 | RR13: 183416.926 | RS13: 176444.078 | RT13: 176444.08 | RU13: 176868.771 | RV13: 176343.547 | RW13: 176372.204 | RX13: 176372.204 | RY13: 177015.98 | RZ13: 169735.311 | SA13: 169735.311 | SB13: 169735.312 | SC13: 170243.416 | SD13: 169735.312 | SE13: 169735.311 | SF13: 169735.311 | SG13: 170243.414 | SH13: 169735.314 | SI13: 169735.313 | SJ13: 169735.312
B14: 10059 | C14: Bandon, City of | D14: 3291.089 | E14: 1769.144 | F14: 3699.018 | G14: 2550.542 | H14: 4153.158 | I14: 2611.47 | J14: 4236.726 | K14: 2977.043 | L14: 3854.986 | M14: 2249.686 | N14: 3733.568 | O14: 2149.633 | P14: 3468.747 | Q14: 2047.263 | R14: 2762.619 | S14: 1883.515 | T14: 2829.275 | U14: 1578.71 | V14: 2663.381 | W14: 1752.987 | X14: 2924.745 | Y14: 1563.969 | Z14: 2839.539 | AA14: 1698.706 | AB14: 3185.497 | AC14: 1887.311 | AD14: 3853.201 | AE14: 2411.886 | AF14: 4163.47 | AG14: 2617.954 | AH14: 4247.244 | AI14: 2984.434 | AJ14: 3711.058 | AK14: 2197.739 | AL14: 3742.833 | AM14: 2154.967 | AN14: 3349.202 | AO14: 2180.493 | AP14: 2873.931 | AQ14: 1783.728 | AR14: 2836.292 | AS14: 1582.625 | AT14: 2669.985 | AU14: 1757.334 | AV14: 2931.996 | AW14: 1567.846 | AX14: 2846.58 | AY14: 1702.918 | AZ14: 3152.335 | BA14: 1868.601 | BB14: 3836.129 | BC14: 2400.591 | BD14: 3991.674 | BE14: 2747.801 | BF14: 4398.943 | BG14: 2822.024 | BH14: 3712.697 | BI14: 2204.018 | BJ14: 3823.497 | BK14: 2199.82 | BL14: 3294.9 | BM14: 2153.792 | BN14: 2875.888 | BO14: 1784.271 | BP14: 2830.277 | BQ14: 1578.848 | BR14: 2637.94 | BS14: 1741.427 | BT14: 2889.683 | BU14: 1547.548 | BV14: 2732.367 | BW14: 1803.483 | BX14: 3274.146 | BY14: 1759.342 | BZ14: 3845.719 | CA14: 2406.593 | CB14: 4001.653 | CC14: 2754.671 | CD14: 4409.94 | CE14: 2829.08 | CF14: 3721.979 | CG14: 2209.528 | CH14: 3696.196 | CI14: 2342.18 | CJ14: 3430.896 | CK14: 2031.418 | CL14: 2883.077 | CM14: 1788.732 | CN14: 2733.969 | CO14: 1686.179 | CP14: 2743.907 | CQ14: 1646.406 | CR14: 2896.907 | CS14: 1551.417 | CT14: 2739.198 | CU14: 1807.991 | CV14: 3333.658 | CW14: 1797.231 | CX14: 3902.055 | CY14: 2510.581 | CZ14: 4066.327 | DA14: 2865.106 | DB14: 4494.553 | DC14: 2909.882 | DD14: 3935.166 | DE14: 2342.848 | DF14: 3713.923 | DG14: 2400.046 | DH14: 3527.276 | DI14: 2105.387 | DJ14: 2777.008 | DK14: 1929.075 | DL14: 2880.15 | DM14: 1630.281 | DN14: 2797.952 | DO14: 1699.7 | DP14: 2823.946 | DQ14: 1703.475 | DR14: 2871.328 | DS14: 1739.221 | DT14: 3341.96 | DU14: 1801.707 | DV14: 3749.353 | DW14: 2679.249 | DX14: 4246.584 | DY14: 2702.11 | DZ14: 4323.999 | EA14: 3098.864 | EB14: 3867.758 | EC14: 2339.743 | ED14: 3873.429 | EE14: 2255.75 | EF14: 3536.049 | EG14: 2110.624 | EH14: 2783.913 | EI14: 1933.872 | EJ14: 2887.31 | EK14: 1634.335 | EL14: 2804.906 | EM14: 1703.925 | EN14: 2830.964 | EO14: 1707.708 | EP14: 2878.462 | EQ14: 1743.542 | ER14: 3253.465 | ES14: 1950.085 | ET14: 3543.9 | EU14: 2280.144 | EV14: 4390.303 | EW14: 2793.559 | EX14: 4357.65 | EY14: 3122.98 | EZ14: 4068.082 | FA14: 2460.926 | FB14: 3942.326 | FC14: 2295.873 | FD14: 3578.705 | FE14: 2136.085 | FF14: 2846.426 | FG14: 1977.297 | FH14: 2823.997 | FI14: 1598.497 | FJ14: 2641.081 | FK14: 1778.34 | FL14: 2851.256 | FM14: 1547.292 | FN14: 2693.605 | FO14: 1631.57 | FP14: 3253.465 | FQ14: 1950.085 | FR14: 3543.9 | FS14: 2280.144 | FT14: 4390.303 | FU14: 2793.559 | FV14: 4357.65 | FW14: 3122.98 | FX14: 4068.082 | FY14: 2460.926 | FZ14: 3942.326 | GA14: 2295.873 | GB14: 3434.121 | GC14: 2280.669 | GD14: 2964.529 | GE14: 1859.194 | GF14: 2823.997 | GG14: 1598.497 | GH14: 2641.081 | GI14: 1778.34 | GJ14: 2851.256 | GK14: 1547.292 | GL14: 2693.605 | GM14: 1631.57 | GN14: 3253.465 | GO14: 1950.085 | GP14: 3543.9 | GQ14: 2280.144 | GR14: 4214.415 | GS14: 2969.447 | GT14: 4540.804 | GU14: 2939.826 | GV14: 4238.654 | GW14: 2523.533 | GX14: 3789.386 | GY14: 2448.812 | GZ14: 3578.705 | HA14: 2136.085 | HB14: 2964.529 | HC14: 1859.194 | HD14: 2712.108 | HE14: 1710.385 | HF14: 2749.285 | HG14: 1670.136 | HH14: 2851.256 | HI14: 1547.292 | HJ14: 2584.178 | HK14: 1740.997 | HL14: 3357.648 | HM14: 1834.806 | HN14: 3549.787 | HO14: 2308.093 | HP14: 4374.067 | HQ14: 3027.771 | HR14: 4806.939 | HS14: 3048.482 | HT14: 4120.72 | HU14: 2539.201 | HV14: 3745.002 | HW14: 2495.833 | HX14: 3644.272 | HY14: 2220.516 | HZ14: 3014.873 | IA14: 1900.814 | IB14: 2773.403 | IC14: 1768.487 | ID14: 2779.942 | IE14: 1670.964 | IF14: 2745.287 | IG14: 1643.508 | IH14: 2735.723 | II14: 1651.318 | IJ14: 3357.648 | IK14: 1834.806 | IL14: 3394.973 | IM14: 2462.906 | IN14: 4563.637 | IO14: 2838.201 | IP14: 4806.939 | IQ14: 3048.482 | IR14: 4120.72 | IS14: 2539.201 | IT14: 3745.002 | IU14: 2495.833 | IV14: 3644.272 | IW14: 2220.516 | IX14: 2888.977 | IY14: 2026.711 | IZ14: 2893.604 | JA14: 1648.287 | JB14: 2779.942 | JC14: 1670.964 | JD14: 2745.287 | JE14: 1643.508 | JF14: 2735.723 | JG14: 1651.318 | JH14: 3357.648 | JI14: 1834.806 | JJ14: 3394.973 | JK14: 2462.906 | JL14: 4563.637 | JM14: 2838.201 | JN14: 4605.752 | JO14: 3249.669 | JP14: 4120.72 | JQ14: 2539.201 | JR14: 3905.052 | JS14: 2335.782 | JT14: 3644.272 | JU14: 2220.516 | JV14: 2888.977 | JW14: 2026.711 | JX14: 2893.604 | JY14: 1648.287 | JZ14: 2779.942 | KA14: 1670.964 | KB14: 2745.287 | KC14: 1643.508 | KD14: 2735.723 | KE14: 1651.318 | KF14: 3225.587 | KG14: 1968.354 | KH14: 3550.661 | KI14: 2308.661 | KJ14: 4564.554 | KK14: 2838.771 | KL14: 4606.625 | KM14: 3250.284 | KN14: 4251.379 | KO14: 2576.553 | KP14: 3905.982 | KQ14: 2336.339 | KR14: 3489.918 | KS14: 2376.311 | KT14: 3015.786 | KU14: 1901.39 | KV14: 2894.521 | KW14: 1648.809 | KX14: 2666.84 | KY14: 1785.553 | KZ14: 2858.658 | LA14: 1531.625 | LB14: 2736.621 | LC14: 1651.861 | LD14: 3224.663 | LE14: 1967.791 | LF14: 3549.787 | LG14: 2308.093 | LH14: 4374.067 | LI14: 3027.771 | LJ14: 4806.939 | LK14: 3048.482 | LL14: 4120.72 | LM14: 2539.201 | LN14: 3905.052 | LO14: 2335.782 | LP14: 3489.061 | LQ14: 2375.727 | LR14: 3014.873 | LS14: 1900.814 | LT14: 2893.604 | LU14: 1648.287 | LV14: 2665.948 | LW14: 1784.957 | LX14: 2857.689 | LY14: 1531.106 | LZ14: 2619.62 | MA14: 1767.421 | MB14: 3357.648 | MC14: 1834.806 | MD14: 3549.787 | ME14: 2308.093 | MF14: 4374.067 | MG14: 3027.771 | MH14: 4806.939 | MI14: 3048.482 | MJ14: 4120.72 | MK14: 2539.201 | ML14: 3745.002 | MM14: 2495.833 | MN14: 3644.272 | MO14: 2220.516 | MP14: 3014.873 | MQ14: 1900.814 | MR14: 2773.403 | MS14: 1768.487 | MT14: 2779.942 | MU14: 1670.964 | MV14: 2857.689 | MW14: 1531.106 | MX14: 2619.62 | MY14: 1767.421 | MZ14: 3357.648 | NA14: 1834.806 | NB14: 3549.787 | NC14: 2308.093 | ND14: 4374.067 | NE14: 3027.771 | NF14: 4806.939 | NG14: 3048.482 | NH14: 4120.72 | NI14: 2539.201 | NJ14: 3745.002 | NK14: 2495.833 | NL14: 3644.272 | NM14: 2220.516 | NN14: 3014.873 | NO14: 1900.814 | NP14: 2773.403 | NQ14: 1768.487 | NR14: 2779.942 | NS14: 1670.964 | NT14: 2745.287 | NU14: 1643.508 | NV14: 2735.723 | NW14: 1651.318 | NX14: 3358.61 | NY14: 1835.331 | NZ14: 3395.809 | OA14: 2463.513 | OB14: 4564.554 | OC14: 2838.771 | OD14: 4807.85 | OE14: 3049.06 | OF14: 4064.448 | OG14: 2763.485 | OH14: 3905.982 | OI14: 2336.339 | OJ14: 3645.167 | OK14: 2221.061 | OL14: 2889.851 | OM14: 2027.324 | ON14: 2894.521 | OO14: 1648.809 | OP14: 2780.871 | OQ14: 1671.522 | OR14: 2746.218 | OS14: 1644.065 | OT14: 2736.621 | OU14: 1651.861 | OV14: 3224.663 | OW14: 1967.791 | OX14: 3549.787 | OY14: 2308.093 | OZ14: 4563.637 | PA14: 2838.201 | PB14: 4605.752 | PC14: 3249.669 | PD14: 4120.72 | PE14: 2539.201 | PF14: 3905.052 | PG14: 2335.782 | PH14: 3644.272 | PI14: 2220.516 | PJ14: 2888.977 | PK14: 2026.711 | PL14: 2893.604 | PM14: 1648.287 | PN14: 2665.948 | PO14: 1784.957 | PP14: 2857.689 | PQ14: 1531.106 | PR14: 2735.723 | PS14: 1651.318 | PT14: 3224.663 | PU14: 1967.791 | PV14: 3549.787 | PW14: 2308.093 | PX14: 4563.637 | PY14: 2838.201 | PZ14: 4605.752 | QA14: 3249.669 | QB14: 4120.72 | QC14: 2539.201 | QD14: 3905.052 | QE14: 2335.782 | QF14: 3489.061 | QG14: 2375.727 | QH14: 3014.873 | QI14: 1900.814 | QJ14: 2893.604 | QK14: 1648.287 | QL14: 2665.948 | QM14: 1784.957 | QN14: 2857.689 | QO14: 1531.106 | QP14: 2735.723 | QQ14: 1651.318 | QR14: 3224.663 | QS14: 1967.791 | QT14: 3549.787 | QU14: 2308.093 | QV14: 4374.067 | QW14: 3027.771 | QX14: 4806.939 | QY14: 3048.482 | QZ14: 4120.72 | RA14: 2539.201 | RB14: 3905.052 | RC14: 2335.782 | RD14: 3489.061 | RE14: 2375.727 | RF14: 3014.873 | RG14: 1900.814 | RH14: 2893.604 | RI14: 1648.287 | RJ14: 2665.948 | RK14: 1784.957 | RL14: 2857.689 | RM14: 1531.106 | RN14: 2619.62 | RO14: 1767.421 | RQ14: 65289.519 | RR14: 65240.524 | RS14: 65028.554 | RT14: 65191.124 | RU14: 66756.175 | RV14: 66836.116 | RW14: 66563.444 | RX14: 66563.444 | RY14: 66796.621 | RZ14: 67757.456 | SA14: 67757.457 | SB14: 67757.456 | SC14: 67941.643 | SD14: 67757.455 | SE14: 67757.456 | SF14: 67757.456 | SG14: 67941.643 | SH14: 67757.456 | SI14: 67757.455 | SJ14: 67757.455
B15: 10061 | C15: Blaine, City of | D15: 3876.573 | E15: 2300.554 | F15: 4172.964 | G15: 3084.218 | H15: 4667.089 | I15: 3070.619 | J15: 4716.383 | K15: 3449.448 | L15: 4471.98 | M15: 2848.68 | N15: 4151.186 | O15: 2535.615 | P15: 3921.925 | Q15: 2462.551 | R15: 3488.762 | S15: 2539.888 | T15: 3619.141 | U15: 2237.615 | V15: 3473.202 | W15: 2559.24 | X15: 3747.295 | Y15: 2289.517 | Z15: 3566.717 | AA15: 2331.702 | AB15: 3689.253 | AC15: 2401.637 | AD15: 4291.363 | AE15: 2883.513 | AF15: 4608.51 | AG15: 3040.702 | AH15: 4659.467 | AI15: 3415.424 | AJ15: 4257.359 | AK15: 2748.99 | AL15: 4092.208 | AM15: 2497.232 | AN15: 3720.689 | AO15: 2568.23 | AP15: 3560.715 | AQ15: 2366.094 | AR15: 3558.086 | AS15: 2199.025 | AT15: 3412.345 | AU15: 2513.893 | AV15: 3680.483 | AW15: 2247.941 | AX15: 3502.965 | AY15: 2289.395 | AZ15: 3860.73 | BA15: 2491.386 | BB15: 4244.156 | BC15: 2846.511 | BD15: 4495.72 | BE15: 3235.895 | BF15: 4720.476 | BG15: 3155.888 | BH15: 4189.691 | BI15: 2698.906 | BJ15: 4274.955 | BK15: 2593.143 | BL15: 3587.304 | BM15: 2471.45 | BN15: 3458.37 | BO15: 2283.191 | BP15: 3377.772 | BQ15: 2075.315 | BR15: 3313.175 | BS15: 2430.433 | BT15: 3594.035 | BU15: 2180.616 | BV15: 3315.034 | BW15: 2374.379 | BX15: 4007.924 | BY15: 2350.622 | BZ15: 4248.442 | CA15: 2849.385 | CB15: 4500.261 | CC15: 3239.163 | CD15: 4725.252 | CE15: 3159.081 | CF15: 4193.924 | CG15: 2701.633 | CH15: 4124.282 | CI15: 2750.777 | CJ15: 3732.276 | CK15: 2332.628 | CL15: 3461.882 | CM15: 2285.51 | CN15: 3253.847 | CO15: 2204.78 | CP15: 3446.372 | CQ15: 2303.066 | CR15: 3597.681 | CS15: 2182.83 | CT15: 3318.399 | CU15: 2376.785 | CV15: 4257.177 | CW15: 2471.833 | CX15: 4566.237 | CY15: 3053.533 | CZ15: 4780.881 | DA15: 3420.899 | DB15: 5098.935 | DC15: 3360.005 | DD15: 4662.451 | DE15: 2919.809 | DF15: 4398.442 | DG15: 2939.098 | DH15: 4076.656 | DI15: 2508.574 | DJ15: 3599.397 | DK15: 2582.953 | DL15: 3639.196 | DM15: 2207.505 | DN15: 3725.871 | DO15: 2452.669 | DP15: 3774.851 | DQ15: 2481.539 | DR15: 3677.837 | DS15: 2380.433 | DT15: 4257.177 | DU15: 2471.833 | DV15: 4389.148 | DW15: 3230.622 | DX15: 4965.604 | DY15: 3236.176 | DZ15: 4908.42 | EA15: 3550.521 | EB15: 4505.486 | EC15: 2862.724 | ED15: 4563.922 | EE15: 2773.618 | EF15: 4076.656 | EG15: 2508.574 | EH15: 3599.397 | EI15: 2582.953 | EJ15: 3639.196 | EK15: 2207.505 | EL15: 3725.871 | EM15: 2452.669 | EN15: 3774.851 | EO15: 2481.539 | EP15: 3677.837 | EQ15: 2380.433 | ER15: 4008.553 | ES15: 2544.013 | ET15: 4427.014 | EU15: 2893.037 | EV15: 4864.771 | EW15: 3099.952 | EX15: 4946.232 | EY15: 3533.296 | EZ15: 4436.139 | FA15: 2807.552 | FB15: 4530.157 | FC15: 2727.24 | FD15: 4052.991 | FE15: 2436.275 | FF15: 3566.048 | FG15: 2511.227 | FH15: 3629.909 | FI15: 2138.563 | FJ15: 3690.683 | FK15: 2589.176 | FL15: 3899.299 | FM15: 2234.461 | FN15: 3575.791 | FO15: 2279.125 | FP15: 4049.957 | FQ15: 2570.29 | FR15: 4468.695 | FS15: 2920.275 | FT15: 4903.4 | FU15: 3124.567 | FV15: 4982.399 | FW15: 3559.132 | FX15: 4471.032 | FY15: 2829.635 | FZ15: 4561.662 | GA15: 2746.206 | GB15: 3922.196 | GC15: 2613.443 | GD15: 3732.982 | GE15: 2382.254 | GF15: 3649.544 | GG15: 2150.13 | GH15: 3707.654 | GI15: 2601.081 | GJ15: 3914.245 | GK15: 2243.026 | GL15: 3591.756 | GM15: 2289.3 | GN15: 4206.947 | GO15: 2674.715 | GP15: 4631.631 | GQ15: 3032.583 | GR15: 4913.778 | GS15: 3483.093 | GT15: 5396.434 | GU15: 3518.903 | GV15: 4708.99 | GW15: 2926.078 | GX15: 4535.987 | GY15: 3023.31 | GZ15: 4200.511 | HA15: 2550.129 | HB15: 3848.74 | HC15: 2463.666 | HD15: 3661.292 | HE15: 2405.395 | HF15: 4031.412 | HG15: 2588.535 | HH15: 4014.531 | HI15: 2326.383 | HJ15: 3628.715 | HK15: 2557.959 | HL15: 4791.042 | HM15: 2777.305 | HN15: 5214.383 | HO15: 3423.366 | HP15: 5497.991 | HQ15: 3878.227 | HR15: 6073.403 | HS15: 3998.222 | HT15: 5190.4 | HU15: 3268.164 | HV15: 5209.215 | HW15: 3428.438 | HX15: 4872.373 | HY15: 2961.237 | HZ15: 4513.312 | IA15: 2928.942 | IB15: 4308.134 | IC15: 2799.415 | ID15: 4667.509 | IE15: 3021.708 | IF15: 4606.701 | IG15: 2899.109 | IH15: 4416.241 | II15: 2822.988 | IJ15: 5076.68 | IK15: 2955.753 | IL15: 5356.712 | IM15: 3835.081 | IN15: 6009.492 | IO15: 3878.467 | IP15: 6383.337 | IQ15: 4226.983 | IR15: 5490.077 | IS15: 3453.775 | IT15: 5547.809 | IU15: 3632.569 | IV15: 5193.991 | IW15: 3158.984 | IX15: 4669.126 | IY15: 3300.562 | IZ15: 4758.245 | JA15: 2829.971 | JB15: 4945.269 | JC15: 3212.235 | JD15: 4914.194 | JE15: 3073.992 | JF15: 4674.969 | JG15: 2990.754 | JH15: 5328.812 | JI15: 3112.112 | JJ15: 5658.665 | JK15: 4034.653 | JL15: 6289.429 | JM15: 4062.377 | JN15: 6454.942 | JO15: 4659.552 | JP15: 5771.388 | JQ15: 3628.213 | JR15: 6052.157 | JS15: 3643.45 | JT15: 5501.61 | JU15: 3348.486 | JV15: 4966.357 | JW15: 3513.654 | JX15: 5052.961 | JY15: 3006.177 | JZ15: 5219.105 | KA15: 3399.942 | KB15: 5218.767 | KC15: 3247.35 | KD15: 4932.781 | KE15: 3157.962 | KF15: 5415.225 | KG15: 3435.91 | KH15: 6154.688 | KI15: 4039.882 | KJ15: 6568.615 | KK15: 4245.767 | KL15: 6743.288 | KM15: 4874.044 | KN15: 6263.883 | KO15: 3888.484 | KP15: 6369.652 | KQ15: 3833.515 | KR15: 5632.438 | KS15: 3704.394 | KT15: 5410.111 | KU15: 3566.566 | KV15: 5338.013 | KW15: 3176.637 | KX15: 5323.35 | KY15: 3742.023 | KZ15: 5666.939 | LA15: 3260.619 | LB15: 5181.759 | LC15: 3319.25 | LD15: 5659.184 | LE15: 3589.074 | LF15: 6440.041 | LG15: 4226.981 | LH15: 6620.875 | LI15: 4622.924 | LJ15: 7216.331 | LK15: 4841.287 | LL15: 6290.101 | LM15: 3949.891 | LN15: 6637.454 | LO15: 3993.917 | LP15: 5880.319 | LQ15: 3858.833 | LR15: 5646.165 | LS15: 3734.25 | LT15: 5566.026 | LU15: 3312.854 | LV15: 5529.786 | LW15: 3884.915 | LX15: 5890.941 | LY15: 3387.019 | LZ15: 5209.014 | MA15: 3593.823 | MB15: 5999.504 | MC15: 3526.567 | MD15: 6650.826 | ME15: 4365.206 | MF15: 6815.833 | MG15: 4752.674 | MH15: 7422.113 | MI15: 4992.473 | MJ15: 6488.806 | MK15: 4073.461 | ML15: 6680.982 | MM15: 4318.313 | MN15: 6271.756 | MO15: 3823.701 | MP15: 5863.553 | MQ15: 3888.291 | MR15: 5629.739 | MS15: 3597.263 | MT15: 5897.486 | MU15: 3864.056 | MV15: 6120.779 | MW15: 3516.731 | MX15: 5402.281 | MY15: 3721.606 | MZ15: 6189.769 | NA15: 3642.34 | NB15: 6865.438 | NC15: 4505.948 | ND15: 6998.963 | NE15: 4875.003 | NF15: 7595.32 | NG15: 5118.956 | NH15: 6640.027 | NI15: 4167.632 | NJ15: 6835.997 | NK15: 4413.516 | NL15: 6404.294 | NM15: 3905.591 | NN15: 5978.448 | NO15: 3968.249 | NP15: 5727.207 | NQ15: 3657.442 | NR15: 5977.598 | NS15: 3917.637 | NT15: 6032.188 | NU15: 3713.826 | NV15: 5605.561 | NW15: 3594.735 | NX15: 6224.596 | NY15: 3662.406 | NZ15: 6699.867 | OA15: 4726.803 | OB15: 7243.712 | OC15: 4688.596 | OD15: 7635.105 | OE15: 5144.9 | OF15: 6707.75 | OG15: 4497.879 | OH15: 7063.864 | OI15: 4250.029 | OJ15: 6442.221 | OK15: 3928.616 | OL15: 5857.088 | OM15: 4151.764 | ON15: 5920.257 | OO15: 3524.062 | OP15: 6016.174 | OQ15: 3942.406 | OR15: 6069.45 | OS15: 3737.65 | OT15: 5640.895 | OU15: 3617.285 | OV15: 6089.402 | OW15: 3856.559 | OX15: 6934.377 | OY15: 4551.214 | OZ15: 7281.238 | PA15: 4712.759 | PB15: 7449.281 | PC15: 5397.273 | PD15: 6713.9 | PE15: 4214.226 | PF15: 7102.432 | PG15: 4273.286 | PH15: 6477.917 | PI15: 3950.287 | PJ15: 5890.645 | PK15: 4175.413 | PL15: 5954.478 | PM15: 3544.385 | PN15: 5885.042 | PO15: 4132.384 | PP15: 6265.226 | PQ15: 3599.849 | PR15: 5675.098 | PS15: 3639.113 | PT15: 6125.419 | PU15: 3879.458 | PV15: 6971.345 | PW15: 4575.487 | PX15: 7322.035 | PY15: 4739.028 | PZ15: 7485.757 | QA15: 5423.452 | QB15: 6749.046 | QC15: 4236.392 | QD15: 7140.034 | QE15: 4295.961 | QF15: 6335.284 | QG15: 4149.802 | QH15: 6086.555 | QI15: 4037.451 | QJ15: 5989.915 | QK15: 3565.431 | QL15: 5920.846 | QM15: 4157.693 | QN15: 6303.482 | QO15: 3622.018 | QP15: 5710.711 | QQ15: 3661.842 | QR15: 6162.877 | QS15: 3903.273 | QT15: 7009.75 | QU15: 4600.704 | QV15: 7149.163 | QW15: 4981.472 | QX15: 7759.259 | QY15: 5225.857 | QZ15: 6792.753 | RA15: 4263.959 | RB15: 7188.238 | RC15: 4325.029 | RD15: 6379.874 | RE15: 4179.734 | RF15: 6133.95 | RG15: 4067.789 | RH15: 6037.514 | RI15: 3593.699 | RJ15: 5967.729 | RK15: 4190.835 | RL15: 6353.169 | RM15: 3650.811 | RN15: 5592.344 | RO15: 3854.877 | RQ15: 79582.864 | RR15: 78205.519 | RS15: 77268.531 | RT15: 77346.802 | RU15: 83036.781 | RV15: 82822.732 | RW15: 81421.504 | RX15: 81984.861 | RY15: 85329.717 | RZ15: 97567.825 | SA15: 103569.027 | SB15: 109260.902 | SC15: 115155.052 | SD15: 119582.005 | SE15: 123684 | SF15: 126331.685 | SG15: 127393.375 | SH15: 127765.784 | SI15: 128484.444 | SJ15: 129364.659
... 18 more rows

Sheet I_CSP
B1: Customer System Peak (MW)
A2: TOC
B3: BESID | C3: AccountName | D3: JOE | E3: 2015-10-01 | F3: 2015-11-01 | G3: 2015-12-01 | H3: 2016-01-01 | I3: 2016-02-01 | J3: 2016-03-01 | K3: 2016-04-01 | L3: 2016-05-01 | M3: 2016-06-01 | N3: 2016-07-01 | O3: 2016-08-01 | P3: 2016-09-01 | Q3: 2016-10-01 | R3: 2016-11-01 | S3: 2016-12-01 | T3: 2017-01-01 | U3: 2017-02-01 | V3: 2017-03-01 | W3: 2017-04-01 | X3: 2017-05-01 | Y3: 2017-06-01 | Z3: 2017-07-01 | AA3: 2017-08-01 | AB3: 2017-09-01 | AC3: 2017-10-01 | AD3: 2017-11-01 | AE3: 2017-12-01 | AF3: 2018-01-01 | AG3: 2018-02-01 | AH3: 2018-03-01 | AI3: 2018-04-01 | AJ3: 2018-05-01 | AK3: 2018-06-01 | AL3: 2018-07-01 | AM3: 2018-08-01 | AN3: 2018-09-01 | AO3: 2018-10-01 | AP3: 2018-11-01 | AQ3: 2018-12-01 | AR3: 2019-01-01 | AS3: 2019-02-01 | AT3: 2019-03-01 | AU3: 2019-04-01 | AV3: 2019-05-01 | AW3: 2019-06-01 | AX3: 2019-07-01 | AY3: 2019-08-01 | AZ3: 2019-09-01 | BA3: 2019-10-01 | BB3: 2019-11-01 | BC3: 2019-12-01 | BD3: 2020-01-01 | BE3: 2020-02-01 | BF3: 2020-03-01 | BG3: 2020-04-01 | BH3: 2020-05-01 | BI3: 2020-06-01 | BJ3: 2020-07-01 | BK3: 2020-08-01 | BL3: 2020-09-01 | BM3: 2020-10-01 | BN3: 2020-11-01 | BO3: 2020-12-01 | BP3: 2021-01-01 | BQ3: 2021-02-01 | BR3: 2021-03-01 | BS3: 2021-04-01 | BT3: 2021-05-01 | BU3: 2021-06-01 | BV3: 2021-07-01 | BW3: 2021-08-01 | BX3: 2021-09-01 | BY3: 2021-10-01 | BZ3: 2021-11-01 | CA3: 2021-12-01 | CB3: 2022-01-01 | CC3: 2022-02-01 | CD3: 2022-03-01 | CE3: 2022-04-01 | CF3: 2022-05-01 | CG3: 2022-06-01 | CH3: 2022-07-01 | CI3: 2022-08-01 | CJ3: 2022-09-01 | CK3: 2022-10-01 | CL3: 2022-11-01 | CM3: 2022-12-01 | CN3: 2023-01-01 | CO3: 2023-02-01 | CP3: 2023-03-01 | CQ3: 2023-04-01 | CR3: 2023-05-01 | CS3: 2023-06-01 | CT3: 2023-07-01 | CU3: 2023-08-01 | CV3: 2023-09-01 | CW3: 2023-10-01 | CX3: 2023-11-01 | CY3: 2023-12-01 | CZ3: 2024-01-01 | DA3: 2024-02-01 | DB3: 2024-03-01 | DC3: 2024-04-01 | DD3: 2024-05-01 | DE3: 2024-06-01 | DF3: 2024-07-01 | DG3: 2024-08-01 | DH3: 2024-09-01 | DI3: 2024-10-01 | DJ3: 2024-11-01 | DK3: 2024-12-01 | DL3: 2025-01-01 | DM3: 2025-02-01 | DN3: 2025-03-01 | DO3: 2025-04-01 | DP3: 2025-05-01 | DQ3: 2025-06-01 | DR3: 2025-07-01 | DS3: 2025-08-01 | DT3: 2025-09-01 | DU3: 2025-10-01 | DV3: 2025-11-01 | DW3: 2025-12-01 | DX3: 2026-01-01 | DY3: 2026-02-01 | DZ3: 2026-03-01 | EA3: 2026-04-01 | EB3: 2026-05-01 | EC3: 2026-06-01 | ED3: 2026-07-01 | EE3: 2026-08-01 | EF3: 2026-09-01 | EG3: 2026-10-01 | EH3: 2026-11-01 | EI3: 2026-12-01 | EJ3: 2027-01-01 | EK3: 2027-02-01 | EL3: 2027-03-01 | EM3: 2027-04-01 | EN3: 2027-05-01 | EO3: 2027-06-01 | EP3: 2027-07-01 | EQ3: 2027-08-01 | ER3: 2027-09-01 | ES3: 2027-10-01 | ET3: 2027-11-01 | EU3: 2027-12-01 | EV3: 2028-01-01 | EW3: 2028-02-01 | EX3: 2028-03-01 | EY3: 2028-04-01 | EZ3: 2028-05-01 | FA3: 2028-06-01 | FB3: 2028-07-01 | FC3: 2028-08-01 | FD3: 2028-09-01 | FE3: 2028-10-01 | FF3: =+EOMONTH(FE3,0)+1 -> 2028-11-01 | FG3: =+EOMONTH(FF3,0)+1 -> 2028-12-01 | FH3: 2029-01-01 | FI3: 2029-02-01 | FJ3: 2029-03-01 | FK3: 2029-04-01 | FL3: 2029-05-01 | FM3: 2029-06-01 | FN3: 2029-07-01 | FO3: 2029-08-01 | FP3: 2029-09-01 | FQ3: 2029-10-01 | FR3: =+EOMONTH(FQ3,0)+1 -> 2029-11-01 | FS3: =+EOMONTH(FR3,0)+1 -> 2029-12-01 | FT3: 2030-01-01 | FU3: 2030-02-01 | FV3: 2030-03-01 | FW3: 2030-04-01 | FX3: 2030-05-01 | FY3: 2030-06-01 | FZ3: 2030-07-01 | GA3: 2030-08-01 | GB3: 2030-09-01 | GC3: 2030-10-01 | GD3: =+EOMONTH(GC3,0)+1 -> 2030-11-01 | GE3: =+EOMONTH(GD3,0)+1 -> 2030-12-01 | GF3: 2031-01-01 | GG3: 2031-02-01 | GH3: 2031-03-01 | GI3: 2031-04-01 | GJ3: 2031-05-01 | GK3: 2031-06-01 | GL3: 2031-07-01 | GM3: 2031-08-01 | GN3: 2031-09-01 | GO3: =DATE(YEAR(GN3),MONTH(GN3)+1,1) -> 2031-10-01 | GP3: =DATE(YEAR(GO3),MONTH(GO3)+1,1) -> 2031-11-01 | GQ3: 2031-12-01 | GR3: 2032-01-01 | GS3: 2032-02-01 | GT3: 2032-03-01 | GU3: 2032-04-01 | GV3: 2032-05-01 | GW3: 2032-06-01 | GX3: 2032-07-01 | GY3: 2032-08-01 | GZ3: 2032-09-01 | HA3: 2032-10-01 | HB3: 2032-11-01 | HC3: =DATE(YEAR(HB3),MONTH(HB3)+1,1) -> 2032-12-01 | HD3: 2033-01-01 | HE3: 2033-02-01 | HF3: 2033-03-01 | HG3: 2033-04-01 | HH3: 2033-05-01 | HI3: 2033-06-01 | HJ3: 2033-07-01 | HK3: 2033-08-01 | HL3: =DATE(YEAR(HK3),MONTH(HK3)+1,1) -> 2033-09-01 | HM3: =DATE(YEAR(HL3),MONTH(HL3)+1,1) -> 2033-10-01 | HN3: 2033-11-01 | HO3: =DATE(YEAR(HN3),MONTH(HN3)+1,1) -> 2033-12-01 | HP3: 2034-01-01 | HQ3: =DATE(YEAR(HP3),MONTH(HP3)+1,1) -> 2034-02-01 | HR3: 2034-03-01 | HS3: =DATE(YEAR(HR3),MONTH(HR3)+1,1) -> 2034-04-01 | HT3: 2034-05-01 | HU3: =DATE(YEAR(HT3),MONTH(HT3)+1,1) -> 2034-06-01 | HV3: 2034-07-01 | HW3: =DATE(YEAR(HV3),MONTH(HV3)+1,1) -> 2034-08-01 | HX3: 2034-09-01 | HY3: =DATE(YEAR(HX3),MONTH(HX3)+1,1) -> 2034-10-01 | HZ3: 2034-11-01 | IA3: =DATE(YEAR(HZ3),MONTH(HZ3)+1,1) -> 2034-12-01 | IB3: =DATE(YEAR(IA3),MONTH(IA3)+1,1) -> 2035-01-01 | IC3: =DATE(YEAR(IB3),MONTH(IB3)+1,1) -> 2035-02-01 | ID3: =DATE(YEAR(IC3),MONTH(IC3)+1,1) -> 2035-03-01 | IE3: =DATE(YEAR(ID3),MONTH(ID3)+1,1) -> 2035-04-01 | IF3: =DATE(YEAR(IE3),MONTH(IE3)+1,1) -> 2035-05-01 | IG3: =DATE(YEAR(IF3),MONTH(IF3)+1,1) -> 2035-06-01 | IH3: =DATE(YEAR(IG3),MONTH(IG3)+1,1) -> 2035-07-01 | II3: =DATE(YEAR(IH3),MONTH(IH3)+1,1) -> 2035-08-01 | IJ3: =DATE(YEAR(II3),MONTH(II3)+1,1) -> 2035-09-01
A4: 0 | B4: 10015 | C4: Asotin County PUD #1 | D4: =VLOOKUP(B4,TOCA!$B$3:$E$137,4,FALSE) -> 0 | E4: 1.433 | F4: 1.005 | G4: 0.871 | H4: 1.014 | I4: 0.907 | J4: 0.964 | K4: 1.012 | L4: 1.742 | M4: 1.92 | N4: 2.719 | O4: 3.036 | P4: 2.243 | Q4: 1.06 | R4: 0.919 | S4: 0.965 | T4: 0.991 | U4: 1.769 | V4: 2.107 | W4: 2.715 | X4: 3.144 | Y4: 2.449 | Z4: 1.548 | AA4: 1.114 | AB4: 0.877 | AC4: 1.899 | AD4: 1.116 | AE4: 1.16 | AF4: 1.397 | AG4: 1.252 | AH4: 1.289 | AI4: 1.808 | AJ4: 2.327 | AK4: 2.829 | AL4: 3.113 | AM4: 3.023 | AN4: 2.395 | AO4: 1.93 | AP4: 1.135 | AQ4: 1.18 | AR4: 1.42 | AS4: 1.318 | AT4: 1.31 | AU4: 1.838 | AV4: 2.366 | AW4: 2.877 | AX4: 3.165 | AY4: 3.074 | AZ4: 2.435 | BA4: 1.874 | BB4: 1.095 | BC4: 1.139 | BD4: 1.379 | BE4: 1.244 | BF4: 1.244 | BG4: 1.756 | BH4: 2.273 | BI4: 2.739 | BJ4: 3.012 | BK4: 2.915 | BL4: 2.327 | BM4: 1.891 | BN4: 1.105 | BO4: 1.149 | BP4: 1.392 | BQ4: 1.303 | BR4: 1.253 | BS4: 1.771 | BT4: 2.293 | BU4: 2.76 | BV4: 3.035 | BW4: 2.937 | BX4: 2.346 | BY4: 1.526 | BZ4: 1.095 | CA4: 1.16 | CB4: 1.224 | CC4: 1.234 | CD4: 1.18 | CE4: 1.51 | CF4: 1.959 | CG4: 2.639 | CH4: 2.888 | CI4: 2.904 | CJ4: 2.215 | CK4: 1.526 | CL4: 1.095 | CM4: 1.16 | CN4: 1.224 | CO4: 1.234 | CP4: 1.18 | CQ4: 1.51 | CR4: 1.959 | CS4: 2.639 | CT4: 2.888 | CU4: 2.904 | CV4: 2.215 | CW4: 1.526 | CX4: 1.095 | CY4: 1.16 | CZ4: 1.224 | DA4: 1.234 | DB4: 1.18 | DC4: 1.51 | DD4: 1.959 | DE4: 2.639 | DF4: 2.888 | DG4: 2.904 | DH4: 2.215 | DI4: 1.752 | DJ4: 1.32 | DK4: 1.385 | DL4: 1.448 | DM4: 1.471 | DN4: 1.405 | DO4: 1.728 | DP4: 2.169 | DQ4: 2.799 | DR4: 3.082 | DS4: 3.094 | DT4: 2.42 | DU4: 1.752 | DV4: 1.32 | DW4: 1.385 | DX4: 1.448 | DY4: 1.471 | DZ4: 1.405 | EA4: 1.728 | EB4: 2.169 | EC4: 2.799 | ED4: 3.082 | EE4: 3.094 | EF4: 2.42 | EG4: 1.752 | EH4: 1.32 | EI4: 1.385 | EJ4: 1.448 | EK4: 1.471 | EL4: 1.405 | EM4: 1.728 | EN4: 2.169 | EO4: 2.799 | EP4: 3.082 | EQ4: 3.094 | ER4: 2.42 | ES4: 1.752 | ET4: 1.32 | EU4: 1.385 | EV4: 1.448 | EW4: 1.471 | EX4: 1.405 | EY4: 1.728 | EZ4: 2.169 | FA4: 2.799 | FB4: 3.082 | FC4: 3.094 | FD4: 2.42 | FE4: 1.752 | FF4: 1.32 | FG4: 1.385 | FH4: 1.448 | FI4: 1.471 | FJ4: 1.405 | FK4: 1.728 | FL4: 2.169 | FM4: 2.799 | FN4: 3.082 | FO4: 3.094 | FP4: 2.42 | FQ4: 1.752 | FR4: 1.32 | FS4: 1.385 | FT4: 1.448 | FU4: 1.471 | FV4: 1.405 | FW4: 1.728 | FX4: 2.169 | FY4: 2.799 | FZ4: 3.082 | GA4: 3.094 | GB4: 2.42 | GC4: 1.752 | GD4: 1.32 | GE4: 1.385 | GF4: 1.448 | GG4: 1.471 | GH4: 1.405 | GI4: 1.728 | GJ4: 2.169 | GK4: 2.799 | GL4: 3.082 | GM4: 3.094 | GN4: 2.42 | GO4: 1.752 | GP4: 1.32 | GQ4: 1.385 | GR4: 1.448 | GS4: 1.471 | GT4: 1.405 | GU4: 1.728 | GV4: 2.169 | GW4: 2.799 | GX4: 3.082 | GY4: 3.094 | GZ4: 2.42 | HA4: 1.752 | HB4: 1.32 | HC4: 1.385 | HD4: 1.448 | HE4: 1.471 | HF4: 1.405 | HG4: 1.728 | HH4: 2.169 | HI4: 2.799 | HJ4: 3.082 | HK4: 3.094 | HL4: 2.42 | HM4: 1.752 | HN4: 1.32 | HO4: 1.385 | HP4: 1.448 | HQ4: 1.471 | HR4: 1.405 | HS4: 1.728 | HT4: 2.169 | HU4: 2.799 | HV4: 3.082 | HW4: 3.094 | HX4: 2.42 | HY4: 1.752 | HZ4: 1.32 | IA4: 1.385 | IB4: 1.448 | IC4: 1.471 | ID4: 1.405 | IE4: 1.728 | IF4: 2.169 | IG4: 2.799 | IH4: 3.082 | II4: 3.094 | IJ4: 2.42
A5: 0 | B5: 10024 | C5: Benton County PUD #1 | D5: =VLOOKUP(B5,TOCA!$B$3:$E$137,4,FALSE) -> 0 | E5: 223.501 | F5: 262.465 | G5: 295.813 | H5: 294.47 | I5: 270.489 | J5: 241.716 | K5: 235.285 | L5: 297.237 | M5: 399.998 | N5: 429.067 | O5: 386.093 | P5: 297.35 | Q5: 301.09 | R5: 281.731 | S5: 232.325 | T5: 275.546 | U5: 323.644 | V5: 407.383 | W5: 441.883 | X5: 410.283 | Y5: 302.983 | Z5: 249.554 | AA5: 249.212 | AB5: 292.58 | AC5: 249.653 | AD5: 249.513 | AE5: 292.93 | AF5: 302.371 | AG5: 282.931 | AH5: 233.375 | AI5: 276.526 | AJ5: 324.505 | AK5: 408.183 | AL5: 442.653 | AM5: 411.113 | AN5: 303.884 | AO5: 250.633 | AP5: 250.682 | AQ5: 294.241 | AR5: 303.76 | AS5: 284.231 | AT5: 234.545 | AU5: 277.626 | AV5: 325.485 | AW5: 409.123 | AX5: 443.553 | AY5: 412.053 | AZ5: 304.913 | BA5: 238.872 | BB5: 256.3 | BC5: 299.931 | BD5: 303.872 | BE5: 286.395 | BF5: 244.323 | BG5: 255.688 | BH5: 360.895 | BI5: 400.004 | BJ5: 428.66 | BK5: 403.99 | BL5: 299.168 | BM5: 239.811 | BN5: 257.31 | BO5: 301.115 | BP5: 305.072 | BQ5: 287.525 | BR5: 245.285 | BS5: 256.695 | BT5: 362.323 | BU5: 401.588 | BV5: 430.358 | BW5: 405.589 | BX5: 300.349 | BY5: 236.467 | BZ5: 253.685 | CA5: 296.827 | CB5: 300.689 | CC5: 283.362 | CD5: 241.712 | CE5: 252.922 | CF5: 356.928 | CG5: 395.553 | CH5: 423.833 | CI5: 399.393 | CJ5: 295.74 | CK5: 237.043 | CL5: 254.304 | CM5: 297.552 | CN5: 301.424 | CO5: 284.054 | CP5: 242.3 | CQ5: 253.538 | CR5: 357.801 | CS5: 396.521 | CT5: 424.872 | CU5: 400.371 | CV5: 296.461 | CW5: 231.287 | CX5: 252.952 | CY5: 303.055 | CZ5: 314.341 | DA5: 263.949 | DB5: 246.941 | DC5: 272.159 | DD5: 311.551 | DE5: 403.529 | DF5: 425.071 | DG5: 409.262 | DH5: 257.483 | DI5: 243.224 | DJ5: 260.994 | DK5: 305.758 | DL5: 309.941 | DM5: 284.034 | DN5: 258.633 | DO5: 269.848 | DP5: 313.331 | DQ5: 428.363 | DR5: 440.705 | DS5: 408.008 | DT5: 272.74 | DU5: 243.882 | DV5: 261.705 | DW5: 306.603 | DX5: 310.799 | DY5: 284.814 | DZ5: 259.337 | EA5: 270.585 | EB5: 314.199 | EC5: 429.576 | ED5: 441.955 | EE5: 409.16 | EF5: 273.486 | EG5: 244.542 | EH5: 262.418 | EI5: 307.451 | EJ5: 311.659 | EK5: 285.596 | EL5: 260.043 | EM5: 271.325 | EN5: 315.069 | EO5: 430.793 | EP5: 443.209 | EQ5: 410.316 | ER5: 274.235 | ES5: 245.203 | ET5: 263.133 | EU5: 308.301 | EV5: 312.522 | EW5: 285.86 | EX5: 260.751 | EY5: 272.067 | EZ5: 315.942 | FA5: 432.013 | FB5: 444.466 | FC5: 411.475 | FD5: 274.985 | FE5: 245.867 | FF5: 263.85 | FG5: 309.154 | FH5: 313.388 | FI5: 287.168 | FJ5: 261.461 | FK5: 272.811 | FL5: 316.818 | FM5: 433.237 | FN5: 445.728 | FO5: 412.637 | FP5: 275.738 | FQ5: 246.532 | FR5: 264.57 | FS5: 310.009 | FT5: 314.256 | FU5: 287.958 | FV5: 262.174 | FW5: 273.558 | FX5: 317.697 | FY5: 434.465 | FZ5: 446.993 | GA5: 413.803 | GB5: 276.494 | GC5: 247.2 | GD5: 265.292 | GE5: 310.867 | GF5: 315.127 | GG5: 288.75 | GH5: 262.888 | GI5: 274.306 | GJ5: 318.578 | GK5: 435.696 | GL5: 448.262 | GM5: 414.972 | GN5: 277.251 | GO5: 247.87 | GP5: 266.016 | GQ5: 311.728 | GR5: 316 | GS5: 289.017 | GT5: 263.605 | GU5: 275.057 | GV5: 319.462 | GW5: 436.931 | GX5: 449.535 | GY5: 416.145 | GZ5: 278.011 | HA5: 248.541 | HB5: 266.742 | HC5: 312.591 | HD5: 316.876 | HE5: 290.34 | HF5: 264.324 | HG5: 275.81 | HH5: 320.348 | HI5: 438.17 | HJ5: 450.811 | HK5: 417.322 | HL5: 278.773 | HM5: 249.215 | HN5: 267.47 | HO5: 313.457 | HP5: 317.755 | HQ5: 291.139 | HR5: 265.045 | HS5: 276.566 | HT5: 321.237 | HU5: 439.413 | HV5: 452.092 | HW5: 418.502 | HX5: 279.537 | HY5: 249.891 | HZ5: 268.2 | IA5: 314.325 | IB5: 318.636 | IC5: 291.941 | ID5: 265.768 | IE5: 277.324 | IF5: 322.129 | IG5: 440.659 | IH5: 453.376 | II5: 419.685 | IJ5: 280.304
A6: 0 | B6: 10025 | C6: Benton REA | D6: =VLOOKUP(B6,TOCA!$B$3:$E$137,4,FALSE) -> 0 | E6: 88.278 | F6: 96.661 | G6: 95.101 | H6: 98.483 | I6: 93.882 | J6: 82.053 | K6: 91.517 | L6: 96.816 | M6: 120.441 | N6: 130.583 | O6: 128.492 | P6: 117.882 | Q6: 104.394 | R6: 97.055 | S6: 80.68 | T6: 90.179 | U6: 102.645 | V6: 113.348 | W6: 130.186 | X6: 124.419 | Y6: 110.05 | Z6: 85.127 | AA6: 85.577 | AB6: 99.02 | AC6: 78.985 | AD6: 77.415 | AE6: 94.23 | AF6: 96.668 | AG6: 89.349 | AH6: 74.115 | AI6: 81.122 | AJ6: 92.519 | AK6: 99.42 | AL6: 114.48 | AM6: 105.454 | AN6: 90.146 | AO6: 80.255 | AP6: 78.685 | AQ6: 95.7 | AR6: 98.208 | AS6: 90.769 | AT6: 75.285 | AU6: 82.442 | AV6: 93.999 | AW6: 101.11 | AX6: 116.43 | AY6: 107.314 | AZ6: 91.756 | BA6: 81.95 | BB6: 81.004 | BC6: 95.02 | BD6: 94.354 | BE6: 88.867 | BF6: 75.428 | BG6: 84.355 | BH6: 96.408 | BI6: 109.85 | BJ6: 123.921 | BK6: 120.948 | BL6: 100.843 | BM6: 84.342 | BN6: 83.415 | BO6: 97.447 | BP6: 96.739 | BQ6: 91.246 | BR6: 77.69 | BS6: 86.588 | BT6: 98.66 | BU6: 112.105 | BV6: 126.16 | BW6: 123.117 | BX6: 102.866 | BY6: 75.679 | BZ6: 77.752 | CA6: 101.164 | CB6: 97.249 | CC6: 82.614 | CD6: 78.659 | CE6: 76.755 | CF6: 94.081 | CG6: 110.904 | CH6: 121.033 | CI6: 118.319 | CJ6: 94.761 | CK6: 77.436 | CL6: 79.529 | CM6: 103.174 | CN6: 98.209 | CO6: 83.435 | CP6: 79.432 | CQ6: 77.516 | CR6: 95.015 | CS6: 111.996 | CT6: 122.235 | CU6: 119.493 | CV6: 95.699 | CW6: 73.454 | CX6: 75.4 | CY6: 98.027 | CZ6: 93.184 | DA6: 78.953 | DB6: 75.062 | DC6: 73.165 | DD6: 89.821 | DE6: 105.962 | DF6: 115.638 | DG6: 112.926 | DH6: 90.181 | DI6: 90.936 | DJ6: 86.631 | DK6: 115.833 | DL6: 117.844 | DM6: 95.327 | DN6: 92.494 | DO6: 88.368 | DP6: 101.124 | DQ6: 119.674 | DR6: 124.865 | DS6: 122.483 | DT6: 105.605 | DU6: 91.599 | DV6: 87.262 | DW6: 116.683 | DX6: 118.709 | DY6: 96.023 | DZ6: 93.168 | EA6: 89.012 | EB6: 101.864 | EC6: 120.553 | ED6: 125.783 | EE6: 123.383 | EF6: 106.379 | EG6: 92.267 | EH6: 87.898 | EI6: 117.54 | EJ6: 119.581 | EK6: 96.724 | EL6: 93.849 | EM6: 89.661 | EN6: 102.609 | EO6: 121.438 | EP6: 126.707 | EQ6: 124.29 | ER6: 107.158 | ES6: 92.941 | ET6: 88.538 | EU6: 118.402 | EV6: 120.459 | EW6: 96.759 | EX6: 94.534 | EY6: 90.315 | EZ6: 103.36 | FA6: 122.33 | FB6: 127.639 | FC6: 125.203 | FD6: 107.943 | FE6: 93.619 | FF6: 89.184 | FG6: 119.272 | FH6: 121.343 | FI6: 98.143 | FJ6: 95.224 | FK6: 90.974 | FL6: 104.116 | FM6: 123.229 | FN6: 128.577 | FO6: 126.123 | FP6: 108.734 | FQ6: 94.302 | FR6: 89.834 | FS6: 120.147 | FT6: 122.235 | FU6: 98.86 | FV6: 95.919 | FW6: 91.637 | FX6: 104.878 | FY6: 124.135 | FZ6: 129.523 | GA6: 127.05 | GB6: 109.53 | GC6: 94.991 | GD6: 90.489 | GE6: 121.03 | GF6: 123.133 | GG6: 99.583 | GH6: 96.62 | GI6: 92.306 | GJ6: 105.646 | GK6: 125.047 | GL6: 130.476 | GM6: 127.985 | GN6: 110.333 | GO6: 95.685 | GP6: 91.149 | GQ6: 121.919 | GR6: 124.037 | GS6: 99.619 | GT6: 97.326 | GU6: 92.979 | GV6: 106.42 | GW6: 125.966 | GX6: 131.435 | GY6: 128.926 | GZ6: 111.142 | HA6: 96.384 | HB6: 91.813 | HC6: 122.814 | HD6: 124.949 | HE6: 101.045 | HF6: 98.037 | HG6: 93.658 | HH6: 107.199 | HI6: 126.892 | HJ6: 132.402 | HK6: 129.874 | HL6: 111.957 | HM6: 97.088 | HN6: 92.483 | HO6: 123.717 | HP6: 125.867 | HQ6: 101.784 | HR6: 98.754 | HS6: 94.342 | HT6: 107.985 | HU6: 127.825 | HV6: 133.377 | HW6: 130.829 | HX6: 112.778 | HY6: 97.797 | HZ6: 93.158 | IA6: 124.626 | IB6: 126.793 | IC6: 102.528 | ID6: 99.475 | IE6: 95.03 | IF6: 108.776 | IG6: 128.765 | IH6: 134.358 | II6: 131.792 | IJ6: 113.605
A7: 0 | B7: 10027 | C7: Big Bend Elec Coop | D7: =VLOOKUP(B7,TOCA!$B$3:$E$137,4,FALSE) -> 0 | E7: 71.7 | F7: 46 | G7: 51.5 | H7: 51.2 | I7: 46.2 | J7: 42.8 | K7: 78.8 | L7: 111.5 | M7: 128.6 | N7: 131.1 | O7: 121.7 | P7: 105.9 | Q7: 53.178 | R7: 49.483 | S7: 47.529 | T7: 82.703 | U7: 115.435 | V7: 132.241 | W7: 135.062 | X7: 125.324 | Y7: 108.328 | Z7: 74.193 | AA7: 48.731 | AB7: 54.745 | AC7: 73.882 | AD7: 49.47 | AE7: 55.472 | AF7: 53.89 | AG7: 50.236 | AH7: 48.282 | AI7: 82.019 | AJ7: 113.798 | AK7: 130.201 | AL7: 132.631 | AM7: 123.367 | AN7: 107.057 | AO7: 74.691 | AP7: 50.279 | AQ7: 56.282 | AR7: 54.7 | AS7: 51.045 | AT7: 49.091 | AU7: 82.828 | AV7: 114.608 | AW7: 131.01 | AX7: 133.44 | AY7: 124.176 | AZ7: 107.866 | BA7: 80.942 | BB7: 56.193 | BC7: 62.265 | BD7: 61.78 | BE7: 55.899 | BF7: 56.741 | BG7: 90.161 | BH7: 120.134 | BI7: 137.036 | BJ7: 136.268 | BK7: 128.725 | BL7: 111.741 | BM7: 81.885 | BN7: 57.136 | BO7: 63.208 | BP7: 62.724 | BQ7: 56.842 | BR7: 57.684 | BS7: 91.104 | BT7: 121.078 | BU7: 137.979 | BV7: 137.211 | BW7: 129.668 | BX7: 112.684 | BY7: 79.995 | BZ7: 52.888 | CA7: 61.719 | CB7: 58.185 | CC7: 54.871 | CD7: 53.083 | CE7: 90.97 | CF7: 127.443 | CG7: 141.189 | CH7: 138.382 | CI7: 130.772 | CJ7: 109.596 | CK7: 80.79 | CL7: 53.684 | CM7: 62.515 | CN7: 58.981 | CO7: 55.666 | CP7: 53.878 | CQ7: 91.765 | CR7: 128.238 | CS7: 141.984 | CT7: 139.177 | CU7: 131.567 | CV7: 110.391 | CW7: 81.585 | CX7: 54.479 | CY7: 63.31 | CZ7: 59.776 | DA7: 56.461 | DB7: 54.673 | DC7: 92.561 | DD7: 129.034 | DE7: 142.779 | DF7: 139.972 | DG7: 132.362 | DH7: 111.187 | DI7: 81.028 | DJ7: 53.266 | DK7: 62.102 | DL7: 58.576 | DM7: 55.095 | DN7: 53.466 | DO7: 92.244 | DP7: 129.304 | DQ7: 143.158 | DR7: 140.756 | DS7: 132.834 | DT7: 111.17 | DU7: 83.539 | DV7: 59.111 | DW7: 68.052 | DX7: 73.45 | DY7: 61.946 | DZ7: 57.441 | EA7: 87.387 | EB7: 126.24 | EC7: 146.156 | ED7: 151.953 | EE7: 140.161 | EF7: 101.174 | EG7: 85.065 | EH7: 60.191 | EI7: 69.295 | EJ7: 74.792 | EK7: 63.078 | EL7: 58.49 | EM7: 88.984 | EN7: 128.547 | EO7: 148.827 | EP7: 154.73 | EQ7: 142.723 | ER7: 103.023 | ES7: 86.356 | ET7: 61.104 | EU7: 70.347 | EV7: 75.927 | EW7: 64.036 | EX7: 59.378 | EY7: 90.334 | EZ7: 130.497 | FA7: 151.085 | FB7: 157.077 | FC7: 144.888 | FD7: 104.586 | FE7: 86.762 | FF7: 61.391 | FG7: 70.677 | FH7: 76.284 | FI7: 64.336 | FJ7: 59.657 | FK7: 90.759 | FL7: 131.111 | FM7: 151.796 | FN7: 157.816 | FO7: 145.569 | FP7: 105.078 | FQ7: 87.169 | FR7: 61.68 | FS7: 71.01 | FT7: 76.642 | FU7: 64.639 | FV7: 59.937 | FW7: 91.185 | FX7: 131.727 | FY7: 152.509 | FZ7: 158.557 | GA7: 146.253 | GB7: 105.572 | GC7: 87.579 | GD7: 61.97 | GE7: 71.343 | GF7: 77.002 | GG7: 64.943 | GH7: 60.219 | GI7: 91.614 | GJ7: 132.346 | GK7: 153.226 | GL7: 159.303 | GM7: 146.94 | GN7: 106.068 | GO7: 87.991 | GP7: 62.261 | GQ7: 71.679 | GR7: 77.364 | GS7: 65.248 | GT7: 60.502 | GU7: 92.044 | GV7: 132.968 | GW7: 153.946 | GX7: 160.051 | GY7: 147.631 | GZ7: 106.566 | HA7: 88.404 | HB7: 62.554 | HC7: 72.015 | HD7: 77.728 | HE7: 65.554 | HF7: 60.786 | HG7: 92.477 | HH7: 133.593 | HI7: 154.669 | HJ7: 160.804 | HK7: 148.325 | HL7: 107.067 | HM7: 88.82 | HN7: 62.848 | HO7: 72.354 | HP7: 78.093 | HQ7: 65.862 | HR7: 61.073 | HS7: 92.912 | HT7: 134.221 | HU7: 155.396 | HV7: 161.559 | HW7: 149.022 | HX7: 107.57 | HY7: 89.237 | HZ7: 63.143 | IA7: 72.694 | IB7: 78.46 | IC7: 66.172 | ID7: 61.36 | IE7: 93.348 | IF7: 134.852 | IG7: 156.127 | IH7: 162.319 | II7: 149.722 | IJ7: 108.076
A8: 1 | B8: 10029 | C8: Blachly Lane Elec Coop | D8: =VLOOKUP(B8,TOCA!$B$3:$E$137,4,FALSE) -> 1 | E8: 29.787 | F8: 32.231 | G8: 34.956 | H8: 34.924 | I8: 33.493 | J8: 32.735 | K8: 31.131 | L8: 26.612 | M8: 25.6 | N8: 25.333 | O8: 24.92 | P8: 25.173 | Q8: 34.924 | R8: 33.493 | S8: 32.735 | T8: 31.131 | U8: 26.612 | V8: 25.6 | W8: 25.333 | X8: 24.92 | Y8: 25.173 | Z8: 29.787 | AA8: 32.231 | AB8: 34.956 | AC8: 29.229 | AD8: 31.757 | AE8: 34.481 | AF8: 34.422 | AG8: 32.989 | AH8: 32.232 | AI8: 30.86 | AJ8: 25.923 | AK8: 25.068 | AL8: 24.843 | AM8: 24.154 | AN8: 24.666 | AO8: 29.229 | AP8: 31.757 | AQ8: 34.481 | AR8: 34.422 | AS8: 32.989 | AT8: 32.232 | AU8: 30.86 | AV8: 25.923 | AW8: 25.068 | AX8: 24.843 | AY8: 24.154 | AZ8: 24.666 | BA8: 31.764 | BB8: 34.371 | BC8: 36.927 | BD8: 37.157 | BE8: 36.62 | BF8: 35.32 | BG8: 33.983 | BH8: 29.155 | BI8: 28.044 | BJ8: 27.827 | BK8: 28.006 | BL8: 27.881 | BM8: 32.094 | BN8: 34.537 | BO8: 36.927 | BP8: 37.157 | BQ8: 36.62 | BR8: 35.32 | BS8: 33.983 | BT8: 29.155 | BU8: 28.044 | BV8: 27.827 | BW8: 28.006 | BX8: 27.881 | BY8: 29.546 | BZ8: 31.293 | CA8: 35.105 | CB8: 34.592 | CC8: 33.484 | CD8: 33.425 | CE8: 31.107 | CF8: 27.723 | CG8: 26.268 | CH8: 26.176 | CI8: 26.455 | CJ8: 26.156 | CK8: 29.546 | CL8: 31.293 | CM8: 35.105 | CN8: 34.592 | CO8: 33.484 | CP8: 33.425 | CQ8: 31.107 | CR8: 27.723 | CS8: 26.268 | CT8: 26.176 | CU8: 26.455 | CV8: 26.156 | CW8: 30.122 | CX8: 32.865 | CY8: 36.408 | CZ8: 36.373 | DA8: 35.392 | DB8: 35.216 | DC8: 32.904 | DD8: 29.735 | DE8: 27.972 | DF8: 27.72 | DG8: 28.258 | DH8: 27.776 | DI8: 31.276 | DJ8: 33.525 | DK8: 36.945 | DL8: 37.799 | DM8: 35.677 | DN8: 35.36 | DO8: 33.565 | DP8: 29.773 | DQ8: 28.165 | DR8: 28.295 | DS8: 28.961 | DT8: 27.641 | DU8: 31.276 | DV8: 33.525 | DW8: 36.945 | DX8: 41.016 | DY8: 38.821 | DZ8: 38.515 | EA8: 36.703 | EB8: 32.888 | EC8: 31.323 | ED8: 31.422 | EE8: 32.085 | EF8: 30.761 | EG8: 34.341 | EH8: 36.685 | EI8: 40.172 | EJ8: 43.012 | EK8: 40.771 | EL8: 40.473 | EM8: 38.65 | EN8: 34.822 | EO8: 33.283 | EP8: 33.362 | EQ8: 34.023 | ER8: 32.698 | ES8: 36.235 | ET8: 38.629 | EU8: 42.158 | EV8: 43.012 | EW8: 40.771 | EX8: 40.473 | EY8: 38.65 | EZ8: 34.822 | FA8: 33.283 | FB8: 33.362 | FC8: 34.023 | FD8: 32.698 | FE8: 36.235 | FF8: 38.629 | FG8: 42.158 | FH8: 43.012 | FI8: 40.771 | FJ8: 40.473 | FK8: 38.65 | FL8: 34.822 | FM8: 33.283 | FN8: 33.362 | FO8: 34.023 | FP8: 32.698 | FQ8: 36.235 | FR8: 38.629 | FS8: 42.158 | FT8: 43.012 | FU8: 40.771 | FV8: 40.473 | FW8: 38.65 | FX8: 34.822 | FY8: 33.283 | FZ8: 33.362 | GA8: 34.023 | GB8: 32.698 | GC8: 36.235 | GD8: 38.629 | GE8: 42.158 | GF8: 43.012 | GG8: 40.771 | GH8: 40.473 | GI8: 38.65 | GJ8: 34.822 | GK8: 33.283 | GL8: 33.362 | GM8: 34.023 | GN8: 32.698 | GO8: 36.235 | GP8: 38.629 | GQ8: 42.158 | GR8: 43.012 | GS8: 40.771 | GT8: 40.473 | GU8: 38.65 | GV8: 34.822 | GW8: 33.283 | GX8: 33.362 | GY8: 34.023 | GZ8: 32.698 | HA8: 36.235 | HB8: 38.629 | HC8: 42.158 | HD8: 43.012 | HE8: 40.771 | HF8: 40.473 | HG8: 38.65 | HH8: 34.822 | HI8: 33.283 | HJ8: 33.362 | HK8: 34.023 | HL8: 32.698 | HM8: 36.235 | HN8: 38.629 | HO8: 42.158 | HP8: 43.012 | HQ8: 40.771 | HR8: 40.473 | HS8: 38.65 | HT8: 34.822 | HU8: 33.283 | HV8: 33.362 | HW8: 34.023 | HX8: 32.698 | HY8: 36.235 | HZ8: 38.629 | IA8: 42.158 | IB8: 43.012 | IC8: 40.771 | ID8: 40.473 | IE8: 38.65 | IF8: 34.822 | IG8: 33.283 | IH8: 33.362 | II8: 34.023 | IJ8: 32.698
A9: 0 | B9: 10044 | C9: Canby, City of | D9: =VLOOKUP(B9,TOCA!$B$3:$E$137,4,FALSE) -> 0 | E9: 29.246 | F9: 34.326 | G9: 37.248 | H9: 37.988 | I9: 36.033 | J9: 32.982 | K9: 30.902 | L9: 28.241 | M9: 29.529 | N9: 33.079 | O9: 33.637 | P9: 30.809 | Q9: 36.024 | R9: 33.577 | S9: 30.499 | T9: 28.42 | U9: 25.716 | V9: 27.034 | W9: 30.558 | X9: 31.14 | Y9: 28.317 | Z9: 26.752 | AA9: 31.848 | AB9: 34.791 | AC9: 26.742 | AD9: 31.849 | AE9: 34.801 | AF9: 36.044 | AG9: 33.598 | AH9: 30.519 | AI9: 28.441 | AJ9: 25.738 | AK9: 27.056 | AL9: 30.58 | AM9: 31.162 | AN9: 28.34 | AO9: 26.909 | AP9: 32.005 | AQ9: 34.948 | AR9: 36.18 | AS9: 33.734 | AT9: 30.655 | AU9: 28.577 | AV9: 25.873 | AW9: 27.191 | AX9: 30.714 | AY9: 31.296 | AZ9: 28.474 | BA9: 27.05 | BB9: 32.158 | BC9: 35.111 | BD9: 36.354 | BE9: 33.918 | BF9: 30.848 | BG9: 28.78 | BH9: 26.062 | BI9: 27.378 | BJ9: 30.902 | BK9: 31.484 | BL9: 28.66 | BM9: 27.227 | BN9: 32.323 | BO9: 35.264 | BP9: 36.496 | BQ9: 34.049 | BR9: 30.967 | BS9: 28.887 | BT9: 26.184 | BU9: 27.5 | BV9: 31.023 | BW9: 31.604 | BX9: 28.781 | BY9: 27.17 | BZ9: 35.036 | CA9: 35.71 | CB9: 36.376 | CC9: 34.332 | CD9: 32.423 | CE9: 28.21 | CF9: 27.597 | CG9: 34.063 | CH9: 33.459 | CI9: 35.5 | CJ9: 29.63 | CK9: 27.169 | CL9: 35.035 | CM9: 35.709 | CN9: 36.376 | CO9: 34.332 | CP9: 32.423 | CQ9: 28.21 | CR9: 27.597 | CS9: 34.114 | CT9: 33.509 | CU9: 35.552 | CV9: 29.673 | CW9: 28.646 | CX9: 33.462 | CY9: 37.36 | CZ9: 34.7 | DA9: 38.476 | DB9: 33.151 | DC9: 30.164 | DD9: 29.018 | DE9: 34.595 | DF9: 36.138 | DG9: 37.801 | DH9: 33.761 | DI9: 28.102 | DJ9: 32.045 | DK9: 36.012 | DL9: 35.899 | DM9: 38.188 | DN9: 32.914 | DO9: 29.42 | DP9: 29.29 | DQ9: 34.83 | DR9: 35.908 | DS9: 38.087 | DT9: 30.381 | DU9: 28.263 | DV9: 32.206 | DW9: 36.173 | DX9: 36.059 | DY9: 38.365 | DZ9: 33.079 | EA9: 29.58 | EB9: 29.679 | EC9: 35.218 | ED9: 36.296 | EE9: 38.473 | EF9: 30.767 | EG9: 28.421 | EH9: 32.363 | EI9: 36.329 | EJ9: 36.215 | EK9: 38.537 | EL9: 33.24 | EM9: 29.735 | EN9: 30.058 | EO9: 35.596 | EP9: 36.673 | EQ9: 38.85 | ER9: 31.142 | ES9: 28.574 | ET9: 32.515 | EU9: 36.482 | EV9: 36.367 | EW9: 38.705 | EX9: 33.397 | EY9: 29.886 | EZ9: 30.427 | FA9: 35.964 | FB9: 37.04 | FC9: 39.217 | FD9: 31.508 | FE9: 28.723 | FF9: 32.664 | FG9: 36.63 | FH9: 36.516 | FI9: 38.869 | FJ9: 33.55 | FK9: 30.033 | FL9: 30.786 | FM9: 36.323 | FN9: 37.399 | FO9: 39.574 | FP9: 31.865 | FQ9: 28.868 | FR9: 32.809 | FS9: 36.775 | FT9: 36.66 | FU9: 39.03 | FV9: 33.7 | FW9: 30.177 | FX9: 31.137 | FY9: 36.673 | FZ9: 37.748 | GA9: 39.923 | GB9: 32.213 | GC9: 29.01 | GD9: 32.951 | GE9: 36.917 | GF9: 36.801 | GG9: 39.187 | GH9: 33.846 | GI9: 30.317 | GJ9: 31.48 | GK9: 37.015 | GL9: 38.089 | GM9: 40.264 | GN9: 32.553 | GO9: 29.149 | GP9: 33.089 | GQ9: 37.055 | GR9: 36.939 | GS9: 39.341 | GT9: 33.989 | GU9: 30.454 | GV9: 31.815 | GW9: 37.349 | GX9: 38.423 | GY9: 40.596 | GZ9: 32.885 | HA9: 29.284 | HB9: 33.225 | HC9: 37.189 | HD9: 37.074 | HE9: 39.493 | HF9: 34.129 | HG9: 30.588 | HH9: 32.142 | HI9: 37.676 | HJ9: 38.748 | HK9: 40.921 | HL9: 33.21 | HM9: 29.417 | HN9: 33.357 | HO9: 37.321 | HP9: 37.205 | HQ9: 39.641 | HR9: 34.266 | HS9: 30.719 | HT9: 32.461 | HU9: 37.995 | HV9: 39.067 | HW9: 41.239 | HX9: 33.527 | HY9: 29.546 | HZ9: 33.486 | IA9: 37.45 | IB9: 37.334 | IC9: 39.786 | ID9: 34.4 | IE9: 30.847 | IF9: 32.774 | IG9: 38.307 | IH9: 39.378 | II9: 41.55 | IJ9: 33.838
A10: 1 | B10: 10046 | C10: Central Electric Coop | D10: =VLOOKUP(B10,TOCA!$B$3:$E$137,4,FALSE) -> 1 | E10: 114.708 | F10: 167.647 | G10: 198.859 | H10: 172.355 | I10: 164.605 | J10: 132.072 | K10: 129.429 | L10: 117.401 | M10: 106.792 | N10: 110.438 | O10: 106.771 | P10: 109.034 | Q10: 182.394 | R10: 174.439 | S10: 145.144 | T10: 137.208 | U10: 124.915 | V10: 113.076 | W10: 118.066 | X10: 114.14 | Y10: 114.689 | Z10: 121.655 | AA10: 177.299 | AB10: 215.369 | AC10: 125.672 | AD10: 183.557 | AE10: 219.99 | AF10: 189.586 | AG10: 178.92 | AH10: 148.647 | AI10: 141.057 | AJ10: 129.889 | AK10: 119.832 | AL10: 123.81 | AM10: 119.463 | AN10: 118.546 | AO10: 127.145 | AP10: 185.03 | AQ10: 221.463 | AR10: 191.059 | AS10: 180.393 | AT10: 150.12 | AU10: 142.53 | AV10: 131.362 | AW10: 121.305 | AX10: 125.283 | AY10: 120.936 | AZ10: 120.019 | BA10: 135.141 | BB10: 192.878 | BC10: 223.059 | BD10: 196.793 | BE10: 191.969 | BF10: 160.718 | BG10: 152.557 | BH10: 136.228 | BI10: 129.926 | BJ10: 134.47 | BK10: 131.473 | BL10: 123.639 | BM10: 137.873 | BN10: 195.61 | BO10: 225.792 | BP10: 199.525 | BQ10: 194.701 | BR10: 163.45 | BS10: 155.289 | BT10: 138.96 | BU10: 132.658 | BV10: 137.202 | BW10: 134.205 | BX10: 126.371 | BY10: 140.605 | BZ10: 198.343 | CA10: 228.523 | CB10: 202.257 | CC10: 197.433 | CD10: 166.182 | CE10: 158.021 | CF10: 141.692 | CG10: 135.39 | CH10: 139.934 | CI10: 136.937 | CJ10: 129.102 | CK10: 143.336 | CL10: 201.075 | CM10: 231.256 | CN10: 204.989 | CO10: 200.165 | CP10: 168.914 | CQ10: 160.753 | CR10: 144.424 | CS10: 138.122 | CT10: 142.666 | CU10: 139.669 | CV10: 131.835 | CW10: 146.068 | CX10: 203.806 | CY10: 233.988 | CZ10: 207.721 | DA10: 202.897 | DB10: 171.646 | DC10: 163.485 | DD10: 147.156 | DE10: 140.854 | DF10: 145.398 | DG10: 142.401 | DH10: 134.567 | DI10: 178.984 | DJ10: 187.322 | DK10: 240.012 | DL10: 256 | DM10: 218.682 | DN10: 201.232 | DO10: 182.283 | DP10: 135.605 | DQ10: 138.45 | DR10: 148.335 | DS10: 146.792 | DT10: 129.251 | DU10: 182.055 | DV10: 190.161 | DW10: 242.595 | DX10: 259.136 | DY10: 221.611 | DZ10: 204.004 | EA10: 185.002 | EB10: 137.985 | EC10: 140.846 | ED10: 150.709 | EE10: 149.171 | EF10: 131.655 | EG10: 185.044 | EH10: 192.924 | EI10: 245.11 | EJ10: 262.201 | EK10: 224.462 | EL10: 206.702 | EM10: 187.649 | EN10: 140.303 | EO10: 143.179 | EP10: 153.02 | EQ10: 151.487 | ER10: 133.996 | ES10: 187.955 | ET10: 195.615 | EU10: 247.559 | EV10: 265.2 | EW10: 227.239 | EX10: 209.33 | EY10: 190.227 | EZ10: 142.56 | FA10: 145.452 | FB10: 155.272 | FC10: 153.745 | FD10: 136.277 | FE10: 190.792 | FF10: 198.237 | FG10: 249.946 | FH10: 268.134 | FI10: 229.946 | FJ10: 211.892 | FK10: 192.741 | FL10: 144.761 | FM10: 147.668 | FN10: 157.468 | FO10: 155.945 | FP10: 138.502 | FQ10: 193.559 | FR10: 200.794 | FS10: 252.275 | FT10: 271.008 | FU10: 232.586 | FV10: 214.391 | FW10: 195.193 | FX10: 146.908 | FY10: 149.83 | FZ10: 159.611 | GA10: 158.093 | GB10: 140.672 | GC10: 196.258 | GD10: 203.29 | GE10: 254.546 | GF10: 273.824 | GG10: 235.163 | GH10: 216.83 | GI10: 197.587 | GJ10: 149.003 | GK10: 151.941 | GL10: 161.702 | GM10: 160.189 | GN10: 142.791 | GO10: 198.893 | GP10: 205.726 | GQ10: 256.765 | GR10: 276.586 | GS10: 237.679 | GT10: 219.211 | GU10: 199.924 | GV10: 151.05 | GW10: 154.002 | GX10: 163.745 | GY10: 162.237 | GZ10: 144.861 | HA10: 201.468 | HB10: 208.106 | HC10: 258.932 | HD10: 279.295 | HE10: 240.137 | HF10: 221.539 | HG10: 202.208 | HH10: 153.05 | HI10: 156.016 | HJ10: 165.741 | HK10: 164.238 | HL10: 146.884 | HM10: 203.984 | HN10: 210.433 | HO10: 261.05 | HP10: 281.955 | HQ10: 242.541 | HR10: 223.814 | HS10: 204.441 | HT10: 155.005 | HU10: 157.985 | HV10: 167.693 | HW10: 166.195 | HX10: 148.863 | HY10: 206.445 | HZ10: 212.708 | IA10: 263.122 | IB10: 284.568 | IC10: 244.891 | ID10: 226.039 | IE10: 206.625 | IF10: 156.918 | IG10: 159.912 | IH10: 169.603 | II10: 168.109 | IJ10: 150.798
A11: 0 | B11: 10047 | C11: Central Lincoln PUD | D11: =VLOOKUP(B11,TOCA!$B$3:$E$137,4,FALSE) -> 0 | E11: 203.76 | F11: 225.786 | G11: 248.217 | H11: 245.278 | I11: 241.202 | J11: 228.565 | K11: 214.371 | L11: 172.124 | M11: 160.158 | N11: 154.243 | O11: 153.321 | P11: 163.369 | Q11: 245.175 | R11: 238.594 | S11: 228.477 | T11: 213.009 | U11: 170.219 | V11: 157.522 | W11: 153.047 | X11: 154.132 | Y11: 160.348 | Z11: 201.301 | AA11: 227.105 | AB11: 247.56 | AC11: 201.8 | AD11: 227.668 | AE11: 250.251 | AF11: 247.86 | AG11: 241.263 | AH11: 229.043 | AI11: 213.536 | AJ11: 170.641 | AK11: 157.912 | AL11: 153.426 | AM11: 154.513 | AN11: 160.744 | AO11: 202.299 | AP11: 228.23 | AQ11: 250.869 | AR11: 248.473 | AS11: 241.859 | AT11: 229.608 | AU11: 214.063 | AV11: 171.062 | AW11: 158.302 | AX11: 153.805 | AY11: 154.894 | AZ11: 161.14 | BA11: 198.047 | BB11: 227.583 | BC11: 250.365 | BD11: 245.995 | BE11: 233.073 | BF11: 221.222 | BG11: 211.593 | BH11: 164.786 | BI11: 153.123 | BJ11: 153.073 | BK11: 154.774 | BL11: 157.504 | BM11: 198.53 | BN11: 228.14 | BO11: 250.978 | BP11: 246.597 | BQ11: 233.643 | BR11: 221.763 | BS11: 212.109 | BT11: 165.186 | BU11: 153.493 | BV11: 153.444 | BW11: 155.149 | BX11: 157.886 | BY11: 186.986 | BZ11: 206.165 | CA11: 241.362 | CB11: 232.996 | CC11: 206.878 | CD11: 223.55 | CE11: 219.641 | CF11: 175.652 | CG11: 148.581 | CH11: 148.721 | CI11: 152.108 | CJ11: 162.252 | CK11: 186.986 | CL11: 206.165 | CM11: 241.362 | CN11: 232.996 | CO11: 206.878 | CP11: 223.55 | CQ11: 219.641 | CR11: 175.652 | CS11: 148.581 | CT11: 148.721 | CU11: 152.108 | CV11: 162.252 | CW11: 184.642 | CX11: 214.999 | CY11: 242.24 | CZ11: 229.519 | DA11: 235.399 | DB11: 229.464 | DC11: 217.576 | DD11: 173.844 | DE11: 157.034 | DF11: 144.934 | DG11: 150.265 | DH11: 164.665 | DI11: 197.235 | DJ11: 220.764 | DK11: 244.025 | DL11: 251.747 | DM11: 257.861 | DN11: 225.119 | DO11: 209.087 | DP11: 175.915 | DQ11: 149.354 | DR11: 147.77 | DS11: 148.21 | DT11: 162.63 | DU11: 197.235 | DV11: 220.764 | DW11: 244.025 | DX11: 251.747 | DY11: 257.861 | DZ11: 225.119 | EA11: 209.087 | EB11: 175.915 | EC11: 149.354 | ED11: 147.77 | EE11: 148.21 | EF11: 162.63 | EG11: 197.235 | EH11: 220.764 | EI11: 244.025 | EJ11: 251.747 | EK11: 257.861 | EL11: 225.119 | EM11: 209.087 | EN11: 175.915 | EO11: 149.354 | EP11: 147.77 | EQ11: 148.21 | ER11: 162.63 | ES11: 197.235 | ET11: 220.764 | EU11: 244.025 | EV11: 251.747 | EW11: 257.861 | EX11: 225.119 | EY11: 209.087 | EZ11: 175.915 | FA11: 149.354 | FB11: 147.77 | FC11: 148.21 | FD11: 162.63 | FE11: 197.235 | FF11: 220.764 | FG11: 244.025 | FH11: 251.747 | FI11: 257.861 | FJ11: 225.119 | FK11: 209.087 | FL11: 175.915 | FM11: 149.354 | FN11: 147.77 | FO11: 148.21 | FP11: 162.63 | FQ11: 197.235 | FR11: 220.764 | FS11: 244.025 | FT11: 251.747 | FU11: 257.861 | FV11: 225.119 | FW11: 209.087 | FX11: 175.915 | FY11: 149.354 | FZ11: 147.77 | GA11: 148.21 | GB11: 162.63 | GC11: 197.235 | GD11: 220.764 | GE11: 244.025 | GF11: 251.747 | GG11: 257.861 | GH11: 225.119 | GI11: 209.087 | GJ11: 175.915 | GK11: 149.354 | GL11: 147.77 | GM11: 148.21 | GN11: 162.63 | GO11: 197.235 | GP11: 220.764 | GQ11: 244.025 | GR11: 251.747 | GS11: 257.861 | GT11: 225.119 | GU11: 209.087 | GV11: 175.915 | GW11: 149.354 | GX11: 147.77 | GY11: 148.21 | GZ11: 162.63 | HA11: 197.235 | HB11: 220.764 | HC11: 244.025 | HD11: 251.747 | HE11: 257.861 | HF11: 225.119 | HG11: 209.087 | HH11: 175.915 | HI11: 149.354 | HJ11: 147.77 | HK11: 148.21 | HL11: 162.63 | HM11: 197.235 | HN11: 220.764 | HO11: 244.025 | HP11: 251.747 | HQ11: 257.861 | HR11: 225.119 | HS11: 209.087 | HT11: 175.915 | HU11: 149.354 | HV11: 147.77 | HW11: 148.21 | HX11: 162.63 | HY11: 197.235 | HZ11: 220.764 | IA11: 244.025 | IB11: 251.747 | IC11: 257.861 | ID11: 225.119 | IE11: 209.087 | IF11: 175.915 | IG11: 149.354 | IH11: 147.77 | II11: 148.21 | IJ11: 162.63
A12: 0 | B12: 10055 | C12: Albion, City of | D12: =VLOOKUP(B12,TOCA!$B$3:$E$137,4,FALSE) -> 0 | E12: 0.62 | F12: 0.788 | G12: 0.914 | H12: 1.002 | I12: 0.835 | J12: 0.775 | K12: 0.648 | L12: 0.525 | M12: 0.437 | N12: 0.473 | O12: 0.459 | P12: 0.419 | Q12: 1.01 | R12: 0.843 | S12: 0.787 | T12: 0.678 | U12: 0.525 | V12: 0.441 | W12: 0.474 | X12: 0.462 | Y12: 0.424 | Z12: 0.625 | AA12: 0.802 | AB12: 1.031 | AC12: 0.616 | AD12: 0.799 | AE12: 1.039 | AF12: 1.013 | AG12: 0.839 | AH12: 0.753 | AI12: 0.668 | AJ12: 0.513 | AK12: 0.43 | AL12: 0.463 | AM12: 0.444 | AN12: 0.41 | AO12: 0.617 | AP12: 0.801 | AQ12: 1.04 | AR12: 1.014 | AS12: 0.841 | AT12: 0.755 | AU12: 0.669 | AV12: 0.515 | AW12: 0.431 | AX12: 0.464 | AY12: 0.446 | AZ12: 0.412 | BA12: 0.614 | BB12: 0.793 | BC12: 1.062 | BD12: 1.006 | BE12: 0.844 | BF12: 0.766 | BG12: 0.647 | BH12: 0.508 | BI12: 0.418 | BJ12: 0.45 | BK12: 0.439 | BL12: 0.398 | BM12: 0.614 | BN12: 0.793 | BO12: 1.062 | BP12: 1.006 | BQ12: 0.844 | BR12: 0.766 | BS12: 0.647 | BT12: 0.508 | BU12: 0.418 | BV12: 0.45 | BW12: 0.439 | BX12: 0.398 | BY12: 0.655 | BZ12: 0.692 | CA12: 1.043 | CB12: 0.976 | CC12: 0.804 | CD12: 0.711 | CE12: 0.628 | CF12: 0.503 | CG12: 0.421 | CH12: 0.45 | CI12: 0.442 | CJ12: 0.403 | CK12: 0.655 | CL12: 0.692 | CM12: 1.043 | CN12: 0.976 | CO12: 0.804 | CP12: 0.711 | CQ12: 0.628 | CR12: 0.503 | CS12: 0.421 | CT12: 0.45 | CU12: 0.442 | CV12: 0.403 | CW12: 0.629 | CX12: 0.672 | CY12: 1.016 | CZ12: 0.953 | DA12: 0.779 | DB12: 0.687 | DC12: 0.61 | DD12: 0.473 | DE12: 0.398 | DF12: 0.426 | DG12: 0.418 | DH12: 0.374 | DI12: 0.844 | DJ12: 0.882 | DK12: 1.239 | DL12: 1.211 | DM12: 1.003 | DN12: 0.906 | DO12: 0.828 | DP12: 0.689 | DQ12: 0.616 | DR12: 0.645 | DS12: 0.637 | DT12: 0.602 | DU12: 0.852 | DV12: 0.89 | DW12: 1.247 | DX12: 1.219 | DY12: 1.011 | DZ12: 0.914 | EA12: 0.836 | EB12: 0.697 | EC12: 0.624 | ED12: 0.653 | EE12: 0.644 | EF12: 0.61 | EG12: 0.86 | EH12: 0.898 | EI12: 1.255 | EJ12: 1.227 | EK12: 1.019 | EL12: 0.922 | EM12: 0.844 | EN12: 0.705 | EO12: 0.632 | EP12: 0.661 | EQ12: 0.652 | ER12: 0.618 | ES12: 0.868 | ET12: 0.905 | EU12: 1.263 | EV12: 1.235 | EW12: 1.027 | EX12: 0.93 | EY12: 0.852 | EZ12: 0.713 | FA12: 0.64 | FB12: 0.669 | FC12: 0.66 | FD12: 0.626 | FE12: 0.876 | FF12: 0.913 | FG12: 1.271 | FH12: 1.243 | FI12: 1.035 | FJ12: 0.938 | FK12: 0.86 | FL12: 0.721 | FM12: 0.648 | FN12: 0.677 | FO12: 0.668 | FP12: 0.634 | FQ12: 0.884 | FR12: 0.921 | FS12: 1.279 | FT12: 1.251 | FU12: 1.043 | FV12: 0.946 | FW12: 0.868 | FX12: 0.729 | FY12: 0.656 | FZ12: 0.685 | GA12: 0.676 | GB12: 0.642 | GC12: 0.892 | GD12: 0.929 | GE12: 1.287 | GF12: 1.259 | GG12: 1.051 | GH12: 0.954 | GI12: 0.876 | GJ12: 0.737 | GK12: 0.664 | GL12: 0.693 | GM12: 0.684 | GN12: 0.649 | GO12: 0.9 | GP12: 0.937 | GQ12: 1.295 | GR12: 1.267 | GS12: 1.059 | GT12: 0.961 | GU12: 0.884 | GV12: 0.745 | GW12: 0.672 | GX12: 0.701 | GY12: 0.692 | GZ12: 0.657 | HA12: 0.908 | HB12: 0.945 | HC12: 1.303 | HD12: 1.275 | HE12: 1.067 | HF12: 0.969 | HG12: 0.892 | HH12: 0.753 | HI12: 0.68 | HJ12: 0.709 | HK12: 0.7 | HL12: 0.665 | HM12: 0.916 | HN12: 0.953 | HO12: 1.311 | HP12: 1.283 | HQ12: 1.075 | HR12: 0.977 | HS12: 0.9 | HT12: 0.761 | HU12: 0.688 | HV12: 0.717 | HW12: 0.708 | HX12: 0.673 | HY12: 0.924 | HZ12: 0.961 | IA12: 1.319 | IB12: 1.291 | IC12: 1.083 | ID12: 0.985 | IE12: 0.908 | IF12: 0.769 | IG12: 0.696 | IH12: 0.725 | II12: 0.716 | IJ12: 0.681
A13: 0 | B13: 10057 | C13: Ashland, City of | D13: =VLOOKUP(B13,TOCA!$B$3:$E$137,4,FALSE) -> 0 | E13: 28.48 | F13: 33.025 | G13: 37.048 | H13: 35.993 | I13: 33.685 | J13: 32.344 | K13: 30.743 | L13: 26.515 | M13: 30.072 | N13: 37.834 | O13: 36.142 | P13: 30.665 | Q13: 36.137 | R13: 33.827 | S13: 32.486 | T13: 30.884 | U13: 26.597 | V13: 30.158 | W13: 37.929 | X13: 36.223 | Y13: 30.743 | Z13: 28.631 | AA13: 33.209 | AB13: 37.21 | AC13: 27.409 | AD13: 32.573 | AE13: 36.765 | AF13: 36.455 | AG13: 33.384 | AH13: 32.669 | AI13: 29.754 | AJ13: 24.873 | AK13: 28.858 | AL13: 36.967 | AM13: 35.195 | AN13: 29.612 | AO13: 27.409 | AP13: 32.573 | AQ13: 36.765 | AR13: 36.455 | AS13: 33.384 | AT13: 32.669 | AU13: 29.754 | AV13: 24.873 | AW13: 28.858 | AX13: 36.967 | AY13: 35.195 | AZ13: 29.612 | BA13: 26.712 | BB13: 31.206 | BC13: 35.554 | BD13: 34.107 | BE13: 33.048 | BF13: 31.542 | BG13: 28.511 | BH13: 24.151 | BI13: 31.249 | BJ13: 37.73 | BK13: 35.667 | BL13: 29.939 | BM13: 26.712 | BN13: 31.206 | BO13: 35.554 | BP13: 34.107 | BQ13: 33.048 | BR13: 31.542 | BS13: 28.511 | BT13: 24.151 | BU13: 31.249 | BV13: 37.73 | BW13: 35.667 | BX13: 29.939 | BY13: 26.712 | BZ13: 31.206 | CA13: 35.554 | CB13: 34.107 | CC13: 33.048 | CD13: 31.542 | CE13: 28.511 | CF13: 24.147 | CG13: 31.243 | CH13: 37.727 | CI13: 35.664 | CJ13: 29.915 | CK13: 26.712 | CL13: 31.206 | CM13: 35.554 | CN13: 34.107 | CO13: 33.048 | CP13: 31.542 | CQ13: 28.511 | CR13: 24.147 | CS13: 31.243 | CT13: 37.727 | CU13: 35.664 | CV13: 29.915 | CW13: 24.512 | CX13: 28.564 | CY13: 34.474 | CZ13: 32.365 | DA13: 31.791 | DB13: 30.221 | DC13: 26.625 | DD13: 18.176 | DE13: 32.509 | DF13: 35.035 | DG13: 34.906 | DH13: 19.397 | DI13: 25.86 | DJ13: 30.707 | DK13: 33.156 | DL13: 33.728 | DM13: 34.254 | DN13: 30.833 | DO13: 26.214 | DP13: 27.326 | DQ13: 36.4 | DR13: 37.598 | DS13: 37.681 | DT13: 32.3 | DU13: 25.86 | DV13: 30.707 | DW13: 33.156 | DX13: 33.728 | DY13: 34.254 | DZ13: 30.833 | EA13: 26.214 | EB13: 27.326 | EC13: 36.4 | ED13: 37.598 | EE13: 37.681 | EF13: 32.3 | EG13: 25.86 | EH13: 30.707 | EI13: 33.156 | EJ13: 33.728 | EK13: 34.254 | EL13: 30.833 | EM13: 26.214 | EN13: 27.326 | EO13: 36.4 | EP13: 37.598 | EQ13: 37.681 | ER13: 32.3 | ES13: 25.86 | ET13: 30.707 | EU13: 33.156 | EV13: 33.728 | EW13: 34.254 | EX13: 30.833 | EY13: 26.214 | EZ13: 27.326 | FA13: 36.4 | FB13: 37.598 | FC13: 37.681 | FD13: 32.3 | FE13: 25.86 | FF13: 30.707 | FG13: 33.156 | FH13: 33.728 | FI13: 34.254 | FJ13: 30.833 | FK13: 26.214 | FL13: 27.326 | FM13: 36.4 | FN13: 37.598 | FO13: 37.681 | FP13: 32.3 | FQ13: 25.86 | FR13: 30.707 | FS13: 33.156 | FT13: 33.728 | FU13: 34.254 | FV13: 30.833 | FW13: 26.214 | FX13: 27.326 | FY13: 36.4 | FZ13: 37.598 | GA13: 37.681 | GB13: 32.3 | GC13: 25.86 | GD13: 30.707 | GE13: 33.156 | GF13: 33.728 | GG13: 34.254 | GH13: 30.833 | GI13: 26.214 | GJ13: 27.326 | GK13: 36.4 | GL13: 37.598 | GM13: 37.681 | GN13: 32.3 | GO13: 25.86 | GP13: 30.707 | GQ13: 33.156 | GR13: 33.728 | GS13: 34.254 | GT13: 30.833 | GU13: 26.214 | GV13: 27.326 | GW13: 36.4 | GX13: 37.598 | GY13: 37.681 | GZ13: 32.3 | HA13: 25.86 | HB13: 30.707 | HC13: 33.156 | HD13: 33.728 | HE13: 34.254 | HF13: 30.833 | HG13: 26.214 | HH13: 27.326 | HI13: 36.4 | HJ13: 37.598 | HK13: 37.681 | HL13: 32.3 | HM13: 25.86 | HN13: 30.707 | HO13: 33.156 | HP13: 33.728 | HQ13: 34.254 | HR13: 30.833 | HS13: 26.214 | HT13: 27.326 | HU13: 36.4 | HV13: 37.598 | HW13: 37.681 | HX13: 32.3 | HY13: 25.86 | HZ13: 30.707 | IA13: 33.156 | IB13: 33.728 | IC13: 34.254 | ID13: 30.833 | IE13: 26.214 | IF13: 27.326 | IG13: 36.4 | IH13: 37.598 | II13: 37.681 | IJ13: 32.3
A14: 0 | B14: 10059 | C14: Bandon, City of | D14: =VLOOKUP(B14,TOCA!$B$3:$E$137,4,FALSE) -> 0 | E14: 11.802 | F14: 13.669 | G14: 14.776 | H14: 16.508 | I14: 14.857 | J14: 15.587 | K14: 13.567 | L14: 8.69 | M14: 8.089 | N14: 7.96 | O14: 8.114 | P14: 8.388 | Q14: 16.549 | R14: 14.894 | S14: 15.625 | T14: 13.601 | U14: 8.712 | V14: 8.109 | W14: 7.98 | X14: 8.134 | Y14: 8.409 | Z14: 11.831 | AA14: 13.703 | AB14: 14.812 | AC14: 11.814 | AD14: 13.684 | AE14: 14.791 | AF14: 16.525 | AG14: 14.873 | AH14: 15.603 | AI14: 13.581 | AJ14: 8.7 | AK14: 8.098 | AL14: 7.969 | AM14: 8.123 | AN14: 8.397 | AO14: 11.844 | AP14: 13.718 | AQ14: 14.828 | AR14: 16.567 | AS14: 14.91 | AT14: 15.642 | AU14: 13.615 | AV14: 8.721 | AW14: 8.118 | AX14: 7.988 | AY14: 8.143 | AZ14: 8.418 | BA14: 11.26 | BB14: 14.274 | BC14: 15.679 | BD14: 16.968 | BE14: 15.873 | BF14: 14.989 | BG14: 13.493 | BH14: 8.554 | BI14: 8.174 | BJ14: 7.887 | BK14: 8.073 | BL14: 8.684 | BM14: 11.288 | BN14: 14.309 | BO14: 15.718 | BP14: 17.01 | BQ14: 15.912 | BR14: 15.026 | BS14: 13.527 | BT14: 8.575 | BU14: 8.195 | BV14: 7.907 | BW14: 8.093 | BX14: 8.705 | BY14: 11.32 | BZ14: 12.482 | CA14: 15.578 | CB14: 17.021 | CC14: 15.674 | CD14: 14.415 | CE14: 13.533 | CF14: 9.523 | CG14: 8.759 | CH14: 7.923 | CI14: 8.101 | CJ14: 9.15 | CK14: 11.348 | CL14: 12.513 | CM14: 15.617 | CN14: 17.063 | CO14: 15.712 | CP14: 14.45 | CQ14: 13.567 | CR14: 9.547 | CS14: 8.781 | CT14: 7.943 | CU14: 8.122 | CV14: 9.172 | CW14: 11.233 | CX14: 12.384 | CY14: 15.453 | CZ14: 16.88 | DA14: 15.541 | DB14: 14.29 | DC14: 13.413 | DD14: 9.437 | DE14: 8.678 | DF14: 7.848 | DG14: 8.023 | DH14: 9.059 | DI14: 11.816 | DJ14: 12.78 | DK14: 15.352 | DL14: 16.804 | DM14: 15.339 | DN14: 13.63 | DO14: 13.607 | DP14: 10.025 | DQ14: 8.821 | DR14: 7.914 | DS14: 7.843 | DT14: 9.095 | DU14: 11.816 | DV14: 12.78 | DW14: 15.352 | DX14: 16.804 | DY14: 15.339 | DZ14: 13.63 | EA14: 13.607 | EB14: 10.025 | EC14: 8.821 | ED14: 7.914 | EE14: 7.843 | EF14: 9.095 | EG14: 11.816 | EH14: 12.78 | EI14: 15.352 | EJ14: 16.804 | EK14: 15.339 | EL14: 13.63 | EM14: 13.607 | EN14: 10.025 | EO14: 8.821 | EP14: 7.914 | EQ14: 7.843 | ER14: 9.095 | ES14: 11.816 | ET14: 12.78 | EU14: 15.352 | EV14: 16.804 | EW14: 15.23 | EX14: 13.63 | EY14: 13.607 | EZ14: 10.025 | FA14: 8.821 | FB14: 7.914 | FC14: 7.843 | FD14: 9.095 | FE14: 11.816 | FF14: 12.78 | FG14: 15.352 | FH14: 16.804 | FI14: 15.339 | FJ14: 13.63 | FK14: 13.607 | FL14: 10.025 | FM14: 8.821 | FN14: 7.914 | FO14: 7.843 | FP14: 9.095 | FQ14: 11.816 | FR14: 12.78 | FS14: 15.352 | FT14: 16.804 | FU14: 15.339 | FV14: 13.63 | FW14: 13.607 | FX14: 10.025 | FY14: 8.821 | FZ14: 7.914 | GA14: 7.843 | GB14: 9.095 | GC14: 11.816 | GD14: 12.78 | GE14: 15.352 | GF14: 16.804 | GG14: 15.339 | GH14: 13.63 | GI14: 13.607 | GJ14: 10.025 | GK14: 8.821 | GL14: 7.914 | GM14: 7.843 | GN14: 9.095 | GO14: 11.816 | GP14: 12.78 | GQ14: 15.352 | GR14: 16.804 | GS14: 15.23 | GT14: 13.63 | GU14: 13.607 | GV14: 10.025 | GW14: 8.821 | GX14: 7.914 | GY14: 7.843 | GZ14: 9.095 | HA14: 11.816 | HB14: 12.78 | HC14: 15.352 | HD14: 16.804 | HE14: 15.339 | HF14: 13.63 | HG14: 13.607 | HH14: 10.025 | HI14: 8.821 | HJ14: 7.914 | HK14: 7.843 | HL14: 9.095 | HM14: 11.816 | HN14: 12.78 | HO14: 15.352 | HP14: 16.804 | HQ14: 15.339 | HR14: 13.63 | HS14: 13.607 | HT14: 10.025 | HU14: 8.821 | HV14: 7.914 | HW14: 7.843 | HX14: 9.095 | HY14: 11.816 | HZ14: 12.78 | IA14: 15.352 | IB14: 16.804 | IC14: 15.339 | ID14: 13.63 | IE14: 13.607 | IF14: 10.025 | IG14: 8.821 | IH14: 7.914 | II14: 7.843 | IJ14: 9.095
A15: 0 | B15: 10061 | C15: Blaine, City of | D15: =VLOOKUP(B15,TOCA!$B$3:$E$137,4,FALSE) -> 0 | E15: 11.477 | F15: 13.048 | G15: 14.353 | H15: 14.11 | I15: 13.379 | J15: 12.508 | K15: 11.453 | L15: 9.959 | M15: 9.602 | N15: 9.638 | O15: 9.726 | P15: 9.751 | Q15: 13.468 | R15: 12.655 | S15: 11.955 | T15: 10.895 | U15: 9.434 | V15: 9.02 | W15: 9.043 | X15: 9.188 | Y15: 9.207 | Z15: 11.006 | AA15: 12.61 | AB15: 13.745 | AC15: 11.302 | AD15: 13.152 | AE15: 13.942 | AF15: 13.847 | AG15: 13.384 | AH15: 12.172 | AI15: 11.182 | AJ15: 9.592 | AK15: 9.452 | AL15: 9.602 | AM15: 9.602 | AN15: 9.796 | AO15: 11.302 | AP15: 13.162 | AQ15: 13.952 | AR15: 13.867 | AS15: 13.394 | AT15: 12.182 | AU15: 11.192 | AV15: 9.602 | AW15: 9.462 | AX15: 9.602 | AY15: 9.612 | AZ15: 9.806 | BA15: 11.951 | BB15: 14.16 | BC15: 14.746 | BD15: 14.814 | BE15: 14.207 | BF15: 12.949 | BG15: 12.137 | BH15: 10.419 | BI15: 10.195 | BJ15: 10.386 | BK15: 10.565 | BL15: 10.586 | BM15: 11.968 | BN15: 14.168 | BO15: 14.746 | BP15: 14.814 | BQ15: 14.281 | BR15: 12.949 | BS15: 12.137 | BT15: 10.419 | BU15: 10.195 | BV15: 10.386 | BW15: 10.565 | BX15: 10.586 | BY15: 11.816 | BZ15: 13.919 | CA15: 14.666 | CB15: 15.058 | CC15: 14.472 | CD15: 13.244 | CE15: 12.073 | CF15: 10.76 | CG15: 10.523 | CH15: 10.916 | CI15: 10.731 | CJ15: 10.53 | CK15: 11.938 | CL15: 14.05 | CM15: 14.783 | CN15: 15.158 | CO15: 14.576 | CP15: 13.327 | CQ15: 12.151 | CR15: 10.82 | CS15: 10.572 | CT15: 10.959 | CU15: 10.766 | CV15: 10.568 | CW15: 12.041 | CX15: 14.25 | CY15: 14.631 | CZ15: 15.546 | DA15: 13.715 | DB15: 13.254 | DC15: 12.167 | DD15: 10.668 | DE15: 10.883 | DF15: 11.371 | DG15: 11.057 | DH15: 10.851 | DI15: 13.182 | DJ15: 16.053 | DK15: 16.457 | DL15: 17.581 | DM15: 16.171 | DN15: 15.075 | DO15: 14.079 | DP15: 12.61 | DQ15: 12.359 | DR15: 13.329 | DS15: 12.572 | DT15: 12.518 | DU15: 13.964 | DV15: 17.043 | DW15: 17.439 | DX15: 18.527 | DY15: 17.125 | DZ15: 15.999 | EA15: 14.996 | EB15: 13.52 | EC15: 13.264 | ED15: 14.217 | EE15: 13.426 | EF15: 13.261 | EG15: 14.689 | EH15: 17.934 | EI15: 18.329 | EJ15: 19.412 | EK15: 18.025 | EL15: 16.88 | EM15: 15.876 | EN15: 14.399 | EO15: 14.147 | EP15: 15.091 | EQ15: 14.272 | ER15: 14.003 | ES15: 15.418 | ET15: 18.825 | EU15: 19.216 | EV15: 20.295 | EW15: 18.823 | EX15: 17.746 | EY15: 16.737 | EZ15: 15.255 | FA15: 15.002 | FB15: 15.936 | FC15: 15.087 | FD15: 14.713 | FE15: 16.111 | FF15: 19.666 | FG15: 20.038 | FH15: 21.068 | FI15: 19.685 | FJ15: 18.479 | FK15: 17.451 | FL15: 15.95 | FM15: 15.682 | FN15: 16.593 | FO15: 15.707 | FP15: 15.259 | FQ15: 16.638 | FR15: 20.283 | FS15: 20.658 | FT15: 21.695 | FU15: 20.325 | FV15: 19.113 | FW15: 18.088 | FX15: 16.589 | FY15: 16.326 | FZ15: 17.241 | GA15: 16.342 | GB15: 15.847 | GC15: 17.227 | GD15: 20.912 | GE15: 21.239 | GF15: 22.221 | GG15: 20.812 | GH15: 19.546 | GI15: 18.472 | GJ15: 16.923 | GK15: 16.613 | GL15: 17.484 | GM15: 16.529 | GN15: 15.982 | GO15: 17.323 | GP15: 21.015 | GQ15: 21.341 | GR15: 22.335 | GS15: 20.834 | GT15: 19.658 | GU15: 18.582 | GV15: 17.028 | GW15: 16.715 | GX15: 17.592 | GY15: 16.63 | GZ15: 16.083 | HA15: 17.426 | HB15: 21.125 | HC15: 21.448 | HD15: 22.451 | HE15: 21.042 | HF15: 19.767 | HG15: 18.685 | HH15: 17.125 | HI15: 16.809 | HJ15: 17.693 | HK15: 16.726 | HL15: 16.18 | HM15: 17.529 | HN15: 21.239 | HO15: 21.565 | HP15: 22.561 | HQ15: 21.151 | HR15: 19.872 | HS15: 18.788 | HT15: 17.223 | HU15: 16.906 | HV15: 17.798 | HW15: 16.827 | HX15: 16.281 | HY15: 17.636 | HZ15: 21.357 | IA15: 21.686 | IB15: 22.693 | IC15: 21.287 | ID15: 20.008 | IE15: 18.922 | IF15: 17.354 | IG15: 17.036 | IH15: 17.934 | II15: 16.957 | IJ15: 16.411
... 16 more rows

Sheet I_CDQ
B1: Customer Demand Quantity (MW)
A2: TOC
B3: BESID | C3: AccountName | D3: 10 | E3: 11 | F3: 12 | G3: 1 | H3: =+G3+1 -> 2 | I3: =+H3+1 -> 3 | J3: 4 | K3: 5 | L3: 6 | M3: 7 | N3: 8 | O3: 9
B4: 10015 | C4: Asotin County PUD #1 | D4: 0.914 | E4: 1.084 | F4: 0.942 | G4: 0.875 | H4: 0.846 | I4: 0.763 | J4: 0.617 | K4: 0.897 | L4: 1.271 | M4: 1.015 | N4: 1.404 | O4: 1.037
B5: 10024 | C5: Benton County PUD #1 | D5: 39.696 | E5: 57.259 | F5: 45.258 | G5: 64.307 | H5: 77.589 | I5: 45.642 | J5: 38.215 | K5: 92.689 | L5: 76.249 | M5: 43.356 | N5: 66.886 | O5: 56.635
B6: 10025 | C6: Benton REA | D6: 10.082 | E6: 18.416 | F6: 14.592 | G6: 19.351 | H6: 24.799 | I6: 20.215 | J6: 21.046 | K6: 18.058 | L6: 15.269 | M6: 8.356 | N6: 10.485 | O6: 12.275
B7: 10027 | C7: Big Bend Elec Coop | D7: 11.759 | E7: 8.462 | F7: 6.63 | G7: 7.721 | H7: 11.915 | I7: 10.442 | J7: 15.145 | K7: 25.016 | L7: 15.09 | M7: 6.424 | N7: 4.755 | O7: 14.824
B8: 10029 | C8: Blachly Lane Elec Coop | D8: 5.878 | E8: 5.732 | F8: 7.035 | G8: 5.437 | H8: 6.304 | I8: 5.271 | J8: 6.477 | K8: 4.737 | L8: 2.885 | M8: 2.942 | N8: 1.878 | O8: 3.934
B9: 10044 | C9: Canby, City of | D9: 3.812 | E9: 5.687 | F9: 4.877 | G9: 5.156 | H9: 6.482 | I9: 4.714 | J9: 4.762 | K9: 3.73 | L9: 4.392 | M9: 5.959 | N9: 5.072 | O9: 3.931
B10: 10046 | C10: Central Electric Coop | D10: 49.109 | E10: 60.539 | F10: 52.265 | G10: 52.541 | H10: 65.196 | I10: 45.64 | J10: 44.617 | K10: 29.254 | L10: 14.999 | M10: 14.798 | N10: 11.539 | O10: 21.505
B11: 10047 | C11: Central Lincoln PUD | D11: 30.509 | E11: 41.689 | F11: 33.81 | G11: 36.45 | H11: 47.572 | I11: 33.5 | J11: 34.112 | K11: 26.236 | L11: 8.049 | M11: 2.439 | N11: 0 | O11: 16.614
B12: 10055 | C12: Albion, City of | D12: 0.176 | E12: 0.253 | F12: 0.171 | G12: 0.182 | H12: 0.204 | I12: 0.186 | J12: 0.312 | K12: 0.175 | L12: 0.093 | M12: 0.055 | N12: 0.061 | O12: 0.135
B13: 10057 | C13: Ashland, City of | D13: 5.166 | E13: 6.451 | F13: 5.869 | G13: 5.094 | H13: 5.616 | I13: 5.264 | J13: 4.651 | K13: 5.988 | L13: 8.027 | M13: 9.546 | N13: 8.644 | O13: 5.741
B14: 10059 | C14: Bandon, City of | D14: 3.428 | E14: 3.42 | F14: 3.326 | G14: 3.245 | H14: 4.088 | I14: 3.106 | J14: 3.656 | K14: 2.382 | L14: 1.213 | M14: 0.801 | N14: 0.935 | O14: 2.052
B15: 10061 | C15: Blaine, City of | D15: 1.29 | E15: 1.758 | F15: 1.104 | G15: 1.205 | H15: 1.386 | I15: 1.017 | J15: 1.195 | K15: 0.596 | L15: 0.449 | M15: 0.498 | N15: 0.196 | O15: 0.309
... 18 more rows

Sheet I_NLSL
B1: New Large Single Loads (self-supplied) (MWh)
A2: TOC | D2: 2015-10-01 | E2: 2015-10-01 | F2: 2015-11-01 | G2: 2015-11-01 | H2: 2015-12-01 | I2: 2015-12-01 | J2: 2016-01-01 | K2: 2016-01-01 | L2: 2016-02-01 | M2: 2016-02-01 | N2: 2016-03-01 | O2: 2016-03-01 | P2: 2016-04-01 | Q2: 2016-04-01 | R2: 2016-05-01 | S2: 2016-05-01 | T2: 2016-06-01 | U2: 2016-06-01 | V2: 2016-07-01 | W2: 2016-07-01 | X2: 2016-08-01 | Y2: 2016-08-01 | Z2: 2016-09-01 | AA2: 2016-09-01 | AB2: 2016-10-01 | AC2: 2016-10-01 | AD2: 2016-11-01 | AE2: 2016-11-01 | AF2: 2016-12-01 | AG2: 2016-12-01 | AH2: 2017-01-01 | AI2: 2017-01-01 | AJ2: 2017-02-01 | AK2: 2017-02-01 | AL2: 2017-03-01 | AM2: 2017-03-01 | AN2: 2017-04-01 | AO2: 2017-04-01 | AP2: 2017-05-01 | AQ2: 2017-05-01 | AR2: 2017-06-01 | AS2: 2017-06-01 | AT2: 2017-07-01 | AU2: 2017-07-01 | AV2: 2017-08-01 | AW2: 2017-08-01 | AX2: 2017-09-01 | AY2: 2017-09-01 | AZ2: 2017-10-01 | BA2: 2017-10-01 | BB2: 2017-11-01 | BC2: 2017-11-01 | BD2: 2017-12-01 | BE2: 2017-12-01 | BF2: 2018-01-01 | BG2: 2018-01-01 | BH2: 2018-02-01 | BI2: 2018-02-01 | BJ2: 2018-03-01 | BK2: 2018-03-01 | BL2: 2018-04-01 | BM2: 2018-04-01 | BN2: 2018-05-01 | BO2: 2018-05-01 | BP2: 2018-06-01 | BQ2: 2018-06-01 | BR2: 2018-07-01 | BS2: 2018-07-01 | BT2: 2018-08-01 | BU2: 2018-08-01 | BV2: 2018-09-01 | BW2: 2018-09-01 | BX2: 2018-10-01 | BY2: 2018-10-01 | BZ2: 2018-11-01 | CA2: 2018-11-01 | CB2: 2018-12-01 | CC2: 2018-12-01 | CD2: 2019-01-01 | CE2: 2019-01-01 | CF2: 2019-02-01 | CG2: 2019-02-01 | CH2: 2019-03-01 | CI2: 2019-03-01 | CJ2: 2019-04-01 | CK2: 2019-04-01 | CL2: 2019-05-01 | CM2: 2019-05-01 | CN2: 2019-06-01 | CO2: 2019-06-01 | CP2: 2019-07-01 | CQ2: 2019-07-01 | CR2: 2019-08-01 | CS2: 2019-08-01 | CT2: 2019-09-01 | CU2: 2019-09-01 | CV2: 2019-10-01 | CW2: 2019-10-01 | CX2: 2019-11-01 | CY2: 2019-11-01 | CZ2: 2019-12-01 | DA2: 2019-12-01 | DB2: 2020-01-01 | DC2: 2020-01-01 | DD2: 2020-02-01 | DE2: 2020-02-01 | DF2: 2020-03-01 | DG2: 2020-03-01 | DH2: 2020-04-01 | DI2: 2020-04-01 | DJ2: 2020-05-01 | DK2: 2020-05-01 | DL2: 2020-06-01 | DM2: 2020-06-01 | DN2: 2020-07-01 | DO2: 2020-07-01 | DP2: 2020-08-01 | DQ2: 2020-08-01 | DR2: 2020-09-01 | DS2: 2020-09-01 | DT2: 2020-10-01 | DU2: 2020-10-01 | DV2: 2020-11-01 | DW2: 2020-11-01 | DX2: 2020-12-01 | DY2: 2020-12-01 | DZ2: 2021-01-01 | EA2: 2021-01-01 | EB2: 2021-02-01 | EC2: 2021-02-01 | ED2: 2021-03-01 | EE2: 2021-03-01 | EF2: 2021-04-01 | EG2: 2021-04-01 | EH2: 2021-05-01 | EI2: 2021-05-01 | EJ2: 2021-06-01 | EK2: 2021-06-01 | EL2: 2021-07-01 | EM2: 2021-07-01 | EN2: 2021-08-01 | EO2: 2021-08-01 | EP2: 2021-09-01 | EQ2: 2021-09-01 | ER2: 2021-10-01 | ES2: 2021-10-01 | ET2: 2021-11-01 | EU2: 2021-11-01 | EV2: 2021-12-01 | EW2: 2021-12-01 | EX2: 2022-01-01 | EY2: 2022-01-01 | EZ2: 2022-02-01 | FA2: 2022-02-01 | FB2: 2022-03-01 | FC2: 2022-03-01 | FD2: 2022-04-01 | FE2: 2022-04-01 | FF2: 2022-05-01 | FG2: 2022-05-01 | FH2: 2022-06-01 | FI2: 2022-06-01 | FJ2: 2022-07-01 | FK2: 2022-07-01 | FL2: 2022-08-01 | FM2: 2022-08-01 | FN2: 2022-09-01 | FO2: 2022-09-01 | FP2: 2022-10-01 | FQ2: 2022-10-01 | FR2: 2022-11-01 | FS2: 2022-11-01 | FT2: 2022-12-01 | FU2: 2022-12-01 | FV2: 2023-01-01 | FW2: 2023-01-01 | FX2: 2023-02-01 | FY2: 2023-02-01 | FZ2: 2023-03-01 | GA2: 2023-03-01 | GB2: 2023-04-01 | GC2: 2023-04-01 | GD2: 2023-05-01 | GE2: 2023-05-01 | GF2: 2023-06-01 | GG2: 2023-06-01 | GH2: 2023-07-01 | GI2: 2023-07-01 | GJ2: 2023-08-01 | GK2: 2023-08-01 | GL2: 2023-09-01 | GM2: 2023-09-01 | GN2: 2023-10-01 | GO2: 2023-10-01 | GP2: 2023-11-01 | GQ2: 2023-11-01 | GR2: 2023-12-01 | GS2: 2023-12-01 | GT2: 2024-01-01 | GU2: 2024-01-01 | GV2: 2024-02-01 | GW2: 2024-02-01 | GX2: 2024-03-01 | GY2: 2024-03-01 | GZ2: 2024-04-01 | HA2: 2024-04-01 | HB2: 2024-05-01 | HC2: 2024-05-01 | HD2: 2024-06-01 | HE2: 2024-06-01 | HF2: 2024-07-01 | HG2: 2024-07-01 | HH2: 2024-08-01 | HI2: 2024-08-01 | HJ2: 2024-09-01 | HK2: 2024-09-01 | HL2: 2024-10-01 | HM2: 2024-10-01 | HN2: 2024-11-01 | HO2: 2024-11-01 | HP2: 2024-12-01 | HQ2: 2024-12-01 | HR2: 2025-01-01 | HS2: 2025-01-01 | HT2: 2025-02-01 | HU2: 2025-02-01 | HV2: 2025-03-01 | HW2: 2025-03-01 | HX2: 2025-04-01 | HY2: 2025-04-01 | HZ2: 2025-05-01 | IA2: 2025-05-01 | IB2: 2025-06-01 | IC2: 2025-06-01 | ID2: 2025-07-01 | IE2: 2025-07-01 | IF2: 2025-08-01 | IG2: 2025-08-01 | IH2: 2025-09-01 | II2: 2025-09-01 | IJ2: 2025-10-01 | IK2: 2025-10-01 | IL2: 2025-11-01 | IM2: 2025-11-01 | IN2: 2025-12-01 | IO2: 2025-12-01 | IP2: 2026-01-01 | IQ2: 2026-01-01 | IR2: 2026-02-01 | IS2: 2026-02-01 | IT2: 2026-03-01 | IU2: 2026-03-01 | IV2: 2026-04-01 | IW2: 2026-04-01 | IX2: 2026-05-01 | IY2: 2026-05-01 | IZ2: 2026-06-01 | JA2: 2026-06-01 | JB2: 2026-07-01 | JC2: 2026-07-01 | JD2: 2026-08-01 | JE2: 2026-08-01 | JF2: 2026-09-01 | JG2: 2026-09-01 | JH2: 2026-10-01 | JI2: 2026-10-01 | JJ2: 2026-11-01 | JK2: 2026-11-01 | JL2: 2026-12-01 | JM2: 2026-12-01 | JN2: 2027-01-01 | JO2: 2027-01-01 | JP2: 2027-02-01 | JQ2: 2027-02-01 | JR2: 2027-03-01 | JS2: 2027-03-01 | JT2: 2027-04-01 | JU2: 2027-04-01 | JV2: 2027-05-01 | JW2: 2027-05-01 | JX2: 2027-06-01 | JY2: 2027-06-01 | JZ2: 2027-07-01 | KA2: 2027-07-01 | KB2: 2027-08-01 | KC2: 2027-08-01 | KD2: 2027-09-01 | KE2: 2027-09-01 | KF2: 2027-10-01 | KG2: 2027-10-01 | KH2: 2027-11-01 | KI2: 2027-11-01 | KJ2: 2027-12-01 | KK2: 2027-12-01 | KL2: 2028-01-01 | KM2: 2028-01-01 | KN2: 2028-02-01 | KO2: 2028-02-01 | KP2: 2028-03-01 | KQ2: 2028-03-01 | KR2: 2028-04-01 | KS2: 2028-04-01 | KT2: 2028-05-01 | KU2: 2028-05-01 | KV2: 2028-06-01 | KW2: 2028-06-01 | KX2: 2028-07-01 | KY2: 2028-07-01 | KZ2: 2028-08-01 | LA2: 2028-08-01 | LB2: 2028-09-01 | LC2: 2028-09-01 | LD2: 2028-10-01 | LE2: 2028-10-01 | LF2: 2028-11-01 | LG2: 2028-11-01 | LH2: 2028-12-01 | LI2: 2028-12-01 | LJ2: 2029-01-01 | LK2: 2029-01-01 | LL2: 2029-02-01 | LM2: 2029-02-01 | LN2: 2029-03-01 | LO2: 2029-03-01 | LP2: 2029-04-01 | LQ2: 2029-04-01 | LR2: 2029-05-01 | LS2: 2029-05-01 | LT2: 2029-06-01 | LU2: 2029-06-01 | LV2: 2029-07-01 | LW2: 2029-07-01 | LX2: 2029-08-01 | LY2: 2029-08-01 | LZ2: 2029-09-01 | MA2: 2029-09-01 | MB2: 2029-10-01 | MC2: 2029-10-01 | MD2: 2029-11-01 | ME2: 2029-11-01 | MF2: 2029-12-01 | MG2: 2029-12-01 | MH2: 2030-01-01 | MI2: 2030-01-01 | MJ2: 2030-02-01 | MK2: 2030-02-01 | ML2: 2030-03-01 | MM2: 2030-03-01 | MN2: 2030-04-01 | MO2: 2030-04-01 | MP2: 2030-05-01 | MQ2: 2030-05-01 | MR2: 2030-06-01 | MS2: 2030-06-01 | MT2: 2030-07-01 | MU2: 2030-07-01 | MV2: 2030-08-01 | MW2: 2030-08-01 | MX2: 2030-09-01 | MY2: 2030-09-01 | MZ2: 2030-10-01 | NA2: 2030-10-01 | NB2: 2030-11-01 | NC2: 2030-11-01 | ND2: 2030-12-01 | NE2: 2030-12-01 | NF2: 2031-01-01 | NG2: 2031-01-01 | NH2: 2031-02-01 | NI2: 2031-02-01 | NJ2: 2031-03-01 | NK2: 2031-03-01 | NL2: 2031-04-01 | NM2: 2031-04-01 | NN2: 2031-05-01 | NO2: 2031-05-01 | NP2: 2031-06-01 | NQ2: 2031-06-01 | NR2: 2031-07-01 | NS2: 2031-07-01 | NT2: 2031-08-01 | NU2: 2031-08-01 | NV2: 2031-09-01 | NW2: 2031-09-01 | NX2: =DATE(YEAR(NV2),MONTH(NV2)+1,1) -> 2031-10-01 | NY2: 2031-10-01 | NZ2: 2031-11-01 | OA2: 2031-11-01 | OB2: 2031-12-01 | OC2: 2031-12-01 | OD2: 2032-01-01 | OE2: 2032-01-01 | OF2: 2032-02-01 | OG2: 2032-02-01 | OH2: 2032-03-01 | OI2: 2032-03-01 | OJ2: 2032-04-01 | OK2: 2032-04-01 | OL2: 2032-05-01 | OM2: 2032-05-01 | ON2: 2032-06-01 | OO2: 2032-06-01 | OP2: 2032-07-01 | OQ2: 2032-07-01 | OR2: 2032-08-01 | OS2: 2032-08-01 | OT2: 2032-09-01 | OU2: 2032-09-01 | OV2: 2032-10-01 | OW2: 2032-10-01 | OX2: 2032-11-01 | OY2: 2032-11-01 | OZ2: 2032-12-01 | PA2: 2032-12-01 | PB2: 2033-01-01 | PC2: 2033-01-01 | PD2: 2033-02-01 | PE2: 2033-02-01 | PF2: 2033-03-01 | PG2: 2033-03-01 | PH2: 2033-04-01 | PI2: 2033-04-01 | PJ2: 2033-05-01 | PK2: 2033-05-01 | PL2: 2033-06-01 | PM2: 2033-06-01 | PN2: 2033-07-01 | PO2: 2033-07-01 | PP2: 2033-08-01 | PQ2: 2033-08-01 | PR2: 2033-09-01 | PS2: 2033-09-01 | PT2: 2033-10-01 | PU2: 2033-10-01 | PV2: 2033-11-01 | PW2: 2033-11-01 | PX2: 2033-12-01 | PY2: 2033-12-01 | PZ2: 2034-01-01 | QA2: 2034-01-01 | QB2: 2034-02-01 | QC2: 2034-02-01 | QD2: 2034-03-01 | QE2: 2034-03-01 | QF2: 2034-04-01 | QG2: 2034-04-01 | QH2: 2034-05-01 | QI2: 2034-05-01 | QJ2: 2034-06-01 | QK2: 2034-06-01 | QL2: 2034-07-01 | QM2: 2034-07-01 | QN2: 2034-08-01 | QO2: 2034-08-01 | QP2: 2034-09-01 | QQ2: 2034-09-01 | QR2: 2034-10-01 | QS2: 2034-10-01 | QT2: 2034-11-01 | QU2: 2034-11-01 | QV2: 2034-12-01 | QW2: 2034-12-01 | QX2: 2035-01-01 | QY2: 2035-01-01 | QZ2: 2035-02-01 | RA2: 2035-02-01 | RB2: 2035-03-01 | RC2: 2035-03-01 | RD2: 2035-04-01 | RE2: 2035-04-01 | RF2: 2035-05-01 | RG2: 2035-05-01 | RH2: 2035-06-01 | RI2: 2035-06-01 | RJ2: 2035-07-01 | RK2: 2035-07-01 | RL2: 2035-08-01 | RM2: 2035-08-01 | RN2: 2035-09-01 | RO2: 2035-09-01 | RQ2: 2016 | RR2: 2017 | RS2: 2018 | RT2: 2019 | RU2: 2020 | RV2: 2021 | RW2: 2022 | RX2: 2023 | RY2: 2024 | RZ2: 2025 | SA2: 2026 | SB2: 2027 | SC2: 2028 | SD2: 2029 | SE2: 2030 | SF2: 2031 | SG2: 2032 | SH2: 2033 | SI2: 2034 | SJ2: 2035
B3: BESID | C3: AccountName | D3: HLH | E3: LLH | F3: HLH | G3: LLH | H3: HLH | I3: LLH | J3: HLH | K3: LLH | L3: HLH | M3: LLH | N3: HLH | O3: LLH | P3: HLH | Q3: LLH | R3: HLH | S3: LLH | T3: HLH | U3: LLH | V3: HLH | W3: LLH | X3: HLH | Y3: LLH | Z3: HLH | AA3: LLH | AB3: HLH | AC3: LLH | AD3: HLH | AE3: LLH | AF3: HLH | AG3: LLH | AH3: HLH | AI3: LLH | AJ3: HLH | AK3: LLH | AL3: HLH | AM3: LLH | AN3: HLH | AO3: LLH | AP3: HLH | AQ3: LLH | AR3: HLH | AS3: LLH | AT3: HLH | AU3: LLH | AV3: HLH | AW3: LLH | AX3: HLH | AY3: LLH | AZ3: HLH | BA3: LLH | BB3: HLH | BC3: LLH | BD3: HLH | BE3: LLH | BF3: HLH | BG3: LLH | BH3: HLH | BI3: LLH | BJ3: HLH | BK3: LLH | BL3: HLH | BM3: LLH | BN3: HLH | BO3: LLH | BP3: HLH | BQ3: LLH | BR3: HLH | BS3: LLH | BT3: HLH | BU3: LLH | BV3: HLH | BW3: LLH | BX3: HLH | BY3: LLH | BZ3: HLH | CA3: LLH | CB3: HLH | CC3: LLH | CD3: HLH | CE3: LLH | CF3: HLH | CG3: LLH | CH3: HLH | CI3: LLH | CJ3: HLH | CK3: LLH | CL3: HLH | CM3: LLH | CN3: HLH | CO3: LLH | CP3: HLH | CQ3: LLH | CR3: HLH | CS3: LLH | CT3: HLH | CU3: LLH | CV3: HLH | CW3: LLH | CX3: HLH | CY3: LLH | CZ3: HLH | DA3: LLH | DB3: HLH | DC3: LLH | DD3: HLH | DE3: LLH | DF3: HLH | DG3: LLH | DH3: HLH | DI3: LLH | DJ3: HLH | DK3: LLH | DL3: HLH | DM3: LLH | DN3: HLH | DO3: LLH | DP3: HLH | DQ3: LLH | DR3: HLH | DS3: LLH | DT3: HLH | DU3: LLH | DV3: HLH | DW3: LLH | DX3: HLH | DY3: LLH | DZ3: HLH | EA3: LLH | EB3: HLH | EC3: LLH | ED3: HLH | EE3: LLH | EF3: HLH | EG3: LLH | EH3: HLH | EI3: LLH | EJ3: HLH | EK3: LLH | EL3: HLH | EM3: LLH | EN3: HLH | EO3: LLH | EP3: HLH | EQ3: LLH | ER3: HLH | ES3: LLH | ET3: HLH | EU3: LLH | EV3: HLH | EW3: LLH | EX3: HLH | EY3: LLH | EZ3: HLH | FA3: LLH | FB3: HLH | FC3: LLH | FD3: HLH | FE3: LLH | FF3: HLH | FG3: LLH | FH3: HLH | FI3: LLH | FJ3: HLH | FK3: LLH | FL3: HLH | FM3: LLH | FN3: HLH | FO3: LLH | FP3: HLH | FQ3: LLH | FR3: HLH | FS3: LLH | FT3: HLH | FU3: LLH | FV3: HLH | FW3: LLH | FX3: HLH | FY3: LLH | FZ3: HLH | GA3: LLH | GB3: HLH | GC3: LLH | GD3: HLH | GE3: LLH | GF3: HLH | GG3: LLH | GH3: HLH | GI3: LLH | GJ3: HLH | GK3: LLH | GL3: HLH | GM3: LLH | GN3: HLH | GO3: LLH | GP3: HLH | GQ3: LLH | GR3: HLH | GS3: LLH | GT3: HLH | GU3: LLH | GV3: HLH | GW3: LLH | GX3: HLH | GY3: LLH | GZ3: HLH | HA3: LLH | HB3: HLH | HC3: LLH | HD3: HLH | HE3: LLH | HF3: HLH | HG3: LLH | HH3: HLH | HI3: LLH | HJ3: HLH | HK3: LLH | HL3: HLH | HM3: LLH | HN3: HLH | HO3: LLH | HP3: HLH | HQ3: LLH | HR3: HLH | HS3: LLH | HT3: HLH | HU3: LLH | HV3: HLH | HW3: LLH | HX3: HLH | HY3: LLH | HZ3: HLH | IA3: LLH | IB3: HLH | IC3: LLH | ID3: HLH | IE3: LLH | IF3: HLH | IG3: LLH | IH3: HLH | II3: LLH | IJ3: HLH | IK3: LLH | IL3: HLH | IM3: LLH | IN3: HLH | IO3: LLH | IP3: HLH | IQ3: LLH | IR3: HLH | IS3: LLH | IT3: HLH | IU3: LLH | IV3: HLH | IW3: LLH | IX3: HLH | IY3: LLH | IZ3: HLH | JA3: LLH | JB3: HLH | JC3: LLH | JD3: HLH | JE3: LLH | JF3: HLH | JG3: LLH | JH3: HLH | JI3: LLH | JJ3: HLH | JK3: LLH | JL3: HLH | JM3: LLH | JN3: HLH | JO3: LLH | JP3: HLH | JQ3: LLH | JR3: HLH | JS3: LLH | JT3: HLH | JU3: LLH | JV3: HLH | JW3: LLH | JX3: HLH | JY3: LLH | JZ3: HLH | KA3: LLH | KB3: HLH | KC3: LLH | KD3: HLH | KE3: LLH | KF3: HLH | KG3: LLH | KH3: HLH | KI3: LLH | KJ3: HLH | KK3: LLH | KL3: HLH | KM3: LLH | KN3: HLH | KO3: LLH | KP3: HLH | KQ3: LLH | KR3: HLH | KS3: LLH | KT3: HLH | KU3: LLH | KV3: HLH | KW3: LLH | KX3: HLH | KY3: LLH | KZ3: HLH | LA3: LLH | LB3: HLH | LC3: LLH | LD3: HLH | LE3: LLH | LF3: HLH | LG3: LLH | LH3: HLH | LI3: LLH | LJ3: HLH | LK3: LLH | LL3: HLH | LM3: LLH | LN3: HLH | LO3: LLH | LP3: HLH | LQ3: LLH | LR3: HLH | LS3: LLH | LT3: HLH | LU3: LLH | LV3: HLH | LW3: LLH | LX3: HLH | LY3: LLH | LZ3: HLH | MA3: LLH | MB3: HLH | MC3: LLH | MD3: HLH | ME3: LLH | MF3: HLH | MG3: LLH | MH3: HLH | MI3: LLH | MJ3: HLH | MK3: LLH | ML3: HLH | MM3: LLH | MN3: HLH | MO3: LLH | MP3: HLH | MQ3: LLH | MR3: HLH | MS3: LLH | MT3: HLH | MU3: LLH | MV3: HLH | MW3: LLH | MX3: HLH | MY3: LLH | MZ3: HLH | NA3: LLH | NB3: HLH | NC3: LLH | ND3: HLH | NE3: LLH | NF3: HLH | NG3: LLH | NH3: HLH | NI3: LLH | NJ3: HLH | NK3: LLH | NL3: HLH | NM3: LLH | NN3: HLH | NO3: LLH | NP3: HLH | NQ3: LLH | NR3: HLH | NS3: LLH | NT3: HLH | NU3: LLH | NV3: HLH | NW3: LLH | NX3: HLH | NY3: LLH | NZ3: HLH | OA3: LLH | OB3: HLH | OC3: LLH | OD3: HLH | OE3: LLH | OF3: HLH | OG3: LLH | OH3: HLH | OI3: LLH | OJ3: HLH | OK3: LLH | OL3: HLH | OM3: LLH | ON3: HLH | OO3: LLH | OP3: HLH | OQ3: LLH | OR3: HLH | OS3: LLH | OT3: HLH | OU3: LLH | OV3: HLH | OW3: LLH | OX3: HLH | OY3: LLH | OZ3: HLH | PA3: LLH | PB3: HLH | PC3: LLH | PD3: HLH | PE3: LLH | PF3: HLH | PG3: LLH | PH3: HLH | PI3: LLH | PJ3: HLH | PK3: LLH | PL3: HLH | PM3: LLH | PN3: HLH | PO3: LLH | PP3: HLH | PQ3: LLH | PR3: HLH | PS3: LLH | PT3: HLH | PU3: LLH | PV3: HLH | PW3: LLH | PX3: HLH | PY3: LLH | PZ3: HLH | QA3: LLH | QB3: HLH | QC3: LLH | QD3: HLH | QE3: LLH | QF3: HLH | QG3: LLH | QH3: HLH | QI3: LLH | QJ3: HLH | QK3: LLH | QL3: HLH | QM3: LLH | QN3: HLH | QO3: LLH | QP3: HLH | QQ3: LLH | QR3: HLH | QS3: LLH | QT3: HLH | QU3: LLH | QV3: HLH | QW3: LLH | QX3: HLH | QY3: LLH | QZ3: HLH | RA3: LLH | RB3: HLH | RC3: LLH | RD3: HLH | RE3: LLH | RF3: HLH | RG3: LLH | RH3: HLH | RI3: LLH | RJ3: HLH | RK3: LLH | RL3: HLH | RM3: LLH | RN3: HLH | RO3: LLH
B4: 10015 | C4: Asotin County PUD #1 | D4: 0 | E4: 0 | F4: 0 | G4: 0 | H4: 0 | I4: 0 | J4: 0 | K4: 0 | L4: 0 | M4: 0 | N4: 0 | O4: 0 | P4: 0 | Q4: 0 | R4: 0 | S4: 0 | T4: 0 | U4: 0 | V4: 0 | W4: 0 | X4: 0 | Y4: 0 | Z4: 0 | AA4: 0 | AB4: 0 | AC4: 0 | AD4: 0 | AE4: 0 | AF4: 0 | AG4: 0 | AH4: 0 | AI4: 0 | AJ4: 0 | AK4: 0 | AL4: 0 | AM4: 0 | AN4: 0 | AO4: 0 | AP4: 0 | AQ4: 0 | AR4: 0 | AS4: 0 | AT4: 0 | AU4: 0 | AV4: 0 | AW4: 0 | AX4: 0 | AY4: 0 | AZ4: 0 | BA4: 0 | BB4: 0 | BC4: 0 | BD4: 0 | BE4: 0 | BF4: 0 | BG4: 0 | BH4: 0 | BI4: 0 | BJ4: 0 | BK4: 0 | BL4: 0 | BM4: 0 | BN4: 0 | BO4: 0 | BP4: 0 | BQ4: 0 | BR4: 0 | BS4: 0 | BT4: 0 | BU4: 0 | BV4: 0 | BW4: 0 | BX4: 0 | BY4: 0 | BZ4: 0 | CA4: 0 | CB4: 0 | CC4: 0 | CD4: 0 | CE4: 0 | CF4: 0 | CG4: 0 | CH4: 0 | CI4: 0 | CJ4: 0 | CK4: 0 | CL4: 0 | CM4: 0 | CN4: 0 | CO4: 0 | CP4: 0 | CQ4: 0 | CR4: 0 | CS4: 0 | CT4: 0 | CU4: 0 | CV4: 0 | CW4: 0 | CX4: 0 | CY4: 0 | CZ4: 0 | DA4: 0 | DB4: 0 | DC4: 0 | DD4: 0 | DE4: 0 | DF4: 0 | DG4: 0 | DH4: 0 | DI4: 0 | DJ4: 0 | DK4: 0 | DL4: 0 | DM4: 0 | DN4: 0 | DO4: 0 | DP4: 0 | DQ4: 0 | DR4: 0 | DS4: 0 | DT4: 0 | DU4: 0 | DV4: 0 | DW4: 0 | DX4: 0 | DY4: 0 | DZ4: 0 | EA4: 0 | EB4: 0 | EC4: 0 | ED4: 0 | EE4: 0 | EF4: 0 | EG4: 0 | EH4: 0 | EI4: 0 | EJ4: 0 | EK4: 0 | EL4: 0 | EM4: 0 | EN4: 0 | EO4: 0 | EP4: 0 | EQ4: 0 | ER4: 0 | ES4: 0 | ET4: 0 | EU4: 0 | EV4: 0 | EW4: 0 | EX4: 0 | EY4: 0 | EZ4: 0 | FA4: 0 | FB4: 0 | FC4: 0 | FD4: 0 | FE4: 0 | FF4: 0 | FG4: 0 | FH4: 0 | FI4: 0 | FJ4: 0 | FK4: 0 | FL4: 0 | FM4: 0 | FN4: 0 | FO4: 0 | FP4: 0 | FQ4: 0 | FR4: 0 | FS4: 0 | FT4: 0 | FU4: 0 | FV4: 0 | FW4: 0 | FX4: 0 | FY4: 0 | FZ4: 0 | GA4: 0 | GB4: 0 | GC4: 0 | GD4: 0 | GE4: 0 | GF4: 0 | GG4: 0 | GH4: 0 | GI4: 0 | GJ4: 0 | GK4: 0 | GL4: 0 | GM4: 0 | GN4: 0 | GO4: 0 | GP4: 0 | GQ4: 0 | GR4: 0 | GS4: 0 | GT4: 0 | GU4: 0 | GV4: 0 | GW4: 0 | GX4: 0 | GY4: 0 | GZ4: 0 | HA4: 0 | HB4: 0 | HC4: 0 | HD4: 0 | HE4: 0 | HF4: 0 | HG4: 0 | HH4: 0 | HI4: 0 | HJ4: 0 | HK4: 0 | HL4: 0 | HM4: 0 | HN4: 0 | HO4: 0 | HP4: 0 | HQ4: 0 | HR4: 0 | HS4: 0 | HT4: 0 | HU4: 0 | HV4: 0 | HW4: 0 | HX4: 0 | HY4: 0 | HZ4: 0 | IA4: 0 | IB4: 0 | IC4: 0 | ID4: 0 | IE4: 0 | IF4: 0 | IG4: 0 | IH4: 0 | II4: 0 | IJ4: 0 | IK4: 0 | IL4: 0 | IM4: 0 | IN4: 0 | IO4: 0 | IP4: 0 | IQ4: 0 | IR4: 0 | IS4: 0 | IT4: 0 | IU4: 0 | IV4: 0 | IW4: 0 | IX4: 0 | IY4: 0 | IZ4: 0 | JA4: 0 | JB4: 0 | JC4: 0 | JD4: 0 | JE4: 0 | JF4: 0 | JG4: 0 | JH4: 0 | JI4: 0 | JJ4: 0 | JK4: 0 | JL4: 0 | JM4: 0 | JN4: 0 | JO4: 0 | JP4: 0 | JQ4: 0 | JR4: 0 | JS4: 0 | JT4: 0 | JU4: 0 | JV4: 0 | JW4: 0 | JX4: 0 | JY4: 0 | JZ4: 0 | KA4: 0 | KB4: 0 | KC4: 0 | KD4: 0 | KE4: 0 | KF4: 0 | KG4: 0 | KH4: 0 | KI4: 0 | KJ4: 0 | KK4: 0 | KL4: 0 | KM4: 0 | KN4: 0 | KO4: 0 | KP4: 0 | KQ4: 0 | KR4: 0 | KS4: 0 | KT4: 0 | KU4: 0 | KV4: 0 | KW4: 0 | KX4: 0 | KY4: 0 | KZ4: 0 | LA4: 0 | LB4: 0 | LC4: 0 | LD4: 0 | LE4: 0 | LF4: 0 | LG4: 0 | LH4: 0 | LI4: 0 | LJ4: 0 | LK4: 0 | LL4: 0 | LM4: 0 | LN4: 0 | LO4: 0 | LP4: 0 | LQ4: 0 | LR4: 0 | LS4: 0 | LT4: 0 | LU4: 0 | LV4: 0 | LW4: 0 | LX4: 0 | LY4: 0 | LZ4: 0 | MA4: 0 | MB4: 0 | MC4: 0 | MD4: 0 | ME4: 0 | MF4: 0 | MG4: 0 | MH4: 0 | MI4: 0 | MJ4: 0 | MK4: 0 | ML4: 0 | MM4: 0 | MN4: 0 | MO4: 0 | MP4: 0 | MQ4: 0 | MR4: 0 | MS4: 0 | MT4: 0 | MU4: 0 | MV4: 0 | MW4: 0 | MX4: 0 | MY4: 0 | MZ4: 0 | NA4: 0 | NB4: 0 | NC4: 0 | ND4: 0 | NE4: 0 | NF4: 0 | NG4: 0 | NH4: 0 | NI4: 0 | NJ4: 0 | NK4: 0 | NL4: 0 | NM4: 0 | NN4: 0 | NO4: 0 | NP4: 0 | NQ4: 0 | NR4: 0 | NS4: 0 | NT4: 0 | NU4: 0 | NV4: 0 | NW4: 0 | NX4: 0 | NY4: 0 | NZ4: 0 | OA4: 0 | OB4: 0 | OC4: 0 | OD4: 0 | OE4: 0 | OF4: 0 | OG4: 0 | OH4: 0 | OI4: 0 | OJ4: 0 | OK4: 0 | OL4: 0 | OM4: 0 | ON4: 0 | OO4: 0 | OP4: 0 | OQ4: 0 | OR4: 0 | OS4: 0 | OT4: 0 | OU4: 0 | OV4: 0 | OW4: 0 | OX4: 0 | OY4: 0 | OZ4: 0 | PA4: 0 | PB4: 0 | PC4: 0 | PD4: 0 | PE4: 0 | PF4: 0 | PG4: 0 | PH4: 0 | PI4: 0 | PJ4: 0 | PK4: 0 | PL4: 0 | PM4: 0 | PN4: 0 | PO4: 0 | PP4: 0 | PQ4: 0 | PR4: 0 | PS4: 0 | PT4: 0 | PU4: 0 | PV4: 0 | PW4: 0 | PX4: 0 | PY4: 0 | PZ4: 0 | QA4: 0 | QB4: 0 | QC4: 0 | QD4: 0 | QE4: 0 | QF4: 0 | QG4: 0 | QH4: 0 | QI4: 0 | QJ4: 0 | QK4: 0 | QL4: 0 | QM4: 0 | QN4: 0 | QO4: 0 | QP4: 0 | QQ4: 0 | QR4: 0 | QS4: 0 | QT4: 0 | QU4: 0 | QV4: 0 | QW4: 0 | QX4: 0 | QY4: 0 | QZ4: 0 | RA4: 0 | RB4: 0 | RC4: 0 | RD4: 0 | RE4: 0 | RF4: 0 | RG4: 0 | RH4: 0 | RI4: 0 | RJ4: 0 | RK4: 0 | RL4: 0 | RM4: 0 | RN4: 0 | RO4: 0 | RQ4: =+SUM(D4:AA4) -> 0 | RR4: =+SUM(AB4:AY4) -> 0 | RS4: =+SUM(AZ4:BW4) -> 0 | RT4: =+SUM(BX4:CU4) -> 0 | RU4: =+SUM(CV4:DS4) -> 0 | RV4: =+SUM(DT4:EQ4) -> 0 | RW4: =+SUM(ER4:FO4) -> 0 | RX4: =+SUM(FP4:GM4) -> 0 | RY4: =+SUM(GN4:HK4) -> 0 | RZ4: =+SUM(HL4:II4) -> 0 | SA4: =+SUM(IJ4:JG4) -> 0 | SB4: =+SUM(JH4:KE4) -> 0 | SC4: =+SUM(KF4:LC4) -> 0 | SD4: =+SUM(LD4:MA4) -> 0 | SE4: =+SUM(MB4:MY4) -> 0 | SF4: =+SUM(MZ4:NW4) -> 0 | SG4: =+SUM(NX4:OU4) -> 0 | SH4: =+SUM(OV4:PS4) -> 0 | SI4: =+SUM(PT4:QQ4) -> 0 | SJ4: =+SUM(QR4:RO4) -> 0
B5: 10024 | C5: Benton County PUD #1 | D5: 0 | E5: 0 | F5: 0 | G5: 0 | H5: 0 | I5: 0 | J5: 0 | K5: 0 | L5: 0 | M5: 0 | N5: 0 | O5: 0 | P5: 0 | Q5: 0 | R5: 0 | S5: 0 | T5: 0 | U5: 0 | V5: 0 | W5: 0 | X5: 0 | Y5: 0 | Z5: 0 | AA5: 0 | AB5: 0 | AC5: 0 | AD5: 0 | AE5: 0 | AF5: 0 | AG5: 0 | AH5: 0 | AI5: 0 | AJ5: 0 | AK5: 0 | AL5: 0 | AM5: 0 | AN5: 0 | AO5: 0 | AP5: 0 | AQ5: 0 | AR5: 0 | AS5: 0 | AT5: 0 | AU5: 0 | AV5: 0 | AW5: 0 | AX5: 0 | AY5: 0 | AZ5: 0 | BA5: 0 | BB5: 0 | BC5: 0 | BD5: 0 | BE5: 0 | BF5: 0 | BG5: 0 | BH5: 0 | BI5: 0 | BJ5: 0 | BK5: 0 | BL5: 0 | BM5: 0 | BN5: 0 | BO5: 0 | BP5: 0 | BQ5: 0 | BR5: 0 | BS5: 0 | BT5: 0 | BU5: 0 | BV5: 0 | BW5: 0 | BX5: 0 | BY5: 0 | BZ5: 0 | CA5: 0 | CB5: 0 | CC5: 0 | CD5: 0 | CE5: 0 | CF5: 0 | CG5: 0 | CH5: 0 | CI5: 0 | CJ5: 0 | CK5: 0 | CL5: 0 | CM5: 0 | CN5: 0 | CO5: 0 | CP5: 0 | CQ5: 0 | CR5: 0 | CS5: 0 | CT5: 0 | CU5: 0 | CV5: 0 | CW5: 0 | CX5: 0 | CY5: 0 | CZ5: 0 | DA5: 0 | DB5: 0 | DC5: 0 | DD5: 0 | DE5: 0 | DF5: 0 | DG5: 0 | DH5: 0 | DI5: 0 | DJ5: 0 | DK5: 0 | DL5: 0 | DM5: 0 | DN5: 0 | DO5: 0 | DP5: 0 | DQ5: 0 | DR5: 0 | DS5: 0 | DT5: 0 | DU5: 0 | DV5: 0 | DW5: 0 | DX5: 0 | DY5: 0 | DZ5: 0 | EA5: 0 | EB5: 0 | EC5: 0 | ED5: 0 | EE5: 0 | EF5: 0 | EG5: 0 | EH5: 0 | EI5: 0 | EJ5: 0 | EK5: 0 | EL5: 0 | EM5: 0 | EN5: 0 | EO5: 0 | EP5: 0 | EQ5: 0 | ER5: 0 | ES5: 0 | ET5: 0 | EU5: 0 | EV5: 0 | EW5: 0 | EX5: 0 | EY5: 0 | EZ5: 0 | FA5: 0 | FB5: 0 | FC5: 0 | FD5: 0 | FE5: 0 | FF5: 0 | FG5: 0 | FH5: 0 | FI5: 0 | FJ5: 0 | FK5: 0 | FL5: 0 | FM5: 0 | FN5: 0 | FO5: 0 | FP5: 0 | FQ5: 0 | FR5: 0 | FS5: 0 | FT5: 0 | FU5: 0 | FV5: 0 | FW5: 0 | FX5: 0 | FY5: 0 | FZ5: 0 | GA5: 0 | GB5: 0 | GC5: 0 | GD5: 0 | GE5: 0 | GF5: 0 | GG5: 0 | GH5: 0 | GI5: 0 | GJ5: 0 | GK5: 0 | GL5: 0 | GM5: 0 | GN5: 0 | GO5: 0 | GP5: 0 | GQ5: 0 | GR5: 0 | GS5: 0 | GT5: 0 | GU5: 0 | GV5: 0 | GW5: 0 | GX5: 0 | GY5: 0 | GZ5: 0 | HA5: 0 | HB5: 0 | HC5: 0 | HD5: 0 | HE5: 0 | HF5: 0 | HG5: 0 | HH5: 0 | HI5: 0 | HJ5: 0 | HK5: 0 | HL5: 0 | HM5: 0 | HN5: 0 | HO5: 0 | HP5: 0 | HQ5: 0 | HR5: 0 | HS5: 0 | HT5: 0 | HU5: 0 | HV5: 0 | HW5: 0 | HX5: 0 | HY5: 0 | HZ5: 0 | IA5: 0 | IB5: 0 | IC5: 0 | ID5: 0 | IE5: 0 | IF5: 0 | IG5: 0 | IH5: 0 | II5: 0 | IJ5: 0 | IK5: 0 | IL5: 0 | IM5: 0 | IN5: 0 | IO5: 0 | IP5: 0 | IQ5: 0 | IR5: 0 | IS5: 0 | IT5: 0 | IU5: 0 | IV5: 0 | IW5: 0 | IX5: 0 | IY5: 0 | IZ5: 0 | JA5: 0 | JB5: 0 | JC5: 0 | JD5: 0 | JE5: 0 | JF5: 0 | JG5: 0 | JH5: 0 | JI5: 0 | JJ5: 0 | JK5: 0 | JL5: 0 | JM5: 0 | JN5: 0 | JO5: 0 | JP5: 0 | JQ5: 0 | JR5: 0 | JS5: 0 | JT5: 0 | JU5: 0 | JV5: 0 | JW5: 0 | JX5: 0 | JY5: 0 | JZ5: 0 | KA5: 0 | KB5: 0 | KC5: 0 | KD5: 0 | KE5: 0 | KF5: 0 | KG5: 0 | KH5: 0 | KI5: 0 | KJ5: 0 | KK5: 0 | KL5: 0 | KM5: 0 | KN5: 0 | KO5: 0 | KP5: 0 | KQ5: 0 | KR5: 0 | KS5: 0 | KT5: 0 | KU5: 0 | KV5: 0 | KW5: 0 | KX5: 0 | KY5: 0 | KZ5: 0 | LA5: 0 | LB5: 0 | LC5: 0 | LD5: 0 | LE5: 0 | LF5: 0 | LG5: 0 | LH5: 0 | LI5: 0 | LJ5: 0 | LK5: 0 | LL5: 0 | LM5: 0 | LN5: 0 | LO5: 0 | LP5: 0 | LQ5: 0 | LR5: 0 | LS5: 0 | LT5: 0 | LU5: 0 | LV5: 0 | LW5: 0 | LX5: 0 | LY5: 0 | LZ5: 0 | MA5: 0 | MB5: 0 | MC5: 0 | MD5: 0 | ME5: 0 | MF5: 0 | MG5: 0 | MH5: 0 | MI5: 0 | MJ5: 0 | MK5: 0 | ML5: 0 | MM5: 0 | MN5: 0 | MO5: 0 | MP5: 0 | MQ5: 0 | MR5: 0 | MS5: 0 | MT5: 0 | MU5: 0 | MV5: 0 | MW5: 0 | MX5: 0 | MY5: 0 | MZ5: 0 | NA5: 0 | NB5: 0 | NC5: 0 | ND5: 0 | NE5: 0 | NF5: 0 | NG5: 0 | NH5: 0 | NI5: 0 | NJ5: 0 | NK5: 0 | NL5: 0 | NM5: 0 | NN5: 0 | NO5: 0 | NP5: 0 | NQ5: 0 | NR5: 0 | NS5: 0 | NT5: 0 | NU5: 0 | NV5: 0 | NW5: 0 | NX5: 0 | NY5: 0 | NZ5: 0 | OA5: 0 | OB5: 0 | OC5: 0 | OD5: 0 | OE5: 0 | OF5: 0 | OG5: 0 | OH5: 0 | OI5: 0 | OJ5: 0 | OK5: 0 | OL5: 0 | OM5: 0 | ON5: 0 | OO5: 0 | OP5: 0 | OQ5: 0 | OR5: 0 | OS5: 0 | OT5: 0 | OU5: 0 | OV5: 0 | OW5: 0 | OX5: 0 | OY5: 0 | OZ5: 0 | PA5: 0 | PB5: 0 | PC5: 0 | PD5: 0 | PE5: 0 | PF5: 0 | PG5: 0 | PH5: 0 | PI5: 0 | PJ5: 0 | PK5: 0 | PL5: 0 | PM5: 0 | PN5: 0 | PO5: 0 | PP5: 0 | PQ5: 0 | PR5: 0 | PS5: 0 | PT5: 0 | PU5: 0 | PV5: 0 | PW5: 0 | PX5: 0 | PY5: 0 | PZ5: 0 | QA5: 0 | QB5: 0 | QC5: 0 | QD5: 0 | QE5: 0 | QF5: 0 | QG5: 0 | QH5: 0 | QI5: 0 | QJ5: 0 | QK5: 0 | QL5: 0 | QM5: 0 | QN5: 0 | QO5: 0 | QP5: 0 | QQ5: 0 | QR5: 0 | QS5: 0 | QT5: 0 | QU5: 0 | QV5: 0 | QW5: 0 | QX5: 0 | QY5: 0 | QZ5: 0 | RA5: 0 | RB5: 0 | RC5: 0 | RD5: 0 | RE5: 0 | RF5: 0 | RG5: 0 | RH5: 0 | RI5: 0 | RJ5: 0 | RK5: 0 | RL5: 0 | RM5: 0 | RN5: 0 | RO5: 0 | RQ5: 0 | RR5: 0 | RS5: 0 | RT5: 0 | RU5: 0 | RV5: 0 | RW5: 0 | RX5: 0 | RY5: 0 | RZ5: 0 | SA5: 0 | SB5: 0 | SC5: 0 | SD5: 0 | SE5: 0 | SF5: 0 | SG5: 0 | SH5: 0 | SI5: 0 | SJ5: 0
B6: 10025 | C6: Benton REA | D6: 0 | E6: 0 | F6: 0 | G6: 0 | H6: 0 | I6: 0 | J6: 0 | K6: 0 | L6: 0 | M6: 0 | N6: 0 | O6: 0 | P6: 0 | Q6: 0 | R6: 0 | S6: 0 | T6: 0 | U6: 0 | V6: 0 | W6: 0 | X6: 0 | Y6: 0 | Z6: 0 | AA6: 0 | AB6: 0 | AC6: 0 | AD6: 0 | AE6: 0 | AF6: 0 | AG6: 0 | AH6: 0 | AI6: 0 | AJ6: 0 | AK6: 0 | AL6: 0 | AM6: 0 | AN6: 0 | AO6: 0 | AP6: 0 | AQ6: 0 | AR6: 0 | AS6: 0 | AT6: 0 | AU6: 0 | AV6: 0 | AW6: 0 | AX6: 0 | AY6: 0 | AZ6: 0 | BA6: 0 | BB6: 0 | BC6: 0 | BD6: 0 | BE6: 0 | BF6: 0 | BG6: 0 | BH6: 0 | BI6: 0 | BJ6: 0 | BK6: 0 | BL6: 0 | BM6: 0 | BN6: 0 | BO6: 0 | BP6: 0 | BQ6: 0 | BR6: 0 | BS6: 0 | BT6: 0 | BU6: 0 | BV6: 0 | BW6: 0 | BX6: 0 | BY6: 0 | BZ6: 0 | CA6: 0 | CB6: 0 | CC6: 0 | CD6: 0 | CE6: 0 | CF6: 0 | CG6: 0 | CH6: 0 | CI6: 0 | CJ6: 0 | CK6: 0 | CL6: 0 | CM6: 0 | CN6: 0 | CO6: 0 | CP6: 0 | CQ6: 0 | CR6: 0 | CS6: 0 | CT6: 0 | CU6: 0 | CV6: 0 | CW6: 0 | CX6: 0 | CY6: 0 | CZ6: 0 | DA6: 0 | DB6: 0 | DC6: 0 | DD6: 0 | DE6: 0 | DF6: 0 | DG6: 0 | DH6: 0 | DI6: 0 | DJ6: 0 | DK6: 0 | DL6: 0 | DM6: 0 | DN6: 0 | DO6: 0 | DP6: 0 | DQ6: 0 | DR6: 0 | DS6: 0 | DT6: 0 | DU6: 0 | DV6: 0 | DW6: 0 | DX6: 0 | DY6: 0 | DZ6: 0 | EA6: 0 | EB6: 0 | EC6: 0 | ED6: 0 | EE6: 0 | EF6: 0 | EG6: 0 | EH6: 0 | EI6: 0 | EJ6: 0 | EK6: 0 | EL6: 0 | EM6: 0 | EN6: 0 | EO6: 0 | EP6: 0 | EQ6: 0 | ER6: 0 | ES6: 0 | ET6: 0 | EU6: 0 | EV6: 0 | EW6: 0 | EX6: 0 | EY6: 0 | EZ6: 0 | FA6: 0 | FB6: 0 | FC6: 0 | FD6: 0 | FE6: 0 | FF6: 0 | FG6: 0 | FH6: 0 | FI6: 0 | FJ6: 0 | FK6: 0 | FL6: 0 | FM6: 0 | FN6: 0 | FO6: 0 | FP6: 0 | FQ6: 0 | FR6: 0 | FS6: 0 | FT6: 0 | FU6: 0 | FV6: 0 | FW6: 0 | FX6: 0 | FY6: 0 | FZ6: 0 | GA6: 0 | GB6: 0 | GC6: 0 | GD6: 0 | GE6: 0 | GF6: 0 | GG6: 0 | GH6: 0 | GI6: 0 | GJ6: 0 | GK6: 0 | GL6: 0 | GM6: 0 | GN6: 0 | GO6: 0 | GP6: 0 | GQ6: 0 | GR6: 0 | GS6: 0 | GT6: 0 | GU6: 0 | GV6: 0 | GW6: 0 | GX6: 0 | GY6: 0 | GZ6: 0 | HA6: 0 | HB6: 0 | HC6: 0 | HD6: 0 | HE6: 0 | HF6: 0 | HG6: 0 | HH6: 0 | HI6: 0 | HJ6: 0 | HK6: 0 | HL6: 0 | HM6: 0 | HN6: 0 | HO6: 0 | HP6: 0 | HQ6: 0 | HR6: 0 | HS6: 0 | HT6: 0 | HU6: 0 | HV6: 0 | HW6: 0 | HX6: 0 | HY6: 0 | HZ6: 0 | IA6: 0 | IB6: 0 | IC6: 0 | ID6: 0 | IE6: 0 | IF6: 0 | IG6: 0 | IH6: 0 | II6: 0 | IJ6: 0 | IK6: 0 | IL6: 0 | IM6: 0 | IN6: 0 | IO6: 0 | IP6: 0 | IQ6: 0 | IR6: 0 | IS6: 0 | IT6: 0 | IU6: 0 | IV6: 0 | IW6: 0 | IX6: 0 | IY6: 0 | IZ6: 0 | JA6: 0 | JB6: 0 | JC6: 0 | JD6: 0 | JE6: 0 | JF6: 0 | JG6: 0 | JH6: 0 | JI6: 0 | JJ6: 0 | JK6: 0 | JL6: 0 | JM6: 0 | JN6: 0 | JO6: 0 | JP6: 0 | JQ6: 0 | JR6: 0 | JS6: 0 | JT6: 0 | JU6: 0 | JV6: 0 | JW6: 0 | JX6: 0 | JY6: 0 | JZ6: 0 | KA6: 0 | KB6: 0 | KC6: 0 | KD6: 0 | KE6: 0 | KF6: 0 | KG6: 0 | KH6: 0 | KI6: 0 | KJ6: 0 | KK6: 0 | KL6: 0 | KM6: 0 | KN6: 0 | KO6: 0 | KP6: 0 | KQ6: 0 | KR6: 0 | KS6: 0 | KT6: 0 | KU6: 0 | KV6: 0 | KW6: 0 | KX6: 0 | KY6: 0 | KZ6: 0 | LA6: 0 | LB6: 0 | LC6: 0 | LD6: 0 | LE6: 0 | LF6: 0 | LG6: 0 | LH6: 0 | LI6: 0 | LJ6: 0 | LK6: 0 | LL6: 0 | LM6: 0 | LN6: 0 | LO6: 0 | LP6: 0 | LQ6: 0 | LR6: 0 | LS6: 0 | LT6: 0 | LU6: 0 | LV6: 0 | LW6: 0 | LX6: 0 | LY6: 0 | LZ6: 0 | MA6: 0 | MB6: 0 | MC6: 0 | MD6: 0 | ME6: 0 | MF6: 0 | MG6: 0 | MH6: 0 | MI6: 0 | MJ6: 0 | MK6: 0 | ML6: 0 | MM6: 0 | MN6: 0 | MO6: 0 | MP6: 0 | MQ6: 0 | MR6: 0 | MS6: 0 | MT6: 0 | MU6: 0 | MV6: 0 | MW6: 0 | MX6: 0 | MY6: 0 | MZ6: 0 | NA6: 0 | NB6: 0 | NC6: 0 | ND6: 0 | NE6: 0 | NF6: 0 | NG6: 0 | NH6: 0 | NI6: 0 | NJ6: 0 | NK6: 0 | NL6: 0 | NM6: 0 | NN6: 0 | NO6: 0 | NP6: 0 | NQ6: 0 | NR6: 0 | NS6: 0 | NT6: 0 | NU6: 0 | NV6: 0 | NW6: 0 | NX6: 0 | NY6: 0 | NZ6: 0 | OA6: 0 | OB6: 0 | OC6: 0 | OD6: 0 | OE6: 0 | OF6: 0 | OG6: 0 | OH6: 0 | OI6: 0 | OJ6: 0 | OK6: 0 | OL6: 0 | OM6: 0 | ON6: 0 | OO6: 0 | OP6: 0 | OQ6: 0 | OR6: 0 | OS6: 0 | OT6: 0 | OU6: 0 | OV6: 0 | OW6: 0 | OX6: 0 | OY6: 0 | OZ6: 0 | PA6: 0 | PB6: 0 | PC6: 0 | PD6: 0 | PE6: 0 | PF6: 0 | PG6: 0 | PH6: 0 | PI6: 0 | PJ6: 0 | PK6: 0 | PL6: 0 | PM6: 0 | PN6: 0 | PO6: 0 | PP6: 0 | PQ6: 0 | PR6: 0 | PS6: 0 | PT6: 0 | PU6: 0 | PV6: 0 | PW6: 0 | PX6: 0 | PY6: 0 | PZ6: 0 | QA6: 0 | QB6: 0 | QC6: 0 | QD6: 0 | QE6: 0 | QF6: 0 | QG6: 0 | QH6: 0 | QI6: 0 | QJ6: 0 | QK6: 0 | QL6: 0 | QM6: 0 | QN6: 0 | QO6: 0 | QP6: 0 | QQ6: 0 | QR6: 0 | QS6: 0 | QT6: 0 | QU6: 0 | QV6: 0 | QW6: 0 | QX6: 0 | QY6: 0 | QZ6: 0 | RA6: 0 | RB6: 0 | RC6: 0 | RD6: 0 | RE6: 0 | RF6: 0 | RG6: 0 | RH6: 0 | RI6: 0 | RJ6: 0 | RK6: 0 | RL6: 0 | RM6: 0 | RN6: 0 | RO6: 0 | RQ6: 0 | RR6: 0 | RS6: 0 | RT6: 0 | RU6: 0 | RV6: 0 | RW6: 0 | RX6: 0 | RY6: 0 | RZ6: 0 | SA6: 0 | SB6: 0 | SC6: 0 | SD6: 0 | SE6: 0 | SF6: 0 | SG6: 0 | SH6: 0 | SI6: 0 | SJ6: 0
B7: 10027 | C7: Big Bend Elec Coop | D7: 0 | E7: 0 | F7: 0 | G7: 0 | H7: 0 | I7: 0 | J7: 0 | K7: 0 | L7: 0 | M7: 0 | N7: 0 | O7: 0 | P7: 0 | Q7: 0 | R7: 0 | S7: 0 | T7: 0 | U7: 0 | V7: 0 | W7: 0 | X7: 0 | Y7: 0 | Z7: 0 | AA7: 0 | AB7: 0 | AC7: 0 | AD7: 0 | AE7: 0 | AF7: 0 | AG7: 0 | AH7: 0 | AI7: 0 | AJ7: 0 | AK7: 0 | AL7: 0 | AM7: 0 | AN7: 0 | AO7: 0 | AP7: 0 | AQ7: 0 | AR7: 0 | AS7: 0 | AT7: 0 | AU7: 0 | AV7: 0 | AW7: 0 | AX7: 0 | AY7: 0 | AZ7: 0 | BA7: 0 | BB7: 0 | BC7: 0 | BD7: 0 | BE7: 0 | BF7: 0 | BG7: 0 | BH7: 0 | BI7: 0 | BJ7: 0 | BK7: 0 | BL7: 0 | BM7: 0 | BN7: 0 | BO7: 0 | BP7: 0 | BQ7: 0 | BR7: 0 | BS7: 0 | BT7: 0 | BU7: 0 | BV7: 0 | BW7: 0 | BX7: 0 | BY7: 0 | BZ7: 0 | CA7: 0 | CB7: 0 | CC7: 0 | CD7: 0 | CE7: 0 | CF7: 0 | CG7: 0 | CH7: 0 | CI7: 0 | CJ7: 0 | CK7: 0 | CL7: 0 | CM7: 0 | CN7: 0 | CO7: 0 | CP7: 0 | CQ7: 0 | CR7: 0 | CS7: 0 | CT7: 0 | CU7: 0 | CV7: 0 | CW7: 0 | CX7: 0 | CY7: 0 | CZ7: 0 | DA7: 0 | DB7: 0 | DC7: 0 | DD7: 0 | DE7: 0 | DF7: 0 | DG7: 0 | DH7: 0 | DI7: 0 | DJ7: 0 | DK7: 0 | DL7: 0 | DM7: 0 | DN7: 0 | DO7: 0 | DP7: 0 | DQ7: 0 | DR7: 0 | DS7: 0 | DT7: 0 | DU7: 0 | DV7: 0 | DW7: 0 | DX7: 0 | DY7: 0 | DZ7: 0 | EA7: 0 | EB7: 0 | EC7: 0 | ED7: 0 | EE7: 0 | EF7: 0 | EG7: 0 | EH7: 0 | EI7: 0 | EJ7: 0 | EK7: 0 | EL7: 0 | EM7: 0 | EN7: 0 | EO7: 0 | EP7: 0 | EQ7: 0 | ER7: 0 | ES7: 0 | ET7: 0 | EU7: 0 | EV7: 0 | EW7: 0 | EX7: 0 | EY7: 0 | EZ7: 0 | FA7: 0 | FB7: 0 | FC7: 0 | FD7: 0 | FE7: 0 | FF7: 0 | FG7: 0 | FH7: 0 | FI7: 0 | FJ7: 0 | FK7: 0 | FL7: 0 | FM7: 0 | FN7: 0 | FO7: 0 | FP7: 0 | FQ7: 0 | FR7: 0 | FS7: 0 | FT7: 0 | FU7: 0 | FV7: 0 | FW7: 0 | FX7: 0 | FY7: 0 | FZ7: 0 | GA7: 0 | GB7: 0 | GC7: 0 | GD7: 0 | GE7: 0 | GF7: 0 | GG7: 0 | GH7: 0 | GI7: 0 | GJ7: 0 | GK7: 0 | GL7: 0 | GM7: 0 | GN7: 0 | GO7: 0 | GP7: 0 | GQ7: 0 | GR7: 0 | GS7: 0 | GT7: 0 | GU7: 0 | GV7: 0 | GW7: 0 | GX7: 0 | GY7: 0 | GZ7: 0 | HA7: 0 | HB7: 0 | HC7: 0 | HD7: 0 | HE7: 0 | HF7: 0 | HG7: 0 | HH7: 0 | HI7: 0 | HJ7: 0 | HK7: 0 | HL7: 0 | HM7: 0 | HN7: 0 | HO7: 0 | HP7: 0 | HQ7: 0 | HR7: 0 | HS7: 0 | HT7: 0 | HU7: 0 | HV7: 0 | HW7: 0 | HX7: 0 | HY7: 0 | HZ7: 0 | IA7: 0 | IB7: 0 | IC7: 0 | ID7: 0 | IE7: 0 | IF7: 0 | IG7: 0 | IH7: 0 | II7: 0 | IJ7: 0 | IK7: 0 | IL7: 0 | IM7: 0 | IN7: 0 | IO7: 0 | IP7: 0 | IQ7: 0 | IR7: 0 | IS7: 0 | IT7: 0 | IU7: 0 | IV7: 0 | IW7: 0 | IX7: 0 | IY7: 0 | IZ7: 0 | JA7: 0 | JB7: 0 | JC7: 0 | JD7: 0 | JE7: 0 | JF7: 0 | JG7: 0 | JH7: 0 | JI7: 0 | JJ7: 0 | JK7: 0 | JL7: 0 | JM7: 0 | JN7: 0 | JO7: 0 | JP7: 0 | JQ7: 0 | JR7: 0 | JS7: 0 | JT7: 0 | JU7: 0 | JV7: 0 | JW7: 0 | JX7: 0 | JY7: 0 | JZ7: 0 | KA7: 0 | KB7: 0 | KC7: 0 | KD7: 0 | KE7: 0 | KF7: 0 | KG7: 0 | KH7: 0 | KI7: 0 | KJ7: 0 | KK7: 0 | KL7: 0 | KM7: 0 | KN7: 0 | KO7: 0 | KP7: 0 | KQ7: 0 | KR7: 0 | KS7: 0 | KT7: 0 | KU7: 0 | KV7: 0 | KW7: 0 | KX7: 0 | KY7: 0 | KZ7: 0 | LA7: 0 | LB7: 0 | LC7: 0 | LD7: 0 | LE7: 0 | LF7: 0 | LG7: 0 | LH7: 0 | LI7: 0 | LJ7: 0 | LK7: 0 | LL7: 0 | LM7: 0 | LN7: 0 | LO7: 0 | LP7: 0 | LQ7: 0 | LR7: 0 | LS7: 0 | LT7: 0 | LU7: 0 | LV7: 0 | LW7: 0 | LX7: 0 | LY7: 0 | LZ7: 0 | MA7: 0 | MB7: 0 | MC7: 0 | MD7: 0 | ME7: 0 | MF7: 0 | MG7: 0 | MH7: 0 | MI7: 0 | MJ7: 0 | MK7: 0 | ML7: 0 | MM7: 0 | MN7: 0 | MO7: 0 | MP7: 0 | MQ7: 0 | MR7: 0 | MS7: 0 | MT7: 0 | MU7: 0 | MV7: 0 | MW7: 0 | MX7: 0 | MY7: 0 | MZ7: 0 | NA7: 0 | NB7: 0 | NC7: 0 | ND7: 0 | NE7: 0 | NF7: 0 | NG7: 0 | NH7: 0 | NI7: 0 | NJ7: 0 | NK7: 0 | NL7: 0 | NM7: 0 | NN7: 0 | NO7: 0 | NP7: 0 | NQ7: 0 | NR7: 0 | NS7: 0 | NT7: 0 | NU7: 0 | NV7: 0 | NW7: 0 | NX7: 0 | NY7: 0 | NZ7: 0 | OA7: 0 | OB7: 0 | OC7: 0 | OD7: 0 | OE7: 0 | OF7: 0 | OG7: 0 | OH7: 0 | OI7: 0 | OJ7: 0 | OK7: 0 | OL7: 0 | OM7: 0 | ON7: 0 | OO7: 0 | OP7: 0 | OQ7: 0 | OR7: 0 | OS7: 0 | OT7: 0 | OU7: 0 | OV7: 0 | OW7: 0 | OX7: 0 | OY7: 0 | OZ7: 0 | PA7: 0 | PB7: 0 | PC7: 0 | PD7: 0 | PE7: 0 | PF7: 0 | PG7: 0 | PH7: 0 | PI7: 0 | PJ7: 0 | PK7: 0 | PL7: 0 | PM7: 0 | PN7: 0 | PO7: 0 | PP7: 0 | PQ7: 0 | PR7: 0 | PS7: 0 | PT7: 0 | PU7: 0 | PV7: 0 | PW7: 0 | PX7: 0 | PY7: 0 | PZ7: 0 | QA7: 0 | QB7: 0 | QC7: 0 | QD7: 0 | QE7: 0 | QF7: 0 | QG7: 0 | QH7: 0 | QI7: 0 | QJ7: 0 | QK7: 0 | QL7: 0 | QM7: 0 | QN7: 0 | QO7: 0 | QP7: 0 | QQ7: 0 | QR7: 0 | QS7: 0 | QT7: 0 | QU7: 0 | QV7: 0 | QW7: 0 | QX7: 0 | QY7: 0 | QZ7: 0 | RA7: 0 | RB7: 0 | RC7: 0 | RD7: 0 | RE7: 0 | RF7: 0 | RG7: 0 | RH7: 0 | RI7: 0 | RJ7: 0 | RK7: 0 | RL7: 0 | RM7: 0 | RN7: 0 | RO7: 0 | RQ7: 0 | RR7: 0 | RS7: 0 | RT7: 0 | RU7: 0 | RV7: 0 | RW7: 0 | RX7: 0 | RY7: 0 | RZ7: 0 | SA7: 0 | SB7: 0 | SC7: 0 | SD7: 0 | SE7: 0 | SF7: 0 | SG7: 0 | SH7: 0 | SI7: 0 | SJ7: 0
B8: 10029 | C8: Blachly Lane Elec Coop | D8: 0 | E8: 0 | F8: 0 | G8: 0 | H8: 0 | I8: 0 | J8: 0 | K8: 0 | L8: 0 | M8: 0 | N8: 0 | O8: 0 | P8: 0 | Q8: 0 | R8: 0 | S8: 0 | T8: 0 | U8: 0 | V8: 0 | W8: 0 | X8: 0 | Y8: 0 | Z8: 0 | AA8: 0 | AB8: 0 | AC8: 0 | AD8: 0 | AE8: 0 | AF8: 0 | AG8: 0 | AH8: 0 | AI8: 0 | AJ8: 0 | AK8: 0 | AL8: 0 | AM8: 0 | AN8: 0 | AO8: 0 | AP8: 0 | AQ8: 0 | AR8: 0 | AS8: 0 | AT8: 0 | AU8: 0 | AV8: 0 | AW8: 0 | AX8: 0 | AY8: 0 | AZ8: 0 | BA8: 0 | BB8: 0 | BC8: 0 | BD8: 0 | BE8: 0 | BF8: 0 | BG8: 0 | BH8: 0 | BI8: 0 | BJ8: 0 | BK8: 0 | BL8: 0 | BM8: 0 | BN8: 0 | BO8: 0 | BP8: 0 | BQ8: 0 | BR8: 0 | BS8: 0 | BT8: 0 | BU8: 0 | BV8: 0 | BW8: 0 | BX8: 0 | BY8: 0 | BZ8: 0 | CA8: 0 | CB8: 0 | CC8: 0 | CD8: 0 | CE8: 0 | CF8: 0 | CG8: 0 | CH8: 0 | CI8: 0 | CJ8: 0 | CK8: 0 | CL8: 0 | CM8: 0 | CN8: 0 | CO8: 0 | CP8: 0 | CQ8: 0 | CR8: 0 | CS8: 0 | CT8: 0 | CU8: 0 | CV8: 0 | CW8: 0 | CX8: 0 | CY8: 0 | CZ8: 0 | DA8: 0 | DB8: 0 | DC8: 0 | DD8: 0 | DE8: 0 | DF8: 0 | DG8: 0 | DH8: 0 | DI8: 0 | DJ8: 0 | DK8: 0 | DL8: 0 | DM8: 0 | DN8: 0 | DO8: 0 | DP8: 0 | DQ8: 0 | DR8: 0 | DS8: 0 | DT8: 0 | DU8: 0 | DV8: 0 | DW8: 0 | DX8: 0 | DY8: 0 | DZ8: 0 | EA8: 0 | EB8: 0 | EC8: 0 | ED8: 0 | EE8: 0 | EF8: 0 | EG8: 0 | EH8: 0 | EI8: 0 | EJ8: 0 | EK8: 0 | EL8: 0 | EM8: 0 | EN8: 0 | EO8: 0 | EP8: 0 | EQ8: 0 | ER8: 0 | ES8: 0 | ET8: 0 | EU8: 0 | EV8: 0 | EW8: 0 | EX8: 0 | EY8: 0 | EZ8: 0 | FA8: 0 | FB8: 0 | FC8: 0 | FD8: 0 | FE8: 0 | FF8: 0 | FG8: 0 | FH8: 0 | FI8: 0 | FJ8: 0 | FK8: 0 | FL8: 0 | FM8: 0 | FN8: 0 | FO8: 0 | FP8: 0 | FQ8: 0 | FR8: 0 | FS8: 0 | FT8: 0 | FU8: 0 | FV8: 0 | FW8: 0 | FX8: 0 | FY8: 0 | FZ8: 0 | GA8: 0 | GB8: 0 | GC8: 0 | GD8: 0 | GE8: 0 | GF8: 0 | GG8: 0 | GH8: 0 | GI8: 0 | GJ8: 0 | GK8: 0 | GL8: 0 | GM8: 0 | GN8: 0 | GO8: 0 | GP8: 0 | GQ8: 0 | GR8: 0 | GS8: 0 | GT8: 0 | GU8: 0 | GV8: 0 | GW8: 0 | GX8: 0 | GY8: 0 | GZ8: 0 | HA8: 0 | HB8: 0 | HC8: 0 | HD8: 0 | HE8: 0 | HF8: 0 | HG8: 0 | HH8: 0 | HI8: 0 | HJ8: 0 | HK8: 0 | HL8: 0 | HM8: 0 | HN8: 0 | HO8: 0 | HP8: 0 | HQ8: 0 | HR8: 0 | HS8: 0 | HT8: 0 | HU8: 0 | HV8: 0 | HW8: 0 | HX8: 0 | HY8: 0 | HZ8: 0 | IA8: 0 | IB8: 0 | IC8: 0 | ID8: 0 | IE8: 0 | IF8: 0 | IG8: 0 | IH8: 0 | II8: 0 | IJ8: 0 | IK8: 0 | IL8: 0 | IM8: 0 | IN8: 0 | IO8: 0 | IP8: 0 | IQ8: 0 | IR8: 0 | IS8: 0 | IT8: 0 | IU8: 0 | IV8: 0 | IW8: 0 | IX8: 0 | IY8: 0 | IZ8: 0 | JA8: 0 | JB8: 0 | JC8: 0 | JD8: 0 | JE8: 0 | JF8: 0 | JG8: 0 | JH8: 0 | JI8: 0 | JJ8: 0 | JK8: 0 | JL8: 0 | JM8: 0 | JN8: 0 | JO8: 0 | JP8: 0 | JQ8: 0 | JR8: 0 | JS8: 0 | JT8: 0 | JU8: 0 | JV8: 0 | JW8: 0 | JX8: 0 | JY8: 0 | JZ8: 0 | KA8: 0 | KB8: 0 | KC8: 0 | KD8: 0 | KE8: 0 | KF8: 0 | KG8: 0 | KH8: 0 | KI8: 0 | KJ8: 0 | KK8: 0 | KL8: 0 | KM8: 0 | KN8: 0 | KO8: 0 | KP8: 0 | KQ8: 0 | KR8: 0 | KS8: 0 | KT8: 0 | KU8: 0 | KV8: 0 | KW8: 0 | KX8: 0 | KY8: 0 | KZ8: 0 | LA8: 0 | LB8: 0 | LC8: 0 | LD8: 0 | LE8: 0 | LF8: 0 | LG8: 0 | LH8: 0 | LI8: 0 | LJ8: 0 | LK8: 0 | LL8: 0 | LM8: 0 | LN8: 0 | LO8: 0 | LP8: 0 | LQ8: 0 | LR8: 0 | LS8: 0 | LT8: 0 | LU8: 0 | LV8: 0 | LW8: 0 | LX8: 0 | LY8: 0 | LZ8: 0 | MA8: 0 | MB8: 0 | MC8: 0 | MD8: 0 | ME8: 0 | MF8: 0 | MG8: 0 | MH8: 0 | MI8: 0 | MJ8: 0 | MK8: 0 | ML8: 0 | MM8: 0 | MN8: 0 | MO8: 0 | MP8: 0 | MQ8: 0 | MR8: 0 | MS8: 0 | MT8: 0 | MU8: 0 | MV8: 0 | MW8: 0 | MX8: 0 | MY8: 0 | MZ8: 0 | NA8: 0 | NB8: 0 | NC8: 0 | ND8: 0 | NE8: 0 | NF8: 0 | NG8: 0 | NH8: 0 | NI8: 0 | NJ8: 0 | NK8: 0 | NL8: 0 | NM8: 0 | NN8: 0 | NO8: 0 | NP8: 0 | NQ8: 0 | NR8: 0 | NS8: 0 | NT8: 0 | NU8: 0 | NV8: 0 | NW8: 0 | NX8: 0 | NY8: 0 | NZ8: 0 | OA8: 0 | OB8: 0 | OC8: 0 | OD8: 0 | OE8: 0 | OF8: 0 | OG8: 0 | OH8: 0 | OI8: 0 | OJ8: 0 | OK8: 0 | OL8: 0 | OM8: 0 | ON8: 0 | OO8: 0 | OP8: 0 | OQ8: 0 | OR8: 0 | OS8: 0 | OT8: 0 | OU8: 0 | OV8: 0 | OW8: 0 | OX8: 0 | OY8: 0 | OZ8: 0 | PA8: 0 | PB8: 0 | PC8: 0 | PD8: 0 | PE8: 0 | PF8: 0 | PG8: 0 | PH8: 0 | PI8: 0 | PJ8: 0 | PK8: 0 | PL8: 0 | PM8: 0 | PN8: 0 | PO8: 0 | PP8: 0 | PQ8: 0 | PR8: 0 | PS8: 0 | PT8: 0 | PU8: 0 | PV8: 0 | PW8: 0 | PX8: 0 | PY8: 0 | PZ8: 0 | QA8: 0 | QB8: 0 | QC8: 0 | QD8: 0 | QE8: 0 | QF8: 0 | QG8: 0 | QH8: 0 | QI8: 0 | QJ8: 0 | QK8: 0 | QL8: 0 | QM8: 0 | QN8: 0 | QO8: 0 | QP8: 0 | QQ8: 0 | QR8: 0 | QS8: 0 | QT8: 0 | QU8: 0 | QV8: 0 | QW8: 0 | QX8: 0 | QY8: 0 | QZ8: 0 | RA8: 0 | RB8: 0 | RC8: 0 | RD8: 0 | RE8: 0 | RF8: 0 | RG8: 0 | RH8: 0 | RI8: 0 | RJ8: 0 | RK8: 0 | RL8: 0 | RM8: 0 | RN8: 0 | RO8: 0 | RQ8: 0 | RR8: 0 | RS8: 0 | RT8: 0 | RU8: 0 | RV8: 0 | RW8: 0 | RX8: 0 | RY8: 0 | RZ8: 0 | SA8: 0 | SB8: 0 | SC8: 0 | SD8: 0 | SE8: 0 | SF8: 0 | SG8: 0 | SH8: 0 | SI8: 0 | SJ8: 0
B9: 10044 | C9: Canby, City of | D9: 0 | E9: 0 | F9: 0 | G9: 0 | H9: 0 | I9: 0 | J9: 0 | K9: 0 | L9: 0 | M9: 0 | N9: 0 | O9: 0 | P9: 0 | Q9: 0 | R9: 0 | S9: 0 | T9: 0 | U9: 0 | V9: 0 | W9: 0 | X9: 0 | Y9: 0 | Z9: 0 | AA9: 0 | AB9: 0 | AC9: 0 | AD9: 0 | AE9: 0 | AF9: 0 | AG9: 0 | AH9: 0 | AI9: 0 | AJ9: 0 | AK9: 0 | AL9: 0 | AM9: 0 | AN9: 0 | AO9: 0 | AP9: 0 | AQ9: 0 | AR9: 0 | AS9: 0 | AT9: 0 | AU9: 0 | AV9: 0 | AW9: 0 | AX9: 0 | AY9: 0 | AZ9: 0 | BA9: 0 | BB9: 0 | BC9: 0 | BD9: 0 | BE9: 0 | BF9: 0 | BG9: 0 | BH9: 0 | BI9: 0 | BJ9: 0 | BK9: 0 | BL9: 0 | BM9: 0 | BN9: 0 | BO9: 0 | BP9: 0 | BQ9: 0 | BR9: 0 | BS9: 0 | BT9: 0 | BU9: 0 | BV9: 0 | BW9: 0 | BX9: 0 | BY9: 0 | BZ9: 0 | CA9: 0 | CB9: 0 | CC9: 0 | CD9: 0 | CE9: 0 | CF9: 0 | CG9: 0 | CH9: 0 | CI9: 0 | CJ9: 0 | CK9: 0 | CL9: 0 | CM9: 0 | CN9: 0 | CO9: 0 | CP9: 0 | CQ9: 0 | CR9: 0 | CS9: 0 | CT9: 0 | CU9: 0 | CV9: 0 | CW9: 0 | CX9: 0 | CY9: 0 | CZ9: 0 | DA9: 0 | DB9: 0 | DC9: 0 | DD9: 0 | DE9: 0 | DF9: 0 | DG9: 0 | DH9: 0 | DI9: 0 | DJ9: 0 | DK9: 0 | DL9: 0 | DM9: 0 | DN9: 0 | DO9: 0 | DP9: 0 | DQ9: 0 | DR9: 0 | DS9: 0 | DT9: 0 | DU9: 0 | DV9: 0 | DW9: 0 | DX9: 0 | DY9: 0 | DZ9: 0 | EA9: 0 | EB9: 0 | EC9: 0 | ED9: 0 | EE9: 0 | EF9: 0 | EG9: 0 | EH9: 0 | EI9: 0 | EJ9: 0 | EK9: 0 | EL9: 0 | EM9: 0 | EN9: 0 | EO9: 0 | EP9: 0 | EQ9: 0 | ER9: 0 | ES9: 0 | ET9: 0 | EU9: 0 | EV9: 0 | EW9: 0 | EX9: 0 | EY9: 0 | EZ9: 0 | FA9: 0 | FB9: 0 | FC9: 0 | FD9: 0 | FE9: 0 | FF9: 0 | FG9: 0 | FH9: 0 | FI9: 0 | FJ9: 0 | FK9: 0 | FL9: 0 | FM9: 0 | FN9: 0 | FO9: 0 | FP9: 0 | FQ9: 0 | FR9: 0 | FS9: 0 | FT9: 0 | FU9: 0 | FV9: 0 | FW9: 0 | FX9: 0 | FY9: 0 | FZ9: 0 | GA9: 0 | GB9: 0 | GC9: 0 | GD9: 0 | GE9: 0 | GF9: 0 | GG9: 0 | GH9: 0 | GI9: 0 | GJ9: 0 | GK9: 0 | GL9: 0 | GM9: 0 | GN9: 0 | GO9: 0 | GP9: 0 | GQ9: 0 | GR9: 0 | GS9: 0 | GT9: 0 | GU9: 0 | GV9: 0 | GW9: 0 | GX9: 0 | GY9: 0 | GZ9: 0 | HA9: 0 | HB9: 0 | HC9: 0 | HD9: 0 | HE9: 0 | HF9: 0 | HG9: 0 | HH9: 0 | HI9: 0 | HJ9: 0 | HK9: 0 | HL9: 0 | HM9: 0 | HN9: 0 | HO9: 0 | HP9: 0 | HQ9: 0 | HR9: 0 | HS9: 0 | HT9: 0 | HU9: 0 | HV9: 0 | HW9: 0 | HX9: 0 | HY9: 0 | HZ9: 0 | IA9: 0 | IB9: 0 | IC9: 0 | ID9: 0 | IE9: 0 | IF9: 0 | IG9: 0 | IH9: 0 | II9: 0 | IJ9: 0 | IK9: 0 | IL9: 0 | IM9: 0 | IN9: 0 | IO9: 0 | IP9: 0 | IQ9: 0 | IR9: 0 | IS9: 0 | IT9: 0 | IU9: 0 | IV9: 0 | IW9: 0 | IX9: 0 | IY9: 0 | IZ9: 0 | JA9: 0 | JB9: 0 | JC9: 0 | JD9: 0 | JE9: 0 | JF9: 0 | JG9: 0 | JH9: 0 | JI9: 0 | JJ9: 0 | JK9: 0 | JL9: 0 | JM9: 0 | JN9: 0 | JO9: 0 | JP9: 0 | JQ9: 0 | JR9: 0 | JS9: 0 | JT9: 0 | JU9: 0 | JV9: 0 | JW9: 0 | JX9: 0 | JY9: 0 | JZ9: 0 | KA9: 0 | KB9: 0 | KC9: 0 | KD9: 0 | KE9: 0 | KF9: 0 | KG9: 0 | KH9: 0 | KI9: 0 | KJ9: 0 | KK9: 0 | KL9: 0 | KM9: 0 | KN9: 0 | KO9: 0 | KP9: 0 | KQ9: 0 | KR9: 0 | KS9: 0 | KT9: 0 | KU9: 0 | KV9: 0 | KW9: 0 | KX9: 0 | KY9: 0 | KZ9: 0 | LA9: 0 | LB9: 0 | LC9: 0 | LD9: 0 | LE9: 0 | LF9: 0 | LG9: 0 | LH9: 0 | LI9: 0 | LJ9: 0 | LK9: 0 | LL9: 0 | LM9: 0 | LN9: 0 | LO9: 0 | LP9: 0 | LQ9: 0 | LR9: 0 | LS9: 0 | LT9: 0 | LU9: 0 | LV9: 0 | LW9: 0 | LX9: 0 | LY9: 0 | LZ9: 0 | MA9: 0 | MB9: 0 | MC9: 0 | MD9: 0 | ME9: 0 | MF9: 0 | MG9: 0 | MH9: 0 | MI9: 0 | MJ9: 0 | MK9: 0 | ML9: 0 | MM9: 0 | MN9: 0 | MO9: 0 | MP9: 0 | MQ9: 0 | MR9: 0 | MS9: 0 | MT9: 0 | MU9: 0 | MV9: 0 | MW9: 0 | MX9: 0 | MY9: 0 | MZ9: 0 | NA9: 0 | NB9: 0 | NC9: 0 | ND9: 0 | NE9: 0 | NF9: 0 | NG9: 0 | NH9: 0 | NI9: 0 | NJ9: 0 | NK9: 0 | NL9: 0 | NM9: 0 | NN9: 0 | NO9: 0 | NP9: 0 | NQ9: 0 | NR9: 0 | NS9: 0 | NT9: 0 | NU9: 0 | NV9: 0 | NW9: 0 | NX9: 0 | NY9: 0 | NZ9: 0 | OA9: 0 | OB9: 0 | OC9: 0 | OD9: 0 | OE9: 0 | OF9: 0 | OG9: 0 | OH9: 0 | OI9: 0 | OJ9: 0 | OK9: 0 | OL9: 0 | OM9: 0 | ON9: 0 | OO9: 0 | OP9: 0 | OQ9: 0 | OR9: 0 | OS9: 0 | OT9: 0 | OU9: 0 | OV9: 0 | OW9: 0 | OX9: 0 | OY9: 0 | OZ9: 0 | PA9: 0 | PB9: 0 | PC9: 0 | PD9: 0 | PE9: 0 | PF9: 0 | PG9: 0 | PH9: 0 | PI9: 0 | PJ9: 0 | PK9: 0 | PL9: 0 | PM9: 0 | PN9: 0 | PO9: 0 | PP9: 0 | PQ9: 0 | PR9: 0 | PS9: 0 | PT9: 0 | PU9: 0 | PV9: 0 | PW9: 0 | PX9: 0 | PY9: 0 | PZ9: 0 | QA9: 0 | QB9: 0 | QC9: 0 | QD9: 0 | QE9: 0 | QF9: 0 | QG9: 0 | QH9: 0 | QI9: 0 | QJ9: 0 | QK9: 0 | QL9: 0 | QM9: 0 | QN9: 0 | QO9: 0 | QP9: 0 | QQ9: 0 | QR9: 0 | QS9: 0 | QT9: 0 | QU9: 0 | QV9: 0 | QW9: 0 | QX9: 0 | QY9: 0 | QZ9: 0 | RA9: 0 | RB9: 0 | RC9: 0 | RD9: 0 | RE9: 0 | RF9: 0 | RG9: 0 | RH9: 0 | RI9: 0 | RJ9: 0 | RK9: 0 | RL9: 0 | RM9: 0 | RN9: 0 | RO9: 0 | RQ9: 0 | RR9: 0 | RS9: 0 | RT9: 0 | RU9: 0 | RV9: 0 | RW9: 0 | RX9: 0 | RY9: 0 | RZ9: 0 | SA9: 0 | SB9: 0 | SC9: 0 | SD9: 0 | SE9: 0 | SF9: 0 | SG9: 0 | SH9: 0 | SI9: 0 | SJ9: 0
B10: 10046 | C10: Central Electric Coop | D10: 0 | E10: 0 | F10: 0 | G10: 0 | H10: 0 | I10: 0 | J10: 0 | K10: 0 | L10: 0 | M10: 0 | N10: 0 | O10: 0 | P10: 0 | Q10: 0 | R10: 0 | S10: 0 | T10: 0 | U10: 0 | V10: 0 | W10: 0 | X10: 0 | Y10: 0 | Z10: 0 | AA10: 0 | AB10: 0 | AC10: 0 | AD10: 0 | AE10: 0 | AF10: 0 | AG10: 0 | AH10: 0 | AI10: 0 | AJ10: 0 | AK10: 0 | AL10: 0 | AM10: 0 | AN10: 0 | AO10: 0 | AP10: 0 | AQ10: 0 | AR10: 0 | AS10: 0 | AT10: 0 | AU10: 0 | AV10: 0 | AW10: 0 | AX10: 0 | AY10: 0 | AZ10: 0 | BA10: 0 | BB10: 0 | BC10: 0 | BD10: 0 | BE10: 0 | BF10: 0 | BG10: 0 | BH10: 0 | BI10: 0 | BJ10: 0 | BK10: 0 | BL10: 0 | BM10: 0 | BN10: 0 | BO10: 0 | BP10: 0 | BQ10: 0 | BR10: 0 | BS10: 0 | BT10: 0 | BU10: 0 | BV10: 0 | BW10: 0 | BX10: 0 | BY10: 0 | BZ10: 0 | CA10: 0 | CB10: 0 | CC10: 0 | CD10: 0 | CE10: 0 | CF10: 0 | CG10: 0 | CH10: 0 | CI10: 0 | CJ10: 0 | CK10: 0 | CL10: 0 | CM10: 0 | CN10: 0 | CO10: 0 | CP10: 0 | CQ10: 0 | CR10: 0 | CS10: 0 | CT10: 0 | CU10: 0 | CV10: 0 | CW10: 0 | CX10: 0 | CY10: 0 | CZ10: 0 | DA10: 0 | DB10: 0 | DC10: 0 | DD10: 0 | DE10: 0 | DF10: 0 | DG10: 0 | DH10: 0 | DI10: 0 | DJ10: 0 | DK10: 0 | DL10: 0 | DM10: 0 | DN10: 0 | DO10: 0 | DP10: 0 | DQ10: 0 | DR10: 0 | DS10: 0 | DT10: 0 | DU10: 0 | DV10: 0 | DW10: 0 | DX10: 0 | DY10: 0 | DZ10: 0 | EA10: 0 | EB10: 0 | EC10: 0 | ED10: 0 | EE10: 0 | EF10: 0 | EG10: 0 | EH10: 0 | EI10: 0 | EJ10: 0 | EK10: 0 | EL10: 0 | EM10: 0 | EN10: 0 | EO10: 0 | EP10: 0 | EQ10: 0 | ER10: 0 | ES10: 0 | ET10: 0 | EU10: 0 | EV10: 0 | EW10: 0 | EX10: 0 | EY10: 0 | EZ10: 0 | FA10: 0 | FB10: 0 | FC10: 0 | FD10: 0 | FE10: 0 | FF10: 0 | FG10: 0 | FH10: 0 | FI10: 0 | FJ10: 0 | FK10: 0 | FL10: 0 | FM10: 0 | FN10: 0 | FO10: 0 | FP10: 0 | FQ10: 0 | FR10: 0 | FS10: 0 | FT10: 0 | FU10: 0 | FV10: 0 | FW10: 0 | FX10: 0 | FY10: 0 | FZ10: 0 | GA10: 0 | GB10: 0 | GC10: 0 | GD10: 0 | GE10: 0 | GF10: 0 | GG10: 0 | GH10: 0 | GI10: 0 | GJ10: 0 | GK10: 0 | GL10: 0 | GM10: 0 | GN10: 0 | GO10: 0 | GP10: 0 | GQ10: 0 | GR10: 0 | GS10: 0 | GT10: 0 | GU10: 0 | GV10: 0 | GW10: 0 | GX10: 0 | GY10: 0 | GZ10: 0 | HA10: 0 | HB10: 0 | HC10: 0 | HD10: 0 | HE10: 0 | HF10: 0 | HG10: 0 | HH10: 0 | HI10: 0 | HJ10: 0 | HK10: 0 | HL10: 0 | HM10: 0 | HN10: 0 | HO10: 0 | HP10: 0 | HQ10: 0 | HR10: 0 | HS10: 0 | HT10: 0 | HU10: 0 | HV10: 0 | HW10: 0 | HX10: 0 | HY10: 0 | HZ10: 0 | IA10: 0 | IB10: 0 | IC10: 0 | ID10: 0 | IE10: 0 | IF10: 0 | IG10: 0 | IH10: 0 | II10: 0 | IJ10: 0 | IK10: 0 | IL10: 0 | IM10: 0 | IN10: 0 | IO10: 0 | IP10: 0 | IQ10: 0 | IR10: 0 | IS10: 0 | IT10: 0 | IU10: 0 | IV10: 0 | IW10: 0 | IX10: 0 | IY10: 0 | IZ10: 0 | JA10: 0 | JB10: 0 | JC10: 0 | JD10: 0 | JE10: 0 | JF10: 0 | JG10: 0 | JH10: 0 | JI10: 0 | JJ10: 0 | JK10: 0 | JL10: 0 | JM10: 0 | JN10: 0 | JO10: 0 | JP10: 0 | JQ10: 0 | JR10: 0 | JS10: 0 | JT10: 0 | JU10: 0 | JV10: 0 | JW10: 0 | JX10: 0 | JY10: 0 | JZ10: 0 | KA10: 0 | KB10: 0 | KC10: 0 | KD10: 0 | KE10: 0 | KF10: 0 | KG10: 0 | KH10: 0 | KI10: 0 | KJ10: 0 | KK10: 0 | KL10: 0 | KM10: 0 | KN10: 0 | KO10: 0 | KP10: 0 | KQ10: 0 | KR10: 0 | KS10: 0 | KT10: 0 | KU10: 0 | KV10: 0 | KW10: 0 | KX10: 0 | KY10: 0 | KZ10: 0 | LA10: 0 | LB10: 0 | LC10: 0 | LD10: 0 | LE10: 0 | LF10: 0 | LG10: 0 | LH10: 0 | LI10: 0 | LJ10: 0 | LK10: 0 | LL10: 0 | LM10: 0 | LN10: 0 | LO10: 0 | LP10: 0 | LQ10: 0 | LR10: 0 | LS10: 0 | LT10: 0 | LU10: 0 | LV10: 0 | LW10: 0 | LX10: 0 | LY10: 0 | LZ10: 0 | MA10: 0 | MB10: 0 | MC10: 0 | MD10: 0 | ME10: 0 | MF10: 0 | MG10: 0 | MH10: 0 | MI10: 0 | MJ10: 0 | MK10: 0 | ML10: 0 | MM10: 0 | MN10: 0 | MO10: 0 | MP10: 0 | MQ10: 0 | MR10: 0 | MS10: 0 | MT10: 0 | MU10: 0 | MV10: 0 | MW10: 0 | MX10: 0 | MY10: 0 | MZ10: 0 | NA10: 0 | NB10: 0 | NC10: 0 | ND10: 0 | NE10: 0 | NF10: 0 | NG10: 0 | NH10: 0 | NI10: 0 | NJ10: 0 | NK10: 0 | NL10: 0 | NM10: 0 | NN10: 0 | NO10: 0 | NP10: 0 | NQ10: 0 | NR10: 0 | NS10: 0 | NT10: 0 | NU10: 0 | NV10: 0 | NW10: 0 | NX10: 0 | NY10: 0 | NZ10: 0 | OA10: 0 | OB10: 0 | OC10: 0 | OD10: 0 | OE10: 0 | OF10: 0 | OG10: 0 | OH10: 0 | OI10: 0 | OJ10: 0 | OK10: 0 | OL10: 0 | OM10: 0 | ON10: 0 | OO10: 0 | OP10: 0 | OQ10: 0 | OR10: 0 | OS10: 0 | OT10: 0 | OU10: 0 | OV10: 0 | OW10: 0 | OX10: 0 | OY10: 0 | OZ10: 0 | PA10: 0 | PB10: 0 | PC10: 0 | PD10: 0 | PE10: 0 | PF10: 0 | PG10: 0 | PH10: 0 | PI10: 0 | PJ10: 0 | PK10: 0 | PL10: 0 | PM10: 0 | PN10: 0 | PO10: 0 | PP10: 0 | PQ10: 0 | PR10: 0 | PS10: 0 | PT10: 0 | PU10: 0 | PV10: 0 | PW10: 0 | PX10: 0 | PY10: 0 | PZ10: 0 | QA10: 0 | QB10: 0 | QC10: 0 | QD10: 0 | QE10: 0 | QF10: 0 | QG10: 0 | QH10: 0 | QI10: 0 | QJ10: 0 | QK10: 0 | QL10: 0 | QM10: 0 | QN10: 0 | QO10: 0 | QP10: 0 | QQ10: 0 | QR10: 0 | QS10: 0 | QT10: 0 | QU10: 0 | QV10: 0 | QW10: 0 | QX10: 0 | QY10: 0 | QZ10: 0 | RA10: 0 | RB10: 0 | RC10: 0 | RD10: 0 | RE10: 0 | RF10: 0 | RG10: 0 | RH10: 0 | RI10: 0 | RJ10: 0 | RK10: 0 | RL10: 0 | RM10: 0 | RN10: 0 | RO10: 0 | RQ10: 0 | RR10: 0 | RS10: 0 | RT10: 0 | RU10: 0 | RV10: 0 | RW10: 0 | RX10: 0 | RY10: 0 | RZ10: 0 | SA10: 0 | SB10: 0 | SC10: 0 | SD10: 0 | SE10: 0 | SF10: 0 | SG10: 0 | SH10: 0 | SI10: 0 | SJ10: 0
B11: 10047 | C11: Central Lincoln PUD | D11: 0 | E11: 0 | F11: 0 | G11: 0 | H11: 0 | I11: 0 | J11: 0 | K11: 0 | L11: 0 | M11: 0 | N11: 0 | O11: 0 | P11: 0 | Q11: 0 | R11: 0 | S11: 0 | T11: 0 | U11: 0 | V11: 0 | W11: 0 | X11: 0 | Y11: 0 | Z11: 0 | AA11: 0 | AB11: 0 | AC11: 0 | AD11: 0 | AE11: 0 | AF11: 0 | AG11: 0 | AH11: 0 | AI11: 0 | AJ11: 0 | AK11: 0 | AL11: 0 | AM11: 0 | AN11: 0 | AO11: 0 | AP11: 0 | AQ11: 0 | AR11: 0 | AS11: 0 | AT11: 0 | AU11: 0 | AV11: 0 | AW11: 0 | AX11: 0 | AY11: 0 | AZ11: 0 | BA11: 0 | BB11: 0 | BC11: 0 | BD11: 0 | BE11: 0 | BF11: 0 | BG11: 0 | BH11: 0 | BI11: 0 | BJ11: 0 | BK11: 0 | BL11: 0 | BM11: 0 | BN11: 0 | BO11: 0 | BP11: 0 | BQ11: 0 | BR11: 0 | BS11: 0 | BT11: 0 | BU11: 0 | BV11: 0 | BW11: 0 | BX11: 0 | BY11: 0 | BZ11: 0 | CA11: 0 | CB11: 0 | CC11: 0 | CD11: 0 | CE11: 0 | CF11: 0 | CG11: 0 | CH11: 0 | CI11: 0 | CJ11: 0 | CK11: 0 | CL11: 0 | CM11: 0 | CN11: 0 | CO11: 0 | CP11: 0 | CQ11: 0 | CR11: 0 | CS11: 0 | CT11: 0 | CU11: 0 | CV11: 0 | CW11: 0 | CX11: 0 | CY11: 0 | CZ11: 0 | DA11: 0 | DB11: 0 | DC11: 0 | DD11: 0 | DE11: 0 | DF11: 0 | DG11: 0 | DH11: 0 | DI11: 0 | DJ11: 0 | DK11: 0 | DL11: 0 | DM11: 0 | DN11: 0 | DO11: 0 | DP11: 0 | DQ11: 0 | DR11: 0 | DS11: 0 | DT11: 0 | DU11: 0 | DV11: 0 | DW11: 0 | DX11: 0 | DY11: 0 | DZ11: 0 | EA11: 0 | EB11: 0 | EC11: 0 | ED11: 0 | EE11: 0 | EF11: 0 | EG11: 0 | EH11: 0 | EI11: 0 | EJ11: 0 | EK11: 0 | EL11: 0 | EM11: 0 | EN11: 0 | EO11: 0 | EP11: 0 | EQ11: 0 | ER11: 0 | ES11: 0 | ET11: 0 | EU11: 0 | EV11: 0 | EW11: 0 | EX11: 0 | EY11: 0 | EZ11: 0 | FA11: 0 | FB11: 0 | FC11: 0 | FD11: 0 | FE11: 0 | FF11: 0 | FG11: 0 | FH11: 0 | FI11: 0 | FJ11: 0 | FK11: 0 | FL11: 0 | FM11: 0 | FN11: 0 | FO11: 0 | FP11: 0 | FQ11: 0 | FR11: 0 | FS11: 0 | FT11: 0 | FU11: 0 | FV11: 0 | FW11: 0 | FX11: 0 | FY11: 0 | FZ11: 0 | GA11: 0 | GB11: 0 | GC11: 0 | GD11: 0 | GE11: 0 | GF11: 0 | GG11: 0 | GH11: 0 | GI11: 0 | GJ11: 0 | GK11: 0 | GL11: 0 | GM11: 0 | GN11: 0 | GO11: 0 | GP11: 0 | GQ11: 0 | GR11: 0 | GS11: 0 | GT11: 0 | GU11: 0 | GV11: 0 | GW11: 0 | GX11: 0 | GY11: 0 | GZ11: 0 | HA11: 0 | HB11: 0 | HC11: 0 | HD11: 0 | HE11: 0 | HF11: 0 | HG11: 0 | HH11: 0 | HI11: 0 | HJ11: 0 | HK11: 0 | HL11: 0 | HM11: 0 | HN11: 0 | HO11: 0 | HP11: 0 | HQ11: 0 | HR11: 0 | HS11: 0 | HT11: 0 | HU11: 0 | HV11: 0 | HW11: 0 | HX11: 0 | HY11: 0 | HZ11: 0 | IA11: 0 | IB11: 0 | IC11: 0 | ID11: 0 | IE11: 0 | IF11: 0 | IG11: 0 | IH11: 0 | II11: 0 | IJ11: 0 | IK11: 0 | IL11: 0 | IM11: 0 | IN11: 0 | IO11: 0 | IP11: 0 | IQ11: 0 | IR11: 0 | IS11: 0 | IT11: 0 | IU11: 0 | IV11: 0 | IW11: 0 | IX11: 0 | IY11: 0 | IZ11: 0 | JA11: 0 | JB11: 0 | JC11: 0 | JD11: 0 | JE11: 0 | JF11: 0 | JG11: 0 | JH11: 0 | JI11: 0 | JJ11: 0 | JK11: 0 | JL11: 0 | JM11: 0 | JN11: 0 | JO11: 0 | JP11: 0 | JQ11: 0 | JR11: 0 | JS11: 0 | JT11: 0 | JU11: 0 | JV11: 0 | JW11: 0 | JX11: 0 | JY11: 0 | JZ11: 0 | KA11: 0 | KB11: 0 | KC11: 0 | KD11: 0 | KE11: 0 | KF11: 0 | KG11: 0 | KH11: 0 | KI11: 0 | KJ11: 0 | KK11: 0 | KL11: 0 | KM11: 0 | KN11: 0 | KO11: 0 | KP11: 0 | KQ11: 0 | KR11: 0 | KS11: 0 | KT11: 0 | KU11: 0 | KV11: 0 | KW11: 0 | KX11: 0 | KY11: 0 | KZ11: 0 | LA11: 0 | LB11: 0 | LC11: 0 | LD11: 0 | LE11: 0 | LF11: 0 | LG11: 0 | LH11: 0 | LI11: 0 | LJ11: 0 | LK11: 0 | LL11: 0 | LM11: 0 | LN11: 0 | LO11: 0 | LP11: 0 | LQ11: 0 | LR11: 0 | LS11: 0 | LT11: 0 | LU11: 0 | LV11: 0 | LW11: 0 | LX11: 0 | LY11: 0 | LZ11: 0 | MA11: 0 | MB11: 0 | MC11: 0 | MD11: 0 | ME11: 0 | MF11: 0 | MG11: 0 | MH11: 0 | MI11: 0 | MJ11: 0 | MK11: 0 | ML11: 0 | MM11: 0 | MN11: 0 | MO11: 0 | MP11: 0 | MQ11: 0 | MR11: 0 | MS11: 0 | MT11: 0 | MU11: 0 | MV11: 0 | MW11: 0 | MX11: 0 | MY11: 0 | MZ11: 0 | NA11: 0 | NB11: 0 | NC11: 0 | ND11: 0 | NE11: 0 | NF11: 0 | NG11: 0 | NH11: 0 | NI11: 0 | NJ11: 0 | NK11: 0 | NL11: 0 | NM11: 0 | NN11: 0 | NO11: 0 | NP11: 0 | NQ11: 0 | NR11: 0 | NS11: 0 | NT11: 0 | NU11: 0 | NV11: 0 | NW11: 0 | NX11: 0 | NY11: 0 | NZ11: 0 | OA11: 0 | OB11: 0 | OC11: 0 | OD11: 0 | OE11: 0 | OF11: 0 | OG11: 0 | OH11: 0 | OI11: 0 | OJ11: 0 | OK11: 0 | OL11: 0 | OM11: 0 | ON11: 0 | OO11: 0 | OP11: 0 | OQ11: 0 | OR11: 0 | OS11: 0 | OT11: 0 | OU11: 0 | OV11: 0 | OW11: 0 | OX11: 0 | OY11: 0 | OZ11: 0 | PA11: 0 | PB11: 0 | PC11: 0 | PD11: 0 | PE11: 0 | PF11: 0 | PG11: 0 | PH11: 0 | PI11: 0 | PJ11: 0 | PK11: 0 | PL11: 0 | PM11: 0 | PN11: 0 | PO11: 0 | PP11: 0 | PQ11: 0 | PR11: 0 | PS11: 0 | PT11: 0 | PU11: 0 | PV11: 0 | PW11: 0 | PX11: 0 | PY11: 0 | PZ11: 0 | QA11: 0 | QB11: 0 | QC11: 0 | QD11: 0 | QE11: 0 | QF11: 0 | QG11: 0 | QH11: 0 | QI11: 0 | QJ11: 0 | QK11: 0 | QL11: 0 | QM11: 0 | QN11: 0 | QO11: 0 | QP11: 0 | QQ11: 0 | QR11: 0 | QS11: 0 | QT11: 0 | QU11: 0 | QV11: 0 | QW11: 0 | QX11: 0 | QY11: 0 | QZ11: 0 | RA11: 0 | RB11: 0 | RC11: 0 | RD11: 0 | RE11: 0 | RF11: 0 | RG11: 0 | RH11: 0 | RI11: 0 | RJ11: 0 | RK11: 0 | RL11: 0 | RM11: 0 | RN11: 0 | RO11: 0 | RQ11: 0 | RR11: 0 | RS11: 0 | RT11: 0 | RU11: 0 | RV11: 0 | RW11: 0 | RX11: 0 | RY11: 0 | RZ11: 0 | SA11: 0 | SB11: 0 | SC11: 0 | SD11: 0 | SE11: 0 | SF11: 0 | SG11: 0 | SH11: 0 | SI11: 0 | SJ11: 0
B12: 10055 | C12: Albion, City of | D12: 0 | E12: 0 | F12: 0 | G12: 0 | H12: 0 | I12: 0 | J12: 0 | K12: 0 | L12: 0 | M12: 0 | N12: 0 | O12: 0 | P12: 0 | Q12: 0 | R12: 0 | S12: 0 | T12: 0 | U12: 0 | V12: 0 | W12: 0 | X12: 0 | Y12: 0 | Z12: 0 | AA12: 0 | AB12: 0 | AC12: 0 | AD12: 0 | AE12: 0 | AF12: 0 | AG12: 0 | AH12: 0 | AI12: 0 | AJ12: 0 | AK12: 0 | AL12: 0 | AM12: 0 | AN12: 0 | AO12: 0 | AP12: 0 | AQ12: 0 | AR12: 0 | AS12: 0 | AT12: 0 | AU12: 0 | AV12: 0 | AW12: 0 | AX12: 0 | AY12: 0 | AZ12: 0 | BA12: 0 | BB12: 0 | BC12: 0 | BD12: 0 | BE12: 0 | BF12: 0 | BG12: 0 | BH12: 0 | BI12: 0 | BJ12: 0 | BK12: 0 | BL12: 0 | BM12: 0 | BN12: 0 | BO12: 0 | BP12: 0 | BQ12: 0 | BR12: 0 | BS12: 0 | BT12: 0 | BU12: 0 | BV12: 0 | BW12: 0 | BX12: 0 | BY12: 0 | BZ12: 0 | CA12: 0 | CB12: 0 | CC12: 0 | CD12: 0 | CE12: 0 | CF12: 0 | CG12: 0 | CH12: 0 | CI12: 0 | CJ12: 0 | CK12: 0 | CL12: 0 | CM12: 0 | CN12: 0 | CO12: 0 | CP12: 0 | CQ12: 0 | CR12: 0 | CS12: 0 | CT12: 0 | CU12: 0 | CV12: 0 | CW12: 0 | CX12: 0 | CY12: 0 | CZ12: 0 | DA12: 0 | DB12: 0 | DC12: 0 | DD12: 0 | DE12: 0 | DF12: 0 | DG12: 0 | DH12: 0 | DI12: 0 | DJ12: 0 | DK12: 0 | DL12: 0 | DM12: 0 | DN12: 0 | DO12: 0 | DP12: 0 | DQ12: 0 | DR12: 0 | DS12: 0 | DT12: 0 | DU12: 0 | DV12: 0 | DW12: 0 | DX12: 0 | DY12: 0 | DZ12: 0 | EA12: 0 | EB12: 0 | EC12: 0 | ED12: 0 | EE12: 0 | EF12: 0 | EG12: 0 | EH12: 0 | EI12: 0 | EJ12: 0 | EK12: 0 | EL12: 0 | EM12: 0 | EN12: 0 | EO12: 0 | EP12: 0 | EQ12: 0 | ER12: 0 | ES12: 0 | ET12: 0 | EU12: 0 | EV12: 0 | EW12: 0 | EX12: 0 | EY12: 0 | EZ12: 0 | FA12: 0 | FB12: 0 | FC12: 0 | FD12: 0 | FE12: 0 | FF12: 0 | FG12: 0 | FH12: 0 | FI12: 0 | FJ12: 0 | FK12: 0 | FL12: 0 | FM12: 0 | FN12: 0 | FO12: 0 | FP12: 0 | FQ12: 0 | FR12: 0 | FS12: 0 | FT12: 0 | FU12: 0 | FV12: 0 | FW12: 0 | FX12: 0 | FY12: 0 | FZ12: 0 | GA12: 0 | GB12: 0 | GC12: 0 | GD12: 0 | GE12: 0 | GF12: 0 | GG12: 0 | GH12: 0 | GI12: 0 | GJ12: 0 | GK12: 0 | GL12: 0 | GM12: 0 | GN12: 0 | GO12: 0 | GP12: 0 | GQ12: 0 | GR12: 0 | GS12: 0 | GT12: 0 | GU12: 0 | GV12: 0 | GW12: 0 | GX12: 0 | GY12: 0 | GZ12: 0 | HA12: 0 | HB12: 0 | HC12: 0 | HD12: 0 | HE12: 0 | HF12: 0 | HG12: 0 | HH12: 0 | HI12: 0 | HJ12: 0 | HK12: 0 | HL12: 0 | HM12: 0 | HN12: 0 | HO12: 0 | HP12: 0 | HQ12: 0 | HR12: 0 | HS12: 0 | HT12: 0 | HU12: 0 | HV12: 0 | HW12: 0 | HX12: 0 | HY12: 0 | HZ12: 0 | IA12: 0 | IB12: 0 | IC12: 0 | ID12: 0 | IE12: 0 | IF12: 0 | IG12: 0 | IH12: 0 | II12: 0 | IJ12: 0 | IK12: 0 | IL12: 0 | IM12: 0 | IN12: 0 | IO12: 0 | IP12: 0 | IQ12: 0 | IR12: 0 | IS12: 0 | IT12: 0 | IU12: 0 | IV12: 0 | IW12: 0 | IX12: 0 | IY12: 0 | IZ12: 0 | JA12: 0 | JB12: 0 | JC12: 0 | JD12: 0 | JE12: 0 | JF12: 0 | JG12: 0 | JH12: 0 | JI12: 0 | JJ12: 0 | JK12: 0 | JL12: 0 | JM12: 0 | JN12: 0 | JO12: 0 | JP12: 0 | JQ12: 0 | JR12: 0 | JS12: 0 | JT12: 0 | JU12: 0 | JV12: 0 | JW12: 0 | JX12: 0 | JY12: 0 | JZ12: 0 | KA12: 0 | KB12: 0 | KC12: 0 | KD12: 0 | KE12: 0 | KF12: 0 | KG12: 0 | KH12: 0 | KI12: 0 | KJ12: 0 | KK12: 0 | KL12: 0 | KM12: 0 | KN12: 0 | KO12: 0 | KP12: 0 | KQ12: 0 | KR12: 0 | KS12: 0 | KT12: 0 | KU12: 0 | KV12: 0 | KW12: 0 | KX12: 0 | KY12: 0 | KZ12: 0 | LA12: 0 | LB12: 0 | LC12: 0 | LD12: 0 | LE12: 0 | LF12: 0 | LG12: 0 | LH12: 0 | LI12: 0 | LJ12: 0 | LK12: 0 | LL12: 0 | LM12: 0 | LN12: 0 | LO12: 0 | LP12: 0 | LQ12: 0 | LR12: 0 | LS12: 0 | LT12: 0 | LU12: 0 | LV12: 0 | LW12: 0 | LX12: 0 | LY12: 0 | LZ12: 0 | MA12: 0 | MB12: 0 | MC12: 0 | MD12: 0 | ME12: 0 | MF12: 0 | MG12: 0 | MH12: 0 | MI12: 0 | MJ12: 0 | MK12: 0 | ML12: 0 | MM12: 0 | MN12: 0 | MO12: 0 | MP12: 0 | MQ12: 0 | MR12: 0 | MS12: 0 | MT12: 0 | MU12: 0 | MV12: 0 | MW12: 0 | MX12: 0 | MY12: 0 | MZ12: 0 | NA12: 0 | NB12: 0 | NC12: 0 | ND12: 0 | NE12: 0 | NF12: 0 | NG12: 0 | NH12: 0 | NI12: 0 | NJ12: 0 | NK12: 0 | NL12: 0 | NM12: 0 | NN12: 0 | NO12: 0 | NP12: 0 | NQ12: 0 | NR12: 0 | NS12: 0 | NT12: 0 | NU12: 0 | NV12: 0 | NW12: 0 | NX12: 0 | NY12: 0 | NZ12: 0 | OA12: 0 | OB12: 0 | OC12: 0 | OD12: 0 | OE12: 0 | OF12: 0 | OG12: 0 | OH12: 0 | OI12: 0 | OJ12: 0 | OK12: 0 | OL12: 0 | OM12: 0 | ON12: 0 | OO12: 0 | OP12: 0 | OQ12: 0 | OR12: 0 | OS12: 0 | OT12: 0 | OU12: 0 | OV12: 0 | OW12: 0 | OX12: 0 | OY12: 0 | OZ12: 0 | PA12: 0 | PB12: 0 | PC12: 0 | PD12: 0 | PE12: 0 | PF12: 0 | PG12: 0 | PH12: 0 | PI12: 0 | PJ12: 0 | PK12: 0 | PL12: 0 | PM12: 0 | PN12: 0 | PO12: 0 | PP12: 0 | PQ12: 0 | PR12: 0 | PS12: 0 | PT12: 0 | PU12: 0 | PV12: 0 | PW12: 0 | PX12: 0 | PY12: 0 | PZ12: 0 | QA12: 0 | QB12: 0 | QC12: 0 | QD12: 0 | QE12: 0 | QF12: 0 | QG12: 0 | QH12: 0 | QI12: 0 | QJ12: 0 | QK12: 0 | QL12: 0 | QM12: 0 | QN12: 0 | QO12: 0 | QP12: 0 | QQ12: 0 | QR12: 0 | QS12: 0 | QT12: 0 | QU12: 0 | QV12: 0 | QW12: 0 | QX12: 0 | QY12: 0 | QZ12: 0 | RA12: 0 | RB12: 0 | RC12: 0 | RD12: 0 | RE12: 0 | RF12: 0 | RG12: 0 | RH12: 0 | RI12: 0 | RJ12: 0 | RK12: 0 | RL12: 0 | RM12: 0 | RN12: 0 | RO12: 0 | RQ12: 0 | RR12: 0 | RS12: 0 | RT12: 0 | RU12: 0 | RV12: 0 | RW12: 0 | RX12: 0 | RY12: 0 | RZ12: 0 | SA12: 0 | SB12: 0 | SC12: 0 | SD12: 0 | SE12: 0 | SF12: 0 | SG12: 0 | SH12: 0 | SI12: 0 | SJ12: 0
B13: 10057 | C13: Ashland, City of | D13: 0 | E13: 0 | F13: 0 | G13: 0 | H13: 0 | I13: 0 | J13: 0 | K13: 0 | L13: 0 | M13: 0 | N13: 0 | O13: 0 | P13: 0 | Q13: 0 | R13: 0 | S13: 0 | T13: 0 | U13: 0 | V13: 0 | W13: 0 | X13: 0 | Y13: 0 | Z13: 0 | AA13: 0 | AB13: 0 | AC13: 0 | AD13: 0 | AE13: 0 | AF13: 0 | AG13: 0 | AH13: 0 | AI13: 0 | AJ13: 0 | AK13: 0 | AL13: 0 | AM13: 0 | AN13: 0 | AO13: 0 | AP13: 0 | AQ13: 0 | AR13: 0 | AS13: 0 | AT13: 0 | AU13: 0 | AV13: 0 | AW13: 0 | AX13: 0 | AY13: 0 | AZ13: 0 | BA13: 0 | BB13: 0 | BC13: 0 | BD13: 0 | BE13: 0 | BF13: 0 | BG13: 0 | BH13: 0 | BI13: 0 | BJ13: 0 | BK13: 0 | BL13: 0 | BM13: 0 | BN13: 0 | BO13: 0 | BP13: 0 | BQ13: 0 | BR13: 0 | BS13: 0 | BT13: 0 | BU13: 0 | BV13: 0 | BW13: 0 | BX13: 0 | BY13: 0 | BZ13: 0 | CA13: 0 | CB13: 0 | CC13: 0 | CD13: 0 | CE13: 0 | CF13: 0 | CG13: 0 | CH13: 0 | CI13: 0 | CJ13: 0 | CK13: 0 | CL13: 0 | CM13: 0 | CN13: 0 | CO13: 0 | CP13: 0 | CQ13: 0 | CR13: 0 | CS13: 0 | CT13: 0 | CU13: 0 | CV13: 0 | CW13: 0 | CX13: 0 | CY13: 0 | CZ13: 0 | DA13: 0 | DB13: 0 | DC13: 0 | DD13: 0 | DE13: 0 | DF13: 0 | DG13: 0 | DH13: 0 | DI13: 0 | DJ13: 0 | DK13: 0 | DL13: 0 | DM13: 0 | DN13: 0 | DO13: 0 | DP13: 0 | DQ13: 0 | DR13: 0 | DS13: 0 | DT13: 0 | DU13: 0 | DV13: 0 | DW13: 0 | DX13: 0 | DY13: 0 | DZ13: 0 | EA13: 0 | EB13: 0 | EC13: 0 | ED13: 0 | EE13: 0 | EF13: 0 | EG13: 0 | EH13: 0 | EI13: 0 | EJ13: 0 | EK13: 0 | EL13: 0 | EM13: 0 | EN13: 0 | EO13: 0 | EP13: 0 | EQ13: 0 | ER13: 0 | ES13: 0 | ET13: 0 | EU13: 0 | EV13: 0 | EW13: 0 | EX13: 0 | EY13: 0 | EZ13: 0 | FA13: 0 | FB13: 0 | FC13: 0 | FD13: 0 | FE13: 0 | FF13: 0 | FG13: 0 | FH13: 0 | FI13: 0 | FJ13: 0 | FK13: 0 | FL13: 0 | FM13: 0 | FN13: 0 | FO13: 0 | FP13: 0 | FQ13: 0 | FR13: 0 | FS13: 0 | FT13: 0 | FU13: 0 | FV13: 0 | FW13: 0 | FX13: 0 | FY13: 0 | FZ13: 0 | GA13: 0 | GB13: 0 | GC13: 0 | GD13: 0 | GE13: 0 | GF13: 0 | GG13: 0 | GH13: 0 | GI13: 0 | GJ13: 0 | GK13: 0 | GL13: 0 | GM13: 0 | GN13: 0 | GO13: 0 | GP13: 0 | GQ13: 0 | GR13: 0 | GS13: 0 | GT13: 0 | GU13: 0 | GV13: 0 | GW13: 0 | GX13: 0 | GY13: 0 | GZ13: 0 | HA13: 0 | HB13: 0 | HC13: 0 | HD13: 0 | HE13: 0 | HF13: 0 | HG13: 0 | HH13: 0 | HI13: 0 | HJ13: 0 | HK13: 0 | HL13: 0 | HM13: 0 | HN13: 0 | HO13: 0 | HP13: 0 | HQ13: 0 | HR13: 0 | HS13: 0 | HT13: 0 | HU13: 0 | HV13: 0 | HW13: 0 | HX13: 0 | HY13: 0 | HZ13: 0 | IA13: 0 | IB13: 0 | IC13: 0 | ID13: 0 | IE13: 0 | IF13: 0 | IG13: 0 | IH13: 0 | II13: 0 | IJ13: 0 | IK13: 0 | IL13: 0 | IM13: 0 | IN13: 0 | IO13: 0 | IP13: 0 | IQ13: 0 | IR13: 0 | IS13: 0 | IT13: 0 | IU13: 0 | IV13: 0 | IW13: 0 | IX13: 0 | IY13: 0 | IZ13: 0 | JA13: 0 | JB13: 0 | JC13: 0 | JD13: 0 | JE13: 0 | JF13: 0 | JG13: 0 | JH13: 0 | JI13: 0 | JJ13: 0 | JK13: 0 | JL13: 0 | JM13: 0 | JN13: 0 | JO13: 0 | JP13: 0 | JQ13: 0 | JR13: 0 | JS13: 0 | JT13: 0 | JU13: 0 | JV13: 0 | JW13: 0 | JX13: 0 | JY13: 0 | JZ13: 0 | KA13: 0 | KB13: 0 | KC13: 0 | KD13: 0 | KE13: 0 | KF13: 0 | KG13: 0 | KH13: 0 | KI13: 0 | KJ13: 0 | KK13: 0 | KL13: 0 | KM13: 0 | KN13: 0 | KO13: 0 | KP13: 0 | KQ13: 0 | KR13: 0 | KS13: 0 | KT13: 0 | KU13: 0 | KV13: 0 | KW13: 0 | KX13: 0 | KY13: 0 | KZ13: 0 | LA13: 0 | LB13: 0 | LC13: 0 | LD13: 0 | LE13: 0 | LF13: 0 | LG13: 0 | LH13: 0 | LI13: 0 | LJ13: 0 | LK13: 0 | LL13: 0 | LM13: 0 | LN13: 0 | LO13: 0 | LP13: 0 | LQ13: 0 | LR13: 0 | LS13: 0 | LT13: 0 | LU13: 0 | LV13: 0 | LW13: 0 | LX13: 0 | LY13: 0 | LZ13: 0 | MA13: 0 | MB13: 0 | MC13: 0 | MD13: 0 | ME13: 0 | MF13: 0 | MG13: 0 | MH13: 0 | MI13: 0 | MJ13: 0 | MK13: 0 | ML13: 0 | MM13: 0 | MN13: 0 | MO13: 0 | MP13: 0 | MQ13: 0 | MR13: 0 | MS13: 0 | MT13: 0 | MU13: 0 | MV13: 0 | MW13: 0 | MX13: 0 | MY13: 0 | MZ13: 0 | NA13: 0 | NB13: 0 | NC13: 0 | ND13: 0 | NE13: 0 | NF13: 0 | NG13: 0 | NH13: 0 | NI13: 0 | NJ13: 0 | NK13: 0 | NL13: 0 | NM13: 0 | NN13: 0 | NO13: 0 | NP13: 0 | NQ13: 0 | NR13: 0 | NS13: 0 | NT13: 0 | NU13: 0 | NV13: 0 | NW13: 0 | NX13: 0 | NY13: 0 | NZ13: 0 | OA13: 0 | OB13: 0 | OC13: 0 | OD13: 0 | OE13: 0 | OF13: 0 | OG13: 0 | OH13: 0 | OI13: 0 | OJ13: 0 | OK13: 0 | OL13: 0 | OM13: 0 | ON13: 0 | OO13: 0 | OP13: 0 | OQ13: 0 | OR13: 0 | OS13: 0 | OT13: 0 | OU13: 0 | OV13: 0 | OW13: 0 | OX13: 0 | OY13: 0 | OZ13: 0 | PA13: 0 | PB13: 0 | PC13: 0 | PD13: 0 | PE13: 0 | PF13: 0 | PG13: 0 | PH13: 0 | PI13: 0 | PJ13: 0 | PK13: 0 | PL13: 0 | PM13: 0 | PN13: 0 | PO13: 0 | PP13: 0 | PQ13: 0 | PR13: 0 | PS13: 0 | PT13: 0 | PU13: 0 | PV13: 0 | PW13: 0 | PX13: 0 | PY13: 0 | PZ13: 0 | QA13: 0 | QB13: 0 | QC13: 0 | QD13: 0 | QE13: 0 | QF13: 0 | QG13: 0 | QH13: 0 | QI13: 0 | QJ13: 0 | QK13: 0 | QL13: 0 | QM13: 0 | QN13: 0 | QO13: 0 | QP13: 0 | QQ13: 0 | QR13: 0 | QS13: 0 | QT13: 0 | QU13: 0 | QV13: 0 | QW13: 0 | QX13: 0 | QY13: 0 | QZ13: 0 | RA13: 0 | RB13: 0 | RC13: 0 | RD13: 0 | RE13: 0 | RF13: 0 | RG13: 0 | RH13: 0 | RI13: 0 | RJ13: 0 | RK13: 0 | RL13: 0 | RM13: 0 | RN13: 0 | RO13: 0 | RQ13: 0 | RR13: 0 | RS13: 0 | RT13: 0 | RU13: 0 | RV13: 0 | RW13: 0 | RX13: 0 | RY13: 0 | RZ13: 0 | SA13: 0 | SB13: 0 | SC13: 0 | SD13: 0 | SE13: 0 | SF13: 0 | SG13: 0 | SH13: 0 | SI13: 0 | SJ13: 0
B14: 10059 | C14: Bandon, City of | D14: 0 | E14: 0 | F14: 0 | G14: 0 | H14: 0 | I14: 0 | J14: 0 | K14: 0 | L14: 0 | M14: 0 | N14: 0 | O14: 0 | P14: 0 | Q14: 0 | R14: 0 | S14: 0 | T14: 0 | U14: 0 | V14: 0 | W14: 0 | X14: 0 | Y14: 0 | Z14: 0 | AA14: 0 | AB14: 0 | AC14: 0 | AD14: 0 | AE14: 0 | AF14: 0 | AG14: 0 | AH14: 0 | AI14: 0 | AJ14: 0 | AK14: 0 | AL14: 0 | AM14: 0 | AN14: 0 | AO14: 0 | AP14: 0 | AQ14: 0 | AR14: 0 | AS14: 0 | AT14: 0 | AU14: 0 | AV14: 0 | AW14: 0 | AX14: 0 | AY14: 0 | AZ14: 0 | BA14: 0 | BB14: 0 | BC14: 0 | BD14: 0 | BE14: 0 | BF14: 0 | BG14: 0 | BH14: 0 | BI14: 0 | BJ14: 0 | BK14: 0 | BL14: 0 | BM14: 0 | BN14: 0 | BO14: 0 | BP14: 0 | BQ14: 0 | BR14: 0 | BS14: 0 | BT14: 0 | BU14: 0 | BV14: 0 | BW14: 0 | BX14: 0 | BY14: 0 | BZ14: 0 | CA14: 0 | CB14: 0 | CC14: 0 | CD14: 0 | CE14: 0 | CF14: 0 | CG14: 0 | CH14: 0 | CI14: 0 | CJ14: 0 | CK14: 0 | CL14: 0 | CM14: 0 | CN14: 0 | CO14: 0 | CP14: 0 | CQ14: 0 | CR14: 0 | CS14: 0 | CT14: 0 | CU14: 0 | CV14: 0 | CW14: 0 | CX14: 0 | CY14: 0 | CZ14: 0 | DA14: 0 | DB14: 0 | DC14: 0 | DD14: 0 | DE14: 0 | DF14: 0 | DG14: 0 | DH14: 0 | DI14: 0 | DJ14: 0 | DK14: 0 | DL14: 0 | DM14: 0 | DN14: 0 | DO14: 0 | DP14: 0 | DQ14: 0 | DR14: 0 | DS14: 0 | DT14: 0 | DU14: 0 | DV14: 0 | DW14: 0 | DX14: 0 | DY14: 0 | DZ14: 0 | EA14: 0 | EB14: 0 | EC14: 0 | ED14: 0 | EE14: 0 | EF14: 0 | EG14: 0 | EH14: 0 | EI14: 0 | EJ14: 0 | EK14: 0 | EL14: 0 | EM14: 0 | EN14: 0 | EO14: 0 | EP14: 0 | EQ14: 0 | ER14: 0 | ES14: 0 | ET14: 0 | EU14: 0 | EV14: 0 | EW14: 0 | EX14: 0 | EY14: 0 | EZ14: 0 | FA14: 0 | FB14: 0 | FC14: 0 | FD14: 0 | FE14: 0 | FF14: 0 | FG14: 0 | FH14: 0 | FI14: 0 | FJ14: 0 | FK14: 0 | FL14: 0 | FM14: 0 | FN14: 0 | FO14: 0 | FP14: 0 | FQ14: 0 | FR14: 0 | FS14: 0 | FT14: 0 | FU14: 0 | FV14: 0 | FW14: 0 | FX14: 0 | FY14: 0 | FZ14: 0 | GA14: 0 | GB14: 0 | GC14: 0 | GD14: 0 | GE14: 0 | GF14: 0 | GG14: 0 | GH14: 0 | GI14: 0 | GJ14: 0 | GK14: 0 | GL14: 0 | GM14: 0 | GN14: 0 | GO14: 0 | GP14: 0 | GQ14: 0 | GR14: 0 | GS14: 0 | GT14: 0 | GU14: 0 | GV14: 0 | GW14: 0 | GX14: 0 | GY14: 0 | GZ14: 0 | HA14: 0 | HB14: 0 | HC14: 0 | HD14: 0 | HE14: 0 | HF14: 0 | HG14: 0 | HH14: 0 | HI14: 0 | HJ14: 0 | HK14: 0 | HL14: 0 | HM14: 0 | HN14: 0 | HO14: 0 | HP14: 0 | HQ14: 0 | HR14: 0 | HS14: 0 | HT14: 0 | HU14: 0 | HV14: 0 | HW14: 0 | HX14: 0 | HY14: 0 | HZ14: 0 | IA14: 0 | IB14: 0 | IC14: 0 | ID14: 0 | IE14: 0 | IF14: 0 | IG14: 0 | IH14: 0 | II14: 0 | IJ14: 0 | IK14: 0 | IL14: 0 | IM14: 0 | IN14: 0 | IO14: 0 | IP14: 0 | IQ14: 0 | IR14: 0 | IS14: 0 | IT14: 0 | IU14: 0 | IV14: 0 | IW14: 0 | IX14: 0 | IY14: 0 | IZ14: 0 | JA14: 0 | JB14: 0 | JC14: 0 | JD14: 0 | JE14: 0 | JF14: 0 | JG14: 0 | JH14: 0 | JI14: 0 | JJ14: 0 | JK14: 0 | JL14: 0 | JM14: 0 | JN14: 0 | JO14: 0 | JP14: 0 | JQ14: 0 | JR14: 0 | JS14: 0 | JT14: 0 | JU14: 0 | JV14: 0 | JW14: 0 | JX14: 0 | JY14: 0 | JZ14: 0 | KA14: 0 | KB14: 0 | KC14: 0 | KD14: 0 | KE14: 0 | KF14: 0 | KG14: 0 | KH14: 0 | KI14: 0 | KJ14: 0 | KK14: 0 | KL14: 0 | KM14: 0 | KN14: 0 | KO14: 0 | KP14: 0 | KQ14: 0 | KR14: 0 | KS14: 0 | KT14: 0 | KU14: 0 | KV14: 0 | KW14: 0 | KX14: 0 | KY14: 0 | KZ14: 0 | LA14: 0 | LB14: 0 | LC14: 0 | LD14: 0 | LE14: 0 | LF14: 0 | LG14: 0 | LH14: 0 | LI14: 0 | LJ14: 0 | LK14: 0 | LL14: 0 | LM14: 0 | LN14: 0 | LO14: 0 | LP14: 0 | LQ14: 0 | LR14: 0 | LS14: 0 | LT14: 0 | LU14: 0 | LV14: 0 | LW14: 0 | LX14: 0 | LY14: 0 | LZ14: 0 | MA14: 0 | MB14: 0 | MC14: 0 | MD14: 0 | ME14: 0 | MF14: 0 | MG14: 0 | MH14: 0 | MI14: 0 | MJ14: 0 | MK14: 0 | ML14: 0 | MM14: 0 | MN14: 0 | MO14: 0 | MP14: 0 | MQ14: 0 | MR14: 0 | MS14: 0 | MT14: 0 | MU14: 0 | MV14: 0 | MW14: 0 | MX14: 0 | MY14: 0 | MZ14: 0 | NA14: 0 | NB14: 0 | NC14: 0 | ND14: 0 | NE14: 0 | NF14: 0 | NG14: 0 | NH14: 0 | NI14: 0 | NJ14: 0 | NK14: 0 | NL14: 0 | NM14: 0 | NN14: 0 | NO14: 0 | NP14: 0 | NQ14: 0 | NR14: 0 | NS14: 0 | NT14: 0 | NU14: 0 | NV14: 0 | NW14: 0 | NX14: 0 | NY14: 0 | NZ14: 0 | OA14: 0 | OB14: 0 | OC14: 0 | OD14: 0 | OE14: 0 | OF14: 0 | OG14: 0 | OH14: 0 | OI14: 0 | OJ14: 0 | OK14: 0 | OL14: 0 | OM14: 0 | ON14: 0 | OO14: 0 | OP14: 0 | OQ14: 0 | OR14: 0 | OS14: 0 | OT14: 0 | OU14: 0 | OV14: 0 | OW14: 0 | OX14: 0 | OY14: 0 | OZ14: 0 | PA14: 0 | PB14: 0 | PC14: 0 | PD14: 0 | PE14: 0 | PF14: 0 | PG14: 0 | PH14: 0 | PI14: 0 | PJ14: 0 | PK14: 0 | PL14: 0 | PM14: 0 | PN14: 0 | PO14: 0 | PP14: 0 | PQ14: 0 | PR14: 0 | PS14: 0 | PT14: 0 | PU14: 0 | PV14: 0 | PW14: 0 | PX14: 0 | PY14: 0 | PZ14: 0 | QA14: 0 | QB14: 0 | QC14: 0 | QD14: 0 | QE14: 0 | QF14: 0 | QG14: 0 | QH14: 0 | QI14: 0 | QJ14: 0 | QK14: 0 | QL14: 0 | QM14: 0 | QN14: 0 | QO14: 0 | QP14: 0 | QQ14: 0 | QR14: 0 | QS14: 0 | QT14: 0 | QU14: 0 | QV14: 0 | QW14: 0 | QX14: 0 | QY14: 0 | QZ14: 0 | RA14: 0 | RB14: 0 | RC14: 0 | RD14: 0 | RE14: 0 | RF14: 0 | RG14: 0 | RH14: 0 | RI14: 0 | RJ14: 0 | RK14: 0 | RL14: 0 | RM14: 0 | RN14: 0 | RO14: 0 | RQ14: 0 | RR14: 0 | RS14: 0 | RT14: 0 | RU14: 0 | RV14: 0 | RW14: 0 | RX14: 0 | RY14: 0 | RZ14: 0 | SA14: 0 | SB14: 0 | SC14: 0 | SD14: 0 | SE14: 0 | SF14: 0 | SG14: 0 | SH14: 0 | SI14: 0 | SJ14: 0
B15: 10061 | C15: Blaine, City of | D15: 0 | E15: 0 | F15: 0 | G15: 0 | H15: 0 | I15: 0 | J15: 0 | K15: 0 | L15: 0 | M15: 0 | N15: 0 | O15: 0 | P15: 0 | Q15: 0 | R15: 0 | S15: 0 | T15: 0 | U15: 0 | V15: 0 | W15: 0 | X15: 0 | Y15: 0 | Z15: 0 | AA15: 0 | AB15: 0 | AC15: 0 | AD15: 0 | AE15: 0 | AF15: 0 | AG15: 0 | AH15: 0 | AI15: 0 | AJ15: 0 | AK15: 0 | AL15: 0 | AM15: 0 | AN15: 0 | AO15: 0 | AP15: 0 | AQ15: 0 | AR15: 0 | AS15: 0 | AT15: 0 | AU15: 0 | AV15: 0 | AW15: 0 | AX15: 0 | AY15: 0 | AZ15: 0 | BA15: 0 | BB15: 0 | BC15: 0 | BD15: 0 | BE15: 0 | BF15: 0 | BG15: 0 | BH15: 0 | BI15: 0 | BJ15: 0 | BK15: 0 | BL15: 0 | BM15: 0 | BN15: 0 | BO15: 0 | BP15: 0 | BQ15: 0 | BR15: 0 | BS15: 0 | BT15: 0 | BU15: 0 | BV15: 0 | BW15: 0 | BX15: 0 | BY15: 0 | BZ15: 0 | CA15: 0 | CB15: 0 | CC15: 0 | CD15: 0 | CE15: 0 | CF15: 0 | CG15: 0 | CH15: 0 | CI15: 0 | CJ15: 0 | CK15: 0 | CL15: 0 | CM15: 0 | CN15: 0 | CO15: 0 | CP15: 0 | CQ15: 0 | CR15: 0 | CS15: 0 | CT15: 0 | CU15: 0 | CV15: 0 | CW15: 0 | CX15: 0 | CY15: 0 | CZ15: 0 | DA15: 0 | DB15: 0 | DC15: 0 | DD15: 0 | DE15: 0 | DF15: 0 | DG15: 0 | DH15: 0 | DI15: 0 | DJ15: 0 | DK15: 0 | DL15: 0 | DM15: 0 | DN15: 0 | DO15: 0 | DP15: 0 | DQ15: 0 | DR15: 0 | DS15: 0 | DT15: 0 | DU15: 0 | DV15: 0 | DW15: 0 | DX15: 0 | DY15: 0 | DZ15: 0 | EA15: 0 | EB15: 0 | EC15: 0 | ED15: 0 | EE15: 0 | EF15: 0 | EG15: 0 | EH15: 0 | EI15: 0 | EJ15: 0 | EK15: 0 | EL15: 0 | EM15: 0 | EN15: 0 | EO15: 0 | EP15: 0 | EQ15: 0 | ER15: 0 | ES15: 0 | ET15: 0 | EU15: 0 | EV15: 0 | EW15: 0 | EX15: 0 | EY15: 0 | EZ15: 0 | FA15: 0 | FB15: 0 | FC15: 0 | FD15: 0 | FE15: 0 | FF15: 0 | FG15: 0 | FH15: 0 | FI15: 0 | FJ15: 0 | FK15: 0 | FL15: 0 | FM15: 0 | FN15: 0 | FO15: 0 | FP15: 0 | FQ15: 0 | FR15: 0 | FS15: 0 | FT15: 0 | FU15: 0 | FV15: 0 | FW15: 0 | FX15: 0 | FY15: 0 | FZ15: 0 | GA15: 0 | GB15: 0 | GC15: 0 | GD15: 0 | GE15: 0 | GF15: 0 | GG15: 0 | GH15: 0 | GI15: 0 | GJ15: 0 | GK15: 0 | GL15: 0 | GM15: 0 | GN15: 0 | GO15: 0 | GP15: 0 | GQ15: 0 | GR15: 0 | GS15: 0 | GT15: 0 | GU15: 0 | GV15: 0 | GW15: 0 | GX15: 0 | GY15: 0 | GZ15: 0 | HA15: 0 | HB15: 0 | HC15: 0 | HD15: 0 | HE15: 0 | HF15: 0 | HG15: 0 | HH15: 0 | HI15: 0 | HJ15: 0 | HK15: 0 | HL15: 0 | HM15: 0 | HN15: 0 | HO15: 0 | HP15: 0 | HQ15: 0 | HR15: 0 | HS15: 0 | HT15: 0 | HU15: 0 | HV15: 0 | HW15: 0 | HX15: 0 | HY15: 0 | HZ15: 0 | IA15: 0 | IB15: 0 | IC15: 0 | ID15: 0 | IE15: 0 | IF15: 0 | IG15: 0 | IH15: 0 | II15: 0 | IJ15: 0 | IK15: 0 | IL15: 0 | IM15: 0 | IN15: 0 | IO15: 0 | IP15: 0 | IQ15: 0 | IR15: 0 | IS15: 0 | IT15: 0 | IU15: 0 | IV15: 0 | IW15: 0 | IX15: 0 | IY15: 0 | IZ15: 0 | JA15: 0 | JB15: 0 | JC15: 0 | JD15: 0 | JE15: 0 | JF15: 0 | JG15: 0 | JH15: 0 | JI15: 0 | JJ15: 0 | JK15: 0 | JL15: 0 | JM15: 0 | JN15: 0 | JO15: 0 | JP15: 0 | JQ15: 0 | JR15: 0 | JS15: 0 | JT15: 0 | JU15: 0 | JV15: 0 | JW15: 0 | JX15: 0 | JY15: 0 | JZ15: 0 | KA15: 0 | KB15: 0 | KC15: 0 | KD15: 0 | KE15: 0 | KF15: 0 | KG15: 0 | KH15: 0 | KI15: 0 | KJ15: 0 | KK15: 0 | KL15: 0 | KM15: 0 | KN15: 0 | KO15: 0 | KP15: 0 | KQ15: 0 | KR15: 0 | KS15: 0 | KT15: 0 | KU15: 0 | KV15: 0 | KW15: 0 | KX15: 0 | KY15: 0 | KZ15: 0 | LA15: 0 | LB15: 0 | LC15: 0 | LD15: 0 | LE15: 0 | LF15: 0 | LG15: 0 | LH15: 0 | LI15: 0 | LJ15: 0 | LK15: 0 | LL15: 0 | LM15: 0 | LN15: 0 | LO15: 0 | LP15: 0 | LQ15: 0 | LR15: 0 | LS15: 0 | LT15: 0 | LU15: 0 | LV15: 0 | LW15: 0 | LX15: 0 | LY15: 0 | LZ15: 0 | MA15: 0 | MB15: 0 | MC15: 0 | MD15: 0 | ME15: 0 | MF15: 0 | MG15: 0 | MH15: 0 | MI15: 0 | MJ15: 0 | MK15: 0 | ML15: 0 | MM15: 0 | MN15: 0 | MO15: 0 | MP15: 0 | MQ15: 0 | MR15: 0 | MS15: 0 | MT15: 0 | MU15: 0 | MV15: 0 | MW15: 0 | MX15: 0 | MY15: 0 | MZ15: 0 | NA15: 0 | NB15: 0 | NC15: 0 | ND15: 0 | NE15: 0 | NF15: 0 | NG15: 0 | NH15: 0 | NI15: 0 | NJ15: 0 | NK15: 0 | NL15: 0 | NM15: 0 | NN15: 0 | NO15: 0 | NP15: 0 | NQ15: 0 | NR15: 0 | NS15: 0 | NT15: 0 | NU15: 0 | NV15: 0 | NW15: 0 | NX15: 0 | NY15: 0 | NZ15: 0 | OA15: 0 | OB15: 0 | OC15: 0 | OD15: 0 | OE15: 0 | OF15: 0 | OG15: 0 | OH15: 0 | OI15: 0 | OJ15: 0 | OK15: 0 | OL15: 0 | OM15: 0 | ON15: 0 | OO15: 0 | OP15: 0 | OQ15: 0 | OR15: 0 | OS15: 0 | OT15: 0 | OU15: 0 | OV15: 0 | OW15: 0 | OX15: 0 | OY15: 0 | OZ15: 0 | PA15: 0 | PB15: 0 | PC15: 0 | PD15: 0 | PE15: 0 | PF15: 0 | PG15: 0 | PH15: 0 | PI15: 0 | PJ15: 0 | PK15: 0 | PL15: 0 | PM15: 0 | PN15: 0 | PO15: 0 | PP15: 0 | PQ15: 0 | PR15: 0 | PS15: 0 | PT15: 0 | PU15: 0 | PV15: 0 | PW15: 0 | PX15: 0 | PY15: 0 | PZ15: 0 | QA15: 0 | QB15: 0 | QC15: 0 | QD15: 0 | QE15: 0 | QF15: 0 | QG15: 0 | QH15: 0 | QI15: 0 | QJ15: 0 | QK15: 0 | QL15: 0 | QM15: 0 | QN15: 0 | QO15: 0 | QP15: 0 | QQ15: 0 | QR15: 0 | QS15: 0 | QT15: 0 | QU15: 0 | QV15: 0 | QW15: 0 | QX15: 0 | QY15: 0 | QZ15: 0 | RA15: 0 | RB15: 0 | RC15: 0 | RD15: 0 | RE15: 0 | RF15: 0 | RG15: 0 | RH15: 0 | RI15: 0 | RJ15: 0 | RK15: 0 | RL15: 0 | RM15: 0 | RN15: 0 | RO15: 0 | RQ15: 0 | RR15: 0 | RS15: 0 | RT15: 0 | RU15: 0 | RV15: 0 | RW15: 0 | RX15: 0 | RY15: 0 | RZ15: 0 | SA15: 0 | SB15: 0 | SC15: 0 | SD15: 0 | SE15: 0 | SF15: 0 | SG15: 0 | SH15: 0 | SI15: 0 | SJ15: 0
... 18 more rows

Sheet I_ER
B1: Exhibit A Exisiting Resources (MWh)
A2: TOC | D2: 2015-10-01 | E2: 2015-10-01 | F2: 2015-11-01 | G2: 2015-11-01 | H2: 2015-12-01 | I2: 2015-12-01 | J2: 2016-01-01 | K2: 2016-01-01 | L2: 2016-02-01 | M2: 2016-02-01 | N2: 2016-03-01 | O2: 2016-03-01 | P2: 2016-04-01 | Q2: 2016-04-01 | R2: 2016-05-01 | S2: 2016-05-01 | T2: 2016-06-01 | U2: 2016-06-01 | V2: 2016-07-01 | W2: 2016-07-01 | X2: 2016-08-01 | Y2: 2016-08-01 | Z2: 2016-09-01 | AA2: 2016-09-01 | AB2: 2016-10-01 | AC2: 2016-10-01 | AD2: 2016-11-01 | AE2: 2016-11-01 | AF2: 2016-12-01 | AG2: 2016-12-01 | AH2: 2017-01-01 | AI2: 2017-01-01 | AJ2: 2017-02-01 | AK2: 2017-02-01 | AL2: 2017-03-01 | AM2: 2017-03-01 | AN2: 2017-04-01 | AO2: 2017-04-01 | AP2: 2017-05-01 | AQ2: 2017-05-01 | AR2: 2017-06-01 | AS2: 2017-06-01 | AT2: 2017-07-01 | AU2: 2017-07-01 | AV2: 2017-08-01 | AW2: 2017-08-01 | AX2: 2017-09-01 | AY2: 2017-09-01 | AZ2: 2017-10-01 | BA2: 2017-10-01 | BB2: 2017-11-01 | BC2: 2017-11-01 | BD2: 2017-12-01 | BE2: 2017-12-01 | BF2: 2018-01-01 | BG2: 2018-01-01 | BH2: 2018-02-01 | BI2: 2018-02-01 | BJ2: 2018-03-01 | BK2: 2018-03-01 | BL2: 2018-04-01 | BM2: 2018-04-01 | BN2: 2018-05-01 | BO2: 2018-05-01 | BP2: 2018-06-01 | BQ2: 2018-06-01 | BR2: 2018-07-01 | BS2: 2018-07-01 | BT2: 2018-08-01 | BU2: 2018-08-01 | BV2: 2018-09-01 | BW2: 2018-09-01 | BX2: 2018-10-01 | BY2: 2018-10-01 | BZ2: 2018-11-01 | CA2: 2018-11-01 | CB2: 2018-12-01 | CC2: 2018-12-01 | CD2: 2019-01-01 | CE2: 2019-01-01 | CF2: 2019-02-01 | CG2: 2019-02-01 | CH2: 2019-03-01 | CI2: 2019-03-01 | CJ2: 2019-04-01 | CK2: 2019-04-01 | CL2: 2019-05-01 | CM2: 2019-05-01 | CN2: 2019-06-01 | CO2: 2019-06-01 | CP2: 2019-07-01 | CQ2: 2019-07-01 | CR2: 2019-08-01 | CS2: 2019-08-01 | CT2: 2019-09-01 | CU2: 2019-09-01 | CV2: 2019-10-01 | CW2: 2019-10-01 | CX2: 2019-11-01 | CY2: 2019-11-01 | CZ2: 2019-12-01 | DA2: 2019-12-01 | DB2: 2020-01-01 | DC2: 2020-01-01 | DD2: 2020-02-01 | DE2: 2020-02-01 | DF2: 2020-03-01 | DG2: 2020-03-01 | DH2: 2020-04-01 | DI2: 2020-04-01 | DJ2: 2020-05-01 | DK2: 2020-05-01 | DL2: 2020-06-01 | DM2: 2020-06-01 | DN2: 2020-07-01 | DO2: 2020-07-01 | DP2: 2020-08-01 | DQ2: 2020-08-01 | DR2: 2020-09-01 | DS2: 2020-09-01 | DT2: 2020-10-01 | DU2: 2020-10-01 | DV2: 2020-11-01 | DW2: 2020-11-01 | DX2: 2020-12-01 | DY2: 2020-12-01 | DZ2: 2021-01-01 | EA2: 2021-01-01 | EB2: 2021-02-01 | EC2: 2021-02-01 | ED2: 2021-03-01 | EE2: 2021-03-01 | EF2: 2021-04-01 | EG2: 2021-04-01 | EH2: 2021-05-01 | EI2: 2021-05-01 | EJ2: 2021-06-01 | EK2: 2021-06-01 | EL2: 2021-07-01 | EM2: 2021-07-01 | EN2: 2021-08-01 | EO2: 2021-08-01 | EP2: 2021-09-01 | EQ2: 2021-09-01 | ER2: 2021-10-01 | ES2: 2021-10-01 | ET2: 2021-11-01 | EU2: 2021-11-01 | EV2: 2021-12-01 | EW2: 2021-12-01 | EX2: 2022-01-01 | EY2: 2022-01-01 | EZ2: 2022-02-01 | FA2: 2022-02-01 | FB2: 2022-03-01 | FC2: 2022-03-01 | FD2: 2022-04-01 | FE2: 2022-04-01 | FF2: 2022-05-01 | FG2: 2022-05-01 | FH2: 2022-06-01 | FI2: 2022-06-01 | FJ2: 2022-07-01 | FK2: 2022-07-01 | FL2: 2022-08-01 | FM2: 2022-08-01 | FN2: 2022-09-01 | FO2: 2022-09-01 | FP2: 2022-10-01 | FQ2: 2022-10-01 | FR2: 2022-11-01 | FS2: 2022-11-01 | FT2: 2022-12-01 | FU2: 2022-12-01 | FV2: 2023-01-01 | FW2: 2023-01-01 | FX2: 2023-02-01 | FY2: 2023-02-01 | FZ2: 2023-03-01 | GA2: 2023-03-01 | GB2: 2023-04-01 | GC2: 2023-04-01 | GD2: 2023-05-01 | GE2: 2023-05-01 | GF2: 2023-06-01 | GG2: 2023-06-01 | GH2: 2023-07-01 | GI2: 2023-07-01 | GJ2: 2023-08-01 | GK2: 2023-08-01 | GL2: 2023-09-01 | GM2: 2023-09-01 | GN2: 2023-10-01 | GO2: 2023-10-01 | GP2: 2023-11-01 | GQ2: 2023-11-01 | GR2: 2023-12-01 | GS2: 2023-12-01 | GT2: 2024-01-01 | GU2: 2024-01-01 | GV2: 2024-02-01 | GW2: 2024-02-01 | GX2: 2024-03-01 | GY2: 2024-03-01 | GZ2: 2024-04-01 | HA2: 2024-04-01 | HB2: 2024-05-01 | HC2: 2024-05-01 | HD2: 2024-06-01 | HE2: 2024-06-01 | HF2: 2024-07-01 | HG2: 2024-07-01 | HH2: 2024-08-01 | HI2: 2024-08-01 | HJ2: 2024-09-01 | HK2: 2024-09-01 | HL2: 2024-10-01 | HM2: 2024-10-01 | HN2: 2024-11-01 | HO2: 2024-11-01 | HP2: 2024-12-01 | HQ2: 2024-12-01 | HR2: 2025-01-01 | HS2: 2025-01-01 | HT2: 2025-02-01 | HU2: 2025-02-01 | HV2: 2025-03-01 | HW2: 2025-03-01 | HX2: 2025-04-01 | HY2: 2025-04-01 | HZ2: 2025-05-01 | IA2: 2025-05-01 | IB2: 2025-06-01 | IC2: 2025-06-01 | ID2: 2025-07-01 | IE2: 2025-07-01 | IF2: 2025-08-01 | IG2: 2025-08-01 | IH2: 2025-09-01 | II2: 2025-09-01 | IJ2: 2025-10-01 | IK2: 2025-10-01 | IL2: 2025-11-01 | IM2: 2025-11-01 | IN2: 2025-12-01 | IO2: 2025-12-01 | IP2: 2026-01-01 | IQ2: 2026-01-01 | IR2: 2026-02-01 | IS2: 2026-02-01 | IT2: 2026-03-01 | IU2: 2026-03-01 | IV2: 2026-04-01 | IW2: 2026-04-01 | IX2: 2026-05-01 | IY2: 2026-05-01 | IZ2: 2026-06-01 | JA2: 2026-06-01 | JB2: 2026-07-01 | JC2: 2026-07-01 | JD2: 2026-08-01 | JE2: 2026-08-01 | JF2: 2026-09-01 | JG2: 2026-09-01 | JH2: 2026-10-01 | JI2: 2026-10-01 | JJ2: 2026-11-01 | JK2: 2026-11-01 | JL2: 2026-12-01 | JM2: 2026-12-01 | JN2: 2027-01-01 | JO2: 2027-01-01 | JP2: 2027-02-01 | JQ2: 2027-02-01 | JR2: 2027-03-01 | JS2: 2027-03-01 | JT2: 2027-04-01 | JU2: 2027-04-01 | JV2: 2027-05-01 | JW2: 2027-05-01 | JX2: 2027-06-01 | JY2: 2027-06-01 | JZ2: 2027-07-01 | KA2: 2027-07-01 | KB2: 2027-08-01 | KC2: 2027-08-01 | KD2: 2027-09-01 | KE2: 2027-09-01 | KF2: 2027-10-01 | KG2: 2027-10-01 | KH2: 2027-11-01 | KI2: 2027-11-01 | KJ2: 2027-12-01 | KK2: 2027-12-01 | KL2: 2028-01-01 | KM2: 2028-01-01 | KN2: 2028-02-01 | KO2: 2028-02-01 | KP2: 2028-03-01 | KQ2: 2028-03-01 | KR2: 2028-04-01 | KS2: 2028-04-01 | KT2: 2028-05-01 | KU2: 2028-05-01 | KV2: 2028-06-01 | KW2: 2028-06-01 | KX2: 2028-07-01 | KY2: 2028-07-01 | KZ2: 2028-08-01 | LA2: 2028-08-01 | LB2: 2028-09-01 | LC2: 2028-09-01 | LD2: 2028-10-01 | LE2: 2028-10-01 | LF2: 2028-11-01 | LG2: 2028-11-01 | LH2: 2028-12-01 | LI2: 2028-12-01 | LJ2: 2029-01-01 | LK2: 2029-01-01 | LL2: 2029-02-01 | LM2: 2029-02-01 | LN2: 2029-03-01 | LO2: 2029-03-01 | LP2: 2029-04-01 | LQ2: 2029-04-01 | LR2: 2029-05-01 | LS2: 2029-05-01 | LT2: 2029-06-01 | LU2: 2029-06-01 | LV2: 2029-07-01 | LW2: 2029-07-01 | LX2: 2029-08-01 | LY2: 2029-08-01 | LZ2: 2029-09-01 | MA2: 2029-09-01 | MB2: 2029-10-01 | MC2: 2029-10-01 | MD2: 2029-11-01 | ME2: 2029-11-01 | MF2: 2029-12-01 | MG2: 2029-12-01 | MH2: 2030-01-01 | MI2: 2030-01-01 | MJ2: 2030-02-01 | MK2: 2030-02-01 | ML2: 2030-03-01 | MM2: 2030-03-01 | MN2: 2030-04-01 | MO2: 2030-04-01 | MP2: 2030-05-01 | MQ2: 2030-05-01 | MR2: 2030-06-01 | MS2: 2030-06-01 | MT2: 2030-07-01 | MU2: 2030-07-01 | MV2: 2030-08-01 | MW2: 2030-08-01 | MX2: 2030-09-01 | MY2: 2030-09-01 | MZ2: 2030-10-01 | NA2: 2030-10-01 | NB2: 2030-11-01 | NC2: 2030-11-01 | ND2: 2030-12-01 | NE2: 2030-12-01 | NF2: 2031-01-01 | NG2: 2031-01-01 | NH2: 2031-02-01 | NI2: 2031-02-01 | NJ2: 2031-03-01 | NK2: 2031-03-01 | NL2: 2031-04-01 | NM2: 2031-04-01 | NN2: 2031-05-01 | NO2: 2031-05-01 | NP2: 2031-06-01 | NQ2: 2031-06-01 | NR2: 2031-07-01 | NS2: 2031-07-01 | NT2: 2031-08-01 | NU2: 2031-08-01 | NV2: 2031-09-01 | NW2: 2031-09-01 | NX2: =DATE(YEAR(NV2),MONTH(NV2)+1,1) -> 2031-10-01 | NY2: 2031-10-01 | NZ2: 2031-11-01 | OA2: 2031-11-01 | OB2: 2031-12-01 | OC2: 2031-12-01 | OD2: 2032-01-01 | OE2: 2032-01-01 | OF2: 2032-02-01 | OG2: 2032-02-01 | OH2: 2032-03-01 | OI2: 2032-03-01 | OJ2: 2032-04-01 | OK2: 2032-04-01 | OL2: 2032-05-01 | OM2: 2032-05-01 | ON2: 2032-06-01 | OO2: 2032-06-01 | OP2: 2032-07-01 | OQ2: 2032-07-01 | OR2: 2032-08-01 | OS2: 2032-08-01 | OT2: 2032-09-01 | OU2: 2032-09-01 | OV2: 2032-10-01 | OW2: 2032-10-01 | OX2: 2032-11-01 | OY2: 2032-11-01 | OZ2: 2032-12-01 | PA2: 2032-12-01 | PB2: 2033-01-01 | PC2: 2033-01-01 | PD2: 2033-02-01 | PE2: 2033-02-01 | PF2: 2033-03-01 | PG2: 2033-03-01 | PH2: 2033-04-01 | PI2: 2033-04-01 | PJ2: 2033-05-01 | PK2: 2033-05-01 | PL2: 2033-06-01 | PM2: 2033-06-01 | PN2: 2033-07-01 | PO2: 2033-07-01 | PP2: 2033-08-01 | PQ2: 2033-08-01 | PR2: 2033-09-01 | PS2: 2033-09-01 | PT2: 2033-10-01 | PU2: 2033-10-01 | PV2: 2033-11-01 | PW2: 2033-11-01 | PX2: 2033-12-01 | PY2: 2033-12-01 | PZ2: 2034-01-01 | QA2: 2034-01-01 | QB2: 2034-02-01 | QC2: 2034-02-01 | QD2: 2034-03-01 | QE2: 2034-03-01 | QF2: 2034-04-01 | QG2: 2034-04-01 | QH2: 2034-05-01 | QI2: 2034-05-01 | QJ2: 2034-06-01 | QK2: 2034-06-01 | QL2: 2034-07-01 | QM2: 2034-07-01 | QN2: 2034-08-01 | QO2: 2034-08-01 | QP2: 2034-09-01 | QQ2: 2034-09-01 | QR2: 2034-10-01 | QS2: 2034-10-01 | QT2: 2034-11-01 | QU2: 2034-11-01 | QV2: 2034-12-01 | QW2: 2034-12-01 | QX2: 2035-01-01 | QY2: 2035-01-01 | QZ2: 2035-02-01 | RA2: 2035-02-01 | RB2: 2035-03-01 | RC2: 2035-03-01 | RD2: 2035-04-01 | RE2: 2035-04-01 | RF2: 2035-05-01 | RG2: 2035-05-01 | RH2: 2035-06-01 | RI2: 2035-06-01 | RJ2: 2035-07-01 | RK2: 2035-07-01 | RL2: 2035-08-01 | RM2: 2035-08-01 | RN2: 2035-09-01 | RO2: 2035-09-01 | RQ2: 2016 | RR2: 2017 | RS2: 2018 | RT2: 2019 | RU2: 2020 | RV2: 2021 | RW2: 2022 | RX2: 2023 | RY2: 2024 | RZ2: 2025 | SA2: 2026 | SB2: 2027 | SC2: 2028 | SD2: 2029 | SE2: 2030 | SF2: 2031 | SG2: 2032 | SH2: 2033 | SI2: 2034 | SJ2: 2035
B3: BESID | C3: AccountName | D3: HLH | E3: LLH | F3: HLH | G3: LLH | H3: HLH | I3: LLH | J3: HLH | K3: LLH | L3: HLH | M3: LLH | N3: HLH | O3: LLH | P3: HLH | Q3: LLH | R3: HLH | S3: LLH | T3: HLH | U3: LLH | V3: HLH | W3: LLH | X3: HLH | Y3: LLH | Z3: HLH | AA3: LLH | AB3: HLH | AC3: LLH | AD3: HLH | AE3: LLH | AF3: HLH | AG3: LLH | AH3: HLH | AI3: LLH | AJ3: HLH | AK3: LLH | AL3: HLH | AM3: LLH | AN3: HLH | AO3: LLH | AP3: HLH | AQ3: LLH | AR3: HLH | AS3: LLH | AT3: HLH | AU3: LLH | AV3: HLH | AW3: LLH | AX3: HLH | AY3: LLH | AZ3: HLH | BA3: LLH | BB3: HLH | BC3: LLH | BD3: HLH | BE3: LLH | BF3: HLH | BG3: LLH | BH3: HLH | BI3: LLH | BJ3: HLH | BK3: LLH | BL3: HLH | BM3: LLH | BN3: HLH | BO3: LLH | BP3: HLH | BQ3: LLH | BR3: HLH | BS3: LLH | BT3: HLH | BU3: LLH | BV3: HLH | BW3: LLH | BX3: HLH | BY3: LLH | BZ3: HLH | CA3: LLH | CB3: HLH | CC3: LLH | CD3: HLH | CE3: LLH | CF3: HLH | CG3: LLH | CH3: HLH | CI3: LLH | CJ3: HLH | CK3: LLH | CL3: HLH | CM3: LLH | CN3: HLH | CO3: LLH | CP3: HLH | CQ3: LLH | CR3: HLH | CS3: LLH | CT3: HLH | CU3: LLH | CV3: HLH | CW3: LLH | CX3: HLH | CY3: LLH | CZ3: HLH | DA3: LLH | DB3: HLH | DC3: LLH | DD3: HLH | DE3: LLH | DF3: HLH | DG3: LLH | DH3: HLH | DI3: LLH | DJ3: HLH | DK3: LLH | DL3: HLH | DM3: LLH | DN3: HLH | DO3: LLH | DP3: HLH | DQ3: LLH | DR3: HLH | DS3: LLH | DT3: HLH | DU3: LLH | DV3: HLH | DW3: LLH | DX3: HLH | DY3: LLH | DZ3: HLH | EA3: LLH | EB3: HLH | EC3: LLH | ED3: HLH | EE3: LLH | EF3: HLH | EG3: LLH | EH3: HLH | EI3: LLH | EJ3: HLH | EK3: LLH | EL3: HLH | EM3: LLH | EN3: HLH | EO3: LLH | EP3: HLH | EQ3: LLH | ER3: HLH | ES3: LLH | ET3: HLH | EU3: LLH | EV3: HLH | EW3: LLH | EX3: HLH | EY3: LLH | EZ3: HLH | FA3: LLH | FB3: HLH | FC3: LLH | FD3: HLH | FE3: LLH | FF3: HLH | FG3: LLH | FH3: HLH | FI3: LLH | FJ3: HLH | FK3: LLH | FL3: HLH | FM3: LLH | FN3: HLH | FO3: LLH | FP3: HLH | FQ3: LLH | FR3: HLH | FS3: LLH | FT3: HLH | FU3: LLH | FV3: HLH | FW3: LLH | FX3: HLH | FY3: LLH | FZ3: HLH | GA3: LLH | GB3: HLH | GC3: LLH | GD3: HLH | GE3: LLH | GF3: HLH | GG3: LLH | GH3: HLH | GI3: LLH | GJ3: HLH | GK3: LLH | GL3: HLH | GM3: LLH | GN3: HLH | GO3: LLH | GP3: HLH | GQ3: LLH | GR3: HLH | GS3: LLH | GT3: HLH | GU3: LLH | GV3: HLH | GW3: LLH | GX3: HLH | GY3: LLH | GZ3: HLH | HA3: LLH | HB3: HLH | HC3: LLH | HD3: HLH | HE3: LLH | HF3: HLH | HG3: LLH | HH3: HLH | HI3: LLH | HJ3: HLH | HK3: LLH | HL3: HLH | HM3: LLH | HN3: HLH | HO3: LLH | HP3: HLH | HQ3: LLH | HR3: HLH | HS3: LLH | HT3: HLH | HU3: LLH | HV3: HLH | HW3: LLH | HX3: HLH | HY3: LLH | HZ3: HLH | IA3: LLH | IB3: HLH | IC3: LLH | ID3: HLH | IE3: LLH | IF3: HLH | IG3: LLH | IH3: HLH | II3: LLH | IJ3: HLH | IK3: LLH | IL3: HLH | IM3: LLH | IN3: HLH | IO3: LLH | IP3: HLH | IQ3: LLH | IR3: HLH | IS3: LLH | IT3: HLH | IU3: LLH | IV3: HLH | IW3: LLH | IX3: HLH | IY3: LLH | IZ3: HLH | JA3: LLH | JB3: HLH | JC3: LLH | JD3: HLH | JE3: LLH | JF3: HLH | JG3: LLH | JH3: HLH | JI3: LLH | JJ3: HLH | JK3: LLH | JL3: HLH | JM3: LLH | JN3: HLH | JO3: LLH | JP3: HLH | JQ3: LLH | JR3: HLH | JS3: LLH | JT3: HLH | JU3: LLH | JV3: HLH | JW3: LLH | JX3: HLH | JY3: LLH | JZ3: HLH | KA3: LLH | KB3: HLH | KC3: LLH | KD3: HLH | KE3: LLH | KF3: HLH | KG3: LLH | KH3: HLH | KI3: LLH | KJ3: HLH | KK3: LLH | KL3: HLH | KM3: LLH | KN3: HLH | KO3: LLH | KP3: HLH | KQ3: LLH | KR3: HLH | KS3: LLH | KT3: HLH | KU3: LLH | KV3: HLH | KW3: LLH | KX3: HLH | KY3: LLH | KZ3: HLH | LA3: LLH | LB3: HLH | LC3: LLH | LD3: HLH | LE3: LLH | LF3: HLH | LG3: LLH | LH3: HLH | LI3: LLH | LJ3: HLH | LK3: LLH | LL3: HLH | LM3: LLH | LN3: HLH | LO3: LLH | LP3: HLH | LQ3: LLH | LR3: HLH | LS3: LLH | LT3: HLH | LU3: LLH | LV3: HLH | LW3: LLH | LX3: HLH | LY3: LLH | LZ3: HLH | MA3: LLH | MB3: HLH | MC3: LLH | MD3: HLH | ME3: LLH | MF3: HLH | MG3: LLH | MH3: HLH | MI3: LLH | MJ3: HLH | MK3: LLH | ML3: HLH | MM3: LLH | MN3: HLH | MO3: LLH | MP3: HLH | MQ3: LLH | MR3: HLH | MS3: LLH | MT3: HLH | MU3: LLH | MV3: HLH | MW3: LLH | MX3: HLH | MY3: LLH | MZ3: HLH | NA3: LLH | NB3: HLH | NC3: LLH | ND3: HLH | NE3: LLH | NF3: HLH | NG3: LLH | NH3: HLH | NI3: LLH | NJ3: HLH | NK3: LLH | NL3: HLH | NM3: LLH | NN3: HLH | NO3: LLH | NP3: HLH | NQ3: LLH | NR3: HLH | NS3: LLH | NT3: HLH | NU3: LLH | NV3: HLH | NW3: LLH | NX3: HLH | NY3: LLH | NZ3: HLH | OA3: LLH | OB3: HLH | OC3: LLH | OD3: HLH | OE3: LLH | OF3: HLH | OG3: LLH | OH3: HLH | OI3: LLH | OJ3: HLH | OK3: LLH | OL3: HLH | OM3: LLH | ON3: HLH | OO3: LLH | OP3: HLH | OQ3: LLH | OR3: HLH | OS3: LLH | OT3: HLH | OU3: LLH | OV3: HLH | OW3: LLH | OX3: HLH | OY3: LLH | OZ3: HLH | PA3: LLH | PB3: HLH | PC3: LLH | PD3: HLH | PE3: LLH | PF3: HLH | PG3: LLH | PH3: HLH | PI3: LLH | PJ3: HLH | PK3: LLH | PL3: HLH | PM3: LLH | PN3: HLH | PO3: LLH | PP3: HLH | PQ3: LLH | PR3: HLH | PS3: LLH | PT3: HLH | PU3: LLH | PV3: HLH | PW3: LLH | PX3: HLH | PY3: LLH | PZ3: HLH | QA3: LLH | QB3: HLH | QC3: LLH | QD3: HLH | QE3: LLH | QF3: HLH | QG3: LLH | QH3: HLH | QI3: LLH | QJ3: HLH | QK3: LLH | QL3: HLH | QM3: LLH | QN3: HLH | QO3: LLH | QP3: HLH | QQ3: LLH | QR3: HLH | QS3: LLH | QT3: HLH | QU3: LLH | QV3: HLH | QW3: LLH | QX3: HLH | QY3: LLH | QZ3: HLH | RA3: LLH | RB3: HLH | RC3: LLH | RD3: HLH | RE3: LLH | RF3: HLH | RG3: LLH | RH3: HLH | RI3: LLH | RJ3: HLH | RK3: LLH | RL3: HLH | RM3: LLH | RN3: HLH | RO3: LLH
B4: 10015 | C4: Asotin County PUD #1 | D4: 0 | E4: 0 | F4: 0 | G4: 0 | H4: 0 | I4: 0 | J4: 0 | K4: 0 | L4: 0 | M4: 0 | N4: 0 | O4: 0 | P4: 0 | Q4: 0 | R4: 0 | S4: 0 | T4: 0 | U4: 0 | V4: 0 | W4: 0 | X4: 0 | Y4: 0 | Z4: 0 | AA4: 0 | AB4: 0 | AC4: 0 | AD4: 0 | AE4: 0 | AF4: 0 | AG4: 0 | AH4: 0 | AI4: 0 | AJ4: 0 | AK4: 0 | AL4: 0 | AM4: 0 | AN4: 0 | AO4: 0 | AP4: 0 | AQ4: 0 | AR4: 0 | AS4: 0 | AT4: 0 | AU4: 0 | AV4: 0 | AW4: 0 | AX4: 0 | AY4: 0 | AZ4: 0 | BA4: 0 | BB4: 0 | BC4: 0 | BD4: 0 | BE4: 0 | BF4: 0 | BG4: 0 | BH4: 0 | BI4: 0 | BJ4: 0 | BK4: 0 | BL4: 0 | BM4: 0 | BN4: 0 | BO4: 0 | BP4: 0 | BQ4: 0 | BR4: 0 | BS4: 0 | BT4: 0 | BU4: 0 | BV4: 0 | BW4: 0 | BX4: 0 | BY4: 0 | BZ4: 0 | CA4: 0 | CB4: 0 | CC4: 0 | CD4: 0 | CE4: 0 | CF4: 0 | CG4: 0 | CH4: 0 | CI4: 0 | CJ4: 0 | CK4: 0 | CL4: 0 | CM4: 0 | CN4: 0 | CO4: 0 | CP4: 0 | CQ4: 0 | CR4: 0 | CS4: 0 | CT4: 0 | CU4: 0 | CV4: 0 | CW4: 0 | CX4: 0 | CY4: 0 | CZ4: 0 | DA4: 0 | DB4: 0 | DC4: 0 | DD4: 0 | DE4: 0 | DF4: 0 | DG4: 0 | DH4: 0 | DI4: 0 | DJ4: 0 | DK4: 0 | DL4: 0 | DM4: 0 | DN4: 0 | DO4: 0 | DP4: 0 | DQ4: 0 | DR4: 0 | DS4: 0 | DT4: 0 | DU4: 0 | DV4: 0 | DW4: 0 | DX4: 0 | DY4: 0 | DZ4: 0 | EA4: 0 | EB4: 0 | EC4: 0 | ED4: 0 | EE4: 0 | EF4: 0 | EG4: 0 | EH4: 0 | EI4: 0 | EJ4: 0 | EK4: 0 | EL4: 0 | EM4: 0 | EN4: 0 | EO4: 0 | EP4: 0 | EQ4: 0 | ER4: 0 | ES4: 0 | ET4: 0 | EU4: 0 | EV4: 0 | EW4: 0 | EX4: 0 | EY4: 0 | EZ4: 0 | FA4: 0 | FB4: 0 | FC4: 0 | FD4: 0 | FE4: 0 | FF4: 0 | FG4: 0 | FH4: 0 | FI4: 0 | FJ4: 0 | FK4: 0 | FL4: 0 | FM4: 0 | FN4: 0 | FO4: 0 | FP4: 0 | FQ4: 0 | FR4: 0 | FS4: 0 | FT4: 0 | FU4: 0 | FV4: 0 | FW4: 0 | FX4: 0 | FY4: 0 | FZ4: 0 | GA4: 0 | GB4: 0 | GC4: 0 | GD4: 0 | GE4: 0 | GF4: 0 | GG4: 0 | GH4: 0 | GI4: 0 | GJ4: 0 | GK4: 0 | GL4: 0 | GM4: 0 | GN4: 0 | GO4: 0 | GP4: 0 | GQ4: 0 | GR4: 0 | GS4: 0 | GT4: 0 | GU4: 0 | GV4: 0 | GW4: 0 | GX4: 0 | GY4: 0 | GZ4: 0 | HA4: 0 | HB4: 0 | HC4: 0 | HD4: 0 | HE4: 0 | HF4: 0 | HG4: 0 | HH4: 0 | HI4: 0 | HJ4: 0 | HK4: 0 | HL4: 0 | HM4: 0 | HN4: 0 | HO4: 0 | HP4: 0 | HQ4: 0 | HR4: 0 | HS4: 0 | HT4: 0 | HU4: 0 | HV4: 0 | HW4: 0 | HX4: 0 | HY4: 0 | HZ4: 0 | IA4: 0 | IB4: 0 | IC4: 0 | ID4: 0 | IE4: 0 | IF4: 0 | IG4: 0 | IH4: 0 | II4: 0 | IJ4: 0 | IK4: 0 | IL4: 0 | IM4: 0 | IN4: 0 | IO4: 0 | IP4: 0 | IQ4: 0 | IR4: 0 | IS4: 0 | IT4: 0 | IU4: 0 | IV4: 0 | IW4: 0 | IX4: 0 | IY4: 0 | IZ4: 0 | JA4: 0 | JB4: 0 | JC4: 0 | JD4: 0 | JE4: 0 | JF4: 0 | JG4: 0 | JH4: 0 | JI4: 0 | JJ4: 0 | JK4: 0 | JL4: 0 | JM4: 0 | JN4: 0 | JO4: 0 | JP4: 0 | JQ4: 0 | JR4: 0 | JS4: 0 | JT4: 0 | JU4: 0 | JV4: 0 | JW4: 0 | JX4: 0 | JY4: 0 | JZ4: 0 | KA4: 0 | KB4: 0 | KC4: 0 | KD4: 0 | KE4: 0 | KF4: 0 | KG4: 0 | KH4: 0 | KI4: 0 | KJ4: 0 | KK4: 0 | KL4: 0 | KM4: 0 | KN4: 0 | KO4: 0 | KP4: 0 | KQ4: 0 | KR4: 0 | KS4: 0 | KT4: 0 | KU4: 0 | KV4: 0 | KW4: 0 | KX4: 0 | KY4: 0 | KZ4: 0 | LA4: 0 | LB4: 0 | LC4: 0 | LD4: =+KF4 -> 0 | LE4: =+KG4 -> 0 | LF4: =+KH4 -> 0 | LG4: =+KI4 -> 0 | LH4: =+KJ4 -> 0 | LI4: =+KK4 -> 0 | LJ4: =+KL4 -> 0 | LK4: =+KM4 -> 0 | LL4: =+KN4 -> 0 | LM4: =+KO4 -> 0 | LN4: =+KP4 -> 0 | LO4: =+KQ4 -> 0 | LP4: =+KR4 -> 0 | LQ4: =+KS4 -> 0 | LR4: =+KT4 -> 0 | LS4: =+KU4 -> 0 | LT4: =+KV4 -> 0 | LU4: =+KW4 -> 0 | LV4: =+KX4 -> 0 | LW4: =+KY4 -> 0 | LX4: =+KZ4 -> 0 | LY4: =+LA4 -> 0 | LZ4: =+LB4 -> 0 | MA4: =+LC4 -> 0 | MB4: =+LD4 -> 0 | MC4: =+LE4 -> 0 | MD4: =+LF4 -> 0 | ME4: =+LG4 -> 0 | MF4: =+LH4 -> 0 | MG4: =+LI4 -> 0 | MH4: =+LJ4 -> 0 | MI4: =+LK4 -> 0 | MJ4: =+LL4 -> 0 | MK4: =+LM4 -> 0 | ML4: =+LN4 -> 0 | MM4: =+LO4 -> 0 | MN4: =+LP4 -> 0 | MO4: =+LQ4 -> 0 | MP4: =+LR4 -> 0 | MQ4: =+LS4 -> 0 | MR4: =+LT4 -> 0 | MS4: =+LU4 -> 0 | MT4: =+LV4 -> 0 | MU4: =+LW4 -> 0 | MV4: =+LX4 -> 0 | MW4: =+LY4 -> 0 | MX4: =+LZ4 -> 0 | MY4: =+MA4 -> 0 | MZ4: =+MB4 -> 0 | NA4: =+MC4 -> 0 | NB4: =+MD4 -> 0 | NC4: =+ME4 -> 0 | ND4: =+MF4 -> 0 | NE4: =+MG4 -> 0 | NF4: =+MH4 -> 0 | NG4: =+MI4 -> 0 | NH4: =+MJ4 -> 0 | NI4: =+MK4 -> 0 | NJ4: =+ML4 -> 0 | NK4: =+MM4 -> 0 | NL4: =+MN4 -> 0 | NM4: =+MO4 -> 0 | NN4: =+MP4 -> 0 | NO4: =+MQ4 -> 0 | NP4: =+MR4 -> 0 | NQ4: =+MS4 -> 0 | NR4: =+MT4 -> 0 | NS4: =+MU4 -> 0 | NT4: =+MV4 -> 0 | NU4: =+MW4 -> 0 | NV4: =+MX4 -> 0 | NW4: =+MY4 -> 0 | NX4: =+MZ4 -> 0 | NY4: =+NA4 -> 0 | NZ4: =+NB4 -> 0 | OA4: =+NC4 -> 0 | OB4: =+ND4 -> 0 | OC4: =+NE4 -> 0 | OD4: =+NF4 -> 0 | OE4: =+NG4 -> 0 | OF4: =+NH4 -> 0 | OG4: =+NI4 -> 0 | OH4: =+NJ4 -> 0 | OI4: =+NK4 -> 0 | OJ4: =+NL4 -> 0 | OK4: =+NM4 -> 0 | OL4: =+NN4 -> 0 | OM4: =+NO4 -> 0 | ON4: =+NP4 -> 0 | OO4: =+NQ4 -> 0 | OP4: =+NR4 -> 0 | OQ4: =+NS4 -> 0 | OR4: =+NT4 -> 0 | OS4: =+NU4 -> 0 | OT4: =+NV4 -> 0 | OU4: =+NW4 -> 0 | OV4: =+NX4 -> 0 | OW4: =+NY4 -> 0 | OX4: =+NZ4 -> 0 | OY4: =+OA4 -> 0 | OZ4: =+OB4 -> 0 | PA4: =+OC4 -> 0 | PB4: =+OD4 -> 0 | PC4: =+OE4 -> 0 | PD4: =+OF4 -> 0 | PE4: =+OG4 -> 0 | PF4: =+OH4 -> 0 | PG4: =+OI4 -> 0 | PH4: =+OJ4 -> 0 | PI4: =+OK4 -> 0 | PJ4: =+OL4 -> 0 | PK4: =+OM4 -> 0 | PL4: =+ON4 -> 0 | PM4: =+OO4 -> 0 | PN4: =+OP4 -> 0 | PO4: =+OQ4 -> 0 | PP4: =+OR4 -> 0 | PQ4: =+OS4 -> 0 | PR4: =+OT4 -> 0 | PS4: =+OU4 -> 0 | PT4: =+OV4 -> 0 | PU4: =+OW4 -> 0 | PV4: =+OX4 -> 0 | PW4: =+OY4 -> 0 | PX4: =+OZ4 -> 0 | PY4: =+PA4 -> 0 | PZ4: =+PB4 -> 0 | QA4: =+PC4 -> 0 | QB4: =+PD4 -> 0 | QC4: =+PE4 -> 0 | QD4: =+PF4 -> 0 | QE4: =+PG4 -> 0 | QF4: =+PH4 -> 0 | QG4: =+PI4 -> 0 | QH4: =+PJ4 -> 0 | QI4: =+PK4 -> 0 | QJ4: =+PL4 -> 0 | QK4: =+PM4 -> 0 | QL4: =+PN4 -> 0 | QM4: =+PO4 -> 0 | QN4: =+PP4 -> 0 | QO4: =+PQ4 -> 0 | QP4: =+PR4 -> 0 | QQ4: =+PS4 -> 0 | QR4: =+PT4 -> 0 | QS4: =+PU4 -> 0 | QT4: =+PV4 -> 0 | QU4: =+PW4 -> 0 | QV4: =+PX4 -> 0 | QW4: =+PY4 -> 0 | QX4: =+PZ4 -> 0 | QY4: =+QA4 -> 0 | QZ4: =+QB4 -> 0 | RA4: =+QC4 -> 0 | RB4: =+QD4 -> 0 | RC4: =+QE4 -> 0 | RD4: =+QF4 -> 0 | RE4: =+QG4 -> 0 | RF4: =+QH4 -> 0 | RG4: =+QI4 -> 0 | RH4: =+QJ4 -> 0 | RI4: =+QK4 -> 0 | RJ4: =+QL4 -> 0 | RK4: =+QM4 -> 0 | RL4: =+QN4 -> 0 | RM4: =+QO4 -> 0 | RN4: =+QP4 -> 0 | RO4: =+QQ4 -> 0 | RQ4: =+SUM(D4:AA4) -> 0 | RR4: =+SUM(AB4:AY4) -> 0 | RS4: =+SUM(AZ4:BW4) -> 0 | RT4: =+SUM(BX4:CU4) -> 0 | RU4: =+SUM(CV4:DS4) -> 0 | RV4: =+SUM(DT4:EQ4) -> 0 | RW4: =+SUM(ER4:FO4) -> 0 | RX4: =+SUM(FP4:GM4) -> 0 | RY4: =+SUM(GN4:HK4) -> 0 | RZ4: =+SUM(HL4:II4) -> 0 | SA4: =+SUM(IJ4:JG4) -> 0 | SB4: =+SUM(JH4:KE4) -> 0 | SC4: =+SUM(KF4:LC4) -> 0 | SD4: =+SUM(LD4:MA4) -> 0 | SE4: =+SUM(MB4:MY4) -> 0 | SF4: =+SUM(MZ4:NW4) -> 0 | SG4: =+SUM(NX4:OU4) -> 0 | SH4: =+SUM(OV4:PS4) -> 0 | SI4: =+SUM(PT4:QQ4) -> 0 | SJ4: =+SUM(QR4:RO4) -> 0
B5: 10024 | C5: Benton County PUD #1 | D5: 254 | E5: 183 | F5: 253 | G5: 221 | H5: 495 | I5: 390 | J5: 347 | K5: 299 | L5: 274 | M5: 203 | N5: 260 | O5: 187 | P5: 338 | Q5: 247 | R5: 661 | S5: 568 | T5: 664 | U5: 485 | V5: 414 | W5: 357 | X5: 321 | Y5: 231 | Z5: 230 | AA5: 183 | AB5: 245 | AC5: 192 | AD5: 263 | AE5: 211 | AF5: 495 | AG5: 390 | AH5: 347 | AI5: 299 | AJ5: 263 | AK5: 198 | AL5: 260 | AM5: 187 | AN5: 325 | AO5: 260 | AP5: 687 | AQ5: 542 | AR5: 664 | AS5: 485 | AT5: 414 | AU5: 357 | AV5: 321 | AW5: 231 | AX5: 230 | AY5: 183 | AZ5: 245 | BA5: 192 | BB5: 263 | BC5: 211 | BD5: 476 | BE5: 409 | BF5: 361 | BG5: 285 | BH5: 263 | BI5: 198 | BJ5: 260 | BK5: 187 | BL5: 325 | BM5: 260 | BN5: 687 | BO5: 542 | BP5: 664 | BQ5: 485 | BR5: 414 | BS5: 357 | BT5: 321 | BU5: 231 | BV5: 220 | BW5: 193 | BX5: 254 | BY5: 183 | BZ5: 263 | CA5: 211 | CB5: 476 | CC5: 409 | CD5: 361 | CE5: 285 | CF5: 263 | CG5: 198 | CH5: 250 | CI5: 197 | CJ5: 338 | CK5: 247 | CL5: 687 | CM5: 542 | CN5: 638 | CO5: 511 | CP5: 431 | CQ5: 340 | CR5: 321 | CS5: 231 | CT5: 220 | CU5: 193 | CV5: 254 | CW5: 183 | CX5: 263 | CY5: 211 | CZ5: 476 | DA5: 409 | DB5: 361 | DC5: 285 | DD5: 274 | DE5: 203 | DF5: 250 | DG5: 197 | DH5: 338 | DI5: 247 | DJ5: 661 | DK5: 568 | DL5: 664 | DM5: 485 | DN5: 431 | DO5: 340 | DP5: 309 | DQ5: 243 | DR5: 230 | DS5: 183 | DT5: 254 | DU5: 183 | DV5: 253 | DW5: 221 | DX5: 495 | DY5: 390 | DZ5: 347 | EA5: 299 | EB5: 263 | EC5: 198 | ED5: 260 | EE5: 187 | EF5: 338 | EG5: 247 | EH5: 661 | EI5: 568 | EJ5: 664 | EK5: 485 | EL5: 431 | EM5: 340 | EN5: 309 | EO5: 243 | EP5: 230 | EQ5: 183 | ER5: 245 | ES5: 192 | ET5: 263 | EU5: 211 | EV5: 495 | EW5: 390 | EX5: 347 | EY5: 299 | EZ5: 263 | FA5: 198 | FB5: 260 | FC5: 187 | FD5: 338 | FE5: 247 | FF5: 661 | FG5: 568 | FH5: 664 | FI5: 485 | FJ5: 414 | FK5: 357 | FL5: 321 | FM5: 231 | FN5: 230 | FO5: 183 | FP5: 245 | FQ5: 192 | FR5: 263 | FS5: 211 | FT5: 495 | FU5: 390 | FV5: 347 | FW5: 299 | FX5: 263 | FY5: 198 | FZ5: 260 | GA5: 187 | GB5: 325 | GC5: 260 | GD5: 687 | GE5: 542 | GF5: 664 | GG5: 485 | GH5: 414 | GI5: 357 | GJ5: 321 | GK5: 231 | GL5: 230 | GM5: 183 | GN5: 245 | GO5: 192 | GP5: 263 | GQ5: 211 | GR5: 476 | GS5: 409 | GT5: 361 | GU5: 285 | GV5: 274 | GW5: 203 | GX5: 250 | GY5: 197 | GZ5: 338 | HA5: 247 | HB5: 687 | HC5: 542 | HD5: 638 | HE5: 511 | HF5: 431 | HG5: 340 | HH5: 321 | HI5: 231 | HJ5: 220 | HK5: 193 | HL5: 254 | HM5: 183 | HN5: 263 | HO5: 211 | HP5: 476 | HQ5: 409 | HR5: 361 | HS5: 285 | HT5: 263 | HU5: 198 | HV5: 250 | HW5: 197 | HX5: 338 | HY5: 247 | HZ5: 687 | IA5: 542 | IB5: 638 | IC5: 511 | ID5: 431 | IE5: 340 | IF5: 309 | IG5: 243 | IH5: 230 | II5: 183 | IJ5: 254 | IK5: 183 | IL5: 253 | IM5: 221 | IN5: 495 | IO5: 390 | IP5: 361 | IQ5: 285 | IR5: 263 | IS5: 198 | IT5: 250 | IU5: 197 | IV5: 338 | IW5: 247 | IX5: 661 | IY5: 568 | IZ5: 664 | JA5: 485 | JB5: 431 | JC5: 340 | JD5: 309 | JE5: 243 | JF5: 230 | JG5: 183 | JH5: 254 | JI5: 183 | JJ5: 253 | JK5: 221 | JL5: 495 | JM5: 390 | JN5: 347 | JO5: 299 | JP5: 263 | JQ5: 198 | JR5: 260 | JS5: 187 | JT5: 338 | JU5: 247 | JV5: 661 | JW5: 568 | JX5: 664 | JY5: 485 | JZ5: 431 | KA5: 340 | KB5: 309 | KC5: 243 | KD5: 230 | KE5: 183 | KF5: 245 | KG5: 192 | KH5: 263 | KI5: 211 | KJ5: 495 | KK5: 390 | KL5: 347 | KM5: 299 | KN5: 274 | KO5: 203 | KP5: 260 | KQ5: 187 | KR5: 325 | KS5: 260 | KT5: 687 | KU5: 542 | KV5: 664 | KW5: 485 | KX5: 414 | KY5: 357 | KZ5: 321 | LA5: 231 | LB5: 230 | LC5: 183 | LD5: =+KF5 -> 245 | LE5: 192 | LF5: 263 | LG5: 211 | LH5: 495 | LI5: 390 | LJ5: 347 | LK5: 299 | LL5: 274 | LM5: 203 | LN5: 260 | LO5: 187 | LP5: 325 | LQ5: 260 | LR5: 687 | LS5: 542 | LT5: 664 | LU5: 485 | LV5: 414 | LW5: 357 | LX5: 321 | LY5: 231 | LZ5: 230 | MA5: 183 | MB5: 245 | MC5: 192 | MD5: 263 | ME5: 211 | MF5: 495 | MG5: 390 | MH5: 347 | MI5: 299 | MJ5: 274 | MK5: 203 | ML5: 260 | MM5: 187 | MN5: 325 | MO5: 260 | MP5: 687 | MQ5: 542 | MR5: 664 | MS5: 485 | MT5: 414 | MU5: 357 | MV5: 321 | MW5: 231 | MX5: 230 | MY5: 183 | MZ5: 245 | NA5: 192 | NB5: 263 | NC5: 211 | ND5: 495 | NE5: 390 | NF5: 347 | NG5: 299 | NH5: 274 | NI5: 203 | NJ5: 260 | NK5: 187 | NL5: 325 | NM5: 260 | NN5: 687 | NO5: 542 | NP5: 664 | NQ5: 485 | NR5: 414 | NS5: 357 | NT5: 321 | NU5: 231 | NV5: 230 | NW5: 183 | NX5: 245 | NY5: 192 | NZ5: 263 | OA5: 211 | OB5: 495 | OC5: 390 | OD5: 347 | OE5: 299 | OF5: 274 | OG5: 203 | OH5: 260 | OI5: 187 | OJ5: 325 | OK5: 260 | OL5: 687 | OM5: 542 | ON5: 664 | OO5: 485 | OP5: 414 | OQ5: 357 | OR5: 321 | OS5: 231 | OT5: 230 | OU5: 183 | OV5: 245 | OW5: 192 | OX5: 263 | OY5: 211 | OZ5: 495 | PA5: 390 | PB5: 347 | PC5: 299 | PD5: 274 | PE5: 203 | PF5: 260 | PG5: 187 | PH5: 325 | PI5: 260 | PJ5: 687 | PK5: 542 | PL5: 664 | PM5: 485 | PN5: 414 | PO5: 357 | PP5: 321 | PQ5: 231 | PR5: 230 | PS5: 183 | PT5: 245 | PU5: 192 | PV5: 263 | PW5: 211 | PX5: 495 | PY5: 390 | PZ5: 347 | QA5: 299 | QB5: 274 | QC5: 203 | QD5: 260 | QE5: 187 | QF5: 325 | QG5: 260 | QH5: 687 | QI5: 542 | QJ5: 664 | QK5: 485 | QL5: 414 | QM5: 357 | QN5: 321 | QO5: 231 | QP5: 230 | QQ5: 183 | QR5: 245 | QS5: 192 | QT5: 263 | QU5: 211 | QV5: 495 | QW5: 390 | QX5: 347 | QY5: 299 | QZ5: 274 | RA5: 203 | RB5: 260 | RC5: 187 | RD5: 325 | RE5: 260 | RF5: 687 | RG5: 542 | RH5: 664 | RI5: 485 | RJ5: 414 | RK5: 357 | RL5: 321 | RM5: 231 | RN5: 230 | RO5: 183 | RQ5: 8065 | RR5: 8049 | RS5: 8049 | RT5: 8049 | RU5: 8065 | RV5: 8049 | RW5: 8049 | RX5: 8049 | RY5: 8065 | RZ5: 8049 | SA5: 8049 | SB5: 8049 | SC5: 8065 | SD5: 8065 | SE5: 8065 | SF5: 8065 | SG5: 8065 | SH5: 8065 | SI5: 8065 | SJ5: 8065
